{"text_format":"1","workbook":"xlsx","n_sheets":6,"sheets":["SOLICITAÇÃO","REPASSE ","MEMORIAL DESCRITIVO","PLANO DE ENSAIO (Utensílios)","PLANO DE ENSAIO (Pressão)","DADOS"],"not_rendered":{"charts":0,"images":8,"macros":1,"external_links":0,"defined_names":38,"comments":1,"pivot_tables":0},"unopened":[],"bounds":{"document_bytes":16777216,"sheet_cells":100000,"rows_first":2000,"rows_last":500,"rows_between":2000,"halvings":0,"cell_chars":16384,"cell_head_chars":4096},"cells_cut":0,"cells_raw":0,"read":"whole","date_system":"1900"}

{"sheet":"SOLICITAÇÃO","index":0,"n_rows":56,"n_cols":4,"rows_kept":56,"cut":false,"hidden":false,"merged":[[53,3,53,4],[54,3,54,4],[55,3,55,4],[45,2,45,4],[47,1,47,4],[49,3,49,4],[50,3,50,4],[51,3,51,4],[52,3,52,4],[43,2,43,4],[32,2,32,4],[33,2,33,4],[34,2,34,4],[35,2,35,4],[36,3,36,4],[37,2,37,4],[39,1,39,4],[41,3,41,4],[42,2,42,4],[31,2,31,4],[18,2,18,4],[19,2,19,4],[20,2,20,4],[22,1,22,4],[24,2,24,4],[25,2,25,4],[26,2,26,4],[27,2,27,4],[28,2,28,4],[29,2,29,4],[30,2,30,4],[17,2,17,4],[1,1,1,4],[6,1,6,4],[8,2,8,4],[9,2,9,4],[10,2,10,4],[11,2,11,4],[12,2,12,4],[13,2,13,4],[14,2,14,4],[15,2,15,4],[16,2,16,4]]}
[]
[null,"                                \n                                 ANÁLISE DE VIABILIDADE - PANELA\n                               "]
[]
[null,"SOLICITAÇÃO:","-"]
[null,"MODELO DE CERTIFICAÇÃO:","-"]
[]
[null,"DADOS DA EMPRESA SOLICITANTE"]
[]
[null,"RAZÃO SOCIAL:","-"]
[null,"NOME FANTASIA:"]
[null,"CNPJ:","-"]
[null,"ENDEREÇO:","-"]
[null,"BAIRRO:","-"]
[null,"CEP:","-"]
[null,"CIDADE:","-"]
[null,"ESTADO:","-"]
[null,"E-MAIL:","-"]
[null,"NOME DO CONTATO:","-"]
[null,"TELEFONE: (   )","-"]
[null,"DATA DA SOLICITAÇÃO:","-"]
[null,null,"______________________________________________________________________\nAssinatura (obrigatório)"]
[]
[null,"DADOS DA FÁBRICA"]
[]
[null,"RAZÃO SOCIAL:","-"]
[null,"NOME FANTASIA:"]
[null,"CNPJ:","-"]
[null,"ENDEREÇO:","-"]
[null,"BAIRRO:","-"]
[null,"CEP:","-"]
[null,"CIDADE:","-"]
[null,"ESTADO:","-"]
[null,"PAÍS:","-"]
[null,"E-MAIL - FÁBRICA:","-"]
[null,"NOME DO CONTATO FÁBRICA:","-"]
[null,"TELEFONE (DDD) XXXXX-XXXX:","-"]
[null,"POSSUI CERTIFICAÇÃO ISO 9001? (vigente)","-",{"$f":"IF(C37=\"SIM\",\"Enviar certificado com validade vigente via e-mail\",\"\")","v":""}]
[null,{"$f":"IF(C37=\"sim\",\"DESCREVA O ESCOPO DE CERTIFICAÇÃO\",\"\")","v":""},"-"]
[]
[null,"IDENTIFICAÇÃO DOS PRODUTOS"]
[]
[null,"POSSUI LICENÇA DE TERCEIROS?\n(USO DE MARCA): ","-",{"$f":"IF(C42=\"SIM\",\"Favor preencher as duas linhas abaixo\",\"\")","v":""}]
[null,{"$f":"IF(C42=\"SIM\",\"PRODUTOS LICENCIADOS:\",\"\")","v":""},"-"]
[null,{"$f":"IF(C42=\"SIM\",\"N° DA LICENÇA P/ USO DE MARCAS:\",\"\")","v":""},"-"]
[null,"EXISTE PROCESSO TERCEIRIZADO:","-"]
[null,{"$f":"IF(C45=\"SIM\",\"QUAL?\",\"\")","v":""}]
[]
[null,"                                                                                                                                                                                                                                                                                                         "]
[]
[null,"COMPONENTE","MATERIAL UTILIZADO","FORNECEDOR(ES) "]
[null,"-","-","-"]
[null,"-","-","-"]
[null,"-","-","-"]
[null,"-","-","-"]
[null,"-","-","-"]
[null,"-","-","-"]

{"sheet":"REPASSE ","index":1,"n_rows":28,"n_cols":3,"rows_kept":28,"cut":false,"hidden":true,"merged":[[13,2,13,4],[14,2,14,4],[15,2,15,4],[1,1,1,4],[3,1,3,4],[5,2,5,4],[6,2,6,4],[7,2,7,4],[11,2,11,4],[8,2,8,4],[9,2,9,4],[10,2,10,4],[12,2,12,4],[27,1,31,1],[16,2,16,4],[18,2,18,4],[19,2,19,4],[27,2,31,4],[21,2,21,4]]}
[]
[null,"                                \n                     REPASSE - BRINQUEDO\n                 \n                               "]
[]
[null,"DADOS DO EMBALADOR - (Somente em caso de repasse)"]
[]
[null,"RAZÃO SOCIAL:",{"$f":"SOLICITAÇÃO!C9","v":"-"}]
[null,"NOME FANTASIA:",{"$f":"SOLICITAÇÃO!C10","v":0}]
[null,"CNPJ:",{"$f":"SOLICITAÇÃO!C11","v":"-"}]
[null,"ENDEREÇO:",{"$f":"SOLICITAÇÃO!C12","v":"-"}]
[null,"BAIRRO:",{"$f":"SOLICITAÇÃO!C13","v":"-"}]
[null,"CEP:",{"$f":"SOLICITAÇÃO!C14","v":"-"}]
[null,"CIDADE:",{"$f":"SOLICITAÇÃO!C15","v":"-"}]
[null,"ESTADO:",{"$f":"SOLICITAÇÃO!C16","v":"-"}]
[null,"E-MAIL:",{"$f":"SOLICITAÇÃO!C17","v":"-"}]
[null,"NOME DO CONTATO:",{"$f":"SOLICITAÇÃO!C18","v":"-"}]
[null,"TELEFONE: (   )",{"$f":"SOLICITAÇÃO!C19","v":"-"}]
[null,"DATA DA SOLICITAÇÃO:",{"$f":"SOLICITAÇÃO!C20","v":"-"}]
[]
[null,"N° AUTORIZAÇÃO PARTICULAR DE REPASSE:","-"]
[null,"N° AUTORIZAÇÃO DE USO DA MARCA:","-"]
[]
[null,"N° DE LICENÇA DE IMPORTAÇÃO:","-"]
[]
[null,"PROCEDÊNCIA: ","-"]
[null,{"$f":"IF(C24=\"IMPORTADO\",\"PAÍS DE ORIGEM:\",\"\")","v":""},"-"]
[null,{"$f":"IF(C24=\"IMPORTADO\",\"N° DA LICENÇA DE IMPORTAÇÃO\",\"-\")","v":"-"},"-"]
[]
[null,null,"______________________________________________________________________\nAssinatura (obrigatório)\n"]

{"sheet":"MEMORIAL DESCRITIVO","index":2,"n_rows":3245,"n_cols":48,"rows_kept":3245,"cut":false,"hidden":false,"merged":[[1,20,4,26],[1,27,4,33],[4,45,4,46],[1,38,4,44],[6,2,7,5],[1,2,1,3],[2,2,2,3],[3,2,4,5],[1,13,4,19],[1,4,1,5],[2,4,2,5],[1,6,4,12],[6,6,7,46]]}
[]
[null,null,"RESPONSÁVEL\n(SOLICITANTE)",null,"-",null,"\n                                                                                        ",null,null,null,null,null,null,"\n\n\nMEMORIAL DESCRITIVO DE PANELAS METÁLICAS",null,null,null,null,null,null,null,null,null,null,null,null,null,"\n\n\nMEMORIAL DESCRITIVO DE PANELAS METÁLICAS",null,null,null,null,null,null,null,null,null,null,"\n\n\nMEMORIAL DESCRITIVO DE PANELAS METÁLICAS"]
[null,null,"DATA:",null,"-"]
[null,null,"\n\n\n\n_____________________________________________________________\nAssinaturas dos responsáveis do fornecedor (solicitante)"]
[null,null,null,null,null,null,null,null,null,null,null,null,null,null,null,null,null,null,null,null,null,null,null,null,null,null,null,null,null,null,null,null,null,null,null,null,null,null,null,null,null,null,null,null,null,"FOR.13.1\nRev.: 03\nData da revisão: 07/02/2023"]
[null,null,{"$f":"SOLICITAÇÃO!C5","v":"-"}]
[null,null,"PREENCHIDO PELO OCAN",null,null,null,"PREENCHIMENTO PELO CLIENTE\n(PARA OS ITENS NÃO APLICÁVEIS, FAVOR PREENCHER COM N/A)"]
[]
[null,null,"Itens\n","* Famíla","* Pai","* Critérios para escolha do pai","Tipo de utensílio\n (Favor conferir tabela 1)","Código de barras do produto","Referência comercial","Nome comercial ","Marca do fabricante/\nimportador","Aplicação do produto","Acessórios do produto","Material de construção do corpo","Liga/composição do metal","Processo de fabricação \n(Estampagem, fundição, forjamento, repuxo e outros)","Dimensões\nDiâmetro, comprimento, largura, espessura, diagonal, profundidade","Capacidade volumétrica (Litros)","Pressão de trabalho\n (para panelas de pressão)","Tipo de revestimento interno","Quantidade de camadas do revestimento interno","Composição do revestimento interno","Possui característica Antiaderente?\n(SIM OU NÃO)","Tipo de aplicação do revestimento interno","Cor do revestimento externo","Possui termodifusor no fundo\nSim / Não?","Possui alça e/ou cabo ?             ","Material da alça","Fornecedor da alça","Sistema de fixação da alça no corpo","Dimensões da alça                                (se aplicável)","Material do cabo","Fornecedor do cabo","Sistema de fixação do cabo no corpo","Dimensões do cabo                                  (se aplicável)","Possui tampa: \nSim / Não?","Sistema de fechamento","Material da tampa","Processo de fabricação","Dimensões da tampa                                  (se aplicável)","Possui pomel:\nSim / Não?","Material do pomel","Fornecedor do pomel","Sistema de fixação do pomel na tampa","Dimensões do pomel                                  (se aplicável)","Descrever o posicionamento das marcações obrigatórias e onde esá posicionado a marca do fabricante ou importador\n(ex: fundo do corpo, rótulo,etc..)","Foto simples para identificação do produto",{"$f":"IF(SOLICITAÇÃO!C5=\"MODELO 1b - LOTE\",\"N° DO EDITAL\",\"\")","v":""}]
[{"$f":"IF(E10=\"Sim\", ROW(), \"\")","v":""},{"$f":"'MEMORIAL DESCRITIVO'!D10&\"-\"&COUNTIF('MEMORIAL DESCRITIVO'!$D$10:D10,'MEMORIAL DESCRITIVO'!D10)","v":"-0"},"001"]
[{"$f":"IF(E11=\"Sim\", ROW(), \"\")","v":""},{"$f":"'MEMORIAL DESCRITIVO'!D11&\"-\"&COUNTIF('MEMORIAL DESCRITIVO'!$D$10:D11,'MEMORIAL DESCRITIVO'!D11)","v":"-0"},"002"]
["",{"$f":"'MEMORIAL DESCRITIVO'!D12&\"-\"&COUNTIF('MEMORIAL DESCRITIVO'!$D$10:D12,'MEMORIAL DESCRITIVO'!D12)","v":"-0"},"003"]
["",{"$f":"'MEMORIAL DESCRITIVO'!D13&\"-\"&COUNTIF('MEMORIAL DESCRITIVO'!$D$10:D13,'MEMORIAL DESCRITIVO'!D13)","v":"-0"},"004"]
["",{"$f":"'MEMORIAL DESCRITIVO'!D14&\"-\"&COUNTIF('MEMORIAL DESCRITIVO'!$D$10:D14,'MEMORIAL DESCRITIVO'!D14)","v":"-0"},"005"]
["",{"$f":"'MEMORIAL DESCRITIVO'!D15&\"-\"&COUNTIF('MEMORIAL DESCRITIVO'!$D$10:D15,'MEMORIAL DESCRITIVO'!D15)","v":"-0"},"006"]
["",{"$f":"'MEMORIAL DESCRITIVO'!D16&\"-\"&COUNTIF('MEMORIAL DESCRITIVO'!$D$10:D16,'MEMORIAL DESCRITIVO'!D16)","v":"-0"},"007"]
["",{"$f":"'MEMORIAL DESCRITIVO'!D17&\"-\"&COUNTIF('MEMORIAL DESCRITIVO'!$D$10:D17,'MEMORIAL DESCRITIVO'!D17)","v":"-0"},"008"]
["",{"$f":"'MEMORIAL DESCRITIVO'!D18&\"-\"&COUNTIF('MEMORIAL DESCRITIVO'!$D$10:D18,'MEMORIAL DESCRITIVO'!D18)","v":"-0"},"009"]
["",{"$f":"'MEMORIAL DESCRITIVO'!D19&\"-\"&COUNTIF('MEMORIAL DESCRITIVO'!$D$10:D19,'MEMORIAL DESCRITIVO'!D19)","v":"-0"},"010"]
["",{"$f":"'MEMORIAL DESCRITIVO'!D20&\"-\"&COUNTIF('MEMORIAL DESCRITIVO'!$D$10:D20,'MEMORIAL DESCRITIVO'!D20)","v":"-0"},"011"]
["",{"$f":"'MEMORIAL DESCRITIVO'!D21&\"-\"&COUNTIF('MEMORIAL DESCRITIVO'!$D$10:D21,'MEMORIAL DESCRITIVO'!D21)","v":"-0"},"012"]
["",{"$f":"'MEMORIAL DESCRITIVO'!D22&\"-\"&COUNTIF('MEMORIAL DESCRITIVO'!$D$10:D22,'MEMORIAL DESCRITIVO'!D22)","v":"-0"},"013"]
["",{"$f":"'MEMORIAL DESCRITIVO'!D23&\"-\"&COUNTIF('MEMORIAL DESCRITIVO'!$D$10:D23,'MEMORIAL DESCRITIVO'!D23)","v":"-0"},"014"]
["",{"$f":"'MEMORIAL DESCRITIVO'!D24&\"-\"&COUNTIF('MEMORIAL DESCRITIVO'!$D$10:D24,'MEMORIAL DESCRITIVO'!D24)","v":"-0"},"015"]
["",{"$f":"'MEMORIAL DESCRITIVO'!D25&\"-\"&COUNTIF('MEMORIAL DESCRITIVO'!$D$10:D25,'MEMORIAL DESCRITIVO'!D25)","v":"-0"},"016"]
["",{"$f":"'MEMORIAL DESCRITIVO'!D26&\"-\"&COUNTIF('MEMORIAL DESCRITIVO'!$D$10:D26,'MEMORIAL DESCRITIVO'!D26)","v":"-0"},"017"]
["",{"$f":"'MEMORIAL DESCRITIVO'!D27&\"-\"&COUNTIF('MEMORIAL DESCRITIVO'!$D$10:D27,'MEMORIAL DESCRITIVO'!D27)","v":"-0"},"018"]
["",{"$f":"'MEMORIAL DESCRITIVO'!D28&\"-\"&COUNTIF('MEMORIAL DESCRITIVO'!$D$10:D28,'MEMORIAL DESCRITIVO'!D28)","v":"-0"},"019"]
["",{"$f":"'MEMORIAL DESCRITIVO'!D29&\"-\"&COUNTIF('MEMORIAL DESCRITIVO'!$D$10:D29,'MEMORIAL DESCRITIVO'!D29)","v":"-0"},"020"]
["",{"$f":"'MEMORIAL DESCRITIVO'!D30&\"-\"&COUNTIF('MEMORIAL DESCRITIVO'!$D$10:D30,'MEMORIAL DESCRITIVO'!D30)","v":"-0"},"021"]
["",{"$f":"'MEMORIAL DESCRITIVO'!D31&\"-\"&COUNTIF('MEMORIAL DESCRITIVO'!$D$10:D31,'MEMORIAL DESCRITIVO'!D31)","v":"-0"},"022"]
["",{"$f":"'MEMORIAL DESCRITIVO'!D32&\"-\"&COUNTIF('MEMORIAL DESCRITIVO'!$D$10:D32,'MEMORIAL DESCRITIVO'!D32)","v":"-0"},"023"]
["",{"$f":"'MEMORIAL DESCRITIVO'!D33&\"-\"&COUNTIF('MEMORIAL DESCRITIVO'!$D$10:D33,'MEMORIAL DESCRITIVO'!D33)","v":"-0"},"024"]
["",{"$f":"'MEMORIAL DESCRITIVO'!D34&\"-\"&COUNTIF('MEMORIAL DESCRITIVO'!$D$10:D34,'MEMORIAL DESCRITIVO'!D34)","v":"-0"},"025"]
["",{"$f":"'MEMORIAL DESCRITIVO'!D35&\"-\"&COUNTIF('MEMORIAL DESCRITIVO'!$D$10:D35,'MEMORIAL DESCRITIVO'!D35)","v":"-0"},"026"]
["",{"$f":"'MEMORIAL DESCRITIVO'!D36&\"-\"&COUNTIF('MEMORIAL DESCRITIVO'!$D$10:D36,'MEMORIAL DESCRITIVO'!D36)","v":"-0"},"027"]
["",{"$f":"'MEMORIAL DESCRITIVO'!D37&\"-\"&COUNTIF('MEMORIAL DESCRITIVO'!$D$10:D37,'MEMORIAL DESCRITIVO'!D37)","v":"-0"},"028"]
["",{"$f":"'MEMORIAL DESCRITIVO'!D38&\"-\"&COUNTIF('MEMORIAL DESCRITIVO'!$D$10:D38,'MEMORIAL DESCRITIVO'!D38)","v":"-0"},"029"]
["",{"$f":"'MEMORIAL DESCRITIVO'!D39&\"-\"&COUNTIF('MEMORIAL DESCRITIVO'!$D$10:D39,'MEMORIAL DESCRITIVO'!D39)","v":"-0"},"030"]
["",{"$f":"'MEMORIAL DESCRITIVO'!D40&\"-\"&COUNTIF('MEMORIAL DESCRITIVO'!$D$10:D40,'MEMORIAL DESCRITIVO'!D40)","v":"-0"},"031"]
["",{"$f":"'MEMORIAL DESCRITIVO'!D41&\"-\"&COUNTIF('MEMORIAL DESCRITIVO'!$D$10:D41,'MEMORIAL DESCRITIVO'!D41)","v":"-0"},"032"]
["",{"$f":"'MEMORIAL DESCRITIVO'!D42&\"-\"&COUNTIF('MEMORIAL DESCRITIVO'!$D$10:D42,'MEMORIAL DESCRITIVO'!D42)","v":"-0"},"033"]
["",{"$f":"'MEMORIAL DESCRITIVO'!D43&\"-\"&COUNTIF('MEMORIAL DESCRITIVO'!$D$10:D43,'MEMORIAL DESCRITIVO'!D43)","v":"-0"},"034"]
["",{"$f":"'MEMORIAL DESCRITIVO'!D44&\"-\"&COUNTIF('MEMORIAL DESCRITIVO'!$D$10:D44,'MEMORIAL DESCRITIVO'!D44)","v":"-0"},"035"]
["",{"$f":"'MEMORIAL DESCRITIVO'!D45&\"-\"&COUNTIF('MEMORIAL DESCRITIVO'!$D$10:D45,'MEMORIAL DESCRITIVO'!D45)","v":"-0"},"036"]
["",{"$f":"'MEMORIAL DESCRITIVO'!D46&\"-\"&COUNTIF('MEMORIAL DESCRITIVO'!$D$10:D46,'MEMORIAL DESCRITIVO'!D46)","v":"-0"},"037"]
["",{"$f":"'MEMORIAL DESCRITIVO'!D47&\"-\"&COUNTIF('MEMORIAL DESCRITIVO'!$D$10:D47,'MEMORIAL DESCRITIVO'!D47)","v":"-0"},"038"]
["",{"$f":"'MEMORIAL DESCRITIVO'!D48&\"-\"&COUNTIF('MEMORIAL DESCRITIVO'!$D$10:D48,'MEMORIAL DESCRITIVO'!D48)","v":"-0"},"039"]
["",{"$f":"'MEMORIAL DESCRITIVO'!D49&\"-\"&COUNTIF('MEMORIAL DESCRITIVO'!$D$10:D49,'MEMORIAL DESCRITIVO'!D49)","v":"-0"},"040"]
["",{"$f":"'MEMORIAL DESCRITIVO'!D50&\"-\"&COUNTIF('MEMORIAL DESCRITIVO'!$D$10:D50,'MEMORIAL DESCRITIVO'!D50)","v":"-0"},"041"]
["",{"$f":"'MEMORIAL DESCRITIVO'!D51&\"-\"&COUNTIF('MEMORIAL DESCRITIVO'!$D$10:D51,'MEMORIAL DESCRITIVO'!D51)","v":"-0"},"042"]
["",{"$f":"'MEMORIAL DESCRITIVO'!D52&\"-\"&COUNTIF('MEMORIAL DESCRITIVO'!$D$10:D52,'MEMORIAL DESCRITIVO'!D52)","v":"-0"},"043"]
["",{"$f":"'MEMORIAL DESCRITIVO'!D53&\"-\"&COUNTIF('MEMORIAL DESCRITIVO'!$D$10:D53,'MEMORIAL DESCRITIVO'!D53)","v":"-0"},"044"]
["",{"$f":"'MEMORIAL DESCRITIVO'!D54&\"-\"&COUNTIF('MEMORIAL DESCRITIVO'!$D$10:D54,'MEMORIAL DESCRITIVO'!D54)","v":"-0"},"045"]
["",{"$f":"'MEMORIAL DESCRITIVO'!D55&\"-\"&COUNTIF('MEMORIAL DESCRITIVO'!$D$10:D55,'MEMORIAL DESCRITIVO'!D55)","v":"-0"},"046"]
["",{"$f":"'MEMORIAL DESCRITIVO'!D56&\"-\"&COUNTIF('MEMORIAL DESCRITIVO'!$D$10:D56,'MEMORIAL DESCRITIVO'!D56)","v":"-0"},"047"]
["",{"$f":"'MEMORIAL DESCRITIVO'!D57&\"-\"&COUNTIF('MEMORIAL DESCRITIVO'!$D$10:D57,'MEMORIAL DESCRITIVO'!D57)","v":"-0"},"048"]
["",{"$f":"'MEMORIAL DESCRITIVO'!D58&\"-\"&COUNTIF('MEMORIAL DESCRITIVO'!$D$10:D58,'MEMORIAL DESCRITIVO'!D58)","v":"-0"},"049"]
["",{"$f":"'MEMORIAL DESCRITIVO'!D59&\"-\"&COUNTIF('MEMORIAL DESCRITIVO'!$D$10:D59,'MEMORIAL DESCRITIVO'!D59)","v":"-0"},"050"]
["",{"$f":"'MEMORIAL DESCRITIVO'!D60&\"-\"&COUNTIF('MEMORIAL DESCRITIVO'!$D$10:D60,'MEMORIAL DESCRITIVO'!D60)","v":"-0"},"051"]
["",{"$f":"'MEMORIAL DESCRITIVO'!D61&\"-\"&COUNTIF('MEMORIAL DESCRITIVO'!$D$10:D61,'MEMORIAL DESCRITIVO'!D61)","v":"-0"},"052"]
["",{"$f":"'MEMORIAL DESCRITIVO'!D62&\"-\"&COUNTIF('MEMORIAL DESCRITIVO'!$D$10:D62,'MEMORIAL DESCRITIVO'!D62)","v":"-0"},"053"]
["",{"$f":"'MEMORIAL DESCRITIVO'!D63&\"-\"&COUNTIF('MEMORIAL DESCRITIVO'!$D$10:D63,'MEMORIAL DESCRITIVO'!D63)","v":"-0"},"054"]
["",{"$f":"'MEMORIAL DESCRITIVO'!D64&\"-\"&COUNTIF('MEMORIAL DESCRITIVO'!$D$10:D64,'MEMORIAL DESCRITIVO'!D64)","v":"-0"},"055"]
["",{"$f":"'MEMORIAL DESCRITIVO'!D65&\"-\"&COUNTIF('MEMORIAL DESCRITIVO'!$D$10:D65,'MEMORIAL DESCRITIVO'!D65)","v":"-0"},"056"]
["",{"$f":"'MEMORIAL DESCRITIVO'!D66&\"-\"&COUNTIF('MEMORIAL DESCRITIVO'!$D$10:D66,'MEMORIAL DESCRITIVO'!D66)","v":"-0"},"057"]
["",{"$f":"'MEMORIAL DESCRITIVO'!D67&\"-\"&COUNTIF('MEMORIAL DESCRITIVO'!$D$10:D67,'MEMORIAL DESCRITIVO'!D67)","v":"-0"},"058"]
["",{"$f":"'MEMORIAL DESCRITIVO'!D68&\"-\"&COUNTIF('MEMORIAL DESCRITIVO'!$D$10:D68,'MEMORIAL DESCRITIVO'!D68)","v":"-0"},"059"]
["",{"$f":"'MEMORIAL DESCRITIVO'!D69&\"-\"&COUNTIF('MEMORIAL DESCRITIVO'!$D$10:D69,'MEMORIAL DESCRITIVO'!D69)","v":"-0"},"060"]
["",{"$f":"'MEMORIAL DESCRITIVO'!D70&\"-\"&COUNTIF('MEMORIAL DESCRITIVO'!$D$10:D70,'MEMORIAL DESCRITIVO'!D70)","v":"-0"},"061"]
["",{"$f":"'MEMORIAL DESCRITIVO'!D71&\"-\"&COUNTIF('MEMORIAL DESCRITIVO'!$D$10:D71,'MEMORIAL DESCRITIVO'!D71)","v":"-0"},"062"]
["",{"$f":"'MEMORIAL DESCRITIVO'!D72&\"-\"&COUNTIF('MEMORIAL DESCRITIVO'!$D$10:D72,'MEMORIAL DESCRITIVO'!D72)","v":"-0"},"063"]
["",{"$f":"'MEMORIAL DESCRITIVO'!D73&\"-\"&COUNTIF('MEMORIAL DESCRITIVO'!$D$10:D73,'MEMORIAL DESCRITIVO'!D73)","v":"-0"},"064"]
["",{"$f":"'MEMORIAL DESCRITIVO'!D74&\"-\"&COUNTIF('MEMORIAL DESCRITIVO'!$D$10:D74,'MEMORIAL DESCRITIVO'!D74)","v":"-0"},"065"]
[{"$f":"IF(E75=\"Sim\", ROW(), \"\")","v":""},{"$f":"'MEMORIAL DESCRITIVO'!D75&\"-\"&COUNTIF('MEMORIAL DESCRITIVO'!$D$10:D75,'MEMORIAL DESCRITIVO'!D75)","v":"-0"},"066"]
["",{"$f":"'MEMORIAL DESCRITIVO'!D76&\"-\"&COUNTIF('MEMORIAL DESCRITIVO'!$D$10:D76,'MEMORIAL DESCRITIVO'!D76)","v":"-0"},"067"]
["",{"$f":"'MEMORIAL DESCRITIVO'!D77&\"-\"&COUNTIF('MEMORIAL DESCRITIVO'!$D$10:D77,'MEMORIAL DESCRITIVO'!D77)","v":"-0"},"068"]
["",{"$f":"'MEMORIAL DESCRITIVO'!D78&\"-\"&COUNTIF('MEMORIAL DESCRITIVO'!$D$10:D78,'MEMORIAL DESCRITIVO'!D78)","v":"-0"},"069"]
["",{"$f":"'MEMORIAL DESCRITIVO'!D79&\"-\"&COUNTIF('MEMORIAL DESCRITIVO'!$D$10:D79,'MEMORIAL DESCRITIVO'!D79)","v":"-0"},"070"]
["",{"$f":"'MEMORIAL DESCRITIVO'!D80&\"-\"&COUNTIF('MEMORIAL DESCRITIVO'!$D$10:D80,'MEMORIAL DESCRITIVO'!D80)","v":"-0"},"071"]
["",{"$f":"'MEMORIAL DESCRITIVO'!D81&\"-\"&COUNTIF('MEMORIAL DESCRITIVO'!$D$10:D81,'MEMORIAL DESCRITIVO'!D81)","v":"-0"},"072"]
["",{"$f":"'MEMORIAL DESCRITIVO'!D82&\"-\"&COUNTIF('MEMORIAL DESCRITIVO'!$D$10:D82,'MEMORIAL DESCRITIVO'!D82)","v":"-0"},"073"]
["",{"$f":"'MEMORIAL DESCRITIVO'!D83&\"-\"&COUNTIF('MEMORIAL DESCRITIVO'!$D$10:D83,'MEMORIAL DESCRITIVO'!D83)","v":"-0"},"074"]
["",{"$f":"'MEMORIAL DESCRITIVO'!D84&\"-\"&COUNTIF('MEMORIAL DESCRITIVO'!$D$10:D84,'MEMORIAL DESCRITIVO'!D84)","v":"-0"},"075"]
["",{"$f":"'MEMORIAL DESCRITIVO'!D85&\"-\"&COUNTIF('MEMORIAL DESCRITIVO'!$D$10:D85,'MEMORIAL DESCRITIVO'!D85)","v":"-0"},"076"]
["",{"$f":"'MEMORIAL DESCRITIVO'!D86&\"-\"&COUNTIF('MEMORIAL DESCRITIVO'!$D$10:D86,'MEMORIAL DESCRITIVO'!D86)","v":"-0"},"077"]
["",{"$f":"'MEMORIAL DESCRITIVO'!D87&\"-\"&COUNTIF('MEMORIAL DESCRITIVO'!$D$10:D87,'MEMORIAL DESCRITIVO'!D87)","v":"-0"},"078"]
["",{"$f":"'MEMORIAL DESCRITIVO'!D88&\"-\"&COUNTIF('MEMORIAL DESCRITIVO'!$D$10:D88,'MEMORIAL DESCRITIVO'!D88)","v":"-0"},"079"]
["",{"$f":"'MEMORIAL DESCRITIVO'!D89&\"-\"&COUNTIF('MEMORIAL DESCRITIVO'!$D$10:D89,'MEMORIAL DESCRITIVO'!D89)","v":"-0"},"080"]
["",{"$f":"'MEMORIAL DESCRITIVO'!D90&\"-\"&COUNTIF('MEMORIAL DESCRITIVO'!$D$10:D90,'MEMORIAL DESCRITIVO'!D90)","v":"-0"},"081"]
["",{"$f":"'MEMORIAL DESCRITIVO'!D91&\"-\"&COUNTIF('MEMORIAL DESCRITIVO'!$D$10:D91,'MEMORIAL DESCRITIVO'!D91)","v":"-0"},"082"]
["",{"$f":"'MEMORIAL DESCRITIVO'!D92&\"-\"&COUNTIF('MEMORIAL DESCRITIVO'!$D$10:D92,'MEMORIAL DESCRITIVO'!D92)","v":"-0"},"083"]
["",{"$f":"'MEMORIAL DESCRITIVO'!D93&\"-\"&COUNTIF('MEMORIAL DESCRITIVO'!$D$10:D93,'MEMORIAL DESCRITIVO'!D93)","v":"-0"},"084"]
["",{"$f":"'MEMORIAL DESCRITIVO'!D94&\"-\"&COUNTIF('MEMORIAL DESCRITIVO'!$D$10:D94,'MEMORIAL DESCRITIVO'!D94)","v":"-0"},"085"]
["",{"$f":"'MEMORIAL DESCRITIVO'!D95&\"-\"&COUNTIF('MEMORIAL DESCRITIVO'!$D$10:D95,'MEMORIAL DESCRITIVO'!D95)","v":"-0"},"086"]
["",{"$f":"'MEMORIAL DESCRITIVO'!D96&\"-\"&COUNTIF('MEMORIAL DESCRITIVO'!$D$10:D96,'MEMORIAL DESCRITIVO'!D96)","v":"-0"},"087"]
["",{"$f":"'MEMORIAL DESCRITIVO'!D97&\"-\"&COUNTIF('MEMORIAL DESCRITIVO'!$D$10:D97,'MEMORIAL DESCRITIVO'!D97)","v":"-0"},"088"]
["",{"$f":"'MEMORIAL DESCRITIVO'!D98&\"-\"&COUNTIF('MEMORIAL DESCRITIVO'!$D$10:D98,'MEMORIAL DESCRITIVO'!D98)","v":"-0"},"089"]
["",{"$f":"'MEMORIAL DESCRITIVO'!D99&\"-\"&COUNTIF('MEMORIAL DESCRITIVO'!$D$10:D99,'MEMORIAL DESCRITIVO'!D99)","v":"-0"},"090"]
["",{"$f":"'MEMORIAL DESCRITIVO'!D100&\"-\"&COUNTIF('MEMORIAL DESCRITIVO'!$D$10:D100,'MEMORIAL DESCRITIVO'!D100)","v":"-0"},"091"]
["",{"$f":"'MEMORIAL DESCRITIVO'!D101&\"-\"&COUNTIF('MEMORIAL DESCRITIVO'!$D$10:D101,'MEMORIAL DESCRITIVO'!D101)","v":"-0"},"092"]
["",{"$f":"'MEMORIAL DESCRITIVO'!D102&\"-\"&COUNTIF('MEMORIAL DESCRITIVO'!$D$10:D102,'MEMORIAL DESCRITIVO'!D102)","v":"-0"},"093"]
["",{"$f":"'MEMORIAL DESCRITIVO'!D103&\"-\"&COUNTIF('MEMORIAL DESCRITIVO'!$D$10:D103,'MEMORIAL DESCRITIVO'!D103)","v":"-0"},"094"]
["",{"$f":"'MEMORIAL DESCRITIVO'!D104&\"-\"&COUNTIF('MEMORIAL DESCRITIVO'!$D$10:D104,'MEMORIAL DESCRITIVO'!D104)","v":"-0"},"095"]
["",{"$f":"'MEMORIAL DESCRITIVO'!D105&\"-\"&COUNTIF('MEMORIAL DESCRITIVO'!$D$10:D105,'MEMORIAL DESCRITIVO'!D105)","v":"-0"},"096"]
["",{"$f":"'MEMORIAL DESCRITIVO'!D106&\"-\"&COUNTIF('MEMORIAL DESCRITIVO'!$D$10:D106,'MEMORIAL DESCRITIVO'!D106)","v":"-0"},"097"]
["",{"$f":"'MEMORIAL DESCRITIVO'!D107&\"-\"&COUNTIF('MEMORIAL DESCRITIVO'!$D$10:D107,'MEMORIAL DESCRITIVO'!D107)","v":"-0"},"098"]
["",{"$f":"'MEMORIAL DESCRITIVO'!D108&\"-\"&COUNTIF('MEMORIAL DESCRITIVO'!$D$10:D108,'MEMORIAL DESCRITIVO'!D108)","v":"-0"},"099"]
["",{"$f":"'MEMORIAL DESCRITIVO'!D109&\"-\"&COUNTIF('MEMORIAL DESCRITIVO'!$D$10:D109,'MEMORIAL DESCRITIVO'!D109)","v":"-0"},"100"]
["",{"$f":"'MEMORIAL DESCRITIVO'!D110&\"-\"&COUNTIF('MEMORIAL DESCRITIVO'!$D$10:D110,'MEMORIAL DESCRITIVO'!D110)","v":"-0"},"101"]
["",{"$f":"'MEMORIAL DESCRITIVO'!D111&\"-\"&COUNTIF('MEMORIAL DESCRITIVO'!$D$10:D111,'MEMORIAL DESCRITIVO'!D111)","v":"-0"},"102"]
["",{"$f":"'MEMORIAL DESCRITIVO'!D112&\"-\"&COUNTIF('MEMORIAL DESCRITIVO'!$D$10:D112,'MEMORIAL DESCRITIVO'!D112)","v":"-0"},"103"]
["",{"$f":"'MEMORIAL DESCRITIVO'!D113&\"-\"&COUNTIF('MEMORIAL DESCRITIVO'!$D$10:D113,'MEMORIAL DESCRITIVO'!D113)","v":"-0"},"104"]
["",{"$f":"'MEMORIAL DESCRITIVO'!D114&\"-\"&COUNTIF('MEMORIAL DESCRITIVO'!$D$10:D114,'MEMORIAL DESCRITIVO'!D114)","v":"-0"},"105"]
["",{"$f":"'MEMORIAL DESCRITIVO'!D115&\"-\"&COUNTIF('MEMORIAL DESCRITIVO'!$D$10:D115,'MEMORIAL DESCRITIVO'!D115)","v":"-0"},"106"]
["",{"$f":"'MEMORIAL DESCRITIVO'!D116&\"-\"&COUNTIF('MEMORIAL DESCRITIVO'!$D$10:D116,'MEMORIAL DESCRITIVO'!D116)","v":"-0"},"107"]
["",{"$f":"'MEMORIAL DESCRITIVO'!D117&\"-\"&COUNTIF('MEMORIAL DESCRITIVO'!$D$10:D117,'MEMORIAL DESCRITIVO'!D117)","v":"-0"},"108"]
["",{"$f":"'MEMORIAL DESCRITIVO'!D118&\"-\"&COUNTIF('MEMORIAL DESCRITIVO'!$D$10:D118,'MEMORIAL DESCRITIVO'!D118)","v":"-0"},"109"]
["",{"$f":"'MEMORIAL DESCRITIVO'!D119&\"-\"&COUNTIF('MEMORIAL DESCRITIVO'!$D$10:D119,'MEMORIAL DESCRITIVO'!D119)","v":"-0"},"110"]
["",{"$f":"'MEMORIAL DESCRITIVO'!D120&\"-\"&COUNTIF('MEMORIAL DESCRITIVO'!$D$10:D120,'MEMORIAL DESCRITIVO'!D120)","v":"-0"},"111"]
["",{"$f":"'MEMORIAL DESCRITIVO'!D121&\"-\"&COUNTIF('MEMORIAL DESCRITIVO'!$D$10:D121,'MEMORIAL DESCRITIVO'!D121)","v":"-0"},"112"]
["",{"$f":"'MEMORIAL DESCRITIVO'!D122&\"-\"&COUNTIF('MEMORIAL DESCRITIVO'!$D$10:D122,'MEMORIAL DESCRITIVO'!D122)","v":"-0"},"113"]
["",{"$f":"'MEMORIAL DESCRITIVO'!D123&\"-\"&COUNTIF('MEMORIAL DESCRITIVO'!$D$10:D123,'MEMORIAL DESCRITIVO'!D123)","v":"-0"},"114"]
["",{"$f":"'MEMORIAL DESCRITIVO'!D124&\"-\"&COUNTIF('MEMORIAL DESCRITIVO'!$D$10:D124,'MEMORIAL DESCRITIVO'!D124)","v":"-0"},"115"]
["",{"$f":"'MEMORIAL DESCRITIVO'!D125&\"-\"&COUNTIF('MEMORIAL DESCRITIVO'!$D$10:D125,'MEMORIAL DESCRITIVO'!D125)","v":"-0"},"116"]
["",{"$f":"'MEMORIAL DESCRITIVO'!D126&\"-\"&COUNTIF('MEMORIAL DESCRITIVO'!$D$10:D126,'MEMORIAL DESCRITIVO'!D126)","v":"-0"},"117"]
["",{"$f":"'MEMORIAL DESCRITIVO'!D127&\"-\"&COUNTIF('MEMORIAL DESCRITIVO'!$D$10:D127,'MEMORIAL DESCRITIVO'!D127)","v":"-0"},"118"]
["",{"$f":"'MEMORIAL DESCRITIVO'!D128&\"-\"&COUNTIF('MEMORIAL DESCRITIVO'!$D$10:D128,'MEMORIAL DESCRITIVO'!D128)","v":"-0"},"119"]
["",{"$f":"'MEMORIAL DESCRITIVO'!D129&\"-\"&COUNTIF('MEMORIAL DESCRITIVO'!$D$10:D129,'MEMORIAL DESCRITIVO'!D129)","v":"-0"},"120"]
["",{"$f":"'MEMORIAL DESCRITIVO'!D130&\"-\"&COUNTIF('MEMORIAL DESCRITIVO'!$D$10:D130,'MEMORIAL DESCRITIVO'!D130)","v":"-0"},"121"]
["",{"$f":"'MEMORIAL DESCRITIVO'!D131&\"-\"&COUNTIF('MEMORIAL DESCRITIVO'!$D$10:D131,'MEMORIAL DESCRITIVO'!D131)","v":"-0"},"122"]
["",{"$f":"'MEMORIAL DESCRITIVO'!D132&\"-\"&COUNTIF('MEMORIAL DESCRITIVO'!$D$10:D132,'MEMORIAL DESCRITIVO'!D132)","v":"-0"},"123"]
["",{"$f":"'MEMORIAL DESCRITIVO'!D133&\"-\"&COUNTIF('MEMORIAL DESCRITIVO'!$D$10:D133,'MEMORIAL DESCRITIVO'!D133)","v":"-0"},"124"]
["",{"$f":"'MEMORIAL DESCRITIVO'!D134&\"-\"&COUNTIF('MEMORIAL DESCRITIVO'!$D$10:D134,'MEMORIAL DESCRITIVO'!D134)","v":"-0"},"125"]
["",{"$f":"'MEMORIAL DESCRITIVO'!D135&\"-\"&COUNTIF('MEMORIAL DESCRITIVO'!$D$10:D135,'MEMORIAL DESCRITIVO'!D135)","v":"-0"},"126"]
["",{"$f":"'MEMORIAL DESCRITIVO'!D136&\"-\"&COUNTIF('MEMORIAL DESCRITIVO'!$D$10:D136,'MEMORIAL DESCRITIVO'!D136)","v":"-0"},"127"]
["",{"$f":"'MEMORIAL DESCRITIVO'!D137&\"-\"&COUNTIF('MEMORIAL DESCRITIVO'!$D$10:D137,'MEMORIAL DESCRITIVO'!D137)","v":"-0"},"128"]
["",{"$f":"'MEMORIAL DESCRITIVO'!D138&\"-\"&COUNTIF('MEMORIAL DESCRITIVO'!$D$10:D138,'MEMORIAL DESCRITIVO'!D138)","v":"-0"},"129"]
[{"$f":"IF(E139=\"Sim\", ROW(), \"\")","v":""},{"$f":"'MEMORIAL DESCRITIVO'!D139&\"-\"&COUNTIF('MEMORIAL DESCRITIVO'!$D$10:D139,'MEMORIAL DESCRITIVO'!D139)","v":"-0"},"130"]
["",{"$f":"'MEMORIAL DESCRITIVO'!D140&\"-\"&COUNTIF('MEMORIAL DESCRITIVO'!$D$10:D140,'MEMORIAL DESCRITIVO'!D140)","v":"-0"},"131"]
["",{"$f":"'MEMORIAL DESCRITIVO'!D141&\"-\"&COUNTIF('MEMORIAL DESCRITIVO'!$D$10:D141,'MEMORIAL DESCRITIVO'!D141)","v":"-0"},"132"]
["",{"$f":"'MEMORIAL DESCRITIVO'!D142&\"-\"&COUNTIF('MEMORIAL DESCRITIVO'!$D$10:D142,'MEMORIAL DESCRITIVO'!D142)","v":"-0"},"133"]
["",{"$f":"'MEMORIAL DESCRITIVO'!D143&\"-\"&COUNTIF('MEMORIAL DESCRITIVO'!$D$10:D143,'MEMORIAL DESCRITIVO'!D143)","v":"-0"},"134"]
["",{"$f":"'MEMORIAL DESCRITIVO'!D144&\"-\"&COUNTIF('MEMORIAL DESCRITIVO'!$D$10:D144,'MEMORIAL DESCRITIVO'!D144)","v":"-0"},"135"]
["",{"$f":"'MEMORIAL DESCRITIVO'!D145&\"-\"&COUNTIF('MEMORIAL DESCRITIVO'!$D$10:D145,'MEMORIAL DESCRITIVO'!D145)","v":"-0"},"136"]
["",{"$f":"'MEMORIAL DESCRITIVO'!D146&\"-\"&COUNTIF('MEMORIAL DESCRITIVO'!$D$10:D146,'MEMORIAL DESCRITIVO'!D146)","v":"-0"},"137"]
["",{"$f":"'MEMORIAL DESCRITIVO'!D147&\"-\"&COUNTIF('MEMORIAL DESCRITIVO'!$D$10:D147,'MEMORIAL DESCRITIVO'!D147)","v":"-0"},"138"]
["",{"$f":"'MEMORIAL DESCRITIVO'!D148&\"-\"&COUNTIF('MEMORIAL DESCRITIVO'!$D$10:D148,'MEMORIAL DESCRITIVO'!D148)","v":"-0"},"139"]
["",{"$f":"'MEMORIAL DESCRITIVO'!D149&\"-\"&COUNTIF('MEMORIAL DESCRITIVO'!$D$10:D149,'MEMORIAL DESCRITIVO'!D149)","v":"-0"},"140"]
["",{"$f":"'MEMORIAL DESCRITIVO'!D150&\"-\"&COUNTIF('MEMORIAL DESCRITIVO'!$D$10:D150,'MEMORIAL DESCRITIVO'!D150)","v":"-0"},"141"]
["",{"$f":"'MEMORIAL DESCRITIVO'!D151&\"-\"&COUNTIF('MEMORIAL DESCRITIVO'!$D$10:D151,'MEMORIAL DESCRITIVO'!D151)","v":"-0"},"142"]
["",{"$f":"'MEMORIAL DESCRITIVO'!D152&\"-\"&COUNTIF('MEMORIAL DESCRITIVO'!$D$10:D152,'MEMORIAL DESCRITIVO'!D152)","v":"-0"},"143"]
["",{"$f":"'MEMORIAL DESCRITIVO'!D153&\"-\"&COUNTIF('MEMORIAL DESCRITIVO'!$D$10:D153,'MEMORIAL DESCRITIVO'!D153)","v":"-0"},"144"]
["",{"$f":"'MEMORIAL DESCRITIVO'!D154&\"-\"&COUNTIF('MEMORIAL DESCRITIVO'!$D$10:D154,'MEMORIAL DESCRITIVO'!D154)","v":"-0"},"145"]
["",{"$f":"'MEMORIAL DESCRITIVO'!D155&\"-\"&COUNTIF('MEMORIAL DESCRITIVO'!$D$10:D155,'MEMORIAL DESCRITIVO'!D155)","v":"-0"},"146"]
["",{"$f":"'MEMORIAL DESCRITIVO'!D156&\"-\"&COUNTIF('MEMORIAL DESCRITIVO'!$D$10:D156,'MEMORIAL DESCRITIVO'!D156)","v":"-0"},"147"]
["",{"$f":"'MEMORIAL DESCRITIVO'!D157&\"-\"&COUNTIF('MEMORIAL DESCRITIVO'!$D$10:D157,'MEMORIAL DESCRITIVO'!D157)","v":"-0"},"148"]
["",{"$f":"'MEMORIAL DESCRITIVO'!D158&\"-\"&COUNTIF('MEMORIAL DESCRITIVO'!$D$10:D158,'MEMORIAL DESCRITIVO'!D158)","v":"-0"},"149"]
["",{"$f":"'MEMORIAL DESCRITIVO'!D159&\"-\"&COUNTIF('MEMORIAL DESCRITIVO'!$D$10:D159,'MEMORIAL DESCRITIVO'!D159)","v":"-0"},"150"]
["",{"$f":"'MEMORIAL DESCRITIVO'!D160&\"-\"&COUNTIF('MEMORIAL DESCRITIVO'!$D$10:D160,'MEMORIAL DESCRITIVO'!D160)","v":"-0"},"151"]
["",{"$f":"'MEMORIAL DESCRITIVO'!D161&\"-\"&COUNTIF('MEMORIAL DESCRITIVO'!$D$10:D161,'MEMORIAL DESCRITIVO'!D161)","v":"-0"},"152"]
["",{"$f":"'MEMORIAL DESCRITIVO'!D162&\"-\"&COUNTIF('MEMORIAL DESCRITIVO'!$D$10:D162,'MEMORIAL DESCRITIVO'!D162)","v":"-0"},"153"]
["",{"$f":"'MEMORIAL DESCRITIVO'!D163&\"-\"&COUNTIF('MEMORIAL DESCRITIVO'!$D$10:D163,'MEMORIAL DESCRITIVO'!D163)","v":"-0"},"154"]
["",{"$f":"'MEMORIAL DESCRITIVO'!D164&\"-\"&COUNTIF('MEMORIAL DESCRITIVO'!$D$10:D164,'MEMORIAL DESCRITIVO'!D164)","v":"-0"},"155"]
["",{"$f":"'MEMORIAL DESCRITIVO'!D165&\"-\"&COUNTIF('MEMORIAL DESCRITIVO'!$D$10:D165,'MEMORIAL DESCRITIVO'!D165)","v":"-0"},"156"]
["",{"$f":"'MEMORIAL DESCRITIVO'!D166&\"-\"&COUNTIF('MEMORIAL DESCRITIVO'!$D$10:D166,'MEMORIAL DESCRITIVO'!D166)","v":"-0"},"157"]
["",{"$f":"'MEMORIAL DESCRITIVO'!D167&\"-\"&COUNTIF('MEMORIAL DESCRITIVO'!$D$10:D167,'MEMORIAL DESCRITIVO'!D167)","v":"-0"},"158"]
["",{"$f":"'MEMORIAL DESCRITIVO'!D168&\"-\"&COUNTIF('MEMORIAL DESCRITIVO'!$D$10:D168,'MEMORIAL DESCRITIVO'!D168)","v":"-0"},"159"]
["",{"$f":"'MEMORIAL DESCRITIVO'!D169&\"-\"&COUNTIF('MEMORIAL DESCRITIVO'!$D$10:D169,'MEMORIAL DESCRITIVO'!D169)","v":"-0"},"160"]
["",{"$f":"'MEMORIAL DESCRITIVO'!D170&\"-\"&COUNTIF('MEMORIAL DESCRITIVO'!$D$10:D170,'MEMORIAL DESCRITIVO'!D170)","v":"-0"},"161"]
["",{"$f":"'MEMORIAL DESCRITIVO'!D171&\"-\"&COUNTIF('MEMORIAL DESCRITIVO'!$D$10:D171,'MEMORIAL DESCRITIVO'!D171)","v":"-0"},"162"]
["",{"$f":"'MEMORIAL DESCRITIVO'!D172&\"-\"&COUNTIF('MEMORIAL DESCRITIVO'!$D$10:D172,'MEMORIAL DESCRITIVO'!D172)","v":"-0"},"163"]
["",{"$f":"'MEMORIAL DESCRITIVO'!D173&\"-\"&COUNTIF('MEMORIAL DESCRITIVO'!$D$10:D173,'MEMORIAL DESCRITIVO'!D173)","v":"-0"},"164"]
["",{"$f":"'MEMORIAL DESCRITIVO'!D174&\"-\"&COUNTIF('MEMORIAL DESCRITIVO'!$D$10:D174,'MEMORIAL DESCRITIVO'!D174)","v":"-0"},"165"]
["",{"$f":"'MEMORIAL DESCRITIVO'!D175&\"-\"&COUNTIF('MEMORIAL DESCRITIVO'!$D$10:D175,'MEMORIAL DESCRITIVO'!D175)","v":"-0"},"166"]
["",{"$f":"'MEMORIAL DESCRITIVO'!D176&\"-\"&COUNTIF('MEMORIAL DESCRITIVO'!$D$10:D176,'MEMORIAL DESCRITIVO'!D176)","v":"-0"},"167"]
["",{"$f":"'MEMORIAL DESCRITIVO'!D177&\"-\"&COUNTIF('MEMORIAL DESCRITIVO'!$D$10:D177,'MEMORIAL DESCRITIVO'!D177)","v":"-0"},"168"]
["",{"$f":"'MEMORIAL DESCRITIVO'!D178&\"-\"&COUNTIF('MEMORIAL DESCRITIVO'!$D$10:D178,'MEMORIAL DESCRITIVO'!D178)","v":"-0"},"169"]
["",{"$f":"'MEMORIAL DESCRITIVO'!D179&\"-\"&COUNTIF('MEMORIAL DESCRITIVO'!$D$10:D179,'MEMORIAL DESCRITIVO'!D179)","v":"-0"},"170"]
["",{"$f":"'MEMORIAL DESCRITIVO'!D180&\"-\"&COUNTIF('MEMORIAL DESCRITIVO'!$D$10:D180,'MEMORIAL DESCRITIVO'!D180)","v":"-0"},"171"]
["",{"$f":"'MEMORIAL DESCRITIVO'!D181&\"-\"&COUNTIF('MEMORIAL DESCRITIVO'!$D$10:D181,'MEMORIAL DESCRITIVO'!D181)","v":"-0"},"172"]
["",{"$f":"'MEMORIAL DESCRITIVO'!D182&\"-\"&COUNTIF('MEMORIAL DESCRITIVO'!$D$10:D182,'MEMORIAL DESCRITIVO'!D182)","v":"-0"},"173"]
["",{"$f":"'MEMORIAL DESCRITIVO'!D183&\"-\"&COUNTIF('MEMORIAL DESCRITIVO'!$D$10:D183,'MEMORIAL DESCRITIVO'!D183)","v":"-0"},"174"]
["",{"$f":"'MEMORIAL DESCRITIVO'!D184&\"-\"&COUNTIF('MEMORIAL DESCRITIVO'!$D$10:D184,'MEMORIAL DESCRITIVO'!D184)","v":"-0"},"175"]
["",{"$f":"'MEMORIAL DESCRITIVO'!D185&\"-\"&COUNTIF('MEMORIAL DESCRITIVO'!$D$10:D185,'MEMORIAL DESCRITIVO'!D185)","v":"-0"},"176"]
["",{"$f":"'MEMORIAL DESCRITIVO'!D186&\"-\"&COUNTIF('MEMORIAL DESCRITIVO'!$D$10:D186,'MEMORIAL DESCRITIVO'!D186)","v":"-0"},"177"]
["",{"$f":"'MEMORIAL DESCRITIVO'!D187&\"-\"&COUNTIF('MEMORIAL DESCRITIVO'!$D$10:D187,'MEMORIAL DESCRITIVO'!D187)","v":"-0"},"178"]
["",{"$f":"'MEMORIAL DESCRITIVO'!D188&\"-\"&COUNTIF('MEMORIAL DESCRITIVO'!$D$10:D188,'MEMORIAL DESCRITIVO'!D188)","v":"-0"},"179"]
["",{"$f":"'MEMORIAL DESCRITIVO'!D189&\"-\"&COUNTIF('MEMORIAL DESCRITIVO'!$D$10:D189,'MEMORIAL DESCRITIVO'!D189)","v":"-0"},"180"]
["",{"$f":"'MEMORIAL DESCRITIVO'!D190&\"-\"&COUNTIF('MEMORIAL DESCRITIVO'!$D$10:D190,'MEMORIAL DESCRITIVO'!D190)","v":"-0"},"181"]
["",{"$f":"'MEMORIAL DESCRITIVO'!D191&\"-\"&COUNTIF('MEMORIAL DESCRITIVO'!$D$10:D191,'MEMORIAL DESCRITIVO'!D191)","v":"-0"},"182"]
["",{"$f":"'MEMORIAL DESCRITIVO'!D192&\"-\"&COUNTIF('MEMORIAL DESCRITIVO'!$D$10:D192,'MEMORIAL DESCRITIVO'!D192)","v":"-0"},"183"]
["",{"$f":"'MEMORIAL DESCRITIVO'!D193&\"-\"&COUNTIF('MEMORIAL DESCRITIVO'!$D$10:D193,'MEMORIAL DESCRITIVO'!D193)","v":"-0"},"184"]
["",{"$f":"'MEMORIAL DESCRITIVO'!D194&\"-\"&COUNTIF('MEMORIAL DESCRITIVO'!$D$10:D194,'MEMORIAL DESCRITIVO'!D194)","v":"-0"},"185"]
["",{"$f":"'MEMORIAL DESCRITIVO'!D195&\"-\"&COUNTIF('MEMORIAL DESCRITIVO'!$D$10:D195,'MEMORIAL DESCRITIVO'!D195)","v":"-0"},"186"]
["",{"$f":"'MEMORIAL DESCRITIVO'!D196&\"-\"&COUNTIF('MEMORIAL DESCRITIVO'!$D$10:D196,'MEMORIAL DESCRITIVO'!D196)","v":"-0"},"187"]
["",{"$f":"'MEMORIAL DESCRITIVO'!D197&\"-\"&COUNTIF('MEMORIAL DESCRITIVO'!$D$10:D197,'MEMORIAL DESCRITIVO'!D197)","v":"-0"},"188"]
["",{"$f":"'MEMORIAL DESCRITIVO'!D198&\"-\"&COUNTIF('MEMORIAL DESCRITIVO'!$D$10:D198,'MEMORIAL DESCRITIVO'!D198)","v":"-0"},"189"]
["",{"$f":"'MEMORIAL DESCRITIVO'!D199&\"-\"&COUNTIF('MEMORIAL DESCRITIVO'!$D$10:D199,'MEMORIAL DESCRITIVO'!D199)","v":"-0"},"190"]
["",{"$f":"'MEMORIAL DESCRITIVO'!D200&\"-\"&COUNTIF('MEMORIAL DESCRITIVO'!$D$10:D200,'MEMORIAL DESCRITIVO'!D200)","v":"-0"},"191"]
["",{"$f":"'MEMORIAL DESCRITIVO'!D201&\"-\"&COUNTIF('MEMORIAL DESCRITIVO'!$D$10:D201,'MEMORIAL DESCRITIVO'!D201)","v":"-0"},"192"]
["",{"$f":"'MEMORIAL DESCRITIVO'!D202&\"-\"&COUNTIF('MEMORIAL DESCRITIVO'!$D$10:D202,'MEMORIAL DESCRITIVO'!D202)","v":"-0"},"193"]
[{"$f":"IF(E203=\"Sim\", ROW(), \"\")","v":""},{"$f":"'MEMORIAL DESCRITIVO'!D203&\"-\"&COUNTIF('MEMORIAL DESCRITIVO'!$D$10:D203,'MEMORIAL DESCRITIVO'!D203)","v":"-0"},"194"]
["",{"$f":"'MEMORIAL DESCRITIVO'!D204&\"-\"&COUNTIF('MEMORIAL DESCRITIVO'!$D$10:D204,'MEMORIAL DESCRITIVO'!D204)","v":"-0"},"195"]
["",{"$f":"'MEMORIAL DESCRITIVO'!D205&\"-\"&COUNTIF('MEMORIAL DESCRITIVO'!$D$10:D205,'MEMORIAL DESCRITIVO'!D205)","v":"-0"},"196"]
["",{"$f":"'MEMORIAL DESCRITIVO'!D206&\"-\"&COUNTIF('MEMORIAL DESCRITIVO'!$D$10:D206,'MEMORIAL DESCRITIVO'!D206)","v":"-0"},"197"]
["",{"$f":"'MEMORIAL DESCRITIVO'!D207&\"-\"&COUNTIF('MEMORIAL DESCRITIVO'!$D$10:D207,'MEMORIAL DESCRITIVO'!D207)","v":"-0"},"198"]
["",{"$f":"'MEMORIAL DESCRITIVO'!D208&\"-\"&COUNTIF('MEMORIAL DESCRITIVO'!$D$10:D208,'MEMORIAL DESCRITIVO'!D208)","v":"-0"},"199"]
["",{"$f":"'MEMORIAL DESCRITIVO'!D209&\"-\"&COUNTIF('MEMORIAL DESCRITIVO'!$D$10:D209,'MEMORIAL DESCRITIVO'!D209)","v":"-0"},"200"]
["",{"$f":"'MEMORIAL DESCRITIVO'!D210&\"-\"&COUNTIF('MEMORIAL DESCRITIVO'!$D$10:D210,'MEMORIAL DESCRITIVO'!D210)","v":"-0"},"201"]
["",{"$f":"'MEMORIAL DESCRITIVO'!D211&\"-\"&COUNTIF('MEMORIAL DESCRITIVO'!$D$10:D211,'MEMORIAL DESCRITIVO'!D211)","v":"-0"},"202"]
["",{"$f":"'MEMORIAL DESCRITIVO'!D212&\"-\"&COUNTIF('MEMORIAL DESCRITIVO'!$D$10:D212,'MEMORIAL DESCRITIVO'!D212)","v":"-0"},"203"]
["",{"$f":"'MEMORIAL DESCRITIVO'!D213&\"-\"&COUNTIF('MEMORIAL DESCRITIVO'!$D$10:D213,'MEMORIAL DESCRITIVO'!D213)","v":"-0"},"204"]
["",{"$f":"'MEMORIAL DESCRITIVO'!D214&\"-\"&COUNTIF('MEMORIAL DESCRITIVO'!$D$10:D214,'MEMORIAL DESCRITIVO'!D214)","v":"-0"},"205"]
["",{"$f":"'MEMORIAL DESCRITIVO'!D215&\"-\"&COUNTIF('MEMORIAL DESCRITIVO'!$D$10:D215,'MEMORIAL DESCRITIVO'!D215)","v":"-0"},"206"]
["",{"$f":"'MEMORIAL DESCRITIVO'!D216&\"-\"&COUNTIF('MEMORIAL DESCRITIVO'!$D$10:D216,'MEMORIAL DESCRITIVO'!D216)","v":"-0"},"207"]
["",{"$f":"'MEMORIAL DESCRITIVO'!D217&\"-\"&COUNTIF('MEMORIAL DESCRITIVO'!$D$10:D217,'MEMORIAL DESCRITIVO'!D217)","v":"-0"},"208"]
["",{"$f":"'MEMORIAL DESCRITIVO'!D218&\"-\"&COUNTIF('MEMORIAL DESCRITIVO'!$D$10:D218,'MEMORIAL DESCRITIVO'!D218)","v":"-0"},"209"]
["",{"$f":"'MEMORIAL DESCRITIVO'!D219&\"-\"&COUNTIF('MEMORIAL DESCRITIVO'!$D$10:D219,'MEMORIAL DESCRITIVO'!D219)","v":"-0"},"210"]
["",{"$f":"'MEMORIAL DESCRITIVO'!D220&\"-\"&COUNTIF('MEMORIAL DESCRITIVO'!$D$10:D220,'MEMORIAL DESCRITIVO'!D220)","v":"-0"},"211"]
["",{"$f":"'MEMORIAL DESCRITIVO'!D221&\"-\"&COUNTIF('MEMORIAL DESCRITIVO'!$D$10:D221,'MEMORIAL DESCRITIVO'!D221)","v":"-0"},"212"]
["",{"$f":"'MEMORIAL DESCRITIVO'!D222&\"-\"&COUNTIF('MEMORIAL DESCRITIVO'!$D$10:D222,'MEMORIAL DESCRITIVO'!D222)","v":"-0"},"213"]
["",{"$f":"'MEMORIAL DESCRITIVO'!D223&\"-\"&COUNTIF('MEMORIAL DESCRITIVO'!$D$10:D223,'MEMORIAL DESCRITIVO'!D223)","v":"-0"},"214"]
["",{"$f":"'MEMORIAL DESCRITIVO'!D224&\"-\"&COUNTIF('MEMORIAL DESCRITIVO'!$D$10:D224,'MEMORIAL DESCRITIVO'!D224)","v":"-0"},"215"]
["",{"$f":"'MEMORIAL DESCRITIVO'!D225&\"-\"&COUNTIF('MEMORIAL DESCRITIVO'!$D$10:D225,'MEMORIAL DESCRITIVO'!D225)","v":"-0"},"216"]
["",{"$f":"'MEMORIAL DESCRITIVO'!D226&\"-\"&COUNTIF('MEMORIAL DESCRITIVO'!$D$10:D226,'MEMORIAL DESCRITIVO'!D226)","v":"-0"},"217"]
["",{"$f":"'MEMORIAL DESCRITIVO'!D227&\"-\"&COUNTIF('MEMORIAL DESCRITIVO'!$D$10:D227,'MEMORIAL DESCRITIVO'!D227)","v":"-0"},"218"]
["",{"$f":"'MEMORIAL DESCRITIVO'!D228&\"-\"&COUNTIF('MEMORIAL DESCRITIVO'!$D$10:D228,'MEMORIAL DESCRITIVO'!D228)","v":"-0"},"219"]
["",{"$f":"'MEMORIAL DESCRITIVO'!D229&\"-\"&COUNTIF('MEMORIAL DESCRITIVO'!$D$10:D229,'MEMORIAL DESCRITIVO'!D229)","v":"-0"},"220"]
["",{"$f":"'MEMORIAL DESCRITIVO'!D230&\"-\"&COUNTIF('MEMORIAL DESCRITIVO'!$D$10:D230,'MEMORIAL DESCRITIVO'!D230)","v":"-0"},"221"]
["",{"$f":"'MEMORIAL DESCRITIVO'!D231&\"-\"&COUNTIF('MEMORIAL DESCRITIVO'!$D$10:D231,'MEMORIAL DESCRITIVO'!D231)","v":"-0"},"222"]
["",{"$f":"'MEMORIAL DESCRITIVO'!D232&\"-\"&COUNTIF('MEMORIAL DESCRITIVO'!$D$10:D232,'MEMORIAL DESCRITIVO'!D232)","v":"-0"},"223"]
["",{"$f":"'MEMORIAL DESCRITIVO'!D233&\"-\"&COUNTIF('MEMORIAL DESCRITIVO'!$D$10:D233,'MEMORIAL DESCRITIVO'!D233)","v":"-0"},"224"]
["",{"$f":"'MEMORIAL DESCRITIVO'!D234&\"-\"&COUNTIF('MEMORIAL DESCRITIVO'!$D$10:D234,'MEMORIAL DESCRITIVO'!D234)","v":"-0"},"225"]
["",{"$f":"'MEMORIAL DESCRITIVO'!D235&\"-\"&COUNTIF('MEMORIAL DESCRITIVO'!$D$10:D235,'MEMORIAL DESCRITIVO'!D235)","v":"-0"},"226"]
["",{"$f":"'MEMORIAL DESCRITIVO'!D236&\"-\"&COUNTIF('MEMORIAL DESCRITIVO'!$D$10:D236,'MEMORIAL DESCRITIVO'!D236)","v":"-0"},"227"]
["",{"$f":"'MEMORIAL DESCRITIVO'!D237&\"-\"&COUNTIF('MEMORIAL DESCRITIVO'!$D$10:D237,'MEMORIAL DESCRITIVO'!D237)","v":"-0"},"228"]
["",{"$f":"'MEMORIAL DESCRITIVO'!D238&\"-\"&COUNTIF('MEMORIAL DESCRITIVO'!$D$10:D238,'MEMORIAL DESCRITIVO'!D238)","v":"-0"},"229"]
["",{"$f":"'MEMORIAL DESCRITIVO'!D239&\"-\"&COUNTIF('MEMORIAL DESCRITIVO'!$D$10:D239,'MEMORIAL DESCRITIVO'!D239)","v":"-0"},"230"]
["",{"$f":"'MEMORIAL DESCRITIVO'!D240&\"-\"&COUNTIF('MEMORIAL DESCRITIVO'!$D$10:D240,'MEMORIAL DESCRITIVO'!D240)","v":"-0"},"231"]
["",{"$f":"'MEMORIAL DESCRITIVO'!D241&\"-\"&COUNTIF('MEMORIAL DESCRITIVO'!$D$10:D241,'MEMORIAL DESCRITIVO'!D241)","v":"-0"},"232"]
["",{"$f":"'MEMORIAL DESCRITIVO'!D242&\"-\"&COUNTIF('MEMORIAL DESCRITIVO'!$D$10:D242,'MEMORIAL DESCRITIVO'!D242)","v":"-0"},"233"]
["",{"$f":"'MEMORIAL DESCRITIVO'!D243&\"-\"&COUNTIF('MEMORIAL DESCRITIVO'!$D$10:D243,'MEMORIAL DESCRITIVO'!D243)","v":"-0"},"234"]
["",{"$f":"'MEMORIAL DESCRITIVO'!D244&\"-\"&COUNTIF('MEMORIAL DESCRITIVO'!$D$10:D244,'MEMORIAL DESCRITIVO'!D244)","v":"-0"},"235"]
["",{"$f":"'MEMORIAL DESCRITIVO'!D245&\"-\"&COUNTIF('MEMORIAL DESCRITIVO'!$D$10:D245,'MEMORIAL DESCRITIVO'!D245)","v":"-0"},"236"]
["",{"$f":"'MEMORIAL DESCRITIVO'!D246&\"-\"&COUNTIF('MEMORIAL DESCRITIVO'!$D$10:D246,'MEMORIAL DESCRITIVO'!D246)","v":"-0"},"237"]
["",{"$f":"'MEMORIAL DESCRITIVO'!D247&\"-\"&COUNTIF('MEMORIAL DESCRITIVO'!$D$10:D247,'MEMORIAL DESCRITIVO'!D247)","v":"-0"},"238"]
["",{"$f":"'MEMORIAL DESCRITIVO'!D248&\"-\"&COUNTIF('MEMORIAL DESCRITIVO'!$D$10:D248,'MEMORIAL DESCRITIVO'!D248)","v":"-0"},"239"]
["",{"$f":"'MEMORIAL DESCRITIVO'!D249&\"-\"&COUNTIF('MEMORIAL DESCRITIVO'!$D$10:D249,'MEMORIAL DESCRITIVO'!D249)","v":"-0"},"240"]
["",{"$f":"'MEMORIAL DESCRITIVO'!D250&\"-\"&COUNTIF('MEMORIAL DESCRITIVO'!$D$10:D250,'MEMORIAL DESCRITIVO'!D250)","v":"-0"},"241"]
["",{"$f":"'MEMORIAL DESCRITIVO'!D251&\"-\"&COUNTIF('MEMORIAL DESCRITIVO'!$D$10:D251,'MEMORIAL DESCRITIVO'!D251)","v":"-0"},"242"]
["",{"$f":"'MEMORIAL DESCRITIVO'!D252&\"-\"&COUNTIF('MEMORIAL DESCRITIVO'!$D$10:D252,'MEMORIAL DESCRITIVO'!D252)","v":"-0"},"243"]
["",{"$f":"'MEMORIAL DESCRITIVO'!D253&\"-\"&COUNTIF('MEMORIAL DESCRITIVO'!$D$10:D253,'MEMORIAL DESCRITIVO'!D253)","v":"-0"},"244"]
["",{"$f":"'MEMORIAL DESCRITIVO'!D254&\"-\"&COUNTIF('MEMORIAL DESCRITIVO'!$D$10:D254,'MEMORIAL DESCRITIVO'!D254)","v":"-0"},"245"]
["",{"$f":"'MEMORIAL DESCRITIVO'!D255&\"-\"&COUNTIF('MEMORIAL DESCRITIVO'!$D$10:D255,'MEMORIAL DESCRITIVO'!D255)","v":"-0"},"246"]
["",{"$f":"'MEMORIAL DESCRITIVO'!D256&\"-\"&COUNTIF('MEMORIAL DESCRITIVO'!$D$10:D256,'MEMORIAL DESCRITIVO'!D256)","v":"-0"},"247"]
["",{"$f":"'MEMORIAL DESCRITIVO'!D257&\"-\"&COUNTIF('MEMORIAL DESCRITIVO'!$D$10:D257,'MEMORIAL DESCRITIVO'!D257)","v":"-0"},"248"]
["",{"$f":"'MEMORIAL DESCRITIVO'!D258&\"-\"&COUNTIF('MEMORIAL DESCRITIVO'!$D$10:D258,'MEMORIAL DESCRITIVO'!D258)","v":"-0"},"249"]
["",{"$f":"'MEMORIAL DESCRITIVO'!D259&\"-\"&COUNTIF('MEMORIAL DESCRITIVO'!$D$10:D259,'MEMORIAL DESCRITIVO'!D259)","v":"-0"},"250"]
["",{"$f":"'MEMORIAL DESCRITIVO'!D260&\"-\"&COUNTIF('MEMORIAL DESCRITIVO'!$D$10:D260,'MEMORIAL DESCRITIVO'!D260)","v":"-0"},"251"]
["",{"$f":"'MEMORIAL DESCRITIVO'!D261&\"-\"&COUNTIF('MEMORIAL DESCRITIVO'!$D$10:D261,'MEMORIAL DESCRITIVO'!D261)","v":"-0"},"252"]
["",{"$f":"'MEMORIAL DESCRITIVO'!D262&\"-\"&COUNTIF('MEMORIAL DESCRITIVO'!$D$10:D262,'MEMORIAL DESCRITIVO'!D262)","v":"-0"},"253"]
["",{"$f":"'MEMORIAL DESCRITIVO'!D263&\"-\"&COUNTIF('MEMORIAL DESCRITIVO'!$D$10:D263,'MEMORIAL DESCRITIVO'!D263)","v":"-0"},"254"]
["",{"$f":"'MEMORIAL DESCRITIVO'!D264&\"-\"&COUNTIF('MEMORIAL DESCRITIVO'!$D$10:D264,'MEMORIAL DESCRITIVO'!D264)","v":"-0"},"255"]
["",{"$f":"'MEMORIAL DESCRITIVO'!D265&\"-\"&COUNTIF('MEMORIAL DESCRITIVO'!$D$10:D265,'MEMORIAL DESCRITIVO'!D265)","v":"-0"},"256"]
["",{"$f":"'MEMORIAL DESCRITIVO'!D266&\"-\"&COUNTIF('MEMORIAL DESCRITIVO'!$D$10:D266,'MEMORIAL DESCRITIVO'!D266)","v":"-0"},"257"]
[{"$f":"IF(E267=\"Sim\", ROW(), \"\")","v":""},{"$f":"'MEMORIAL DESCRITIVO'!D267&\"-\"&COUNTIF('MEMORIAL DESCRITIVO'!$D$10:D267,'MEMORIAL DESCRITIVO'!D267)","v":"-0"},"258"]
["",{"$f":"'MEMORIAL DESCRITIVO'!D268&\"-\"&COUNTIF('MEMORIAL DESCRITIVO'!$D$10:D268,'MEMORIAL DESCRITIVO'!D268)","v":"-0"},"259"]
["",{"$f":"'MEMORIAL DESCRITIVO'!D269&\"-\"&COUNTIF('MEMORIAL DESCRITIVO'!$D$10:D269,'MEMORIAL DESCRITIVO'!D269)","v":"-0"},"260"]
["",{"$f":"'MEMORIAL DESCRITIVO'!D270&\"-\"&COUNTIF('MEMORIAL DESCRITIVO'!$D$10:D270,'MEMORIAL DESCRITIVO'!D270)","v":"-0"},"261"]
["",{"$f":"'MEMORIAL DESCRITIVO'!D271&\"-\"&COUNTIF('MEMORIAL DESCRITIVO'!$D$10:D271,'MEMORIAL DESCRITIVO'!D271)","v":"-0"},"262"]
["",{"$f":"'MEMORIAL DESCRITIVO'!D272&\"-\"&COUNTIF('MEMORIAL DESCRITIVO'!$D$10:D272,'MEMORIAL DESCRITIVO'!D272)","v":"-0"},"263"]
["",{"$f":"'MEMORIAL DESCRITIVO'!D273&\"-\"&COUNTIF('MEMORIAL DESCRITIVO'!$D$10:D273,'MEMORIAL DESCRITIVO'!D273)","v":"-0"},"264"]
["",{"$f":"'MEMORIAL DESCRITIVO'!D274&\"-\"&COUNTIF('MEMORIAL DESCRITIVO'!$D$10:D274,'MEMORIAL DESCRITIVO'!D274)","v":"-0"},"265"]
["",{"$f":"'MEMORIAL DESCRITIVO'!D275&\"-\"&COUNTIF('MEMORIAL DESCRITIVO'!$D$10:D275,'MEMORIAL DESCRITIVO'!D275)","v":"-0"},"266"]
["",{"$f":"'MEMORIAL DESCRITIVO'!D276&\"-\"&COUNTIF('MEMORIAL DESCRITIVO'!$D$10:D276,'MEMORIAL DESCRITIVO'!D276)","v":"-0"},"267"]
["",{"$f":"'MEMORIAL DESCRITIVO'!D277&\"-\"&COUNTIF('MEMORIAL DESCRITIVO'!$D$10:D277,'MEMORIAL DESCRITIVO'!D277)","v":"-0"},"268"]
["",{"$f":"'MEMORIAL DESCRITIVO'!D278&\"-\"&COUNTIF('MEMORIAL DESCRITIVO'!$D$10:D278,'MEMORIAL DESCRITIVO'!D278)","v":"-0"},"269"]
["",{"$f":"'MEMORIAL DESCRITIVO'!D279&\"-\"&COUNTIF('MEMORIAL DESCRITIVO'!$D$10:D279,'MEMORIAL DESCRITIVO'!D279)","v":"-0"},"270"]
["",{"$f":"'MEMORIAL DESCRITIVO'!D280&\"-\"&COUNTIF('MEMORIAL DESCRITIVO'!$D$10:D280,'MEMORIAL DESCRITIVO'!D280)","v":"-0"},"271"]
["",{"$f":"'MEMORIAL DESCRITIVO'!D281&\"-\"&COUNTIF('MEMORIAL DESCRITIVO'!$D$10:D281,'MEMORIAL DESCRITIVO'!D281)","v":"-0"},"272"]
["",{"$f":"'MEMORIAL DESCRITIVO'!D282&\"-\"&COUNTIF('MEMORIAL DESCRITIVO'!$D$10:D282,'MEMORIAL DESCRITIVO'!D282)","v":"-0"},"273"]
["",{"$f":"'MEMORIAL DESCRITIVO'!D283&\"-\"&COUNTIF('MEMORIAL DESCRITIVO'!$D$10:D283,'MEMORIAL DESCRITIVO'!D283)","v":"-0"},"274"]
["",{"$f":"'MEMORIAL DESCRITIVO'!D284&\"-\"&COUNTIF('MEMORIAL DESCRITIVO'!$D$10:D284,'MEMORIAL DESCRITIVO'!D284)","v":"-0"},"275"]
["",{"$f":"'MEMORIAL DESCRITIVO'!D285&\"-\"&COUNTIF('MEMORIAL DESCRITIVO'!$D$10:D285,'MEMORIAL DESCRITIVO'!D285)","v":"-0"},"276"]
["",{"$f":"'MEMORIAL DESCRITIVO'!D286&\"-\"&COUNTIF('MEMORIAL DESCRITIVO'!$D$10:D286,'MEMORIAL DESCRITIVO'!D286)","v":"-0"},"277"]
["",{"$f":"'MEMORIAL DESCRITIVO'!D287&\"-\"&COUNTIF('MEMORIAL DESCRITIVO'!$D$10:D287,'MEMORIAL DESCRITIVO'!D287)","v":"-0"},"278"]
["",{"$f":"'MEMORIAL DESCRITIVO'!D288&\"-\"&COUNTIF('MEMORIAL DESCRITIVO'!$D$10:D288,'MEMORIAL DESCRITIVO'!D288)","v":"-0"},"279"]
["",{"$f":"'MEMORIAL DESCRITIVO'!D289&\"-\"&COUNTIF('MEMORIAL DESCRITIVO'!$D$10:D289,'MEMORIAL DESCRITIVO'!D289)","v":"-0"},"280"]
["",{"$f":"'MEMORIAL DESCRITIVO'!D290&\"-\"&COUNTIF('MEMORIAL DESCRITIVO'!$D$10:D290,'MEMORIAL DESCRITIVO'!D290)","v":"-0"},"281"]
["",{"$f":"'MEMORIAL DESCRITIVO'!D291&\"-\"&COUNTIF('MEMORIAL DESCRITIVO'!$D$10:D291,'MEMORIAL DESCRITIVO'!D291)","v":"-0"},"282"]
["",{"$f":"'MEMORIAL DESCRITIVO'!D292&\"-\"&COUNTIF('MEMORIAL DESCRITIVO'!$D$10:D292,'MEMORIAL DESCRITIVO'!D292)","v":"-0"},"283"]
["",{"$f":"'MEMORIAL DESCRITIVO'!D293&\"-\"&COUNTIF('MEMORIAL DESCRITIVO'!$D$10:D293,'MEMORIAL DESCRITIVO'!D293)","v":"-0"},"284"]
["",{"$f":"'MEMORIAL DESCRITIVO'!D294&\"-\"&COUNTIF('MEMORIAL DESCRITIVO'!$D$10:D294,'MEMORIAL DESCRITIVO'!D294)","v":"-0"},"285"]
["",{"$f":"'MEMORIAL DESCRITIVO'!D295&\"-\"&COUNTIF('MEMORIAL DESCRITIVO'!$D$10:D295,'MEMORIAL DESCRITIVO'!D295)","v":"-0"},"286"]
["",{"$f":"'MEMORIAL DESCRITIVO'!D296&\"-\"&COUNTIF('MEMORIAL DESCRITIVO'!$D$10:D296,'MEMORIAL DESCRITIVO'!D296)","v":"-0"},"287"]
["",{"$f":"'MEMORIAL DESCRITIVO'!D297&\"-\"&COUNTIF('MEMORIAL DESCRITIVO'!$D$10:D297,'MEMORIAL DESCRITIVO'!D297)","v":"-0"},"288"]
["",{"$f":"'MEMORIAL DESCRITIVO'!D298&\"-\"&COUNTIF('MEMORIAL DESCRITIVO'!$D$10:D298,'MEMORIAL DESCRITIVO'!D298)","v":"-0"},"289"]
["",{"$f":"'MEMORIAL DESCRITIVO'!D299&\"-\"&COUNTIF('MEMORIAL DESCRITIVO'!$D$10:D299,'MEMORIAL DESCRITIVO'!D299)","v":"-0"},"290"]
["",{"$f":"'MEMORIAL DESCRITIVO'!D300&\"-\"&COUNTIF('MEMORIAL DESCRITIVO'!$D$10:D300,'MEMORIAL DESCRITIVO'!D300)","v":"-0"},"291"]
["",{"$f":"'MEMORIAL DESCRITIVO'!D301&\"-\"&COUNTIF('MEMORIAL DESCRITIVO'!$D$10:D301,'MEMORIAL DESCRITIVO'!D301)","v":"-0"},"292"]
["",{"$f":"'MEMORIAL DESCRITIVO'!D302&\"-\"&COUNTIF('MEMORIAL DESCRITIVO'!$D$10:D302,'MEMORIAL DESCRITIVO'!D302)","v":"-0"},"293"]
["",{"$f":"'MEMORIAL DESCRITIVO'!D303&\"-\"&COUNTIF('MEMORIAL DESCRITIVO'!$D$10:D303,'MEMORIAL DESCRITIVO'!D303)","v":"-0"},"294"]
["",{"$f":"'MEMORIAL DESCRITIVO'!D304&\"-\"&COUNTIF('MEMORIAL DESCRITIVO'!$D$10:D304,'MEMORIAL DESCRITIVO'!D304)","v":"-0"},"295"]
["",{"$f":"'MEMORIAL DESCRITIVO'!D305&\"-\"&COUNTIF('MEMORIAL DESCRITIVO'!$D$10:D305,'MEMORIAL DESCRITIVO'!D305)","v":"-0"},"296"]
["",{"$f":"'MEMORIAL DESCRITIVO'!D306&\"-\"&COUNTIF('MEMORIAL DESCRITIVO'!$D$10:D306,'MEMORIAL DESCRITIVO'!D306)","v":"-0"},"297"]
["",{"$f":"'MEMORIAL DESCRITIVO'!D307&\"-\"&COUNTIF('MEMORIAL DESCRITIVO'!$D$10:D307,'MEMORIAL DESCRITIVO'!D307)","v":"-0"},"298"]
["",{"$f":"'MEMORIAL DESCRITIVO'!D308&\"-\"&COUNTIF('MEMORIAL DESCRITIVO'!$D$10:D308,'MEMORIAL DESCRITIVO'!D308)","v":"-0"},"299"]
["",{"$f":"'MEMORIAL DESCRITIVO'!D309&\"-\"&COUNTIF('MEMORIAL DESCRITIVO'!$D$10:D309,'MEMORIAL DESCRITIVO'!D309)","v":"-0"},"300"]
["",{"$f":"'MEMORIAL DESCRITIVO'!D310&\"-\"&COUNTIF('MEMORIAL DESCRITIVO'!$D$10:D310,'MEMORIAL DESCRITIVO'!D310)","v":"-0"},"301"]
["",{"$f":"'MEMORIAL DESCRITIVO'!D311&\"-\"&COUNTIF('MEMORIAL DESCRITIVO'!$D$10:D311,'MEMORIAL DESCRITIVO'!D311)","v":"-0"},"302"]
["",{"$f":"'MEMORIAL DESCRITIVO'!D312&\"-\"&COUNTIF('MEMORIAL DESCRITIVO'!$D$10:D312,'MEMORIAL DESCRITIVO'!D312)","v":"-0"},"303"]
["",{"$f":"'MEMORIAL DESCRITIVO'!D313&\"-\"&COUNTIF('MEMORIAL DESCRITIVO'!$D$10:D313,'MEMORIAL DESCRITIVO'!D313)","v":"-0"},"304"]
["",{"$f":"'MEMORIAL DESCRITIVO'!D314&\"-\"&COUNTIF('MEMORIAL DESCRITIVO'!$D$10:D314,'MEMORIAL DESCRITIVO'!D314)","v":"-0"},"305"]
["",{"$f":"'MEMORIAL DESCRITIVO'!D315&\"-\"&COUNTIF('MEMORIAL DESCRITIVO'!$D$10:D315,'MEMORIAL DESCRITIVO'!D315)","v":"-0"},"306"]
["",{"$f":"'MEMORIAL DESCRITIVO'!D316&\"-\"&COUNTIF('MEMORIAL DESCRITIVO'!$D$10:D316,'MEMORIAL DESCRITIVO'!D316)","v":"-0"},"307"]
["",{"$f":"'MEMORIAL DESCRITIVO'!D317&\"-\"&COUNTIF('MEMORIAL DESCRITIVO'!$D$10:D317,'MEMORIAL DESCRITIVO'!D317)","v":"-0"},"308"]
["",{"$f":"'MEMORIAL DESCRITIVO'!D318&\"-\"&COUNTIF('MEMORIAL DESCRITIVO'!$D$10:D318,'MEMORIAL DESCRITIVO'!D318)","v":"-0"},"309"]
["",{"$f":"'MEMORIAL DESCRITIVO'!D319&\"-\"&COUNTIF('MEMORIAL DESCRITIVO'!$D$10:D319,'MEMORIAL DESCRITIVO'!D319)","v":"-0"},"310"]
["",{"$f":"'MEMORIAL DESCRITIVO'!D320&\"-\"&COUNTIF('MEMORIAL DESCRITIVO'!$D$10:D320,'MEMORIAL DESCRITIVO'!D320)","v":"-0"},"311"]
["",{"$f":"'MEMORIAL DESCRITIVO'!D321&\"-\"&COUNTIF('MEMORIAL DESCRITIVO'!$D$10:D321,'MEMORIAL DESCRITIVO'!D321)","v":"-0"},"312"]
["",{"$f":"'MEMORIAL DESCRITIVO'!D322&\"-\"&COUNTIF('MEMORIAL DESCRITIVO'!$D$10:D322,'MEMORIAL DESCRITIVO'!D322)","v":"-0"},"313"]
["",{"$f":"'MEMORIAL DESCRITIVO'!D323&\"-\"&COUNTIF('MEMORIAL DESCRITIVO'!$D$10:D323,'MEMORIAL DESCRITIVO'!D323)","v":"-0"},"314"]
["",{"$f":"'MEMORIAL DESCRITIVO'!D324&\"-\"&COUNTIF('MEMORIAL DESCRITIVO'!$D$10:D324,'MEMORIAL DESCRITIVO'!D324)","v":"-0"},"315"]
["",{"$f":"'MEMORIAL DESCRITIVO'!D325&\"-\"&COUNTIF('MEMORIAL DESCRITIVO'!$D$10:D325,'MEMORIAL DESCRITIVO'!D325)","v":"-0"},"316"]
["",{"$f":"'MEMORIAL DESCRITIVO'!D326&\"-\"&COUNTIF('MEMORIAL DESCRITIVO'!$D$10:D326,'MEMORIAL DESCRITIVO'!D326)","v":"-0"},"317"]
["",{"$f":"'MEMORIAL DESCRITIVO'!D327&\"-\"&COUNTIF('MEMORIAL DESCRITIVO'!$D$10:D327,'MEMORIAL DESCRITIVO'!D327)","v":"-0"},"318"]
["",{"$f":"'MEMORIAL DESCRITIVO'!D328&\"-\"&COUNTIF('MEMORIAL DESCRITIVO'!$D$10:D328,'MEMORIAL DESCRITIVO'!D328)","v":"-0"},"319"]
["",{"$f":"'MEMORIAL DESCRITIVO'!D329&\"-\"&COUNTIF('MEMORIAL DESCRITIVO'!$D$10:D329,'MEMORIAL DESCRITIVO'!D329)","v":"-0"},"320"]
["",{"$f":"'MEMORIAL DESCRITIVO'!D330&\"-\"&COUNTIF('MEMORIAL DESCRITIVO'!$D$10:D330,'MEMORIAL DESCRITIVO'!D330)","v":"-0"},"321"]
[{"$f":"IF(E331=\"Sim\", ROW(), \"\")","v":""},{"$f":"'MEMORIAL DESCRITIVO'!D331&\"-\"&COUNTIF('MEMORIAL DESCRITIVO'!$D$10:D331,'MEMORIAL DESCRITIVO'!D331)","v":"-0"},"322"]
["",{"$f":"'MEMORIAL DESCRITIVO'!D332&\"-\"&COUNTIF('MEMORIAL DESCRITIVO'!$D$10:D332,'MEMORIAL DESCRITIVO'!D332)","v":"-0"},"323"]
["",{"$f":"'MEMORIAL DESCRITIVO'!D333&\"-\"&COUNTIF('MEMORIAL DESCRITIVO'!$D$10:D333,'MEMORIAL DESCRITIVO'!D333)","v":"-0"},"324"]
["",{"$f":"'MEMORIAL DESCRITIVO'!D334&\"-\"&COUNTIF('MEMORIAL DESCRITIVO'!$D$10:D334,'MEMORIAL DESCRITIVO'!D334)","v":"-0"},"325"]
["",{"$f":"'MEMORIAL DESCRITIVO'!D335&\"-\"&COUNTIF('MEMORIAL DESCRITIVO'!$D$10:D335,'MEMORIAL DESCRITIVO'!D335)","v":"-0"},"326"]
["",{"$f":"'MEMORIAL DESCRITIVO'!D336&\"-\"&COUNTIF('MEMORIAL DESCRITIVO'!$D$10:D336,'MEMORIAL DESCRITIVO'!D336)","v":"-0"},"327"]
["",{"$f":"'MEMORIAL DESCRITIVO'!D337&\"-\"&COUNTIF('MEMORIAL DESCRITIVO'!$D$10:D337,'MEMORIAL DESCRITIVO'!D337)","v":"-0"},"328"]
["",{"$f":"'MEMORIAL DESCRITIVO'!D338&\"-\"&COUNTIF('MEMORIAL DESCRITIVO'!$D$10:D338,'MEMORIAL DESCRITIVO'!D338)","v":"-0"},"329"]
["",{"$f":"'MEMORIAL DESCRITIVO'!D339&\"-\"&COUNTIF('MEMORIAL DESCRITIVO'!$D$10:D339,'MEMORIAL DESCRITIVO'!D339)","v":"-0"},"330"]
["",{"$f":"'MEMORIAL DESCRITIVO'!D340&\"-\"&COUNTIF('MEMORIAL DESCRITIVO'!$D$10:D340,'MEMORIAL DESCRITIVO'!D340)","v":"-0"},"331"]
["",{"$f":"'MEMORIAL DESCRITIVO'!D341&\"-\"&COUNTIF('MEMORIAL DESCRITIVO'!$D$10:D341,'MEMORIAL DESCRITIVO'!D341)","v":"-0"},"332"]
["",{"$f":"'MEMORIAL DESCRITIVO'!D342&\"-\"&COUNTIF('MEMORIAL DESCRITIVO'!$D$10:D342,'MEMORIAL DESCRITIVO'!D342)","v":"-0"},"333"]
["",{"$f":"'MEMORIAL DESCRITIVO'!D343&\"-\"&COUNTIF('MEMORIAL DESCRITIVO'!$D$10:D343,'MEMORIAL DESCRITIVO'!D343)","v":"-0"},"334"]
["",{"$f":"'MEMORIAL DESCRITIVO'!D344&\"-\"&COUNTIF('MEMORIAL DESCRITIVO'!$D$10:D344,'MEMORIAL DESCRITIVO'!D344)","v":"-0"},"335"]
["",{"$f":"'MEMORIAL DESCRITIVO'!D345&\"-\"&COUNTIF('MEMORIAL DESCRITIVO'!$D$10:D345,'MEMORIAL DESCRITIVO'!D345)","v":"-0"},"336"]
["",{"$f":"'MEMORIAL DESCRITIVO'!D346&\"-\"&COUNTIF('MEMORIAL DESCRITIVO'!$D$10:D346,'MEMORIAL DESCRITIVO'!D346)","v":"-0"},"337"]
["",{"$f":"'MEMORIAL DESCRITIVO'!D347&\"-\"&COUNTIF('MEMORIAL DESCRITIVO'!$D$10:D347,'MEMORIAL DESCRITIVO'!D347)","v":"-0"},"338"]
["",{"$f":"'MEMORIAL DESCRITIVO'!D348&\"-\"&COUNTIF('MEMORIAL DESCRITIVO'!$D$10:D348,'MEMORIAL DESCRITIVO'!D348)","v":"-0"},"339"]
["",{"$f":"'MEMORIAL DESCRITIVO'!D349&\"-\"&COUNTIF('MEMORIAL DESCRITIVO'!$D$10:D349,'MEMORIAL DESCRITIVO'!D349)","v":"-0"},"340"]
["",{"$f":"'MEMORIAL DESCRITIVO'!D350&\"-\"&COUNTIF('MEMORIAL DESCRITIVO'!$D$10:D350,'MEMORIAL DESCRITIVO'!D350)","v":"-0"},"341"]
["",{"$f":"'MEMORIAL DESCRITIVO'!D351&\"-\"&COUNTIF('MEMORIAL DESCRITIVO'!$D$10:D351,'MEMORIAL DESCRITIVO'!D351)","v":"-0"},"342"]
["",{"$f":"'MEMORIAL DESCRITIVO'!D352&\"-\"&COUNTIF('MEMORIAL DESCRITIVO'!$D$10:D352,'MEMORIAL DESCRITIVO'!D352)","v":"-0"},"343"]
["",{"$f":"'MEMORIAL DESCRITIVO'!D353&\"-\"&COUNTIF('MEMORIAL DESCRITIVO'!$D$10:D353,'MEMORIAL DESCRITIVO'!D353)","v":"-0"},"344"]
["",{"$f":"'MEMORIAL DESCRITIVO'!D354&\"-\"&COUNTIF('MEMORIAL DESCRITIVO'!$D$10:D354,'MEMORIAL DESCRITIVO'!D354)","v":"-0"},"345"]
["",{"$f":"'MEMORIAL DESCRITIVO'!D355&\"-\"&COUNTIF('MEMORIAL DESCRITIVO'!$D$10:D355,'MEMORIAL DESCRITIVO'!D355)","v":"-0"},"346"]
["",{"$f":"'MEMORIAL DESCRITIVO'!D356&\"-\"&COUNTIF('MEMORIAL DESCRITIVO'!$D$10:D356,'MEMORIAL DESCRITIVO'!D356)","v":"-0"},"347"]
["",{"$f":"'MEMORIAL DESCRITIVO'!D357&\"-\"&COUNTIF('MEMORIAL DESCRITIVO'!$D$10:D357,'MEMORIAL DESCRITIVO'!D357)","v":"-0"},"348"]
["",{"$f":"'MEMORIAL DESCRITIVO'!D358&\"-\"&COUNTIF('MEMORIAL DESCRITIVO'!$D$10:D358,'MEMORIAL DESCRITIVO'!D358)","v":"-0"},"349"]
["",{"$f":"'MEMORIAL DESCRITIVO'!D359&\"-\"&COUNTIF('MEMORIAL DESCRITIVO'!$D$10:D359,'MEMORIAL DESCRITIVO'!D359)","v":"-0"},"350"]
["",{"$f":"'MEMORIAL DESCRITIVO'!D360&\"-\"&COUNTIF('MEMORIAL DESCRITIVO'!$D$10:D360,'MEMORIAL DESCRITIVO'!D360)","v":"-0"},"351"]
["",{"$f":"'MEMORIAL DESCRITIVO'!D361&\"-\"&COUNTIF('MEMORIAL DESCRITIVO'!$D$10:D361,'MEMORIAL DESCRITIVO'!D361)","v":"-0"},"352"]
["",{"$f":"'MEMORIAL DESCRITIVO'!D362&\"-\"&COUNTIF('MEMORIAL DESCRITIVO'!$D$10:D362,'MEMORIAL DESCRITIVO'!D362)","v":"-0"},"353"]
["",{"$f":"'MEMORIAL DESCRITIVO'!D363&\"-\"&COUNTIF('MEMORIAL DESCRITIVO'!$D$10:D363,'MEMORIAL DESCRITIVO'!D363)","v":"-0"},"354"]
["",{"$f":"'MEMORIAL DESCRITIVO'!D364&\"-\"&COUNTIF('MEMORIAL DESCRITIVO'!$D$10:D364,'MEMORIAL DESCRITIVO'!D364)","v":"-0"},"355"]
["",{"$f":"'MEMORIAL DESCRITIVO'!D365&\"-\"&COUNTIF('MEMORIAL DESCRITIVO'!$D$10:D365,'MEMORIAL DESCRITIVO'!D365)","v":"-0"},"356"]
["",{"$f":"'MEMORIAL DESCRITIVO'!D366&\"-\"&COUNTIF('MEMORIAL DESCRITIVO'!$D$10:D366,'MEMORIAL DESCRITIVO'!D366)","v":"-0"},"357"]
["",{"$f":"'MEMORIAL DESCRITIVO'!D367&\"-\"&COUNTIF('MEMORIAL DESCRITIVO'!$D$10:D367,'MEMORIAL DESCRITIVO'!D367)","v":"-0"},"358"]
["",{"$f":"'MEMORIAL DESCRITIVO'!D368&\"-\"&COUNTIF('MEMORIAL DESCRITIVO'!$D$10:D368,'MEMORIAL DESCRITIVO'!D368)","v":"-0"},"359"]
["",{"$f":"'MEMORIAL DESCRITIVO'!D369&\"-\"&COUNTIF('MEMORIAL DESCRITIVO'!$D$10:D369,'MEMORIAL DESCRITIVO'!D369)","v":"-0"},"360"]
["",{"$f":"'MEMORIAL DESCRITIVO'!D370&\"-\"&COUNTIF('MEMORIAL DESCRITIVO'!$D$10:D370,'MEMORIAL DESCRITIVO'!D370)","v":"-0"},"361"]
["",{"$f":"'MEMORIAL DESCRITIVO'!D371&\"-\"&COUNTIF('MEMORIAL DESCRITIVO'!$D$10:D371,'MEMORIAL DESCRITIVO'!D371)","v":"-0"},"362"]
["",{"$f":"'MEMORIAL DESCRITIVO'!D372&\"-\"&COUNTIF('MEMORIAL DESCRITIVO'!$D$10:D372,'MEMORIAL DESCRITIVO'!D372)","v":"-0"},"363"]
["",{"$f":"'MEMORIAL DESCRITIVO'!D373&\"-\"&COUNTIF('MEMORIAL DESCRITIVO'!$D$10:D373,'MEMORIAL DESCRITIVO'!D373)","v":"-0"},"364"]
["",{"$f":"'MEMORIAL DESCRITIVO'!D374&\"-\"&COUNTIF('MEMORIAL DESCRITIVO'!$D$10:D374,'MEMORIAL DESCRITIVO'!D374)","v":"-0"},"365"]
["",{"$f":"'MEMORIAL DESCRITIVO'!D375&\"-\"&COUNTIF('MEMORIAL DESCRITIVO'!$D$10:D375,'MEMORIAL DESCRITIVO'!D375)","v":"-0"},"366"]
["",{"$f":"'MEMORIAL DESCRITIVO'!D376&\"-\"&COUNTIF('MEMORIAL DESCRITIVO'!$D$10:D376,'MEMORIAL DESCRITIVO'!D376)","v":"-0"},"367"]
["",{"$f":"'MEMORIAL DESCRITIVO'!D377&\"-\"&COUNTIF('MEMORIAL DESCRITIVO'!$D$10:D377,'MEMORIAL DESCRITIVO'!D377)","v":"-0"},"368"]
["",{"$f":"'MEMORIAL DESCRITIVO'!D378&\"-\"&COUNTIF('MEMORIAL DESCRITIVO'!$D$10:D378,'MEMORIAL DESCRITIVO'!D378)","v":"-0"},"369"]
["",{"$f":"'MEMORIAL DESCRITIVO'!D379&\"-\"&COUNTIF('MEMORIAL DESCRITIVO'!$D$10:D379,'MEMORIAL DESCRITIVO'!D379)","v":"-0"},"370"]
["",{"$f":"'MEMORIAL DESCRITIVO'!D380&\"-\"&COUNTIF('MEMORIAL DESCRITIVO'!$D$10:D380,'MEMORIAL DESCRITIVO'!D380)","v":"-0"},"371"]
["",{"$f":"'MEMORIAL DESCRITIVO'!D381&\"-\"&COUNTIF('MEMORIAL DESCRITIVO'!$D$10:D381,'MEMORIAL DESCRITIVO'!D381)","v":"-0"},"372"]
["",{"$f":"'MEMORIAL DESCRITIVO'!D382&\"-\"&COUNTIF('MEMORIAL DESCRITIVO'!$D$10:D382,'MEMORIAL DESCRITIVO'!D382)","v":"-0"},"373"]
["",{"$f":"'MEMORIAL DESCRITIVO'!D383&\"-\"&COUNTIF('MEMORIAL DESCRITIVO'!$D$10:D383,'MEMORIAL DESCRITIVO'!D383)","v":"-0"},"374"]
["",{"$f":"'MEMORIAL DESCRITIVO'!D384&\"-\"&COUNTIF('MEMORIAL DESCRITIVO'!$D$10:D384,'MEMORIAL DESCRITIVO'!D384)","v":"-0"},"375"]
["",{"$f":"'MEMORIAL DESCRITIVO'!D385&\"-\"&COUNTIF('MEMORIAL DESCRITIVO'!$D$10:D385,'MEMORIAL DESCRITIVO'!D385)","v":"-0"},"376"]
["",{"$f":"'MEMORIAL DESCRITIVO'!D386&\"-\"&COUNTIF('MEMORIAL DESCRITIVO'!$D$10:D386,'MEMORIAL DESCRITIVO'!D386)","v":"-0"},"377"]
["",{"$f":"'MEMORIAL DESCRITIVO'!D387&\"-\"&COUNTIF('MEMORIAL DESCRITIVO'!$D$10:D387,'MEMORIAL DESCRITIVO'!D387)","v":"-0"},"378"]
["",{"$f":"'MEMORIAL DESCRITIVO'!D388&\"-\"&COUNTIF('MEMORIAL DESCRITIVO'!$D$10:D388,'MEMORIAL DESCRITIVO'!D388)","v":"-0"},"379"]
["",{"$f":"'MEMORIAL DESCRITIVO'!D389&\"-\"&COUNTIF('MEMORIAL DESCRITIVO'!$D$10:D389,'MEMORIAL DESCRITIVO'!D389)","v":"-0"},"380"]
["",{"$f":"'MEMORIAL DESCRITIVO'!D390&\"-\"&COUNTIF('MEMORIAL DESCRITIVO'!$D$10:D390,'MEMORIAL DESCRITIVO'!D390)","v":"-0"},"381"]
["",{"$f":"'MEMORIAL DESCRITIVO'!D391&\"-\"&COUNTIF('MEMORIAL DESCRITIVO'!$D$10:D391,'MEMORIAL DESCRITIVO'!D391)","v":"-0"},"382"]
["",{"$f":"'MEMORIAL DESCRITIVO'!D392&\"-\"&COUNTIF('MEMORIAL DESCRITIVO'!$D$10:D392,'MEMORIAL DESCRITIVO'!D392)","v":"-0"},"383"]
["",{"$f":"'MEMORIAL DESCRITIVO'!D393&\"-\"&COUNTIF('MEMORIAL DESCRITIVO'!$D$10:D393,'MEMORIAL DESCRITIVO'!D393)","v":"-0"},"384"]
["",{"$f":"'MEMORIAL DESCRITIVO'!D394&\"-\"&COUNTIF('MEMORIAL DESCRITIVO'!$D$10:D394,'MEMORIAL DESCRITIVO'!D394)","v":"-0"},"385"]
[{"$f":"IF(E395=\"Sim\", ROW(), \"\")","v":""},{"$f":"'MEMORIAL DESCRITIVO'!D395&\"-\"&COUNTIF('MEMORIAL DESCRITIVO'!$D$10:D395,'MEMORIAL DESCRITIVO'!D395)","v":"-0"},"386"]
["",{"$f":"'MEMORIAL DESCRITIVO'!D396&\"-\"&COUNTIF('MEMORIAL DESCRITIVO'!$D$10:D396,'MEMORIAL DESCRITIVO'!D396)","v":"-0"},"387"]
["",{"$f":"'MEMORIAL DESCRITIVO'!D397&\"-\"&COUNTIF('MEMORIAL DESCRITIVO'!$D$10:D397,'MEMORIAL DESCRITIVO'!D397)","v":"-0"},"388"]
["",{"$f":"'MEMORIAL DESCRITIVO'!D398&\"-\"&COUNTIF('MEMORIAL DESCRITIVO'!$D$10:D398,'MEMORIAL DESCRITIVO'!D398)","v":"-0"},"389"]
["",{"$f":"'MEMORIAL DESCRITIVO'!D399&\"-\"&COUNTIF('MEMORIAL DESCRITIVO'!$D$10:D399,'MEMORIAL DESCRITIVO'!D399)","v":"-0"},"390"]
["",{"$f":"'MEMORIAL DESCRITIVO'!D400&\"-\"&COUNTIF('MEMORIAL DESCRITIVO'!$D$10:D400,'MEMORIAL DESCRITIVO'!D400)","v":"-0"},"391"]
["",{"$f":"'MEMORIAL DESCRITIVO'!D401&\"-\"&COUNTIF('MEMORIAL DESCRITIVO'!$D$10:D401,'MEMORIAL DESCRITIVO'!D401)","v":"-0"},"392"]
["",{"$f":"'MEMORIAL DESCRITIVO'!D402&\"-\"&COUNTIF('MEMORIAL DESCRITIVO'!$D$10:D402,'MEMORIAL DESCRITIVO'!D402)","v":"-0"},"393"]
["",{"$f":"'MEMORIAL DESCRITIVO'!D403&\"-\"&COUNTIF('MEMORIAL DESCRITIVO'!$D$10:D403,'MEMORIAL DESCRITIVO'!D403)","v":"-0"},"394"]
["",{"$f":"'MEMORIAL DESCRITIVO'!D404&\"-\"&COUNTIF('MEMORIAL DESCRITIVO'!$D$10:D404,'MEMORIAL DESCRITIVO'!D404)","v":"-0"},"395"]
["",{"$f":"'MEMORIAL DESCRITIVO'!D405&\"-\"&COUNTIF('MEMORIAL DESCRITIVO'!$D$10:D405,'MEMORIAL DESCRITIVO'!D405)","v":"-0"},"396"]
["",{"$f":"'MEMORIAL DESCRITIVO'!D406&\"-\"&COUNTIF('MEMORIAL DESCRITIVO'!$D$10:D406,'MEMORIAL DESCRITIVO'!D406)","v":"-0"},"397"]
["",{"$f":"'MEMORIAL DESCRITIVO'!D407&\"-\"&COUNTIF('MEMORIAL DESCRITIVO'!$D$10:D407,'MEMORIAL DESCRITIVO'!D407)","v":"-0"},"398"]
["",{"$f":"'MEMORIAL DESCRITIVO'!D408&\"-\"&COUNTIF('MEMORIAL DESCRITIVO'!$D$10:D408,'MEMORIAL DESCRITIVO'!D408)","v":"-0"},"399"]
["",{"$f":"'MEMORIAL DESCRITIVO'!D409&\"-\"&COUNTIF('MEMORIAL DESCRITIVO'!$D$10:D409,'MEMORIAL DESCRITIVO'!D409)","v":"-0"},"400"]
["",{"$f":"'MEMORIAL DESCRITIVO'!D410&\"-\"&COUNTIF('MEMORIAL DESCRITIVO'!$D$10:D410,'MEMORIAL DESCRITIVO'!D410)","v":"-0"},"401"]
["",{"$f":"'MEMORIAL DESCRITIVO'!D411&\"-\"&COUNTIF('MEMORIAL DESCRITIVO'!$D$10:D411,'MEMORIAL DESCRITIVO'!D411)","v":"-0"},"402"]
["",{"$f":"'MEMORIAL DESCRITIVO'!D412&\"-\"&COUNTIF('MEMORIAL DESCRITIVO'!$D$10:D412,'MEMORIAL DESCRITIVO'!D412)","v":"-0"},"403"]
["",{"$f":"'MEMORIAL DESCRITIVO'!D413&\"-\"&COUNTIF('MEMORIAL DESCRITIVO'!$D$10:D413,'MEMORIAL DESCRITIVO'!D413)","v":"-0"},"404"]
["",{"$f":"'MEMORIAL DESCRITIVO'!D414&\"-\"&COUNTIF('MEMORIAL DESCRITIVO'!$D$10:D414,'MEMORIAL DESCRITIVO'!D414)","v":"-0"},"405"]
["",{"$f":"'MEMORIAL DESCRITIVO'!D415&\"-\"&COUNTIF('MEMORIAL DESCRITIVO'!$D$10:D415,'MEMORIAL DESCRITIVO'!D415)","v":"-0"},"406"]
["",{"$f":"'MEMORIAL DESCRITIVO'!D416&\"-\"&COUNTIF('MEMORIAL DESCRITIVO'!$D$10:D416,'MEMORIAL DESCRITIVO'!D416)","v":"-0"},"407"]
["",{"$f":"'MEMORIAL DESCRITIVO'!D417&\"-\"&COUNTIF('MEMORIAL DESCRITIVO'!$D$10:D417,'MEMORIAL DESCRITIVO'!D417)","v":"-0"},"408"]
["",{"$f":"'MEMORIAL DESCRITIVO'!D418&\"-\"&COUNTIF('MEMORIAL DESCRITIVO'!$D$10:D418,'MEMORIAL DESCRITIVO'!D418)","v":"-0"},"409"]
["",{"$f":"'MEMORIAL DESCRITIVO'!D419&\"-\"&COUNTIF('MEMORIAL DESCRITIVO'!$D$10:D419,'MEMORIAL DESCRITIVO'!D419)","v":"-0"},"410"]
["",{"$f":"'MEMORIAL DESCRITIVO'!D420&\"-\"&COUNTIF('MEMORIAL DESCRITIVO'!$D$10:D420,'MEMORIAL DESCRITIVO'!D420)","v":"-0"},"411"]
["",{"$f":"'MEMORIAL DESCRITIVO'!D421&\"-\"&COUNTIF('MEMORIAL DESCRITIVO'!$D$10:D421,'MEMORIAL DESCRITIVO'!D421)","v":"-0"},"412"]
["",{"$f":"'MEMORIAL DESCRITIVO'!D422&\"-\"&COUNTIF('MEMORIAL DESCRITIVO'!$D$10:D422,'MEMORIAL DESCRITIVO'!D422)","v":"-0"},"413"]
["",{"$f":"'MEMORIAL DESCRITIVO'!D423&\"-\"&COUNTIF('MEMORIAL DESCRITIVO'!$D$10:D423,'MEMORIAL DESCRITIVO'!D423)","v":"-0"},"414"]
["",{"$f":"'MEMORIAL DESCRITIVO'!D424&\"-\"&COUNTIF('MEMORIAL DESCRITIVO'!$D$10:D424,'MEMORIAL DESCRITIVO'!D424)","v":"-0"},"415"]
["",{"$f":"'MEMORIAL DESCRITIVO'!D425&\"-\"&COUNTIF('MEMORIAL DESCRITIVO'!$D$10:D425,'MEMORIAL DESCRITIVO'!D425)","v":"-0"},"416"]
["",{"$f":"'MEMORIAL DESCRITIVO'!D426&\"-\"&COUNTIF('MEMORIAL DESCRITIVO'!$D$10:D426,'MEMORIAL DESCRITIVO'!D426)","v":"-0"},"417"]
["",{"$f":"'MEMORIAL DESCRITIVO'!D427&\"-\"&COUNTIF('MEMORIAL DESCRITIVO'!$D$10:D427,'MEMORIAL DESCRITIVO'!D427)","v":"-0"},"418"]
["",{"$f":"'MEMORIAL DESCRITIVO'!D428&\"-\"&COUNTIF('MEMORIAL DESCRITIVO'!$D$10:D428,'MEMORIAL DESCRITIVO'!D428)","v":"-0"},"419"]
["",{"$f":"'MEMORIAL DESCRITIVO'!D429&\"-\"&COUNTIF('MEMORIAL DESCRITIVO'!$D$10:D429,'MEMORIAL DESCRITIVO'!D429)","v":"-0"},"420"]
["",{"$f":"'MEMORIAL DESCRITIVO'!D430&\"-\"&COUNTIF('MEMORIAL DESCRITIVO'!$D$10:D430,'MEMORIAL DESCRITIVO'!D430)","v":"-0"},"421"]
["",{"$f":"'MEMORIAL DESCRITIVO'!D431&\"-\"&COUNTIF('MEMORIAL DESCRITIVO'!$D$10:D431,'MEMORIAL DESCRITIVO'!D431)","v":"-0"},"422"]
["",{"$f":"'MEMORIAL DESCRITIVO'!D432&\"-\"&COUNTIF('MEMORIAL DESCRITIVO'!$D$10:D432,'MEMORIAL DESCRITIVO'!D432)","v":"-0"},"423"]
["",{"$f":"'MEMORIAL DESCRITIVO'!D433&\"-\"&COUNTIF('MEMORIAL DESCRITIVO'!$D$10:D433,'MEMORIAL DESCRITIVO'!D433)","v":"-0"},"424"]
["",{"$f":"'MEMORIAL DESCRITIVO'!D434&\"-\"&COUNTIF('MEMORIAL DESCRITIVO'!$D$10:D434,'MEMORIAL DESCRITIVO'!D434)","v":"-0"},"425"]
["",{"$f":"'MEMORIAL DESCRITIVO'!D435&\"-\"&COUNTIF('MEMORIAL DESCRITIVO'!$D$10:D435,'MEMORIAL DESCRITIVO'!D435)","v":"-0"},"426"]
["",{"$f":"'MEMORIAL DESCRITIVO'!D436&\"-\"&COUNTIF('MEMORIAL DESCRITIVO'!$D$10:D436,'MEMORIAL DESCRITIVO'!D436)","v":"-0"},"427"]
["",{"$f":"'MEMORIAL DESCRITIVO'!D437&\"-\"&COUNTIF('MEMORIAL DESCRITIVO'!$D$10:D437,'MEMORIAL DESCRITIVO'!D437)","v":"-0"},"428"]
["",{"$f":"'MEMORIAL DESCRITIVO'!D438&\"-\"&COUNTIF('MEMORIAL DESCRITIVO'!$D$10:D438,'MEMORIAL DESCRITIVO'!D438)","v":"-0"},"429"]
["",{"$f":"'MEMORIAL DESCRITIVO'!D439&\"-\"&COUNTIF('MEMORIAL DESCRITIVO'!$D$10:D439,'MEMORIAL DESCRITIVO'!D439)","v":"-0"},"430"]
["",{"$f":"'MEMORIAL DESCRITIVO'!D440&\"-\"&COUNTIF('MEMORIAL DESCRITIVO'!$D$10:D440,'MEMORIAL DESCRITIVO'!D440)","v":"-0"},"431"]
["",{"$f":"'MEMORIAL DESCRITIVO'!D441&\"-\"&COUNTIF('MEMORIAL DESCRITIVO'!$D$10:D441,'MEMORIAL DESCRITIVO'!D441)","v":"-0"},"432"]
["",{"$f":"'MEMORIAL DESCRITIVO'!D442&\"-\"&COUNTIF('MEMORIAL DESCRITIVO'!$D$10:D442,'MEMORIAL DESCRITIVO'!D442)","v":"-0"},"433"]
["",{"$f":"'MEMORIAL DESCRITIVO'!D443&\"-\"&COUNTIF('MEMORIAL DESCRITIVO'!$D$10:D443,'MEMORIAL DESCRITIVO'!D443)","v":"-0"},"434"]
["",{"$f":"'MEMORIAL DESCRITIVO'!D444&\"-\"&COUNTIF('MEMORIAL DESCRITIVO'!$D$10:D444,'MEMORIAL DESCRITIVO'!D444)","v":"-0"},"435"]
["",{"$f":"'MEMORIAL DESCRITIVO'!D445&\"-\"&COUNTIF('MEMORIAL DESCRITIVO'!$D$10:D445,'MEMORIAL DESCRITIVO'!D445)","v":"-0"},"436"]
["",{"$f":"'MEMORIAL DESCRITIVO'!D446&\"-\"&COUNTIF('MEMORIAL DESCRITIVO'!$D$10:D446,'MEMORIAL DESCRITIVO'!D446)","v":"-0"},"437"]
["",{"$f":"'MEMORIAL DESCRITIVO'!D447&\"-\"&COUNTIF('MEMORIAL DESCRITIVO'!$D$10:D447,'MEMORIAL DESCRITIVO'!D447)","v":"-0"},"438"]
["",{"$f":"'MEMORIAL DESCRITIVO'!D448&\"-\"&COUNTIF('MEMORIAL DESCRITIVO'!$D$10:D448,'MEMORIAL DESCRITIVO'!D448)","v":"-0"},"439"]
["",{"$f":"'MEMORIAL DESCRITIVO'!D449&\"-\"&COUNTIF('MEMORIAL DESCRITIVO'!$D$10:D449,'MEMORIAL DESCRITIVO'!D449)","v":"-0"},"440"]
["",{"$f":"'MEMORIAL DESCRITIVO'!D450&\"-\"&COUNTIF('MEMORIAL DESCRITIVO'!$D$10:D450,'MEMORIAL DESCRITIVO'!D450)","v":"-0"},"441"]
["",{"$f":"'MEMORIAL DESCRITIVO'!D451&\"-\"&COUNTIF('MEMORIAL DESCRITIVO'!$D$10:D451,'MEMORIAL DESCRITIVO'!D451)","v":"-0"},"442"]
["",{"$f":"'MEMORIAL DESCRITIVO'!D452&\"-\"&COUNTIF('MEMORIAL DESCRITIVO'!$D$10:D452,'MEMORIAL DESCRITIVO'!D452)","v":"-0"},"443"]
["",{"$f":"'MEMORIAL DESCRITIVO'!D453&\"-\"&COUNTIF('MEMORIAL DESCRITIVO'!$D$10:D453,'MEMORIAL DESCRITIVO'!D453)","v":"-0"},"444"]
["",{"$f":"'MEMORIAL DESCRITIVO'!D454&\"-\"&COUNTIF('MEMORIAL DESCRITIVO'!$D$10:D454,'MEMORIAL DESCRITIVO'!D454)","v":"-0"},"445"]
["",{"$f":"'MEMORIAL DESCRITIVO'!D455&\"-\"&COUNTIF('MEMORIAL DESCRITIVO'!$D$10:D455,'MEMORIAL DESCRITIVO'!D455)","v":"-0"},"446"]
["",{"$f":"'MEMORIAL DESCRITIVO'!D456&\"-\"&COUNTIF('MEMORIAL DESCRITIVO'!$D$10:D456,'MEMORIAL DESCRITIVO'!D456)","v":"-0"},"447"]
["",{"$f":"'MEMORIAL DESCRITIVO'!D457&\"-\"&COUNTIF('MEMORIAL DESCRITIVO'!$D$10:D457,'MEMORIAL DESCRITIVO'!D457)","v":"-0"},"448"]
["",{"$f":"'MEMORIAL DESCRITIVO'!D458&\"-\"&COUNTIF('MEMORIAL DESCRITIVO'!$D$10:D458,'MEMORIAL DESCRITIVO'!D458)","v":"-0"},"449"]
[{"$f":"IF(E459=\"Sim\", ROW(), \"\")","v":""},{"$f":"'MEMORIAL DESCRITIVO'!D459&\"-\"&COUNTIF('MEMORIAL DESCRITIVO'!$D$10:D459,'MEMORIAL DESCRITIVO'!D459)","v":"-0"},"450"]
["",{"$f":"'MEMORIAL DESCRITIVO'!D460&\"-\"&COUNTIF('MEMORIAL DESCRITIVO'!$D$10:D460,'MEMORIAL DESCRITIVO'!D460)","v":"-0"},"451"]
["",{"$f":"'MEMORIAL DESCRITIVO'!D461&\"-\"&COUNTIF('MEMORIAL DESCRITIVO'!$D$10:D461,'MEMORIAL DESCRITIVO'!D461)","v":"-0"},"452"]
["",{"$f":"'MEMORIAL DESCRITIVO'!D462&\"-\"&COUNTIF('MEMORIAL DESCRITIVO'!$D$10:D462,'MEMORIAL DESCRITIVO'!D462)","v":"-0"},"453"]
["",{"$f":"'MEMORIAL DESCRITIVO'!D463&\"-\"&COUNTIF('MEMORIAL DESCRITIVO'!$D$10:D463,'MEMORIAL DESCRITIVO'!D463)","v":"-0"},"454"]
["",{"$f":"'MEMORIAL DESCRITIVO'!D464&\"-\"&COUNTIF('MEMORIAL DESCRITIVO'!$D$10:D464,'MEMORIAL DESCRITIVO'!D464)","v":"-0"},"455"]
["",{"$f":"'MEMORIAL DESCRITIVO'!D465&\"-\"&COUNTIF('MEMORIAL DESCRITIVO'!$D$10:D465,'MEMORIAL DESCRITIVO'!D465)","v":"-0"},"456"]
["",{"$f":"'MEMORIAL DESCRITIVO'!D466&\"-\"&COUNTIF('MEMORIAL DESCRITIVO'!$D$10:D466,'MEMORIAL DESCRITIVO'!D466)","v":"-0"},"457"]
["",{"$f":"'MEMORIAL DESCRITIVO'!D467&\"-\"&COUNTIF('MEMORIAL DESCRITIVO'!$D$10:D467,'MEMORIAL DESCRITIVO'!D467)","v":"-0"},"458"]
["",{"$f":"'MEMORIAL DESCRITIVO'!D468&\"-\"&COUNTIF('MEMORIAL DESCRITIVO'!$D$10:D468,'MEMORIAL DESCRITIVO'!D468)","v":"-0"},"459"]
["",{"$f":"'MEMORIAL DESCRITIVO'!D469&\"-\"&COUNTIF('MEMORIAL DESCRITIVO'!$D$10:D469,'MEMORIAL DESCRITIVO'!D469)","v":"-0"},"460"]
["",{"$f":"'MEMORIAL DESCRITIVO'!D470&\"-\"&COUNTIF('MEMORIAL DESCRITIVO'!$D$10:D470,'MEMORIAL DESCRITIVO'!D470)","v":"-0"},"461"]
["",{"$f":"'MEMORIAL DESCRITIVO'!D471&\"-\"&COUNTIF('MEMORIAL DESCRITIVO'!$D$10:D471,'MEMORIAL DESCRITIVO'!D471)","v":"-0"},"462"]
["",{"$f":"'MEMORIAL DESCRITIVO'!D472&\"-\"&COUNTIF('MEMORIAL DESCRITIVO'!$D$10:D472,'MEMORIAL DESCRITIVO'!D472)","v":"-0"},"463"]
["",{"$f":"'MEMORIAL DESCRITIVO'!D473&\"-\"&COUNTIF('MEMORIAL DESCRITIVO'!$D$10:D473,'MEMORIAL DESCRITIVO'!D473)","v":"-0"},"464"]
["",{"$f":"'MEMORIAL DESCRITIVO'!D474&\"-\"&COUNTIF('MEMORIAL DESCRITIVO'!$D$10:D474,'MEMORIAL DESCRITIVO'!D474)","v":"-0"},"465"]
["",{"$f":"'MEMORIAL DESCRITIVO'!D475&\"-\"&COUNTIF('MEMORIAL DESCRITIVO'!$D$10:D475,'MEMORIAL DESCRITIVO'!D475)","v":"-0"},"466"]
["",{"$f":"'MEMORIAL DESCRITIVO'!D476&\"-\"&COUNTIF('MEMORIAL DESCRITIVO'!$D$10:D476,'MEMORIAL DESCRITIVO'!D476)","v":"-0"},"467"]
["",{"$f":"'MEMORIAL DESCRITIVO'!D477&\"-\"&COUNTIF('MEMORIAL DESCRITIVO'!$D$10:D477,'MEMORIAL DESCRITIVO'!D477)","v":"-0"},"468"]
["",{"$f":"'MEMORIAL DESCRITIVO'!D478&\"-\"&COUNTIF('MEMORIAL DESCRITIVO'!$D$10:D478,'MEMORIAL DESCRITIVO'!D478)","v":"-0"},"469"]
["",{"$f":"'MEMORIAL DESCRITIVO'!D479&\"-\"&COUNTIF('MEMORIAL DESCRITIVO'!$D$10:D479,'MEMORIAL DESCRITIVO'!D479)","v":"-0"},"470"]
["",{"$f":"'MEMORIAL DESCRITIVO'!D480&\"-\"&COUNTIF('MEMORIAL DESCRITIVO'!$D$10:D480,'MEMORIAL DESCRITIVO'!D480)","v":"-0"},"471"]
["",{"$f":"'MEMORIAL DESCRITIVO'!D481&\"-\"&COUNTIF('MEMORIAL DESCRITIVO'!$D$10:D481,'MEMORIAL DESCRITIVO'!D481)","v":"-0"},"472"]
["",{"$f":"'MEMORIAL DESCRITIVO'!D482&\"-\"&COUNTIF('MEMORIAL DESCRITIVO'!$D$10:D482,'MEMORIAL DESCRITIVO'!D482)","v":"-0"},"473"]
["",{"$f":"'MEMORIAL DESCRITIVO'!D483&\"-\"&COUNTIF('MEMORIAL DESCRITIVO'!$D$10:D483,'MEMORIAL DESCRITIVO'!D483)","v":"-0"},"474"]
["",{"$f":"'MEMORIAL DESCRITIVO'!D484&\"-\"&COUNTIF('MEMORIAL DESCRITIVO'!$D$10:D484,'MEMORIAL DESCRITIVO'!D484)","v":"-0"},"475"]
["",{"$f":"'MEMORIAL DESCRITIVO'!D485&\"-\"&COUNTIF('MEMORIAL DESCRITIVO'!$D$10:D485,'MEMORIAL DESCRITIVO'!D485)","v":"-0"},"476"]
["",{"$f":"'MEMORIAL DESCRITIVO'!D486&\"-\"&COUNTIF('MEMORIAL DESCRITIVO'!$D$10:D486,'MEMORIAL DESCRITIVO'!D486)","v":"-0"},"477"]
["",{"$f":"'MEMORIAL DESCRITIVO'!D487&\"-\"&COUNTIF('MEMORIAL DESCRITIVO'!$D$10:D487,'MEMORIAL DESCRITIVO'!D487)","v":"-0"},"478"]
["",{"$f":"'MEMORIAL DESCRITIVO'!D488&\"-\"&COUNTIF('MEMORIAL DESCRITIVO'!$D$10:D488,'MEMORIAL DESCRITIVO'!D488)","v":"-0"},"479"]
["",{"$f":"'MEMORIAL DESCRITIVO'!D489&\"-\"&COUNTIF('MEMORIAL DESCRITIVO'!$D$10:D489,'MEMORIAL DESCRITIVO'!D489)","v":"-0"},"480"]
["",{"$f":"'MEMORIAL DESCRITIVO'!D490&\"-\"&COUNTIF('MEMORIAL DESCRITIVO'!$D$10:D490,'MEMORIAL DESCRITIVO'!D490)","v":"-0"},"481"]
["",{"$f":"'MEMORIAL DESCRITIVO'!D491&\"-\"&COUNTIF('MEMORIAL DESCRITIVO'!$D$10:D491,'MEMORIAL DESCRITIVO'!D491)","v":"-0"},"482"]
["",{"$f":"'MEMORIAL DESCRITIVO'!D492&\"-\"&COUNTIF('MEMORIAL DESCRITIVO'!$D$10:D492,'MEMORIAL DESCRITIVO'!D492)","v":"-0"},"483"]
["",{"$f":"'MEMORIAL DESCRITIVO'!D493&\"-\"&COUNTIF('MEMORIAL DESCRITIVO'!$D$10:D493,'MEMORIAL DESCRITIVO'!D493)","v":"-0"},"484"]
["",{"$f":"'MEMORIAL DESCRITIVO'!D494&\"-\"&COUNTIF('MEMORIAL DESCRITIVO'!$D$10:D494,'MEMORIAL DESCRITIVO'!D494)","v":"-0"},"485"]
["",{"$f":"'MEMORIAL DESCRITIVO'!D495&\"-\"&COUNTIF('MEMORIAL DESCRITIVO'!$D$10:D495,'MEMORIAL DESCRITIVO'!D495)","v":"-0"},"486"]
["",{"$f":"'MEMORIAL DESCRITIVO'!D496&\"-\"&COUNTIF('MEMORIAL DESCRITIVO'!$D$10:D496,'MEMORIAL DESCRITIVO'!D496)","v":"-0"},"487"]
["",{"$f":"'MEMORIAL DESCRITIVO'!D497&\"-\"&COUNTIF('MEMORIAL DESCRITIVO'!$D$10:D497,'MEMORIAL DESCRITIVO'!D497)","v":"-0"},"488"]
["",{"$f":"'MEMORIAL DESCRITIVO'!D498&\"-\"&COUNTIF('MEMORIAL DESCRITIVO'!$D$10:D498,'MEMORIAL DESCRITIVO'!D498)","v":"-0"},"489"]
["",{"$f":"'MEMORIAL DESCRITIVO'!D499&\"-\"&COUNTIF('MEMORIAL DESCRITIVO'!$D$10:D499,'MEMORIAL DESCRITIVO'!D499)","v":"-0"},"490"]
["",{"$f":"'MEMORIAL DESCRITIVO'!D500&\"-\"&COUNTIF('MEMORIAL DESCRITIVO'!$D$10:D500,'MEMORIAL DESCRITIVO'!D500)","v":"-0"},"491"]
["",{"$f":"'MEMORIAL DESCRITIVO'!D501&\"-\"&COUNTIF('MEMORIAL DESCRITIVO'!$D$10:D501,'MEMORIAL DESCRITIVO'!D501)","v":"-0"},"492"]
["",{"$f":"'MEMORIAL DESCRITIVO'!D502&\"-\"&COUNTIF('MEMORIAL DESCRITIVO'!$D$10:D502,'MEMORIAL DESCRITIVO'!D502)","v":"-0"},"493"]
["",{"$f":"'MEMORIAL DESCRITIVO'!D503&\"-\"&COUNTIF('MEMORIAL DESCRITIVO'!$D$10:D503,'MEMORIAL DESCRITIVO'!D503)","v":"-0"},"494"]
["",{"$f":"'MEMORIAL DESCRITIVO'!D504&\"-\"&COUNTIF('MEMORIAL DESCRITIVO'!$D$10:D504,'MEMORIAL DESCRITIVO'!D504)","v":"-0"},"495"]
["",{"$f":"'MEMORIAL DESCRITIVO'!D505&\"-\"&COUNTIF('MEMORIAL DESCRITIVO'!$D$10:D505,'MEMORIAL DESCRITIVO'!D505)","v":"-0"},"496"]
["",{"$f":"'MEMORIAL DESCRITIVO'!D506&\"-\"&COUNTIF('MEMORIAL DESCRITIVO'!$D$10:D506,'MEMORIAL DESCRITIVO'!D506)","v":"-0"},"497"]
["",{"$f":"'MEMORIAL DESCRITIVO'!D507&\"-\"&COUNTIF('MEMORIAL DESCRITIVO'!$D$10:D507,'MEMORIAL DESCRITIVO'!D507)","v":"-0"},"498"]
["",{"$f":"'MEMORIAL DESCRITIVO'!D508&\"-\"&COUNTIF('MEMORIAL DESCRITIVO'!$D$10:D508,'MEMORIAL DESCRITIVO'!D508)","v":"-0"},"499"]
["",{"$f":"'MEMORIAL DESCRITIVO'!D509&\"-\"&COUNTIF('MEMORIAL DESCRITIVO'!$D$10:D509,'MEMORIAL DESCRITIVO'!D509)","v":"-0"},"500"]
["",{"$f":"'MEMORIAL DESCRITIVO'!D510&\"-\"&COUNTIF('MEMORIAL DESCRITIVO'!$D$10:D510,'MEMORIAL DESCRITIVO'!D510)","v":"-0"},"501"]
["",{"$f":"'MEMORIAL DESCRITIVO'!D511&\"-\"&COUNTIF('MEMORIAL DESCRITIVO'!$D$10:D511,'MEMORIAL DESCRITIVO'!D511)","v":"-0"},"502"]
["",{"$f":"'MEMORIAL DESCRITIVO'!D512&\"-\"&COUNTIF('MEMORIAL DESCRITIVO'!$D$10:D512,'MEMORIAL DESCRITIVO'!D512)","v":"-0"},"503"]
["",{"$f":"'MEMORIAL DESCRITIVO'!D513&\"-\"&COUNTIF('MEMORIAL DESCRITIVO'!$D$10:D513,'MEMORIAL DESCRITIVO'!D513)","v":"-0"},"504"]
["",{"$f":"'MEMORIAL DESCRITIVO'!D514&\"-\"&COUNTIF('MEMORIAL DESCRITIVO'!$D$10:D514,'MEMORIAL DESCRITIVO'!D514)","v":"-0"},"505"]
["",{"$f":"'MEMORIAL DESCRITIVO'!D515&\"-\"&COUNTIF('MEMORIAL DESCRITIVO'!$D$10:D515,'MEMORIAL DESCRITIVO'!D515)","v":"-0"},"506"]
["",{"$f":"'MEMORIAL DESCRITIVO'!D516&\"-\"&COUNTIF('MEMORIAL DESCRITIVO'!$D$10:D516,'MEMORIAL DESCRITIVO'!D516)","v":"-0"},"507"]
["",{"$f":"'MEMORIAL DESCRITIVO'!D517&\"-\"&COUNTIF('MEMORIAL DESCRITIVO'!$D$10:D517,'MEMORIAL DESCRITIVO'!D517)","v":"-0"},"508"]
["",{"$f":"'MEMORIAL DESCRITIVO'!D518&\"-\"&COUNTIF('MEMORIAL DESCRITIVO'!$D$10:D518,'MEMORIAL DESCRITIVO'!D518)","v":"-0"},"509"]
["",{"$f":"'MEMORIAL DESCRITIVO'!D519&\"-\"&COUNTIF('MEMORIAL DESCRITIVO'!$D$10:D519,'MEMORIAL DESCRITIVO'!D519)","v":"-0"},"510"]
["",{"$f":"'MEMORIAL DESCRITIVO'!D520&\"-\"&COUNTIF('MEMORIAL DESCRITIVO'!$D$10:D520,'MEMORIAL DESCRITIVO'!D520)","v":"-0"},"511"]
["",{"$f":"'MEMORIAL DESCRITIVO'!D521&\"-\"&COUNTIF('MEMORIAL DESCRITIVO'!$D$10:D521,'MEMORIAL DESCRITIVO'!D521)","v":"-0"},"512"]
["",{"$f":"'MEMORIAL DESCRITIVO'!D522&\"-\"&COUNTIF('MEMORIAL DESCRITIVO'!$D$10:D522,'MEMORIAL DESCRITIVO'!D522)","v":"-0"},"513"]
[{"$f":"IF(E523=\"Sim\", ROW(), \"\")","v":""},{"$f":"'MEMORIAL DESCRITIVO'!D523&\"-\"&COUNTIF('MEMORIAL DESCRITIVO'!$D$10:D523,'MEMORIAL DESCRITIVO'!D523)","v":"-0"},"514"]
["",{"$f":"'MEMORIAL DESCRITIVO'!D524&\"-\"&COUNTIF('MEMORIAL DESCRITIVO'!$D$10:D524,'MEMORIAL DESCRITIVO'!D524)","v":"-0"},"515"]
["",{"$f":"'MEMORIAL DESCRITIVO'!D525&\"-\"&COUNTIF('MEMORIAL DESCRITIVO'!$D$10:D525,'MEMORIAL DESCRITIVO'!D525)","v":"-0"},"516"]
["",{"$f":"'MEMORIAL DESCRITIVO'!D526&\"-\"&COUNTIF('MEMORIAL DESCRITIVO'!$D$10:D526,'MEMORIAL DESCRITIVO'!D526)","v":"-0"},"517"]
["",{"$f":"'MEMORIAL DESCRITIVO'!D527&\"-\"&COUNTIF('MEMORIAL DESCRITIVO'!$D$10:D527,'MEMORIAL DESCRITIVO'!D527)","v":"-0"},"518"]
["",{"$f":"'MEMORIAL DESCRITIVO'!D528&\"-\"&COUNTIF('MEMORIAL DESCRITIVO'!$D$10:D528,'MEMORIAL DESCRITIVO'!D528)","v":"-0"},"519"]
["",{"$f":"'MEMORIAL DESCRITIVO'!D529&\"-\"&COUNTIF('MEMORIAL DESCRITIVO'!$D$10:D529,'MEMORIAL DESCRITIVO'!D529)","v":"-0"},"520"]
["",{"$f":"'MEMORIAL DESCRITIVO'!D530&\"-\"&COUNTIF('MEMORIAL DESCRITIVO'!$D$10:D530,'MEMORIAL DESCRITIVO'!D530)","v":"-0"},"521"]
["",{"$f":"'MEMORIAL DESCRITIVO'!D531&\"-\"&COUNTIF('MEMORIAL DESCRITIVO'!$D$10:D531,'MEMORIAL DESCRITIVO'!D531)","v":"-0"},"522"]
["",{"$f":"'MEMORIAL DESCRITIVO'!D532&\"-\"&COUNTIF('MEMORIAL DESCRITIVO'!$D$10:D532,'MEMORIAL DESCRITIVO'!D532)","v":"-0"},"523"]
["",{"$f":"'MEMORIAL DESCRITIVO'!D533&\"-\"&COUNTIF('MEMORIAL DESCRITIVO'!$D$10:D533,'MEMORIAL DESCRITIVO'!D533)","v":"-0"},"524"]
["",{"$f":"'MEMORIAL DESCRITIVO'!D534&\"-\"&COUNTIF('MEMORIAL DESCRITIVO'!$D$10:D534,'MEMORIAL DESCRITIVO'!D534)","v":"-0"},"525"]
["",{"$f":"'MEMORIAL DESCRITIVO'!D535&\"-\"&COUNTIF('MEMORIAL DESCRITIVO'!$D$10:D535,'MEMORIAL DESCRITIVO'!D535)","v":"-0"},"526"]
["",{"$f":"'MEMORIAL DESCRITIVO'!D536&\"-\"&COUNTIF('MEMORIAL DESCRITIVO'!$D$10:D536,'MEMORIAL DESCRITIVO'!D536)","v":"-0"},"527"]
["",{"$f":"'MEMORIAL DESCRITIVO'!D537&\"-\"&COUNTIF('MEMORIAL DESCRITIVO'!$D$10:D537,'MEMORIAL DESCRITIVO'!D537)","v":"-0"},"528"]
["",{"$f":"'MEMORIAL DESCRITIVO'!D538&\"-\"&COUNTIF('MEMORIAL DESCRITIVO'!$D$10:D538,'MEMORIAL DESCRITIVO'!D538)","v":"-0"},"529"]
["",{"$f":"'MEMORIAL DESCRITIVO'!D539&\"-\"&COUNTIF('MEMORIAL DESCRITIVO'!$D$10:D539,'MEMORIAL DESCRITIVO'!D539)","v":"-0"},"530"]
["",{"$f":"'MEMORIAL DESCRITIVO'!D540&\"-\"&COUNTIF('MEMORIAL DESCRITIVO'!$D$10:D540,'MEMORIAL DESCRITIVO'!D540)","v":"-0"},"531"]
["",{"$f":"'MEMORIAL DESCRITIVO'!D541&\"-\"&COUNTIF('MEMORIAL DESCRITIVO'!$D$10:D541,'MEMORIAL DESCRITIVO'!D541)","v":"-0"},"532"]
["",{"$f":"'MEMORIAL DESCRITIVO'!D542&\"-\"&COUNTIF('MEMORIAL DESCRITIVO'!$D$10:D542,'MEMORIAL DESCRITIVO'!D542)","v":"-0"},"533"]
["",{"$f":"'MEMORIAL DESCRITIVO'!D543&\"-\"&COUNTIF('MEMORIAL DESCRITIVO'!$D$10:D543,'MEMORIAL DESCRITIVO'!D543)","v":"-0"},"534"]
["",{"$f":"'MEMORIAL DESCRITIVO'!D544&\"-\"&COUNTIF('MEMORIAL DESCRITIVO'!$D$10:D544,'MEMORIAL DESCRITIVO'!D544)","v":"-0"},"535"]
["",{"$f":"'MEMORIAL DESCRITIVO'!D545&\"-\"&COUNTIF('MEMORIAL DESCRITIVO'!$D$10:D545,'MEMORIAL DESCRITIVO'!D545)","v":"-0"},"536"]
["",{"$f":"'MEMORIAL DESCRITIVO'!D546&\"-\"&COUNTIF('MEMORIAL DESCRITIVO'!$D$10:D546,'MEMORIAL DESCRITIVO'!D546)","v":"-0"},"537"]
["",{"$f":"'MEMORIAL DESCRITIVO'!D547&\"-\"&COUNTIF('MEMORIAL DESCRITIVO'!$D$10:D547,'MEMORIAL DESCRITIVO'!D547)","v":"-0"},"538"]
["",{"$f":"'MEMORIAL DESCRITIVO'!D548&\"-\"&COUNTIF('MEMORIAL DESCRITIVO'!$D$10:D548,'MEMORIAL DESCRITIVO'!D548)","v":"-0"},"539"]
["",{"$f":"'MEMORIAL DESCRITIVO'!D549&\"-\"&COUNTIF('MEMORIAL DESCRITIVO'!$D$10:D549,'MEMORIAL DESCRITIVO'!D549)","v":"-0"},"540"]
["",{"$f":"'MEMORIAL DESCRITIVO'!D550&\"-\"&COUNTIF('MEMORIAL DESCRITIVO'!$D$10:D550,'MEMORIAL DESCRITIVO'!D550)","v":"-0"},"541"]
["",{"$f":"'MEMORIAL DESCRITIVO'!D551&\"-\"&COUNTIF('MEMORIAL DESCRITIVO'!$D$10:D551,'MEMORIAL DESCRITIVO'!D551)","v":"-0"},"542"]
["",{"$f":"'MEMORIAL DESCRITIVO'!D552&\"-\"&COUNTIF('MEMORIAL DESCRITIVO'!$D$10:D552,'MEMORIAL DESCRITIVO'!D552)","v":"-0"},"543"]
["",{"$f":"'MEMORIAL DESCRITIVO'!D553&\"-\"&COUNTIF('MEMORIAL DESCRITIVO'!$D$10:D553,'MEMORIAL DESCRITIVO'!D553)","v":"-0"},"544"]
["",{"$f":"'MEMORIAL DESCRITIVO'!D554&\"-\"&COUNTIF('MEMORIAL DESCRITIVO'!$D$10:D554,'MEMORIAL DESCRITIVO'!D554)","v":"-0"},"545"]
["",{"$f":"'MEMORIAL DESCRITIVO'!D555&\"-\"&COUNTIF('MEMORIAL DESCRITIVO'!$D$10:D555,'MEMORIAL DESCRITIVO'!D555)","v":"-0"},"546"]
["",{"$f":"'MEMORIAL DESCRITIVO'!D556&\"-\"&COUNTIF('MEMORIAL DESCRITIVO'!$D$10:D556,'MEMORIAL DESCRITIVO'!D556)","v":"-0"},"547"]
["",{"$f":"'MEMORIAL DESCRITIVO'!D557&\"-\"&COUNTIF('MEMORIAL DESCRITIVO'!$D$10:D557,'MEMORIAL DESCRITIVO'!D557)","v":"-0"},"548"]
["",{"$f":"'MEMORIAL DESCRITIVO'!D558&\"-\"&COUNTIF('MEMORIAL DESCRITIVO'!$D$10:D558,'MEMORIAL DESCRITIVO'!D558)","v":"-0"},"549"]
["",{"$f":"'MEMORIAL DESCRITIVO'!D559&\"-\"&COUNTIF('MEMORIAL DESCRITIVO'!$D$10:D559,'MEMORIAL DESCRITIVO'!D559)","v":"-0"},"550"]
["",{"$f":"'MEMORIAL DESCRITIVO'!D560&\"-\"&COUNTIF('MEMORIAL DESCRITIVO'!$D$10:D560,'MEMORIAL DESCRITIVO'!D560)","v":"-0"},"551"]
["",{"$f":"'MEMORIAL DESCRITIVO'!D561&\"-\"&COUNTIF('MEMORIAL DESCRITIVO'!$D$10:D561,'MEMORIAL DESCRITIVO'!D561)","v":"-0"},"552"]
["",{"$f":"'MEMORIAL DESCRITIVO'!D562&\"-\"&COUNTIF('MEMORIAL DESCRITIVO'!$D$10:D562,'MEMORIAL DESCRITIVO'!D562)","v":"-0"},"553"]
["",{"$f":"'MEMORIAL DESCRITIVO'!D563&\"-\"&COUNTIF('MEMORIAL DESCRITIVO'!$D$10:D563,'MEMORIAL DESCRITIVO'!D563)","v":"-0"},"554"]
["",{"$f":"'MEMORIAL DESCRITIVO'!D564&\"-\"&COUNTIF('MEMORIAL DESCRITIVO'!$D$10:D564,'MEMORIAL DESCRITIVO'!D564)","v":"-0"},"555"]
["",{"$f":"'MEMORIAL DESCRITIVO'!D565&\"-\"&COUNTIF('MEMORIAL DESCRITIVO'!$D$10:D565,'MEMORIAL DESCRITIVO'!D565)","v":"-0"},"556"]
["",{"$f":"'MEMORIAL DESCRITIVO'!D566&\"-\"&COUNTIF('MEMORIAL DESCRITIVO'!$D$10:D566,'MEMORIAL DESCRITIVO'!D566)","v":"-0"},"557"]
["",{"$f":"'MEMORIAL DESCRITIVO'!D567&\"-\"&COUNTIF('MEMORIAL DESCRITIVO'!$D$10:D567,'MEMORIAL DESCRITIVO'!D567)","v":"-0"},"558"]
["",{"$f":"'MEMORIAL DESCRITIVO'!D568&\"-\"&COUNTIF('MEMORIAL DESCRITIVO'!$D$10:D568,'MEMORIAL DESCRITIVO'!D568)","v":"-0"},"559"]
["",{"$f":"'MEMORIAL DESCRITIVO'!D569&\"-\"&COUNTIF('MEMORIAL DESCRITIVO'!$D$10:D569,'MEMORIAL DESCRITIVO'!D569)","v":"-0"},"560"]
["",{"$f":"'MEMORIAL DESCRITIVO'!D570&\"-\"&COUNTIF('MEMORIAL DESCRITIVO'!$D$10:D570,'MEMORIAL DESCRITIVO'!D570)","v":"-0"},"561"]
["",{"$f":"'MEMORIAL DESCRITIVO'!D571&\"-\"&COUNTIF('MEMORIAL DESCRITIVO'!$D$10:D571,'MEMORIAL DESCRITIVO'!D571)","v":"-0"},"562"]
["",{"$f":"'MEMORIAL DESCRITIVO'!D572&\"-\"&COUNTIF('MEMORIAL DESCRITIVO'!$D$10:D572,'MEMORIAL DESCRITIVO'!D572)","v":"-0"},"563"]
["",{"$f":"'MEMORIAL DESCRITIVO'!D573&\"-\"&COUNTIF('MEMORIAL DESCRITIVO'!$D$10:D573,'MEMORIAL DESCRITIVO'!D573)","v":"-0"},"564"]
["",{"$f":"'MEMORIAL DESCRITIVO'!D574&\"-\"&COUNTIF('MEMORIAL DESCRITIVO'!$D$10:D574,'MEMORIAL DESCRITIVO'!D574)","v":"-0"},"565"]
["",{"$f":"'MEMORIAL DESCRITIVO'!D575&\"-\"&COUNTIF('MEMORIAL DESCRITIVO'!$D$10:D575,'MEMORIAL DESCRITIVO'!D575)","v":"-0"},"566"]
["",{"$f":"'MEMORIAL DESCRITIVO'!D576&\"-\"&COUNTIF('MEMORIAL DESCRITIVO'!$D$10:D576,'MEMORIAL DESCRITIVO'!D576)","v":"-0"},"567"]
["",{"$f":"'MEMORIAL DESCRITIVO'!D577&\"-\"&COUNTIF('MEMORIAL DESCRITIVO'!$D$10:D577,'MEMORIAL DESCRITIVO'!D577)","v":"-0"},"568"]
["",{"$f":"'MEMORIAL DESCRITIVO'!D578&\"-\"&COUNTIF('MEMORIAL DESCRITIVO'!$D$10:D578,'MEMORIAL DESCRITIVO'!D578)","v":"-0"},"569"]
["",{"$f":"'MEMORIAL DESCRITIVO'!D579&\"-\"&COUNTIF('MEMORIAL DESCRITIVO'!$D$10:D579,'MEMORIAL DESCRITIVO'!D579)","v":"-0"},"570"]
["",{"$f":"'MEMORIAL DESCRITIVO'!D580&\"-\"&COUNTIF('MEMORIAL DESCRITIVO'!$D$10:D580,'MEMORIAL DESCRITIVO'!D580)","v":"-0"},"571"]
["",{"$f":"'MEMORIAL DESCRITIVO'!D581&\"-\"&COUNTIF('MEMORIAL DESCRITIVO'!$D$10:D581,'MEMORIAL DESCRITIVO'!D581)","v":"-0"},"572"]
["",{"$f":"'MEMORIAL DESCRITIVO'!D582&\"-\"&COUNTIF('MEMORIAL DESCRITIVO'!$D$10:D582,'MEMORIAL DESCRITIVO'!D582)","v":"-0"},"573"]
["",{"$f":"'MEMORIAL DESCRITIVO'!D583&\"-\"&COUNTIF('MEMORIAL DESCRITIVO'!$D$10:D583,'MEMORIAL DESCRITIVO'!D583)","v":"-0"},"574"]
["",{"$f":"'MEMORIAL DESCRITIVO'!D584&\"-\"&COUNTIF('MEMORIAL DESCRITIVO'!$D$10:D584,'MEMORIAL DESCRITIVO'!D584)","v":"-0"},"575"]
["",{"$f":"'MEMORIAL DESCRITIVO'!D585&\"-\"&COUNTIF('MEMORIAL DESCRITIVO'!$D$10:D585,'MEMORIAL DESCRITIVO'!D585)","v":"-0"},"576"]
["",{"$f":"'MEMORIAL DESCRITIVO'!D586&\"-\"&COUNTIF('MEMORIAL DESCRITIVO'!$D$10:D586,'MEMORIAL DESCRITIVO'!D586)","v":"-0"},"577"]
[{"$f":"IF(E587=\"Sim\", ROW(), \"\")","v":""},{"$f":"'MEMORIAL DESCRITIVO'!D587&\"-\"&COUNTIF('MEMORIAL DESCRITIVO'!$D$10:D587,'MEMORIAL DESCRITIVO'!D587)","v":"-0"},"578"]
["",{"$f":"'MEMORIAL DESCRITIVO'!D588&\"-\"&COUNTIF('MEMORIAL DESCRITIVO'!$D$10:D588,'MEMORIAL DESCRITIVO'!D588)","v":"-0"},"579"]
["",{"$f":"'MEMORIAL DESCRITIVO'!D589&\"-\"&COUNTIF('MEMORIAL DESCRITIVO'!$D$10:D589,'MEMORIAL DESCRITIVO'!D589)","v":"-0"},"580"]
["",{"$f":"'MEMORIAL DESCRITIVO'!D590&\"-\"&COUNTIF('MEMORIAL DESCRITIVO'!$D$10:D590,'MEMORIAL DESCRITIVO'!D590)","v":"-0"},"581"]
["",{"$f":"'MEMORIAL DESCRITIVO'!D591&\"-\"&COUNTIF('MEMORIAL DESCRITIVO'!$D$10:D591,'MEMORIAL DESCRITIVO'!D591)","v":"-0"},"582"]
["",{"$f":"'MEMORIAL DESCRITIVO'!D592&\"-\"&COUNTIF('MEMORIAL DESCRITIVO'!$D$10:D592,'MEMORIAL DESCRITIVO'!D592)","v":"-0"},"583"]
["",{"$f":"'MEMORIAL DESCRITIVO'!D593&\"-\"&COUNTIF('MEMORIAL DESCRITIVO'!$D$10:D593,'MEMORIAL DESCRITIVO'!D593)","v":"-0"},"584"]
["",{"$f":"'MEMORIAL DESCRITIVO'!D594&\"-\"&COUNTIF('MEMORIAL DESCRITIVO'!$D$10:D594,'MEMORIAL DESCRITIVO'!D594)","v":"-0"},"585"]
["",{"$f":"'MEMORIAL DESCRITIVO'!D595&\"-\"&COUNTIF('MEMORIAL DESCRITIVO'!$D$10:D595,'MEMORIAL DESCRITIVO'!D595)","v":"-0"},"586"]
["",{"$f":"'MEMORIAL DESCRITIVO'!D596&\"-\"&COUNTIF('MEMORIAL DESCRITIVO'!$D$10:D596,'MEMORIAL DESCRITIVO'!D596)","v":"-0"},"587"]
["",{"$f":"'MEMORIAL DESCRITIVO'!D597&\"-\"&COUNTIF('MEMORIAL DESCRITIVO'!$D$10:D597,'MEMORIAL DESCRITIVO'!D597)","v":"-0"},"588"]
["",{"$f":"'MEMORIAL DESCRITIVO'!D598&\"-\"&COUNTIF('MEMORIAL DESCRITIVO'!$D$10:D598,'MEMORIAL DESCRITIVO'!D598)","v":"-0"},"589"]
["",{"$f":"'MEMORIAL DESCRITIVO'!D599&\"-\"&COUNTIF('MEMORIAL DESCRITIVO'!$D$10:D599,'MEMORIAL DESCRITIVO'!D599)","v":"-0"},"590"]
["",{"$f":"'MEMORIAL DESCRITIVO'!D600&\"-\"&COUNTIF('MEMORIAL DESCRITIVO'!$D$10:D600,'MEMORIAL DESCRITIVO'!D600)","v":"-0"},"591"]
["",{"$f":"'MEMORIAL DESCRITIVO'!D601&\"-\"&COUNTIF('MEMORIAL DESCRITIVO'!$D$10:D601,'MEMORIAL DESCRITIVO'!D601)","v":"-0"},"592"]
["",{"$f":"'MEMORIAL DESCRITIVO'!D602&\"-\"&COUNTIF('MEMORIAL DESCRITIVO'!$D$10:D602,'MEMORIAL DESCRITIVO'!D602)","v":"-0"},"593"]
["",{"$f":"'MEMORIAL DESCRITIVO'!D603&\"-\"&COUNTIF('MEMORIAL DESCRITIVO'!$D$10:D603,'MEMORIAL DESCRITIVO'!D603)","v":"-0"},"594"]
["",{"$f":"'MEMORIAL DESCRITIVO'!D604&\"-\"&COUNTIF('MEMORIAL DESCRITIVO'!$D$10:D604,'MEMORIAL DESCRITIVO'!D604)","v":"-0"},"595"]
["",{"$f":"'MEMORIAL DESCRITIVO'!D605&\"-\"&COUNTIF('MEMORIAL DESCRITIVO'!$D$10:D605,'MEMORIAL DESCRITIVO'!D605)","v":"-0"},"596"]
["",{"$f":"'MEMORIAL DESCRITIVO'!D606&\"-\"&COUNTIF('MEMORIAL DESCRITIVO'!$D$10:D606,'MEMORIAL DESCRITIVO'!D606)","v":"-0"},"597"]
["",{"$f":"'MEMORIAL DESCRITIVO'!D607&\"-\"&COUNTIF('MEMORIAL DESCRITIVO'!$D$10:D607,'MEMORIAL DESCRITIVO'!D607)","v":"-0"},"598"]
["",{"$f":"'MEMORIAL DESCRITIVO'!D608&\"-\"&COUNTIF('MEMORIAL DESCRITIVO'!$D$10:D608,'MEMORIAL DESCRITIVO'!D608)","v":"-0"},"599"]
["",{"$f":"'MEMORIAL DESCRITIVO'!D609&\"-\"&COUNTIF('MEMORIAL DESCRITIVO'!$D$10:D609,'MEMORIAL DESCRITIVO'!D609)","v":"-0"},"600"]
["",{"$f":"'MEMORIAL DESCRITIVO'!D610&\"-\"&COUNTIF('MEMORIAL DESCRITIVO'!$D$10:D610,'MEMORIAL DESCRITIVO'!D610)","v":"-0"},"601"]
["",{"$f":"'MEMORIAL DESCRITIVO'!D611&\"-\"&COUNTIF('MEMORIAL DESCRITIVO'!$D$10:D611,'MEMORIAL DESCRITIVO'!D611)","v":"-0"},"602"]
["",{"$f":"'MEMORIAL DESCRITIVO'!D612&\"-\"&COUNTIF('MEMORIAL DESCRITIVO'!$D$10:D612,'MEMORIAL DESCRITIVO'!D612)","v":"-0"},"603"]
["",{"$f":"'MEMORIAL DESCRITIVO'!D613&\"-\"&COUNTIF('MEMORIAL DESCRITIVO'!$D$10:D613,'MEMORIAL DESCRITIVO'!D613)","v":"-0"},"604"]
["",{"$f":"'MEMORIAL DESCRITIVO'!D614&\"-\"&COUNTIF('MEMORIAL DESCRITIVO'!$D$10:D614,'MEMORIAL DESCRITIVO'!D614)","v":"-0"},"605"]
["",{"$f":"'MEMORIAL DESCRITIVO'!D615&\"-\"&COUNTIF('MEMORIAL DESCRITIVO'!$D$10:D615,'MEMORIAL DESCRITIVO'!D615)","v":"-0"},"606"]
["",{"$f":"'MEMORIAL DESCRITIVO'!D616&\"-\"&COUNTIF('MEMORIAL DESCRITIVO'!$D$10:D616,'MEMORIAL DESCRITIVO'!D616)","v":"-0"},"607"]
["",{"$f":"'MEMORIAL DESCRITIVO'!D617&\"-\"&COUNTIF('MEMORIAL DESCRITIVO'!$D$10:D617,'MEMORIAL DESCRITIVO'!D617)","v":"-0"},"608"]
["",{"$f":"'MEMORIAL DESCRITIVO'!D618&\"-\"&COUNTIF('MEMORIAL DESCRITIVO'!$D$10:D618,'MEMORIAL DESCRITIVO'!D618)","v":"-0"},"609"]
["",{"$f":"'MEMORIAL DESCRITIVO'!D619&\"-\"&COUNTIF('MEMORIAL DESCRITIVO'!$D$10:D619,'MEMORIAL DESCRITIVO'!D619)","v":"-0"},"610"]
["",{"$f":"'MEMORIAL DESCRITIVO'!D620&\"-\"&COUNTIF('MEMORIAL DESCRITIVO'!$D$10:D620,'MEMORIAL DESCRITIVO'!D620)","v":"-0"},"611"]
["",{"$f":"'MEMORIAL DESCRITIVO'!D621&\"-\"&COUNTIF('MEMORIAL DESCRITIVO'!$D$10:D621,'MEMORIAL DESCRITIVO'!D621)","v":"-0"},"612"]
["",{"$f":"'MEMORIAL DESCRITIVO'!D622&\"-\"&COUNTIF('MEMORIAL DESCRITIVO'!$D$10:D622,'MEMORIAL DESCRITIVO'!D622)","v":"-0"},"613"]
["",{"$f":"'MEMORIAL DESCRITIVO'!D623&\"-\"&COUNTIF('MEMORIAL DESCRITIVO'!$D$10:D623,'MEMORIAL DESCRITIVO'!D623)","v":"-0"},"614"]
["",{"$f":"'MEMORIAL DESCRITIVO'!D624&\"-\"&COUNTIF('MEMORIAL DESCRITIVO'!$D$10:D624,'MEMORIAL DESCRITIVO'!D624)","v":"-0"},"615"]
["",{"$f":"'MEMORIAL DESCRITIVO'!D625&\"-\"&COUNTIF('MEMORIAL DESCRITIVO'!$D$10:D625,'MEMORIAL DESCRITIVO'!D625)","v":"-0"},"616"]
["",{"$f":"'MEMORIAL DESCRITIVO'!D626&\"-\"&COUNTIF('MEMORIAL DESCRITIVO'!$D$10:D626,'MEMORIAL DESCRITIVO'!D626)","v":"-0"},"617"]
["",{"$f":"'MEMORIAL DESCRITIVO'!D627&\"-\"&COUNTIF('MEMORIAL DESCRITIVO'!$D$10:D627,'MEMORIAL DESCRITIVO'!D627)","v":"-0"},"618"]
["",{"$f":"'MEMORIAL DESCRITIVO'!D628&\"-\"&COUNTIF('MEMORIAL DESCRITIVO'!$D$10:D628,'MEMORIAL DESCRITIVO'!D628)","v":"-0"},"619"]
["",{"$f":"'MEMORIAL DESCRITIVO'!D629&\"-\"&COUNTIF('MEMORIAL DESCRITIVO'!$D$10:D629,'MEMORIAL DESCRITIVO'!D629)","v":"-0"},"620"]
["",{"$f":"'MEMORIAL DESCRITIVO'!D630&\"-\"&COUNTIF('MEMORIAL DESCRITIVO'!$D$10:D630,'MEMORIAL DESCRITIVO'!D630)","v":"-0"},"621"]
["",{"$f":"'MEMORIAL DESCRITIVO'!D631&\"-\"&COUNTIF('MEMORIAL DESCRITIVO'!$D$10:D631,'MEMORIAL DESCRITIVO'!D631)","v":"-0"},"622"]
["",{"$f":"'MEMORIAL DESCRITIVO'!D632&\"-\"&COUNTIF('MEMORIAL DESCRITIVO'!$D$10:D632,'MEMORIAL DESCRITIVO'!D632)","v":"-0"},"623"]
["",{"$f":"'MEMORIAL DESCRITIVO'!D633&\"-\"&COUNTIF('MEMORIAL DESCRITIVO'!$D$10:D633,'MEMORIAL DESCRITIVO'!D633)","v":"-0"},"624"]
["",{"$f":"'MEMORIAL DESCRITIVO'!D634&\"-\"&COUNTIF('MEMORIAL DESCRITIVO'!$D$10:D634,'MEMORIAL DESCRITIVO'!D634)","v":"-0"},"625"]
["",{"$f":"'MEMORIAL DESCRITIVO'!D635&\"-\"&COUNTIF('MEMORIAL DESCRITIVO'!$D$10:D635,'MEMORIAL DESCRITIVO'!D635)","v":"-0"},"626"]
["",{"$f":"'MEMORIAL DESCRITIVO'!D636&\"-\"&COUNTIF('MEMORIAL DESCRITIVO'!$D$10:D636,'MEMORIAL DESCRITIVO'!D636)","v":"-0"},"627"]
["",{"$f":"'MEMORIAL DESCRITIVO'!D637&\"-\"&COUNTIF('MEMORIAL DESCRITIVO'!$D$10:D637,'MEMORIAL DESCRITIVO'!D637)","v":"-0"},"628"]
["",{"$f":"'MEMORIAL DESCRITIVO'!D638&\"-\"&COUNTIF('MEMORIAL DESCRITIVO'!$D$10:D638,'MEMORIAL DESCRITIVO'!D638)","v":"-0"},"629"]
["",{"$f":"'MEMORIAL DESCRITIVO'!D639&\"-\"&COUNTIF('MEMORIAL DESCRITIVO'!$D$10:D639,'MEMORIAL DESCRITIVO'!D639)","v":"-0"},"630"]
["",{"$f":"'MEMORIAL DESCRITIVO'!D640&\"-\"&COUNTIF('MEMORIAL DESCRITIVO'!$D$10:D640,'MEMORIAL DESCRITIVO'!D640)","v":"-0"},"631"]
["",{"$f":"'MEMORIAL DESCRITIVO'!D641&\"-\"&COUNTIF('MEMORIAL DESCRITIVO'!$D$10:D641,'MEMORIAL DESCRITIVO'!D641)","v":"-0"},"632"]
["",{"$f":"'MEMORIAL DESCRITIVO'!D642&\"-\"&COUNTIF('MEMORIAL DESCRITIVO'!$D$10:D642,'MEMORIAL DESCRITIVO'!D642)","v":"-0"},"633"]
["",{"$f":"'MEMORIAL DESCRITIVO'!D643&\"-\"&COUNTIF('MEMORIAL DESCRITIVO'!$D$10:D643,'MEMORIAL DESCRITIVO'!D643)","v":"-0"},"634"]
["",{"$f":"'MEMORIAL DESCRITIVO'!D644&\"-\"&COUNTIF('MEMORIAL DESCRITIVO'!$D$10:D644,'MEMORIAL DESCRITIVO'!D644)","v":"-0"},"635"]
["",{"$f":"'MEMORIAL DESCRITIVO'!D645&\"-\"&COUNTIF('MEMORIAL DESCRITIVO'!$D$10:D645,'MEMORIAL DESCRITIVO'!D645)","v":"-0"},"636"]
["",{"$f":"'MEMORIAL DESCRITIVO'!D646&\"-\"&COUNTIF('MEMORIAL DESCRITIVO'!$D$10:D646,'MEMORIAL DESCRITIVO'!D646)","v":"-0"},"637"]
["",{"$f":"'MEMORIAL DESCRITIVO'!D647&\"-\"&COUNTIF('MEMORIAL DESCRITIVO'!$D$10:D647,'MEMORIAL DESCRITIVO'!D647)","v":"-0"},"638"]
["",{"$f":"'MEMORIAL DESCRITIVO'!D648&\"-\"&COUNTIF('MEMORIAL DESCRITIVO'!$D$10:D648,'MEMORIAL DESCRITIVO'!D648)","v":"-0"},"639"]
["",{"$f":"'MEMORIAL DESCRITIVO'!D649&\"-\"&COUNTIF('MEMORIAL DESCRITIVO'!$D$10:D649,'MEMORIAL DESCRITIVO'!D649)","v":"-0"},"640"]
["",{"$f":"'MEMORIAL DESCRITIVO'!D650&\"-\"&COUNTIF('MEMORIAL DESCRITIVO'!$D$10:D650,'MEMORIAL DESCRITIVO'!D650)","v":"-0"},"641"]
[{"$f":"IF(E651=\"Sim\", ROW(), \"\")","v":""},{"$f":"'MEMORIAL DESCRITIVO'!D651&\"-\"&COUNTIF('MEMORIAL DESCRITIVO'!$D$10:D651,'MEMORIAL DESCRITIVO'!D651)","v":"-0"},"642"]
["",{"$f":"'MEMORIAL DESCRITIVO'!D652&\"-\"&COUNTIF('MEMORIAL DESCRITIVO'!$D$10:D652,'MEMORIAL DESCRITIVO'!D652)","v":"-0"},"643"]
["",{"$f":"'MEMORIAL DESCRITIVO'!D653&\"-\"&COUNTIF('MEMORIAL DESCRITIVO'!$D$10:D653,'MEMORIAL DESCRITIVO'!D653)","v":"-0"},"644"]
["",{"$f":"'MEMORIAL DESCRITIVO'!D654&\"-\"&COUNTIF('MEMORIAL DESCRITIVO'!$D$10:D654,'MEMORIAL DESCRITIVO'!D654)","v":"-0"},"645"]
["",{"$f":"'MEMORIAL DESCRITIVO'!D655&\"-\"&COUNTIF('MEMORIAL DESCRITIVO'!$D$10:D655,'MEMORIAL DESCRITIVO'!D655)","v":"-0"},"646"]
["",{"$f":"'MEMORIAL DESCRITIVO'!D656&\"-\"&COUNTIF('MEMORIAL DESCRITIVO'!$D$10:D656,'MEMORIAL DESCRITIVO'!D656)","v":"-0"},"647"]
["",{"$f":"'MEMORIAL DESCRITIVO'!D657&\"-\"&COUNTIF('MEMORIAL DESCRITIVO'!$D$10:D657,'MEMORIAL DESCRITIVO'!D657)","v":"-0"},"648"]
["",{"$f":"'MEMORIAL DESCRITIVO'!D658&\"-\"&COUNTIF('MEMORIAL DESCRITIVO'!$D$10:D658,'MEMORIAL DESCRITIVO'!D658)","v":"-0"},"649"]
["",{"$f":"'MEMORIAL DESCRITIVO'!D659&\"-\"&COUNTIF('MEMORIAL DESCRITIVO'!$D$10:D659,'MEMORIAL DESCRITIVO'!D659)","v":"-0"},"650"]
["",{"$f":"'MEMORIAL DESCRITIVO'!D660&\"-\"&COUNTIF('MEMORIAL DESCRITIVO'!$D$10:D660,'MEMORIAL DESCRITIVO'!D660)","v":"-0"},"651"]
["",{"$f":"'MEMORIAL DESCRITIVO'!D661&\"-\"&COUNTIF('MEMORIAL DESCRITIVO'!$D$10:D661,'MEMORIAL DESCRITIVO'!D661)","v":"-0"},"652"]
["",{"$f":"'MEMORIAL DESCRITIVO'!D662&\"-\"&COUNTIF('MEMORIAL DESCRITIVO'!$D$10:D662,'MEMORIAL DESCRITIVO'!D662)","v":"-0"},"653"]
["",{"$f":"'MEMORIAL DESCRITIVO'!D663&\"-\"&COUNTIF('MEMORIAL DESCRITIVO'!$D$10:D663,'MEMORIAL DESCRITIVO'!D663)","v":"-0"},"654"]
["",{"$f":"'MEMORIAL DESCRITIVO'!D664&\"-\"&COUNTIF('MEMORIAL DESCRITIVO'!$D$10:D664,'MEMORIAL DESCRITIVO'!D664)","v":"-0"},"655"]
["",{"$f":"'MEMORIAL DESCRITIVO'!D665&\"-\"&COUNTIF('MEMORIAL DESCRITIVO'!$D$10:D665,'MEMORIAL DESCRITIVO'!D665)","v":"-0"},"656"]
["",{"$f":"'MEMORIAL DESCRITIVO'!D666&\"-\"&COUNTIF('MEMORIAL DESCRITIVO'!$D$10:D666,'MEMORIAL DESCRITIVO'!D666)","v":"-0"},"657"]
["",{"$f":"'MEMORIAL DESCRITIVO'!D667&\"-\"&COUNTIF('MEMORIAL DESCRITIVO'!$D$10:D667,'MEMORIAL DESCRITIVO'!D667)","v":"-0"},"658"]
["",{"$f":"'MEMORIAL DESCRITIVO'!D668&\"-\"&COUNTIF('MEMORIAL DESCRITIVO'!$D$10:D668,'MEMORIAL DESCRITIVO'!D668)","v":"-0"},"659"]
["",{"$f":"'MEMORIAL DESCRITIVO'!D669&\"-\"&COUNTIF('MEMORIAL DESCRITIVO'!$D$10:D669,'MEMORIAL DESCRITIVO'!D669)","v":"-0"},"660"]
["",{"$f":"'MEMORIAL DESCRITIVO'!D670&\"-\"&COUNTIF('MEMORIAL DESCRITIVO'!$D$10:D670,'MEMORIAL DESCRITIVO'!D670)","v":"-0"},"661"]
["",{"$f":"'MEMORIAL DESCRITIVO'!D671&\"-\"&COUNTIF('MEMORIAL DESCRITIVO'!$D$10:D671,'MEMORIAL DESCRITIVO'!D671)","v":"-0"},"662"]
["",{"$f":"'MEMORIAL DESCRITIVO'!D672&\"-\"&COUNTIF('MEMORIAL DESCRITIVO'!$D$10:D672,'MEMORIAL DESCRITIVO'!D672)","v":"-0"},"663"]
["",{"$f":"'MEMORIAL DESCRITIVO'!D673&\"-\"&COUNTIF('MEMORIAL DESCRITIVO'!$D$10:D673,'MEMORIAL DESCRITIVO'!D673)","v":"-0"},"664"]
["",{"$f":"'MEMORIAL DESCRITIVO'!D674&\"-\"&COUNTIF('MEMORIAL DESCRITIVO'!$D$10:D674,'MEMORIAL DESCRITIVO'!D674)","v":"-0"},"665"]
["",{"$f":"'MEMORIAL DESCRITIVO'!D675&\"-\"&COUNTIF('MEMORIAL DESCRITIVO'!$D$10:D675,'MEMORIAL DESCRITIVO'!D675)","v":"-0"},"666"]
["",{"$f":"'MEMORIAL DESCRITIVO'!D676&\"-\"&COUNTIF('MEMORIAL DESCRITIVO'!$D$10:D676,'MEMORIAL DESCRITIVO'!D676)","v":"-0"},"667"]
["",{"$f":"'MEMORIAL DESCRITIVO'!D677&\"-\"&COUNTIF('MEMORIAL DESCRITIVO'!$D$10:D677,'MEMORIAL DESCRITIVO'!D677)","v":"-0"},"668"]
["",{"$f":"'MEMORIAL DESCRITIVO'!D678&\"-\"&COUNTIF('MEMORIAL DESCRITIVO'!$D$10:D678,'MEMORIAL DESCRITIVO'!D678)","v":"-0"},"669"]
["",{"$f":"'MEMORIAL DESCRITIVO'!D679&\"-\"&COUNTIF('MEMORIAL DESCRITIVO'!$D$10:D679,'MEMORIAL DESCRITIVO'!D679)","v":"-0"},"670"]
["",{"$f":"'MEMORIAL DESCRITIVO'!D680&\"-\"&COUNTIF('MEMORIAL DESCRITIVO'!$D$10:D680,'MEMORIAL DESCRITIVO'!D680)","v":"-0"},"671"]
["",{"$f":"'MEMORIAL DESCRITIVO'!D681&\"-\"&COUNTIF('MEMORIAL DESCRITIVO'!$D$10:D681,'MEMORIAL DESCRITIVO'!D681)","v":"-0"},"672"]
["",{"$f":"'MEMORIAL DESCRITIVO'!D682&\"-\"&COUNTIF('MEMORIAL DESCRITIVO'!$D$10:D682,'MEMORIAL DESCRITIVO'!D682)","v":"-0"},"673"]
["",{"$f":"'MEMORIAL DESCRITIVO'!D683&\"-\"&COUNTIF('MEMORIAL DESCRITIVO'!$D$10:D683,'MEMORIAL DESCRITIVO'!D683)","v":"-0"},"674"]
["",{"$f":"'MEMORIAL DESCRITIVO'!D684&\"-\"&COUNTIF('MEMORIAL DESCRITIVO'!$D$10:D684,'MEMORIAL DESCRITIVO'!D684)","v":"-0"},"675"]
["",{"$f":"'MEMORIAL DESCRITIVO'!D685&\"-\"&COUNTIF('MEMORIAL DESCRITIVO'!$D$10:D685,'MEMORIAL DESCRITIVO'!D685)","v":"-0"},"676"]
["",{"$f":"'MEMORIAL DESCRITIVO'!D686&\"-\"&COUNTIF('MEMORIAL DESCRITIVO'!$D$10:D686,'MEMORIAL DESCRITIVO'!D686)","v":"-0"},"677"]
["",{"$f":"'MEMORIAL DESCRITIVO'!D687&\"-\"&COUNTIF('MEMORIAL DESCRITIVO'!$D$10:D687,'MEMORIAL DESCRITIVO'!D687)","v":"-0"},"678"]
["",{"$f":"'MEMORIAL DESCRITIVO'!D688&\"-\"&COUNTIF('MEMORIAL DESCRITIVO'!$D$10:D688,'MEMORIAL DESCRITIVO'!D688)","v":"-0"},"679"]
["",{"$f":"'MEMORIAL DESCRITIVO'!D689&\"-\"&COUNTIF('MEMORIAL DESCRITIVO'!$D$10:D689,'MEMORIAL DESCRITIVO'!D689)","v":"-0"},"680"]
["",{"$f":"'MEMORIAL DESCRITIVO'!D690&\"-\"&COUNTIF('MEMORIAL DESCRITIVO'!$D$10:D690,'MEMORIAL DESCRITIVO'!D690)","v":"-0"},"681"]
["",{"$f":"'MEMORIAL DESCRITIVO'!D691&\"-\"&COUNTIF('MEMORIAL DESCRITIVO'!$D$10:D691,'MEMORIAL DESCRITIVO'!D691)","v":"-0"},"682"]
["",{"$f":"'MEMORIAL DESCRITIVO'!D692&\"-\"&COUNTIF('MEMORIAL DESCRITIVO'!$D$10:D692,'MEMORIAL DESCRITIVO'!D692)","v":"-0"},"683"]
["",{"$f":"'MEMORIAL DESCRITIVO'!D693&\"-\"&COUNTIF('MEMORIAL DESCRITIVO'!$D$10:D693,'MEMORIAL DESCRITIVO'!D693)","v":"-0"},"684"]
["",{"$f":"'MEMORIAL DESCRITIVO'!D694&\"-\"&COUNTIF('MEMORIAL DESCRITIVO'!$D$10:D694,'MEMORIAL DESCRITIVO'!D694)","v":"-0"},"685"]
["",{"$f":"'MEMORIAL DESCRITIVO'!D695&\"-\"&COUNTIF('MEMORIAL DESCRITIVO'!$D$10:D695,'MEMORIAL DESCRITIVO'!D695)","v":"-0"},"686"]
["",{"$f":"'MEMORIAL DESCRITIVO'!D696&\"-\"&COUNTIF('MEMORIAL DESCRITIVO'!$D$10:D696,'MEMORIAL DESCRITIVO'!D696)","v":"-0"},"687"]
["",{"$f":"'MEMORIAL DESCRITIVO'!D697&\"-\"&COUNTIF('MEMORIAL DESCRITIVO'!$D$10:D697,'MEMORIAL DESCRITIVO'!D697)","v":"-0"},"688"]
["",{"$f":"'MEMORIAL DESCRITIVO'!D698&\"-\"&COUNTIF('MEMORIAL DESCRITIVO'!$D$10:D698,'MEMORIAL DESCRITIVO'!D698)","v":"-0"},"689"]
["",{"$f":"'MEMORIAL DESCRITIVO'!D699&\"-\"&COUNTIF('MEMORIAL DESCRITIVO'!$D$10:D699,'MEMORIAL DESCRITIVO'!D699)","v":"-0"},"690"]
["",{"$f":"'MEMORIAL DESCRITIVO'!D700&\"-\"&COUNTIF('MEMORIAL DESCRITIVO'!$D$10:D700,'MEMORIAL DESCRITIVO'!D700)","v":"-0"},"691"]
["",{"$f":"'MEMORIAL DESCRITIVO'!D701&\"-\"&COUNTIF('MEMORIAL DESCRITIVO'!$D$10:D701,'MEMORIAL DESCRITIVO'!D701)","v":"-0"},"692"]
["",{"$f":"'MEMORIAL DESCRITIVO'!D702&\"-\"&COUNTIF('MEMORIAL DESCRITIVO'!$D$10:D702,'MEMORIAL DESCRITIVO'!D702)","v":"-0"},"693"]
["",{"$f":"'MEMORIAL DESCRITIVO'!D703&\"-\"&COUNTIF('MEMORIAL DESCRITIVO'!$D$10:D703,'MEMORIAL DESCRITIVO'!D703)","v":"-0"},"694"]
["",{"$f":"'MEMORIAL DESCRITIVO'!D704&\"-\"&COUNTIF('MEMORIAL DESCRITIVO'!$D$10:D704,'MEMORIAL DESCRITIVO'!D704)","v":"-0"},"695"]
["",{"$f":"'MEMORIAL DESCRITIVO'!D705&\"-\"&COUNTIF('MEMORIAL DESCRITIVO'!$D$10:D705,'MEMORIAL DESCRITIVO'!D705)","v":"-0"},"696"]
["",{"$f":"'MEMORIAL DESCRITIVO'!D706&\"-\"&COUNTIF('MEMORIAL DESCRITIVO'!$D$10:D706,'MEMORIAL DESCRITIVO'!D706)","v":"-0"},"697"]
["",{"$f":"'MEMORIAL DESCRITIVO'!D707&\"-\"&COUNTIF('MEMORIAL DESCRITIVO'!$D$10:D707,'MEMORIAL DESCRITIVO'!D707)","v":"-0"},"698"]
["",{"$f":"'MEMORIAL DESCRITIVO'!D708&\"-\"&COUNTIF('MEMORIAL DESCRITIVO'!$D$10:D708,'MEMORIAL DESCRITIVO'!D708)","v":"-0"},"699"]
["",{"$f":"'MEMORIAL DESCRITIVO'!D709&\"-\"&COUNTIF('MEMORIAL DESCRITIVO'!$D$10:D709,'MEMORIAL DESCRITIVO'!D709)","v":"-0"},"700"]
["",{"$f":"'MEMORIAL DESCRITIVO'!D710&\"-\"&COUNTIF('MEMORIAL DESCRITIVO'!$D$10:D710,'MEMORIAL DESCRITIVO'!D710)","v":"-0"},"701"]
["",{"$f":"'MEMORIAL DESCRITIVO'!D711&\"-\"&COUNTIF('MEMORIAL DESCRITIVO'!$D$10:D711,'MEMORIAL DESCRITIVO'!D711)","v":"-0"},"702"]
["",{"$f":"'MEMORIAL DESCRITIVO'!D712&\"-\"&COUNTIF('MEMORIAL DESCRITIVO'!$D$10:D712,'MEMORIAL DESCRITIVO'!D712)","v":"-0"},"703"]
["",{"$f":"'MEMORIAL DESCRITIVO'!D713&\"-\"&COUNTIF('MEMORIAL DESCRITIVO'!$D$10:D713,'MEMORIAL DESCRITIVO'!D713)","v":"-0"},"704"]
["",{"$f":"'MEMORIAL DESCRITIVO'!D714&\"-\"&COUNTIF('MEMORIAL DESCRITIVO'!$D$10:D714,'MEMORIAL DESCRITIVO'!D714)","v":"-0"},"705"]
[{"$f":"IF(E715=\"Sim\", ROW(), \"\")","v":""},{"$f":"'MEMORIAL DESCRITIVO'!D715&\"-\"&COUNTIF('MEMORIAL DESCRITIVO'!$D$10:D715,'MEMORIAL DESCRITIVO'!D715)","v":"-0"},"706"]
["",{"$f":"'MEMORIAL DESCRITIVO'!D716&\"-\"&COUNTIF('MEMORIAL DESCRITIVO'!$D$10:D716,'MEMORIAL DESCRITIVO'!D716)","v":"-0"},"707"]
["",{"$f":"'MEMORIAL DESCRITIVO'!D717&\"-\"&COUNTIF('MEMORIAL DESCRITIVO'!$D$10:D717,'MEMORIAL DESCRITIVO'!D717)","v":"-0"},"708"]
["",{"$f":"'MEMORIAL DESCRITIVO'!D718&\"-\"&COUNTIF('MEMORIAL DESCRITIVO'!$D$10:D718,'MEMORIAL DESCRITIVO'!D718)","v":"-0"},"709"]
["",{"$f":"'MEMORIAL DESCRITIVO'!D719&\"-\"&COUNTIF('MEMORIAL DESCRITIVO'!$D$10:D719,'MEMORIAL DESCRITIVO'!D719)","v":"-0"},"710"]
["",{"$f":"'MEMORIAL DESCRITIVO'!D720&\"-\"&COUNTIF('MEMORIAL DESCRITIVO'!$D$10:D720,'MEMORIAL DESCRITIVO'!D720)","v":"-0"},"711"]
["",{"$f":"'MEMORIAL DESCRITIVO'!D721&\"-\"&COUNTIF('MEMORIAL DESCRITIVO'!$D$10:D721,'MEMORIAL DESCRITIVO'!D721)","v":"-0"},"712"]
["",{"$f":"'MEMORIAL DESCRITIVO'!D722&\"-\"&COUNTIF('MEMORIAL DESCRITIVO'!$D$10:D722,'MEMORIAL DESCRITIVO'!D722)","v":"-0"},"713"]
["",{"$f":"'MEMORIAL DESCRITIVO'!D723&\"-\"&COUNTIF('MEMORIAL DESCRITIVO'!$D$10:D723,'MEMORIAL DESCRITIVO'!D723)","v":"-0"},"714"]
["",{"$f":"'MEMORIAL DESCRITIVO'!D724&\"-\"&COUNTIF('MEMORIAL DESCRITIVO'!$D$10:D724,'MEMORIAL DESCRITIVO'!D724)","v":"-0"},"715"]
["",{"$f":"'MEMORIAL DESCRITIVO'!D725&\"-\"&COUNTIF('MEMORIAL DESCRITIVO'!$D$10:D725,'MEMORIAL DESCRITIVO'!D725)","v":"-0"},"716"]
["",{"$f":"'MEMORIAL DESCRITIVO'!D726&\"-\"&COUNTIF('MEMORIAL DESCRITIVO'!$D$10:D726,'MEMORIAL DESCRITIVO'!D726)","v":"-0"},"717"]
["",{"$f":"'MEMORIAL DESCRITIVO'!D727&\"-\"&COUNTIF('MEMORIAL DESCRITIVO'!$D$10:D727,'MEMORIAL DESCRITIVO'!D727)","v":"-0"},"718"]
["",{"$f":"'MEMORIAL DESCRITIVO'!D728&\"-\"&COUNTIF('MEMORIAL DESCRITIVO'!$D$10:D728,'MEMORIAL DESCRITIVO'!D728)","v":"-0"},"719"]
["",{"$f":"'MEMORIAL DESCRITIVO'!D729&\"-\"&COUNTIF('MEMORIAL DESCRITIVO'!$D$10:D729,'MEMORIAL DESCRITIVO'!D729)","v":"-0"},"720"]
["",{"$f":"'MEMORIAL DESCRITIVO'!D730&\"-\"&COUNTIF('MEMORIAL DESCRITIVO'!$D$10:D730,'MEMORIAL DESCRITIVO'!D730)","v":"-0"},"721"]
["",{"$f":"'MEMORIAL DESCRITIVO'!D731&\"-\"&COUNTIF('MEMORIAL DESCRITIVO'!$D$10:D731,'MEMORIAL DESCRITIVO'!D731)","v":"-0"},"722"]
["",{"$f":"'MEMORIAL DESCRITIVO'!D732&\"-\"&COUNTIF('MEMORIAL DESCRITIVO'!$D$10:D732,'MEMORIAL DESCRITIVO'!D732)","v":"-0"},"723"]
["",{"$f":"'MEMORIAL DESCRITIVO'!D733&\"-\"&COUNTIF('MEMORIAL DESCRITIVO'!$D$10:D733,'MEMORIAL DESCRITIVO'!D733)","v":"-0"},"724"]
["",{"$f":"'MEMORIAL DESCRITIVO'!D734&\"-\"&COUNTIF('MEMORIAL DESCRITIVO'!$D$10:D734,'MEMORIAL DESCRITIVO'!D734)","v":"-0"},"725"]
["",{"$f":"'MEMORIAL DESCRITIVO'!D735&\"-\"&COUNTIF('MEMORIAL DESCRITIVO'!$D$10:D735,'MEMORIAL DESCRITIVO'!D735)","v":"-0"},"726"]
["",{"$f":"'MEMORIAL DESCRITIVO'!D736&\"-\"&COUNTIF('MEMORIAL DESCRITIVO'!$D$10:D736,'MEMORIAL DESCRITIVO'!D736)","v":"-0"},"727"]
["",{"$f":"'MEMORIAL DESCRITIVO'!D737&\"-\"&COUNTIF('MEMORIAL DESCRITIVO'!$D$10:D737,'MEMORIAL DESCRITIVO'!D737)","v":"-0"},"728"]
["",{"$f":"'MEMORIAL DESCRITIVO'!D738&\"-\"&COUNTIF('MEMORIAL DESCRITIVO'!$D$10:D738,'MEMORIAL DESCRITIVO'!D738)","v":"-0"},"729"]
["",{"$f":"'MEMORIAL DESCRITIVO'!D739&\"-\"&COUNTIF('MEMORIAL DESCRITIVO'!$D$10:D739,'MEMORIAL DESCRITIVO'!D739)","v":"-0"},"730"]
["",{"$f":"'MEMORIAL DESCRITIVO'!D740&\"-\"&COUNTIF('MEMORIAL DESCRITIVO'!$D$10:D740,'MEMORIAL DESCRITIVO'!D740)","v":"-0"},"731"]
["",{"$f":"'MEMORIAL DESCRITIVO'!D741&\"-\"&COUNTIF('MEMORIAL DESCRITIVO'!$D$10:D741,'MEMORIAL DESCRITIVO'!D741)","v":"-0"},"732"]
["",{"$f":"'MEMORIAL DESCRITIVO'!D742&\"-\"&COUNTIF('MEMORIAL DESCRITIVO'!$D$10:D742,'MEMORIAL DESCRITIVO'!D742)","v":"-0"},"733"]
["",{"$f":"'MEMORIAL DESCRITIVO'!D743&\"-\"&COUNTIF('MEMORIAL DESCRITIVO'!$D$10:D743,'MEMORIAL DESCRITIVO'!D743)","v":"-0"},"734"]
["",{"$f":"'MEMORIAL DESCRITIVO'!D744&\"-\"&COUNTIF('MEMORIAL DESCRITIVO'!$D$10:D744,'MEMORIAL DESCRITIVO'!D744)","v":"-0"},"735"]
["",{"$f":"'MEMORIAL DESCRITIVO'!D745&\"-\"&COUNTIF('MEMORIAL DESCRITIVO'!$D$10:D745,'MEMORIAL DESCRITIVO'!D745)","v":"-0"},"736"]
["",{"$f":"'MEMORIAL DESCRITIVO'!D746&\"-\"&COUNTIF('MEMORIAL DESCRITIVO'!$D$10:D746,'MEMORIAL DESCRITIVO'!D746)","v":"-0"},"737"]
["",{"$f":"'MEMORIAL DESCRITIVO'!D747&\"-\"&COUNTIF('MEMORIAL DESCRITIVO'!$D$10:D747,'MEMORIAL DESCRITIVO'!D747)","v":"-0"},"738"]
["",{"$f":"'MEMORIAL DESCRITIVO'!D748&\"-\"&COUNTIF('MEMORIAL DESCRITIVO'!$D$10:D748,'MEMORIAL DESCRITIVO'!D748)","v":"-0"},"739"]
["",{"$f":"'MEMORIAL DESCRITIVO'!D749&\"-\"&COUNTIF('MEMORIAL DESCRITIVO'!$D$10:D749,'MEMORIAL DESCRITIVO'!D749)","v":"-0"},"740"]
["",{"$f":"'MEMORIAL DESCRITIVO'!D750&\"-\"&COUNTIF('MEMORIAL DESCRITIVO'!$D$10:D750,'MEMORIAL DESCRITIVO'!D750)","v":"-0"},"741"]
["",{"$f":"'MEMORIAL DESCRITIVO'!D751&\"-\"&COUNTIF('MEMORIAL DESCRITIVO'!$D$10:D751,'MEMORIAL DESCRITIVO'!D751)","v":"-0"},"742"]
["",{"$f":"'MEMORIAL DESCRITIVO'!D752&\"-\"&COUNTIF('MEMORIAL DESCRITIVO'!$D$10:D752,'MEMORIAL DESCRITIVO'!D752)","v":"-0"},"743"]
["",{"$f":"'MEMORIAL DESCRITIVO'!D753&\"-\"&COUNTIF('MEMORIAL DESCRITIVO'!$D$10:D753,'MEMORIAL DESCRITIVO'!D753)","v":"-0"},"744"]
["",{"$f":"'MEMORIAL DESCRITIVO'!D754&\"-\"&COUNTIF('MEMORIAL DESCRITIVO'!$D$10:D754,'MEMORIAL DESCRITIVO'!D754)","v":"-0"},"745"]
["",{"$f":"'MEMORIAL DESCRITIVO'!D755&\"-\"&COUNTIF('MEMORIAL DESCRITIVO'!$D$10:D755,'MEMORIAL DESCRITIVO'!D755)","v":"-0"},"746"]
["",{"$f":"'MEMORIAL DESCRITIVO'!D756&\"-\"&COUNTIF('MEMORIAL DESCRITIVO'!$D$10:D756,'MEMORIAL DESCRITIVO'!D756)","v":"-0"},"747"]
["",{"$f":"'MEMORIAL DESCRITIVO'!D757&\"-\"&COUNTIF('MEMORIAL DESCRITIVO'!$D$10:D757,'MEMORIAL DESCRITIVO'!D757)","v":"-0"},"748"]
["",{"$f":"'MEMORIAL DESCRITIVO'!D758&\"-\"&COUNTIF('MEMORIAL DESCRITIVO'!$D$10:D758,'MEMORIAL DESCRITIVO'!D758)","v":"-0"},"749"]
["",{"$f":"'MEMORIAL DESCRITIVO'!D759&\"-\"&COUNTIF('MEMORIAL DESCRITIVO'!$D$10:D759,'MEMORIAL DESCRITIVO'!D759)","v":"-0"},"750"]
["",{"$f":"'MEMORIAL DESCRITIVO'!D760&\"-\"&COUNTIF('MEMORIAL DESCRITIVO'!$D$10:D760,'MEMORIAL DESCRITIVO'!D760)","v":"-0"},"751"]
["",{"$f":"'MEMORIAL DESCRITIVO'!D761&\"-\"&COUNTIF('MEMORIAL DESCRITIVO'!$D$10:D761,'MEMORIAL DESCRITIVO'!D761)","v":"-0"},"752"]
["",{"$f":"'MEMORIAL DESCRITIVO'!D762&\"-\"&COUNTIF('MEMORIAL DESCRITIVO'!$D$10:D762,'MEMORIAL DESCRITIVO'!D762)","v":"-0"},"753"]
["",{"$f":"'MEMORIAL DESCRITIVO'!D763&\"-\"&COUNTIF('MEMORIAL DESCRITIVO'!$D$10:D763,'MEMORIAL DESCRITIVO'!D763)","v":"-0"},"754"]
["",{"$f":"'MEMORIAL DESCRITIVO'!D764&\"-\"&COUNTIF('MEMORIAL DESCRITIVO'!$D$10:D764,'MEMORIAL DESCRITIVO'!D764)","v":"-0"},"755"]
["",{"$f":"'MEMORIAL DESCRITIVO'!D765&\"-\"&COUNTIF('MEMORIAL DESCRITIVO'!$D$10:D765,'MEMORIAL DESCRITIVO'!D765)","v":"-0"},"756"]
["",{"$f":"'MEMORIAL DESCRITIVO'!D766&\"-\"&COUNTIF('MEMORIAL DESCRITIVO'!$D$10:D766,'MEMORIAL DESCRITIVO'!D766)","v":"-0"},"757"]
["",{"$f":"'MEMORIAL DESCRITIVO'!D767&\"-\"&COUNTIF('MEMORIAL DESCRITIVO'!$D$10:D767,'MEMORIAL DESCRITIVO'!D767)","v":"-0"},"758"]
["",{"$f":"'MEMORIAL DESCRITIVO'!D768&\"-\"&COUNTIF('MEMORIAL DESCRITIVO'!$D$10:D768,'MEMORIAL DESCRITIVO'!D768)","v":"-0"},"759"]
["",{"$f":"'MEMORIAL DESCRITIVO'!D769&\"-\"&COUNTIF('MEMORIAL DESCRITIVO'!$D$10:D769,'MEMORIAL DESCRITIVO'!D769)","v":"-0"},"760"]
["",{"$f":"'MEMORIAL DESCRITIVO'!D770&\"-\"&COUNTIF('MEMORIAL DESCRITIVO'!$D$10:D770,'MEMORIAL DESCRITIVO'!D770)","v":"-0"},"761"]
["",{"$f":"'MEMORIAL DESCRITIVO'!D771&\"-\"&COUNTIF('MEMORIAL DESCRITIVO'!$D$10:D771,'MEMORIAL DESCRITIVO'!D771)","v":"-0"},"762"]
["",{"$f":"'MEMORIAL DESCRITIVO'!D772&\"-\"&COUNTIF('MEMORIAL DESCRITIVO'!$D$10:D772,'MEMORIAL DESCRITIVO'!D772)","v":"-0"},"763"]
["",{"$f":"'MEMORIAL DESCRITIVO'!D773&\"-\"&COUNTIF('MEMORIAL DESCRITIVO'!$D$10:D773,'MEMORIAL DESCRITIVO'!D773)","v":"-0"},"764"]
["",{"$f":"'MEMORIAL DESCRITIVO'!D774&\"-\"&COUNTIF('MEMORIAL DESCRITIVO'!$D$10:D774,'MEMORIAL DESCRITIVO'!D774)","v":"-0"},"765"]
["",{"$f":"'MEMORIAL DESCRITIVO'!D775&\"-\"&COUNTIF('MEMORIAL DESCRITIVO'!$D$10:D775,'MEMORIAL DESCRITIVO'!D775)","v":"-0"},"766"]
["",{"$f":"'MEMORIAL DESCRITIVO'!D776&\"-\"&COUNTIF('MEMORIAL DESCRITIVO'!$D$10:D776,'MEMORIAL DESCRITIVO'!D776)","v":"-0"},"767"]
["",{"$f":"'MEMORIAL DESCRITIVO'!D777&\"-\"&COUNTIF('MEMORIAL DESCRITIVO'!$D$10:D777,'MEMORIAL DESCRITIVO'!D777)","v":"-0"},"768"]
["",{"$f":"'MEMORIAL DESCRITIVO'!D778&\"-\"&COUNTIF('MEMORIAL DESCRITIVO'!$D$10:D778,'MEMORIAL DESCRITIVO'!D778)","v":"-0"},"769"]
[{"$f":"IF(E779=\"Sim\", ROW(), \"\")","v":""},{"$f":"'MEMORIAL DESCRITIVO'!D779&\"-\"&COUNTIF('MEMORIAL DESCRITIVO'!$D$10:D779,'MEMORIAL DESCRITIVO'!D779)","v":"-0"},"770"]
["",{"$f":"'MEMORIAL DESCRITIVO'!D780&\"-\"&COUNTIF('MEMORIAL DESCRITIVO'!$D$10:D780,'MEMORIAL DESCRITIVO'!D780)","v":"-0"},"771"]
["",{"$f":"'MEMORIAL DESCRITIVO'!D781&\"-\"&COUNTIF('MEMORIAL DESCRITIVO'!$D$10:D781,'MEMORIAL DESCRITIVO'!D781)","v":"-0"},"772"]
["",{"$f":"'MEMORIAL DESCRITIVO'!D782&\"-\"&COUNTIF('MEMORIAL DESCRITIVO'!$D$10:D782,'MEMORIAL DESCRITIVO'!D782)","v":"-0"},"773"]
["",{"$f":"'MEMORIAL DESCRITIVO'!D783&\"-\"&COUNTIF('MEMORIAL DESCRITIVO'!$D$10:D783,'MEMORIAL DESCRITIVO'!D783)","v":"-0"},"774"]
["",{"$f":"'MEMORIAL DESCRITIVO'!D784&\"-\"&COUNTIF('MEMORIAL DESCRITIVO'!$D$10:D784,'MEMORIAL DESCRITIVO'!D784)","v":"-0"},"775"]
["",{"$f":"'MEMORIAL DESCRITIVO'!D785&\"-\"&COUNTIF('MEMORIAL DESCRITIVO'!$D$10:D785,'MEMORIAL DESCRITIVO'!D785)","v":"-0"},"776"]
["",{"$f":"'MEMORIAL DESCRITIVO'!D786&\"-\"&COUNTIF('MEMORIAL DESCRITIVO'!$D$10:D786,'MEMORIAL DESCRITIVO'!D786)","v":"-0"},"777"]
["",{"$f":"'MEMORIAL DESCRITIVO'!D787&\"-\"&COUNTIF('MEMORIAL DESCRITIVO'!$D$10:D787,'MEMORIAL DESCRITIVO'!D787)","v":"-0"},"778"]
["",{"$f":"'MEMORIAL DESCRITIVO'!D788&\"-\"&COUNTIF('MEMORIAL DESCRITIVO'!$D$10:D788,'MEMORIAL DESCRITIVO'!D788)","v":"-0"},"779"]
["",{"$f":"'MEMORIAL DESCRITIVO'!D789&\"-\"&COUNTIF('MEMORIAL DESCRITIVO'!$D$10:D789,'MEMORIAL DESCRITIVO'!D789)","v":"-0"},"780"]
["",{"$f":"'MEMORIAL DESCRITIVO'!D790&\"-\"&COUNTIF('MEMORIAL DESCRITIVO'!$D$10:D790,'MEMORIAL DESCRITIVO'!D790)","v":"-0"},"781"]
["",{"$f":"'MEMORIAL DESCRITIVO'!D791&\"-\"&COUNTIF('MEMORIAL DESCRITIVO'!$D$10:D791,'MEMORIAL DESCRITIVO'!D791)","v":"-0"},"782"]
["",{"$f":"'MEMORIAL DESCRITIVO'!D792&\"-\"&COUNTIF('MEMORIAL DESCRITIVO'!$D$10:D792,'MEMORIAL DESCRITIVO'!D792)","v":"-0"},"783"]
["",{"$f":"'MEMORIAL DESCRITIVO'!D793&\"-\"&COUNTIF('MEMORIAL DESCRITIVO'!$D$10:D793,'MEMORIAL DESCRITIVO'!D793)","v":"-0"},"784"]
["",{"$f":"'MEMORIAL DESCRITIVO'!D794&\"-\"&COUNTIF('MEMORIAL DESCRITIVO'!$D$10:D794,'MEMORIAL DESCRITIVO'!D794)","v":"-0"},"785"]
["",{"$f":"'MEMORIAL DESCRITIVO'!D795&\"-\"&COUNTIF('MEMORIAL DESCRITIVO'!$D$10:D795,'MEMORIAL DESCRITIVO'!D795)","v":"-0"},"786"]
["",{"$f":"'MEMORIAL DESCRITIVO'!D796&\"-\"&COUNTIF('MEMORIAL DESCRITIVO'!$D$10:D796,'MEMORIAL DESCRITIVO'!D796)","v":"-0"},"787"]
["",{"$f":"'MEMORIAL DESCRITIVO'!D797&\"-\"&COUNTIF('MEMORIAL DESCRITIVO'!$D$10:D797,'MEMORIAL DESCRITIVO'!D797)","v":"-0"},"788"]
["",{"$f":"'MEMORIAL DESCRITIVO'!D798&\"-\"&COUNTIF('MEMORIAL DESCRITIVO'!$D$10:D798,'MEMORIAL DESCRITIVO'!D798)","v":"-0"},"789"]
["",{"$f":"'MEMORIAL DESCRITIVO'!D799&\"-\"&COUNTIF('MEMORIAL DESCRITIVO'!$D$10:D799,'MEMORIAL DESCRITIVO'!D799)","v":"-0"},"790"]
["",{"$f":"'MEMORIAL DESCRITIVO'!D800&\"-\"&COUNTIF('MEMORIAL DESCRITIVO'!$D$10:D800,'MEMORIAL DESCRITIVO'!D800)","v":"-0"},"791"]
["",{"$f":"'MEMORIAL DESCRITIVO'!D801&\"-\"&COUNTIF('MEMORIAL DESCRITIVO'!$D$10:D801,'MEMORIAL DESCRITIVO'!D801)","v":"-0"},"792"]
["",{"$f":"'MEMORIAL DESCRITIVO'!D802&\"-\"&COUNTIF('MEMORIAL DESCRITIVO'!$D$10:D802,'MEMORIAL DESCRITIVO'!D802)","v":"-0"},"793"]
["",{"$f":"'MEMORIAL DESCRITIVO'!D803&\"-\"&COUNTIF('MEMORIAL DESCRITIVO'!$D$10:D803,'MEMORIAL DESCRITIVO'!D803)","v":"-0"},"794"]
["",{"$f":"'MEMORIAL DESCRITIVO'!D804&\"-\"&COUNTIF('MEMORIAL DESCRITIVO'!$D$10:D804,'MEMORIAL DESCRITIVO'!D804)","v":"-0"},"795"]
["",{"$f":"'MEMORIAL DESCRITIVO'!D805&\"-\"&COUNTIF('MEMORIAL DESCRITIVO'!$D$10:D805,'MEMORIAL DESCRITIVO'!D805)","v":"-0"},"796"]
["",{"$f":"'MEMORIAL DESCRITIVO'!D806&\"-\"&COUNTIF('MEMORIAL DESCRITIVO'!$D$10:D806,'MEMORIAL DESCRITIVO'!D806)","v":"-0"},"797"]
["",{"$f":"'MEMORIAL DESCRITIVO'!D807&\"-\"&COUNTIF('MEMORIAL DESCRITIVO'!$D$10:D807,'MEMORIAL DESCRITIVO'!D807)","v":"-0"},"798"]
["",{"$f":"'MEMORIAL DESCRITIVO'!D808&\"-\"&COUNTIF('MEMORIAL DESCRITIVO'!$D$10:D808,'MEMORIAL DESCRITIVO'!D808)","v":"-0"},"799"]
["",{"$f":"'MEMORIAL DESCRITIVO'!D809&\"-\"&COUNTIF('MEMORIAL DESCRITIVO'!$D$10:D809,'MEMORIAL DESCRITIVO'!D809)","v":"-0"},"800"]
["",{"$f":"'MEMORIAL DESCRITIVO'!D810&\"-\"&COUNTIF('MEMORIAL DESCRITIVO'!$D$10:D810,'MEMORIAL DESCRITIVO'!D810)","v":"-0"},"801"]
["",{"$f":"'MEMORIAL DESCRITIVO'!D811&\"-\"&COUNTIF('MEMORIAL DESCRITIVO'!$D$10:D811,'MEMORIAL DESCRITIVO'!D811)","v":"-0"},"802"]
["",{"$f":"'MEMORIAL DESCRITIVO'!D812&\"-\"&COUNTIF('MEMORIAL DESCRITIVO'!$D$10:D812,'MEMORIAL DESCRITIVO'!D812)","v":"-0"},"803"]
["",{"$f":"'MEMORIAL DESCRITIVO'!D813&\"-\"&COUNTIF('MEMORIAL DESCRITIVO'!$D$10:D813,'MEMORIAL DESCRITIVO'!D813)","v":"-0"},"804"]
["",{"$f":"'MEMORIAL DESCRITIVO'!D814&\"-\"&COUNTIF('MEMORIAL DESCRITIVO'!$D$10:D814,'MEMORIAL DESCRITIVO'!D814)","v":"-0"},"805"]
["",{"$f":"'MEMORIAL DESCRITIVO'!D815&\"-\"&COUNTIF('MEMORIAL DESCRITIVO'!$D$10:D815,'MEMORIAL DESCRITIVO'!D815)","v":"-0"},"806"]
["",{"$f":"'MEMORIAL DESCRITIVO'!D816&\"-\"&COUNTIF('MEMORIAL DESCRITIVO'!$D$10:D816,'MEMORIAL DESCRITIVO'!D816)","v":"-0"},"807"]
["",{"$f":"'MEMORIAL DESCRITIVO'!D817&\"-\"&COUNTIF('MEMORIAL DESCRITIVO'!$D$10:D817,'MEMORIAL DESCRITIVO'!D817)","v":"-0"},"808"]
["",{"$f":"'MEMORIAL DESCRITIVO'!D818&\"-\"&COUNTIF('MEMORIAL DESCRITIVO'!$D$10:D818,'MEMORIAL DESCRITIVO'!D818)","v":"-0"},"809"]
["",{"$f":"'MEMORIAL DESCRITIVO'!D819&\"-\"&COUNTIF('MEMORIAL DESCRITIVO'!$D$10:D819,'MEMORIAL DESCRITIVO'!D819)","v":"-0"},"810"]
["",{"$f":"'MEMORIAL DESCRITIVO'!D820&\"-\"&COUNTIF('MEMORIAL DESCRITIVO'!$D$10:D820,'MEMORIAL DESCRITIVO'!D820)","v":"-0"},"811"]
["",{"$f":"'MEMORIAL DESCRITIVO'!D821&\"-\"&COUNTIF('MEMORIAL DESCRITIVO'!$D$10:D821,'MEMORIAL DESCRITIVO'!D821)","v":"-0"},"812"]
["",{"$f":"'MEMORIAL DESCRITIVO'!D822&\"-\"&COUNTIF('MEMORIAL DESCRITIVO'!$D$10:D822,'MEMORIAL DESCRITIVO'!D822)","v":"-0"},"813"]
["",{"$f":"'MEMORIAL DESCRITIVO'!D823&\"-\"&COUNTIF('MEMORIAL DESCRITIVO'!$D$10:D823,'MEMORIAL DESCRITIVO'!D823)","v":"-0"},"814"]
["",{"$f":"'MEMORIAL DESCRITIVO'!D824&\"-\"&COUNTIF('MEMORIAL DESCRITIVO'!$D$10:D824,'MEMORIAL DESCRITIVO'!D824)","v":"-0"},"815"]
["",{"$f":"'MEMORIAL DESCRITIVO'!D825&\"-\"&COUNTIF('MEMORIAL DESCRITIVO'!$D$10:D825,'MEMORIAL DESCRITIVO'!D825)","v":"-0"},"816"]
["",{"$f":"'MEMORIAL DESCRITIVO'!D826&\"-\"&COUNTIF('MEMORIAL DESCRITIVO'!$D$10:D826,'MEMORIAL DESCRITIVO'!D826)","v":"-0"},"817"]
["",{"$f":"'MEMORIAL DESCRITIVO'!D827&\"-\"&COUNTIF('MEMORIAL DESCRITIVO'!$D$10:D827,'MEMORIAL DESCRITIVO'!D827)","v":"-0"},"818"]
["",{"$f":"'MEMORIAL DESCRITIVO'!D828&\"-\"&COUNTIF('MEMORIAL DESCRITIVO'!$D$10:D828,'MEMORIAL DESCRITIVO'!D828)","v":"-0"},"819"]
["",{"$f":"'MEMORIAL DESCRITIVO'!D829&\"-\"&COUNTIF('MEMORIAL DESCRITIVO'!$D$10:D829,'MEMORIAL DESCRITIVO'!D829)","v":"-0"},"820"]
["",{"$f":"'MEMORIAL DESCRITIVO'!D830&\"-\"&COUNTIF('MEMORIAL DESCRITIVO'!$D$10:D830,'MEMORIAL DESCRITIVO'!D830)","v":"-0"},"821"]
["",{"$f":"'MEMORIAL DESCRITIVO'!D831&\"-\"&COUNTIF('MEMORIAL DESCRITIVO'!$D$10:D831,'MEMORIAL DESCRITIVO'!D831)","v":"-0"},"822"]
["",{"$f":"'MEMORIAL DESCRITIVO'!D832&\"-\"&COUNTIF('MEMORIAL DESCRITIVO'!$D$10:D832,'MEMORIAL DESCRITIVO'!D832)","v":"-0"},"823"]
["",{"$f":"'MEMORIAL DESCRITIVO'!D833&\"-\"&COUNTIF('MEMORIAL DESCRITIVO'!$D$10:D833,'MEMORIAL DESCRITIVO'!D833)","v":"-0"},"824"]
["",{"$f":"'MEMORIAL DESCRITIVO'!D834&\"-\"&COUNTIF('MEMORIAL DESCRITIVO'!$D$10:D834,'MEMORIAL DESCRITIVO'!D834)","v":"-0"},"825"]
["",{"$f":"'MEMORIAL DESCRITIVO'!D835&\"-\"&COUNTIF('MEMORIAL DESCRITIVO'!$D$10:D835,'MEMORIAL DESCRITIVO'!D835)","v":"-0"},"826"]
["",{"$f":"'MEMORIAL DESCRITIVO'!D836&\"-\"&COUNTIF('MEMORIAL DESCRITIVO'!$D$10:D836,'MEMORIAL DESCRITIVO'!D836)","v":"-0"},"827"]
["",{"$f":"'MEMORIAL DESCRITIVO'!D837&\"-\"&COUNTIF('MEMORIAL DESCRITIVO'!$D$10:D837,'MEMORIAL DESCRITIVO'!D837)","v":"-0"},"828"]
["",{"$f":"'MEMORIAL DESCRITIVO'!D838&\"-\"&COUNTIF('MEMORIAL DESCRITIVO'!$D$10:D838,'MEMORIAL DESCRITIVO'!D838)","v":"-0"},"829"]
["",{"$f":"'MEMORIAL DESCRITIVO'!D839&\"-\"&COUNTIF('MEMORIAL DESCRITIVO'!$D$10:D839,'MEMORIAL DESCRITIVO'!D839)","v":"-0"},"830"]
["",{"$f":"'MEMORIAL DESCRITIVO'!D840&\"-\"&COUNTIF('MEMORIAL DESCRITIVO'!$D$10:D840,'MEMORIAL DESCRITIVO'!D840)","v":"-0"},"831"]
["",{"$f":"'MEMORIAL DESCRITIVO'!D841&\"-\"&COUNTIF('MEMORIAL DESCRITIVO'!$D$10:D841,'MEMORIAL DESCRITIVO'!D841)","v":"-0"},"832"]
["",{"$f":"'MEMORIAL DESCRITIVO'!D842&\"-\"&COUNTIF('MEMORIAL DESCRITIVO'!$D$10:D842,'MEMORIAL DESCRITIVO'!D842)","v":"-0"},"833"]
[{"$f":"IF(E843=\"Sim\", ROW(), \"\")","v":""},{"$f":"'MEMORIAL DESCRITIVO'!D843&\"-\"&COUNTIF('MEMORIAL DESCRITIVO'!$D$10:D843,'MEMORIAL DESCRITIVO'!D843)","v":"-0"},"834"]
["",{"$f":"'MEMORIAL DESCRITIVO'!D844&\"-\"&COUNTIF('MEMORIAL DESCRITIVO'!$D$10:D844,'MEMORIAL DESCRITIVO'!D844)","v":"-0"},"835"]
["",{"$f":"'MEMORIAL DESCRITIVO'!D845&\"-\"&COUNTIF('MEMORIAL DESCRITIVO'!$D$10:D845,'MEMORIAL DESCRITIVO'!D845)","v":"-0"},"836"]
["",{"$f":"'MEMORIAL DESCRITIVO'!D846&\"-\"&COUNTIF('MEMORIAL DESCRITIVO'!$D$10:D846,'MEMORIAL DESCRITIVO'!D846)","v":"-0"},"837"]
["",{"$f":"'MEMORIAL DESCRITIVO'!D847&\"-\"&COUNTIF('MEMORIAL DESCRITIVO'!$D$10:D847,'MEMORIAL DESCRITIVO'!D847)","v":"-0"},"838"]
["",{"$f":"'MEMORIAL DESCRITIVO'!D848&\"-\"&COUNTIF('MEMORIAL DESCRITIVO'!$D$10:D848,'MEMORIAL DESCRITIVO'!D848)","v":"-0"},"839"]
["",{"$f":"'MEMORIAL DESCRITIVO'!D849&\"-\"&COUNTIF('MEMORIAL DESCRITIVO'!$D$10:D849,'MEMORIAL DESCRITIVO'!D849)","v":"-0"},"840"]
["",{"$f":"'MEMORIAL DESCRITIVO'!D850&\"-\"&COUNTIF('MEMORIAL DESCRITIVO'!$D$10:D850,'MEMORIAL DESCRITIVO'!D850)","v":"-0"},"841"]
["",{"$f":"'MEMORIAL DESCRITIVO'!D851&\"-\"&COUNTIF('MEMORIAL DESCRITIVO'!$D$10:D851,'MEMORIAL DESCRITIVO'!D851)","v":"-0"},"842"]
["",{"$f":"'MEMORIAL DESCRITIVO'!D852&\"-\"&COUNTIF('MEMORIAL DESCRITIVO'!$D$10:D852,'MEMORIAL DESCRITIVO'!D852)","v":"-0"},"843"]
["",{"$f":"'MEMORIAL DESCRITIVO'!D853&\"-\"&COUNTIF('MEMORIAL DESCRITIVO'!$D$10:D853,'MEMORIAL DESCRITIVO'!D853)","v":"-0"},"844"]
["",{"$f":"'MEMORIAL DESCRITIVO'!D854&\"-\"&COUNTIF('MEMORIAL DESCRITIVO'!$D$10:D854,'MEMORIAL DESCRITIVO'!D854)","v":"-0"},"845"]
["",{"$f":"'MEMORIAL DESCRITIVO'!D855&\"-\"&COUNTIF('MEMORIAL DESCRITIVO'!$D$10:D855,'MEMORIAL DESCRITIVO'!D855)","v":"-0"},"846"]
["",{"$f":"'MEMORIAL DESCRITIVO'!D856&\"-\"&COUNTIF('MEMORIAL DESCRITIVO'!$D$10:D856,'MEMORIAL DESCRITIVO'!D856)","v":"-0"},"847"]
["",{"$f":"'MEMORIAL DESCRITIVO'!D857&\"-\"&COUNTIF('MEMORIAL DESCRITIVO'!$D$10:D857,'MEMORIAL DESCRITIVO'!D857)","v":"-0"},"848"]
["",{"$f":"'MEMORIAL DESCRITIVO'!D858&\"-\"&COUNTIF('MEMORIAL DESCRITIVO'!$D$10:D858,'MEMORIAL DESCRITIVO'!D858)","v":"-0"},"849"]
["",{"$f":"'MEMORIAL DESCRITIVO'!D859&\"-\"&COUNTIF('MEMORIAL DESCRITIVO'!$D$10:D859,'MEMORIAL DESCRITIVO'!D859)","v":"-0"},"850"]
["",{"$f":"'MEMORIAL DESCRITIVO'!D860&\"-\"&COUNTIF('MEMORIAL DESCRITIVO'!$D$10:D860,'MEMORIAL DESCRITIVO'!D860)","v":"-0"},"851"]
["",{"$f":"'MEMORIAL DESCRITIVO'!D861&\"-\"&COUNTIF('MEMORIAL DESCRITIVO'!$D$10:D861,'MEMORIAL DESCRITIVO'!D861)","v":"-0"},"852"]
["",{"$f":"'MEMORIAL DESCRITIVO'!D862&\"-\"&COUNTIF('MEMORIAL DESCRITIVO'!$D$10:D862,'MEMORIAL DESCRITIVO'!D862)","v":"-0"},"853"]
["",{"$f":"'MEMORIAL DESCRITIVO'!D863&\"-\"&COUNTIF('MEMORIAL DESCRITIVO'!$D$10:D863,'MEMORIAL DESCRITIVO'!D863)","v":"-0"},"854"]
["",{"$f":"'MEMORIAL DESCRITIVO'!D864&\"-\"&COUNTIF('MEMORIAL DESCRITIVO'!$D$10:D864,'MEMORIAL DESCRITIVO'!D864)","v":"-0"},"855"]
["",{"$f":"'MEMORIAL DESCRITIVO'!D865&\"-\"&COUNTIF('MEMORIAL DESCRITIVO'!$D$10:D865,'MEMORIAL DESCRITIVO'!D865)","v":"-0"},"856"]
["",{"$f":"'MEMORIAL DESCRITIVO'!D866&\"-\"&COUNTIF('MEMORIAL DESCRITIVO'!$D$10:D866,'MEMORIAL DESCRITIVO'!D866)","v":"-0"},"857"]
["",{"$f":"'MEMORIAL DESCRITIVO'!D867&\"-\"&COUNTIF('MEMORIAL DESCRITIVO'!$D$10:D867,'MEMORIAL DESCRITIVO'!D867)","v":"-0"},"858"]
["",{"$f":"'MEMORIAL DESCRITIVO'!D868&\"-\"&COUNTIF('MEMORIAL DESCRITIVO'!$D$10:D868,'MEMORIAL DESCRITIVO'!D868)","v":"-0"},"859"]
["",{"$f":"'MEMORIAL DESCRITIVO'!D869&\"-\"&COUNTIF('MEMORIAL DESCRITIVO'!$D$10:D869,'MEMORIAL DESCRITIVO'!D869)","v":"-0"},"860"]
["",{"$f":"'MEMORIAL DESCRITIVO'!D870&\"-\"&COUNTIF('MEMORIAL DESCRITIVO'!$D$10:D870,'MEMORIAL DESCRITIVO'!D870)","v":"-0"},"861"]
["",{"$f":"'MEMORIAL DESCRITIVO'!D871&\"-\"&COUNTIF('MEMORIAL DESCRITIVO'!$D$10:D871,'MEMORIAL DESCRITIVO'!D871)","v":"-0"},"862"]
["",{"$f":"'MEMORIAL DESCRITIVO'!D872&\"-\"&COUNTIF('MEMORIAL DESCRITIVO'!$D$10:D872,'MEMORIAL DESCRITIVO'!D872)","v":"-0"},"863"]
["",{"$f":"'MEMORIAL DESCRITIVO'!D873&\"-\"&COUNTIF('MEMORIAL DESCRITIVO'!$D$10:D873,'MEMORIAL DESCRITIVO'!D873)","v":"-0"},"864"]
["",{"$f":"'MEMORIAL DESCRITIVO'!D874&\"-\"&COUNTIF('MEMORIAL DESCRITIVO'!$D$10:D874,'MEMORIAL DESCRITIVO'!D874)","v":"-0"},"865"]
["",{"$f":"'MEMORIAL DESCRITIVO'!D875&\"-\"&COUNTIF('MEMORIAL DESCRITIVO'!$D$10:D875,'MEMORIAL DESCRITIVO'!D875)","v":"-0"},"866"]
["",{"$f":"'MEMORIAL DESCRITIVO'!D876&\"-\"&COUNTIF('MEMORIAL DESCRITIVO'!$D$10:D876,'MEMORIAL DESCRITIVO'!D876)","v":"-0"},"867"]
["",{"$f":"'MEMORIAL DESCRITIVO'!D877&\"-\"&COUNTIF('MEMORIAL DESCRITIVO'!$D$10:D877,'MEMORIAL DESCRITIVO'!D877)","v":"-0"},"868"]
["",{"$f":"'MEMORIAL DESCRITIVO'!D878&\"-\"&COUNTIF('MEMORIAL DESCRITIVO'!$D$10:D878,'MEMORIAL DESCRITIVO'!D878)","v":"-0"},"869"]
["",{"$f":"'MEMORIAL DESCRITIVO'!D879&\"-\"&COUNTIF('MEMORIAL DESCRITIVO'!$D$10:D879,'MEMORIAL DESCRITIVO'!D879)","v":"-0"},"870"]
["",{"$f":"'MEMORIAL DESCRITIVO'!D880&\"-\"&COUNTIF('MEMORIAL DESCRITIVO'!$D$10:D880,'MEMORIAL DESCRITIVO'!D880)","v":"-0"},"871"]
["",{"$f":"'MEMORIAL DESCRITIVO'!D881&\"-\"&COUNTIF('MEMORIAL DESCRITIVO'!$D$10:D881,'MEMORIAL DESCRITIVO'!D881)","v":"-0"},"872"]
["",{"$f":"'MEMORIAL DESCRITIVO'!D882&\"-\"&COUNTIF('MEMORIAL DESCRITIVO'!$D$10:D882,'MEMORIAL DESCRITIVO'!D882)","v":"-0"},"873"]
["",{"$f":"'MEMORIAL DESCRITIVO'!D883&\"-\"&COUNTIF('MEMORIAL DESCRITIVO'!$D$10:D883,'MEMORIAL DESCRITIVO'!D883)","v":"-0"},"874"]
["",{"$f":"'MEMORIAL DESCRITIVO'!D884&\"-\"&COUNTIF('MEMORIAL DESCRITIVO'!$D$10:D884,'MEMORIAL DESCRITIVO'!D884)","v":"-0"},"875"]
["",{"$f":"'MEMORIAL DESCRITIVO'!D885&\"-\"&COUNTIF('MEMORIAL DESCRITIVO'!$D$10:D885,'MEMORIAL DESCRITIVO'!D885)","v":"-0"},"876"]
["",{"$f":"'MEMORIAL DESCRITIVO'!D886&\"-\"&COUNTIF('MEMORIAL DESCRITIVO'!$D$10:D886,'MEMORIAL DESCRITIVO'!D886)","v":"-0"},"877"]
["",{"$f":"'MEMORIAL DESCRITIVO'!D887&\"-\"&COUNTIF('MEMORIAL DESCRITIVO'!$D$10:D887,'MEMORIAL DESCRITIVO'!D887)","v":"-0"},"878"]
["",{"$f":"'MEMORIAL DESCRITIVO'!D888&\"-\"&COUNTIF('MEMORIAL DESCRITIVO'!$D$10:D888,'MEMORIAL DESCRITIVO'!D888)","v":"-0"},"879"]
["",{"$f":"'MEMORIAL DESCRITIVO'!D889&\"-\"&COUNTIF('MEMORIAL DESCRITIVO'!$D$10:D889,'MEMORIAL DESCRITIVO'!D889)","v":"-0"},"880"]
["",{"$f":"'MEMORIAL DESCRITIVO'!D890&\"-\"&COUNTIF('MEMORIAL DESCRITIVO'!$D$10:D890,'MEMORIAL DESCRITIVO'!D890)","v":"-0"},"881"]
["",{"$f":"'MEMORIAL DESCRITIVO'!D891&\"-\"&COUNTIF('MEMORIAL DESCRITIVO'!$D$10:D891,'MEMORIAL DESCRITIVO'!D891)","v":"-0"},"882"]
["",{"$f":"'MEMORIAL DESCRITIVO'!D892&\"-\"&COUNTIF('MEMORIAL DESCRITIVO'!$D$10:D892,'MEMORIAL DESCRITIVO'!D892)","v":"-0"},"883"]
["",{"$f":"'MEMORIAL DESCRITIVO'!D893&\"-\"&COUNTIF('MEMORIAL DESCRITIVO'!$D$10:D893,'MEMORIAL DESCRITIVO'!D893)","v":"-0"},"884"]
["",{"$f":"'MEMORIAL DESCRITIVO'!D894&\"-\"&COUNTIF('MEMORIAL DESCRITIVO'!$D$10:D894,'MEMORIAL DESCRITIVO'!D894)","v":"-0"},"885"]
["",{"$f":"'MEMORIAL DESCRITIVO'!D895&\"-\"&COUNTIF('MEMORIAL DESCRITIVO'!$D$10:D895,'MEMORIAL DESCRITIVO'!D895)","v":"-0"},"886"]
["",{"$f":"'MEMORIAL DESCRITIVO'!D896&\"-\"&COUNTIF('MEMORIAL DESCRITIVO'!$D$10:D896,'MEMORIAL DESCRITIVO'!D896)","v":"-0"},"887"]
["",{"$f":"'MEMORIAL DESCRITIVO'!D897&\"-\"&COUNTIF('MEMORIAL DESCRITIVO'!$D$10:D897,'MEMORIAL DESCRITIVO'!D897)","v":"-0"},"888"]
["",{"$f":"'MEMORIAL DESCRITIVO'!D898&\"-\"&COUNTIF('MEMORIAL DESCRITIVO'!$D$10:D898,'MEMORIAL DESCRITIVO'!D898)","v":"-0"},"889"]
["",{"$f":"'MEMORIAL DESCRITIVO'!D899&\"-\"&COUNTIF('MEMORIAL DESCRITIVO'!$D$10:D899,'MEMORIAL DESCRITIVO'!D899)","v":"-0"},"890"]
["",{"$f":"'MEMORIAL DESCRITIVO'!D900&\"-\"&COUNTIF('MEMORIAL DESCRITIVO'!$D$10:D900,'MEMORIAL DESCRITIVO'!D900)","v":"-0"},"891"]
["",{"$f":"'MEMORIAL DESCRITIVO'!D901&\"-\"&COUNTIF('MEMORIAL DESCRITIVO'!$D$10:D901,'MEMORIAL DESCRITIVO'!D901)","v":"-0"},"892"]
["",{"$f":"'MEMORIAL DESCRITIVO'!D902&\"-\"&COUNTIF('MEMORIAL DESCRITIVO'!$D$10:D902,'MEMORIAL DESCRITIVO'!D902)","v":"-0"},"893"]
["",{"$f":"'MEMORIAL DESCRITIVO'!D903&\"-\"&COUNTIF('MEMORIAL DESCRITIVO'!$D$10:D903,'MEMORIAL DESCRITIVO'!D903)","v":"-0"},"894"]
["",{"$f":"'MEMORIAL DESCRITIVO'!D904&\"-\"&COUNTIF('MEMORIAL DESCRITIVO'!$D$10:D904,'MEMORIAL DESCRITIVO'!D904)","v":"-0"},"895"]
["",{"$f":"'MEMORIAL DESCRITIVO'!D905&\"-\"&COUNTIF('MEMORIAL DESCRITIVO'!$D$10:D905,'MEMORIAL DESCRITIVO'!D905)","v":"-0"},"896"]
["",{"$f":"'MEMORIAL DESCRITIVO'!D906&\"-\"&COUNTIF('MEMORIAL DESCRITIVO'!$D$10:D906,'MEMORIAL DESCRITIVO'!D906)","v":"-0"},"897"]
[{"$f":"IF(E907=\"Sim\", ROW(), \"\")","v":""},{"$f":"'MEMORIAL DESCRITIVO'!D907&\"-\"&COUNTIF('MEMORIAL DESCRITIVO'!$D$10:D907,'MEMORIAL DESCRITIVO'!D907)","v":"-0"},"898"]
["",{"$f":"'MEMORIAL DESCRITIVO'!D908&\"-\"&COUNTIF('MEMORIAL DESCRITIVO'!$D$10:D908,'MEMORIAL DESCRITIVO'!D908)","v":"-0"},"899"]
["",{"$f":"'MEMORIAL DESCRITIVO'!D909&\"-\"&COUNTIF('MEMORIAL DESCRITIVO'!$D$10:D909,'MEMORIAL DESCRITIVO'!D909)","v":"-0"},"900"]
["",{"$f":"'MEMORIAL DESCRITIVO'!D910&\"-\"&COUNTIF('MEMORIAL DESCRITIVO'!$D$10:D910,'MEMORIAL DESCRITIVO'!D910)","v":"-0"},"901"]
["",{"$f":"'MEMORIAL DESCRITIVO'!D911&\"-\"&COUNTIF('MEMORIAL DESCRITIVO'!$D$10:D911,'MEMORIAL DESCRITIVO'!D911)","v":"-0"},"902"]
["",{"$f":"'MEMORIAL DESCRITIVO'!D912&\"-\"&COUNTIF('MEMORIAL DESCRITIVO'!$D$10:D912,'MEMORIAL DESCRITIVO'!D912)","v":"-0"},"903"]
["",{"$f":"'MEMORIAL DESCRITIVO'!D913&\"-\"&COUNTIF('MEMORIAL DESCRITIVO'!$D$10:D913,'MEMORIAL DESCRITIVO'!D913)","v":"-0"},"904"]
["",{"$f":"'MEMORIAL DESCRITIVO'!D914&\"-\"&COUNTIF('MEMORIAL DESCRITIVO'!$D$10:D914,'MEMORIAL DESCRITIVO'!D914)","v":"-0"},"905"]
["",{"$f":"'MEMORIAL DESCRITIVO'!D915&\"-\"&COUNTIF('MEMORIAL DESCRITIVO'!$D$10:D915,'MEMORIAL DESCRITIVO'!D915)","v":"-0"},"906"]
["",{"$f":"'MEMORIAL DESCRITIVO'!D916&\"-\"&COUNTIF('MEMORIAL DESCRITIVO'!$D$10:D916,'MEMORIAL DESCRITIVO'!D916)","v":"-0"},"907"]
["",{"$f":"'MEMORIAL DESCRITIVO'!D917&\"-\"&COUNTIF('MEMORIAL DESCRITIVO'!$D$10:D917,'MEMORIAL DESCRITIVO'!D917)","v":"-0"},"908"]
["",{"$f":"'MEMORIAL DESCRITIVO'!D918&\"-\"&COUNTIF('MEMORIAL DESCRITIVO'!$D$10:D918,'MEMORIAL DESCRITIVO'!D918)","v":"-0"},"909"]
["",{"$f":"'MEMORIAL DESCRITIVO'!D919&\"-\"&COUNTIF('MEMORIAL DESCRITIVO'!$D$10:D919,'MEMORIAL DESCRITIVO'!D919)","v":"-0"},"910"]
["",{"$f":"'MEMORIAL DESCRITIVO'!D920&\"-\"&COUNTIF('MEMORIAL DESCRITIVO'!$D$10:D920,'MEMORIAL DESCRITIVO'!D920)","v":"-0"},"911"]
["",{"$f":"'MEMORIAL DESCRITIVO'!D921&\"-\"&COUNTIF('MEMORIAL DESCRITIVO'!$D$10:D921,'MEMORIAL DESCRITIVO'!D921)","v":"-0"},"912"]
["",{"$f":"'MEMORIAL DESCRITIVO'!D922&\"-\"&COUNTIF('MEMORIAL DESCRITIVO'!$D$10:D922,'MEMORIAL DESCRITIVO'!D922)","v":"-0"},"913"]
["",{"$f":"'MEMORIAL DESCRITIVO'!D923&\"-\"&COUNTIF('MEMORIAL DESCRITIVO'!$D$10:D923,'MEMORIAL DESCRITIVO'!D923)","v":"-0"},"914"]
["",{"$f":"'MEMORIAL DESCRITIVO'!D924&\"-\"&COUNTIF('MEMORIAL DESCRITIVO'!$D$10:D924,'MEMORIAL DESCRITIVO'!D924)","v":"-0"},"915"]
["",{"$f":"'MEMORIAL DESCRITIVO'!D925&\"-\"&COUNTIF('MEMORIAL DESCRITIVO'!$D$10:D925,'MEMORIAL DESCRITIVO'!D925)","v":"-0"},"916"]
["",{"$f":"'MEMORIAL DESCRITIVO'!D926&\"-\"&COUNTIF('MEMORIAL DESCRITIVO'!$D$10:D926,'MEMORIAL DESCRITIVO'!D926)","v":"-0"},"917"]
["",{"$f":"'MEMORIAL DESCRITIVO'!D927&\"-\"&COUNTIF('MEMORIAL DESCRITIVO'!$D$10:D927,'MEMORIAL DESCRITIVO'!D927)","v":"-0"},"918"]
["",{"$f":"'MEMORIAL DESCRITIVO'!D928&\"-\"&COUNTIF('MEMORIAL DESCRITIVO'!$D$10:D928,'MEMORIAL DESCRITIVO'!D928)","v":"-0"},"919"]
["",{"$f":"'MEMORIAL DESCRITIVO'!D929&\"-\"&COUNTIF('MEMORIAL DESCRITIVO'!$D$10:D929,'MEMORIAL DESCRITIVO'!D929)","v":"-0"},"920"]
["",{"$f":"'MEMORIAL DESCRITIVO'!D930&\"-\"&COUNTIF('MEMORIAL DESCRITIVO'!$D$10:D930,'MEMORIAL DESCRITIVO'!D930)","v":"-0"},"921"]
["",{"$f":"'MEMORIAL DESCRITIVO'!D931&\"-\"&COUNTIF('MEMORIAL DESCRITIVO'!$D$10:D931,'MEMORIAL DESCRITIVO'!D931)","v":"-0"},"922"]
["",{"$f":"'MEMORIAL DESCRITIVO'!D932&\"-\"&COUNTIF('MEMORIAL DESCRITIVO'!$D$10:D932,'MEMORIAL DESCRITIVO'!D932)","v":"-0"},"923"]
["",{"$f":"'MEMORIAL DESCRITIVO'!D933&\"-\"&COUNTIF('MEMORIAL DESCRITIVO'!$D$10:D933,'MEMORIAL DESCRITIVO'!D933)","v":"-0"},"924"]
["",{"$f":"'MEMORIAL DESCRITIVO'!D934&\"-\"&COUNTIF('MEMORIAL DESCRITIVO'!$D$10:D934,'MEMORIAL DESCRITIVO'!D934)","v":"-0"},"925"]
["",{"$f":"'MEMORIAL DESCRITIVO'!D935&\"-\"&COUNTIF('MEMORIAL DESCRITIVO'!$D$10:D935,'MEMORIAL DESCRITIVO'!D935)","v":"-0"},"926"]
["",{"$f":"'MEMORIAL DESCRITIVO'!D936&\"-\"&COUNTIF('MEMORIAL DESCRITIVO'!$D$10:D936,'MEMORIAL DESCRITIVO'!D936)","v":"-0"},"927"]
["",{"$f":"'MEMORIAL DESCRITIVO'!D937&\"-\"&COUNTIF('MEMORIAL DESCRITIVO'!$D$10:D937,'MEMORIAL DESCRITIVO'!D937)","v":"-0"},"928"]
["",{"$f":"'MEMORIAL DESCRITIVO'!D938&\"-\"&COUNTIF('MEMORIAL DESCRITIVO'!$D$10:D938,'MEMORIAL DESCRITIVO'!D938)","v":"-0"},"929"]
["",{"$f":"'MEMORIAL DESCRITIVO'!D939&\"-\"&COUNTIF('MEMORIAL DESCRITIVO'!$D$10:D939,'MEMORIAL DESCRITIVO'!D939)","v":"-0"},"930"]
["",{"$f":"'MEMORIAL DESCRITIVO'!D940&\"-\"&COUNTIF('MEMORIAL DESCRITIVO'!$D$10:D940,'MEMORIAL DESCRITIVO'!D940)","v":"-0"},"931"]
["",{"$f":"'MEMORIAL DESCRITIVO'!D941&\"-\"&COUNTIF('MEMORIAL DESCRITIVO'!$D$10:D941,'MEMORIAL DESCRITIVO'!D941)","v":"-0"},"932"]
["",{"$f":"'MEMORIAL DESCRITIVO'!D942&\"-\"&COUNTIF('MEMORIAL DESCRITIVO'!$D$10:D942,'MEMORIAL DESCRITIVO'!D942)","v":"-0"},"933"]
["",{"$f":"'MEMORIAL DESCRITIVO'!D943&\"-\"&COUNTIF('MEMORIAL DESCRITIVO'!$D$10:D943,'MEMORIAL DESCRITIVO'!D943)","v":"-0"},"934"]
["",{"$f":"'MEMORIAL DESCRITIVO'!D944&\"-\"&COUNTIF('MEMORIAL DESCRITIVO'!$D$10:D944,'MEMORIAL DESCRITIVO'!D944)","v":"-0"},"935"]
["",{"$f":"'MEMORIAL DESCRITIVO'!D945&\"-\"&COUNTIF('MEMORIAL DESCRITIVO'!$D$10:D945,'MEMORIAL DESCRITIVO'!D945)","v":"-0"},"936"]
["",{"$f":"'MEMORIAL DESCRITIVO'!D946&\"-\"&COUNTIF('MEMORIAL DESCRITIVO'!$D$10:D946,'MEMORIAL DESCRITIVO'!D946)","v":"-0"},"937"]
["",{"$f":"'MEMORIAL DESCRITIVO'!D947&\"-\"&COUNTIF('MEMORIAL DESCRITIVO'!$D$10:D947,'MEMORIAL DESCRITIVO'!D947)","v":"-0"},"938"]
["",{"$f":"'MEMORIAL DESCRITIVO'!D948&\"-\"&COUNTIF('MEMORIAL DESCRITIVO'!$D$10:D948,'MEMORIAL DESCRITIVO'!D948)","v":"-0"},"939"]
["",{"$f":"'MEMORIAL DESCRITIVO'!D949&\"-\"&COUNTIF('MEMORIAL DESCRITIVO'!$D$10:D949,'MEMORIAL DESCRITIVO'!D949)","v":"-0"},"940"]
["",{"$f":"'MEMORIAL DESCRITIVO'!D950&\"-\"&COUNTIF('MEMORIAL DESCRITIVO'!$D$10:D950,'MEMORIAL DESCRITIVO'!D950)","v":"-0"},"941"]
["",{"$f":"'MEMORIAL DESCRITIVO'!D951&\"-\"&COUNTIF('MEMORIAL DESCRITIVO'!$D$10:D951,'MEMORIAL DESCRITIVO'!D951)","v":"-0"},"942"]
["",{"$f":"'MEMORIAL DESCRITIVO'!D952&\"-\"&COUNTIF('MEMORIAL DESCRITIVO'!$D$10:D952,'MEMORIAL DESCRITIVO'!D952)","v":"-0"},"943"]
["",{"$f":"'MEMORIAL DESCRITIVO'!D953&\"-\"&COUNTIF('MEMORIAL DESCRITIVO'!$D$10:D953,'MEMORIAL DESCRITIVO'!D953)","v":"-0"},"944"]
["",{"$f":"'MEMORIAL DESCRITIVO'!D954&\"-\"&COUNTIF('MEMORIAL DESCRITIVO'!$D$10:D954,'MEMORIAL DESCRITIVO'!D954)","v":"-0"},"945"]
["",{"$f":"'MEMORIAL DESCRITIVO'!D955&\"-\"&COUNTIF('MEMORIAL DESCRITIVO'!$D$10:D955,'MEMORIAL DESCRITIVO'!D955)","v":"-0"},"946"]
["",{"$f":"'MEMORIAL DESCRITIVO'!D956&\"-\"&COUNTIF('MEMORIAL DESCRITIVO'!$D$10:D956,'MEMORIAL DESCRITIVO'!D956)","v":"-0"},"947"]
["",{"$f":"'MEMORIAL DESCRITIVO'!D957&\"-\"&COUNTIF('MEMORIAL DESCRITIVO'!$D$10:D957,'MEMORIAL DESCRITIVO'!D957)","v":"-0"},"948"]
["",{"$f":"'MEMORIAL DESCRITIVO'!D958&\"-\"&COUNTIF('MEMORIAL DESCRITIVO'!$D$10:D958,'MEMORIAL DESCRITIVO'!D958)","v":"-0"},"949"]
["",{"$f":"'MEMORIAL DESCRITIVO'!D959&\"-\"&COUNTIF('MEMORIAL DESCRITIVO'!$D$10:D959,'MEMORIAL DESCRITIVO'!D959)","v":"-0"},"950"]
["",{"$f":"'MEMORIAL DESCRITIVO'!D960&\"-\"&COUNTIF('MEMORIAL DESCRITIVO'!$D$10:D960,'MEMORIAL DESCRITIVO'!D960)","v":"-0"},"951"]
["",{"$f":"'MEMORIAL DESCRITIVO'!D961&\"-\"&COUNTIF('MEMORIAL DESCRITIVO'!$D$10:D961,'MEMORIAL DESCRITIVO'!D961)","v":"-0"},"952"]
["",{"$f":"'MEMORIAL DESCRITIVO'!D962&\"-\"&COUNTIF('MEMORIAL DESCRITIVO'!$D$10:D962,'MEMORIAL DESCRITIVO'!D962)","v":"-0"},"953"]
["",{"$f":"'MEMORIAL DESCRITIVO'!D963&\"-\"&COUNTIF('MEMORIAL DESCRITIVO'!$D$10:D963,'MEMORIAL DESCRITIVO'!D963)","v":"-0"},"954"]
["",{"$f":"'MEMORIAL DESCRITIVO'!D964&\"-\"&COUNTIF('MEMORIAL DESCRITIVO'!$D$10:D964,'MEMORIAL DESCRITIVO'!D964)","v":"-0"},"955"]
["",{"$f":"'MEMORIAL DESCRITIVO'!D965&\"-\"&COUNTIF('MEMORIAL DESCRITIVO'!$D$10:D965,'MEMORIAL DESCRITIVO'!D965)","v":"-0"},"956"]
["",{"$f":"'MEMORIAL DESCRITIVO'!D966&\"-\"&COUNTIF('MEMORIAL DESCRITIVO'!$D$10:D966,'MEMORIAL DESCRITIVO'!D966)","v":"-0"},"957"]
["",{"$f":"'MEMORIAL DESCRITIVO'!D967&\"-\"&COUNTIF('MEMORIAL DESCRITIVO'!$D$10:D967,'MEMORIAL DESCRITIVO'!D967)","v":"-0"},"958"]
["",{"$f":"'MEMORIAL DESCRITIVO'!D968&\"-\"&COUNTIF('MEMORIAL DESCRITIVO'!$D$10:D968,'MEMORIAL DESCRITIVO'!D968)","v":"-0"},"959"]
["",{"$f":"'MEMORIAL DESCRITIVO'!D969&\"-\"&COUNTIF('MEMORIAL DESCRITIVO'!$D$10:D969,'MEMORIAL DESCRITIVO'!D969)","v":"-0"},"960"]
["",{"$f":"'MEMORIAL DESCRITIVO'!D970&\"-\"&COUNTIF('MEMORIAL DESCRITIVO'!$D$10:D970,'MEMORIAL DESCRITIVO'!D970)","v":"-0"},"961"]
[{"$f":"IF(E971=\"Sim\", ROW(), \"\")","v":""},{"$f":"'MEMORIAL DESCRITIVO'!D971&\"-\"&COUNTIF('MEMORIAL DESCRITIVO'!$D$10:D971,'MEMORIAL DESCRITIVO'!D971)","v":"-0"},"962"]
["",{"$f":"'MEMORIAL DESCRITIVO'!D972&\"-\"&COUNTIF('MEMORIAL DESCRITIVO'!$D$10:D972,'MEMORIAL DESCRITIVO'!D972)","v":"-0"},"963"]
["",{"$f":"'MEMORIAL DESCRITIVO'!D973&\"-\"&COUNTIF('MEMORIAL DESCRITIVO'!$D$10:D973,'MEMORIAL DESCRITIVO'!D973)","v":"-0"},"964"]
["",{"$f":"'MEMORIAL DESCRITIVO'!D974&\"-\"&COUNTIF('MEMORIAL DESCRITIVO'!$D$10:D974,'MEMORIAL DESCRITIVO'!D974)","v":"-0"},"965"]
["",{"$f":"'MEMORIAL DESCRITIVO'!D975&\"-\"&COUNTIF('MEMORIAL DESCRITIVO'!$D$10:D975,'MEMORIAL DESCRITIVO'!D975)","v":"-0"},"966"]
["",{"$f":"'MEMORIAL DESCRITIVO'!D976&\"-\"&COUNTIF('MEMORIAL DESCRITIVO'!$D$10:D976,'MEMORIAL DESCRITIVO'!D976)","v":"-0"},"967"]
["",{"$f":"'MEMORIAL DESCRITIVO'!D977&\"-\"&COUNTIF('MEMORIAL DESCRITIVO'!$D$10:D977,'MEMORIAL DESCRITIVO'!D977)","v":"-0"},"968"]
["",{"$f":"'MEMORIAL DESCRITIVO'!D978&\"-\"&COUNTIF('MEMORIAL DESCRITIVO'!$D$10:D978,'MEMORIAL DESCRITIVO'!D978)","v":"-0"},"969"]
["",{"$f":"'MEMORIAL DESCRITIVO'!D979&\"-\"&COUNTIF('MEMORIAL DESCRITIVO'!$D$10:D979,'MEMORIAL DESCRITIVO'!D979)","v":"-0"},"970"]
["",{"$f":"'MEMORIAL DESCRITIVO'!D980&\"-\"&COUNTIF('MEMORIAL DESCRITIVO'!$D$10:D980,'MEMORIAL DESCRITIVO'!D980)","v":"-0"},"971"]
["",{"$f":"'MEMORIAL DESCRITIVO'!D981&\"-\"&COUNTIF('MEMORIAL DESCRITIVO'!$D$10:D981,'MEMORIAL DESCRITIVO'!D981)","v":"-0"},"972"]
["",{"$f":"'MEMORIAL DESCRITIVO'!D982&\"-\"&COUNTIF('MEMORIAL DESCRITIVO'!$D$10:D982,'MEMORIAL DESCRITIVO'!D982)","v":"-0"},"973"]
["",{"$f":"'MEMORIAL DESCRITIVO'!D983&\"-\"&COUNTIF('MEMORIAL DESCRITIVO'!$D$10:D983,'MEMORIAL DESCRITIVO'!D983)","v":"-0"},"974"]
["",{"$f":"'MEMORIAL DESCRITIVO'!D984&\"-\"&COUNTIF('MEMORIAL DESCRITIVO'!$D$10:D984,'MEMORIAL DESCRITIVO'!D984)","v":"-0"},"975"]
["",{"$f":"'MEMORIAL DESCRITIVO'!D985&\"-\"&COUNTIF('MEMORIAL DESCRITIVO'!$D$10:D985,'MEMORIAL DESCRITIVO'!D985)","v":"-0"},"976"]
["",{"$f":"'MEMORIAL DESCRITIVO'!D986&\"-\"&COUNTIF('MEMORIAL DESCRITIVO'!$D$10:D986,'MEMORIAL DESCRITIVO'!D986)","v":"-0"},"977"]
["",{"$f":"'MEMORIAL DESCRITIVO'!D987&\"-\"&COUNTIF('MEMORIAL DESCRITIVO'!$D$10:D987,'MEMORIAL DESCRITIVO'!D987)","v":"-0"},"978"]
["",{"$f":"'MEMORIAL DESCRITIVO'!D988&\"-\"&COUNTIF('MEMORIAL DESCRITIVO'!$D$10:D988,'MEMORIAL DESCRITIVO'!D988)","v":"-0"},"979"]
["",{"$f":"'MEMORIAL DESCRITIVO'!D989&\"-\"&COUNTIF('MEMORIAL DESCRITIVO'!$D$10:D989,'MEMORIAL DESCRITIVO'!D989)","v":"-0"},"980"]
["",{"$f":"'MEMORIAL DESCRITIVO'!D990&\"-\"&COUNTIF('MEMORIAL DESCRITIVO'!$D$10:D990,'MEMORIAL DESCRITIVO'!D990)","v":"-0"},"981"]
["",{"$f":"'MEMORIAL DESCRITIVO'!D991&\"-\"&COUNTIF('MEMORIAL DESCRITIVO'!$D$10:D991,'MEMORIAL DESCRITIVO'!D991)","v":"-0"},"982"]
["",{"$f":"'MEMORIAL DESCRITIVO'!D992&\"-\"&COUNTIF('MEMORIAL DESCRITIVO'!$D$10:D992,'MEMORIAL DESCRITIVO'!D992)","v":"-0"},"983"]
["",{"$f":"'MEMORIAL DESCRITIVO'!D993&\"-\"&COUNTIF('MEMORIAL DESCRITIVO'!$D$10:D993,'MEMORIAL DESCRITIVO'!D993)","v":"-0"},"984"]
["",{"$f":"'MEMORIAL DESCRITIVO'!D994&\"-\"&COUNTIF('MEMORIAL DESCRITIVO'!$D$10:D994,'MEMORIAL DESCRITIVO'!D994)","v":"-0"},"985"]
["",{"$f":"'MEMORIAL DESCRITIVO'!D995&\"-\"&COUNTIF('MEMORIAL DESCRITIVO'!$D$10:D995,'MEMORIAL DESCRITIVO'!D995)","v":"-0"},"986"]
["",{"$f":"'MEMORIAL DESCRITIVO'!D996&\"-\"&COUNTIF('MEMORIAL DESCRITIVO'!$D$10:D996,'MEMORIAL DESCRITIVO'!D996)","v":"-0"},"987"]
["",{"$f":"'MEMORIAL DESCRITIVO'!D997&\"-\"&COUNTIF('MEMORIAL DESCRITIVO'!$D$10:D997,'MEMORIAL DESCRITIVO'!D997)","v":"-0"},"988"]
["",{"$f":"'MEMORIAL DESCRITIVO'!D998&\"-\"&COUNTIF('MEMORIAL DESCRITIVO'!$D$10:D998,'MEMORIAL DESCRITIVO'!D998)","v":"-0"},"989"]
["",{"$f":"'MEMORIAL DESCRITIVO'!D999&\"-\"&COUNTIF('MEMORIAL DESCRITIVO'!$D$10:D999,'MEMORIAL DESCRITIVO'!D999)","v":"-0"},"990"]
["",{"$f":"'MEMORIAL DESCRITIVO'!D1000&\"-\"&COUNTIF('MEMORIAL DESCRITIVO'!$D$10:D1000,'MEMORIAL DESCRITIVO'!D1000)","v":"-0"},"991"]
[""]
[""]
[""]
[""]
[""]
[""]
[""]
[""]
[""]
[""]
[""]
[""]
[""]
[""]
[""]
[""]
[""]
[""]
[""]
[""]
[""]
[""]
[""]
[""]
[""]
[""]
[""]
[""]
[""]
[""]
[""]
[""]
[""]
[""]
[{"$f":"IF(E1035=\"Sim\", ROW(), \"\")","v":""}]
[""]
[""]
[""]
[""]
[""]
[""]
[""]
[""]
[""]
[""]
[""]
[""]
[""]
[""]
[""]
[""]
[""]
[""]
[""]
[""]
[""]
[""]
[""]
[""]
[""]
[""]
[""]
[""]
[""]
[""]
[""]
[""]
[""]
[""]
[""]
[""]
[""]
[""]
[""]
[""]
[""]
[""]
[""]
[""]
[""]
[""]
[""]
[""]
[""]
[""]
[""]
[""]
[""]
[""]
[""]
[""]
[""]
[""]
[""]
[""]
[""]
[""]
[""]
[{"$f":"IF(E1099=\"Sim\", ROW(), \"\")","v":""}]
[""]
[""]
[""]
[""]
[""]
[""]
[""]
[""]
[""]
[""]
[""]
[""]
[""]
[""]
[""]
[""]
[""]
[""]
[""]
[""]
[""]
[""]
[""]
[""]
[""]
[""]
[""]
[""]
[""]
[""]
[""]
[""]
[""]
[""]
[""]
[""]
[""]
[""]
[""]
[""]
[""]
[""]
[""]
[""]
[""]
[""]
[""]
[""]
[""]
[""]
[""]
[""]
[""]
[""]
[""]
[""]
[""]
[""]
[""]
[""]
[""]
[""]
[""]
[{"$f":"IF(E1163=\"Sim\", ROW(), \"\")","v":""}]
[""]
[""]
[""]
[""]
[""]
[""]
[""]
[""]
[""]
[""]
[""]
[""]
[""]
[""]
[""]
[""]
[""]
[""]
[""]
[""]
[""]
[""]
[""]
[""]
[""]
[""]
[""]
[""]
[""]
[""]
[""]
[""]
[""]
[""]
[""]
[""]
[""]
[""]
[""]
[""]
[""]
[""]
[""]
[""]
[""]
[""]
[""]
[""]
[""]
[""]
[""]
[""]
[""]
[""]
[""]
[""]
[""]
[""]
[""]
[""]
[""]
[""]
[""]
[{"$f":"IF(E1227=\"Sim\", ROW(), \"\")","v":""}]
[""]
[""]
[""]
[""]
[""]
[""]
[""]
[""]
[""]
[""]
[""]
[""]
[""]
[""]
[""]
[""]
[""]
[""]
[""]
[""]
[""]
[""]
[""]
[""]
[""]
[""]
[""]
[""]
[""]
[""]
[""]
[""]
[""]
[""]
[""]
[""]
[""]
[""]
[""]
[""]
[""]
[""]
[""]
[""]
[""]
[""]
[""]
[""]
[""]
[""]
[""]
[""]
[""]
[""]
[""]
[""]
[""]
[""]
[""]
[""]
[""]
[""]
[""]
[{"$f":"IF(E1291=\"Sim\", ROW(), \"\")","v":""}]
[""]
[""]
[""]
[""]
[""]
[""]
[""]
[""]
[""]
[""]
[""]
[""]
[""]
[""]
[""]
[""]
[""]
[""]
[""]
[""]
[""]
[""]
[""]
[""]
[""]
[""]
[""]
[""]
[""]
[""]
[""]
[""]
[""]
[""]
[""]
[""]
[""]
[""]
[""]
[""]
[""]
[""]
[""]
[""]
[""]
[""]
[""]
[""]
[""]
[""]
[""]
[""]
[""]
[""]
[""]
[""]
[""]
[""]
[""]
[""]
[""]
[""]
[""]
[{"$f":"IF(E1355=\"Sim\", ROW(), \"\")","v":""}]
[""]
[""]
[""]
[""]
[""]
[""]
[""]
[""]
[""]
[""]
[""]
[""]
[""]
[""]
[""]
[""]
[""]
[""]
[""]
[""]
[""]
[""]
[""]
[""]
[""]
[""]
[""]
[""]
[""]
[""]
[""]
[""]
[""]
[""]
[""]
[""]
[""]
[""]
[""]
[""]
[""]
[""]
[""]
[""]
[""]
[""]
[""]
[""]
[""]
[""]
[""]
[""]
[""]
[""]
[""]
[""]
[""]
[""]
[""]
[""]
[""]
[""]
[""]
[{"$f":"IF(E1419=\"Sim\", ROW(), \"\")","v":""}]
[""]
[""]
[""]
[""]
[""]
[""]
[""]
[""]
[""]
[""]
[""]
[""]
[""]
[""]
[""]
[""]
[""]
[""]
[""]
[""]
[""]
[""]
[""]
[""]
[""]
[""]
[""]
[""]
[""]
[""]
[""]
[""]
[""]
[""]
[""]
[""]
[""]
[""]
[""]
[""]
[""]
[""]
[""]
[""]
[""]
[""]
[""]
[""]
[""]
[""]
[""]
[""]
[""]
[""]
[""]
[""]
[""]
[""]
[""]
[""]
[""]
[""]
[""]
[{"$f":"IF(E1483=\"Sim\", ROW(), \"\")","v":""}]
[""]
[""]
[""]
[""]
[""]
[""]
[""]
[""]
[""]
[""]
[""]
[""]
[""]
[""]
[""]
[""]
[""]
[""]
[""]
[""]
[""]
[""]
[""]
[""]
[""]
[""]
[""]
[""]
[""]
[""]
[""]
[""]
[""]
[""]
[""]
[""]
[""]
[""]
[""]
[""]
[""]
[""]
[""]
[""]
[""]
[""]
[""]
[""]
[""]
[""]
[""]
[""]
[""]
[""]
[""]
[""]
[""]
[""]
[""]
[""]
[""]
[""]
[""]
[{"$f":"IF(E1547=\"Sim\", ROW(), \"\")","v":""}]
[""]
[""]
[""]
[""]
[""]
[""]
[""]
[""]
[""]
[""]
[""]
[""]
[""]
[""]
[""]
[""]
[""]
[""]
[""]
[""]
[""]
[""]
[""]
[""]
[""]
[""]
[""]
[""]
[""]
[""]
[""]
[""]
[""]
[""]
[""]
[""]
[""]
[""]
[""]
[""]
[""]
[""]
[""]
[""]
[""]
[""]
[""]
[""]
[""]
[""]
[""]
[""]
[""]
[""]
[""]
[""]
[""]
[""]
[""]
[""]
[""]
[""]
[""]
[{"$f":"IF(E1611=\"Sim\", ROW(), \"\")","v":""}]
[""]
[""]
[""]
[""]
[""]
[""]
[""]
[""]
[""]
[""]
[""]
[""]
[""]
[""]
[""]
[""]
[""]
[""]
[""]
[""]
[""]
[""]
[""]
[""]
[""]
[""]
[""]
[""]
[""]
[""]
[""]
[""]
[""]
[""]
[""]
[""]
[""]
[""]
[""]
[""]
[""]
[""]
[""]
[""]
[""]
[""]
[""]
[""]
[""]
[""]
[""]
[""]
[""]
[""]
[""]
[""]
[""]
[""]
[""]
[""]
[""]
[""]
[""]
[{"$f":"IF(E1675=\"Sim\", ROW(), \"\")","v":""}]
[""]
[""]
[""]
[""]
[""]
[""]
[""]
[""]
[""]
[""]
[""]
[""]
[""]
[""]
[""]
[""]
[""]
[""]
[""]
[""]
[""]
[""]
[""]
[""]
[""]
[""]
[""]
[""]
[""]
[""]
[""]
[""]
[""]
[""]
[""]
[""]
[""]
[""]
[""]
[""]
[""]
[""]
[""]
[""]
[""]
[""]
[""]
[""]
[""]
[""]
[""]
[""]
[""]
[""]
[""]
[""]
[""]
[""]
[""]
[""]
[""]
[""]
[""]
[{"$f":"IF(E1739=\"Sim\", ROW(), \"\")","v":""}]
[""]
[""]
[""]
[""]
[""]
[""]
[""]
[""]
[""]
[""]
[""]
[""]
[""]
[""]
[""]
[""]
[""]
[""]
[""]
[""]
[""]
[""]
[""]
[""]
[""]
[""]
[""]
[""]
[""]
[""]
[""]
[""]
[""]
[""]
[""]
[""]
[""]
[""]
[""]
[""]
[""]
[""]
[""]
[""]
[""]
[""]
[""]
[""]
[""]
[""]
[""]
[""]
[""]
[""]
[""]
[""]
[""]
[""]
[""]
[""]
[""]
[""]
[""]
[{"$f":"IF(E1803=\"Sim\", ROW(), \"\")","v":""}]
[""]
[""]
[""]
[""]
[""]
[""]
[""]
[""]
[""]
[""]
[""]
[""]
[""]
[""]
[""]
[""]
[""]
[""]
[""]
[""]
[""]
[""]
[""]
[""]
[""]
[""]
[""]
[""]
[""]
[""]
[""]
[""]
[""]
[""]
[""]
[""]
[""]
[""]
[""]
[""]
[""]
[""]
[""]
[""]
[""]
[""]
[""]
[""]
[""]
[""]
[""]
[""]
[""]
[""]
[""]
[""]
[""]
[""]
[""]
[""]
[""]
[""]
[""]
[{"$f":"IF(E1867=\"Sim\", ROW(), \"\")","v":""}]
[""]
[""]
[""]
[""]
[""]
[""]
[""]
[""]
[""]
[""]
[""]
[""]
[""]
[""]
[""]
[""]
[""]
[""]
[""]
[""]
[""]
[""]
[""]
[""]
[""]
[""]
[""]
[""]
[""]
[""]
[""]
[""]
[""]
[""]
[""]
[""]
[""]
[""]
[""]
[""]
[""]
[""]
[""]
[""]
[""]
[""]
[""]
[""]
[""]
[""]
[""]
[""]
[""]
[""]
[""]
[""]
[""]
[""]
[""]
[""]
[""]
[""]
[""]
[{"$f":"IF(E1931=\"Sim\", ROW(), \"\")","v":""}]
[""]
[""]
[""]
[""]
[""]
[""]
[""]
[""]
[""]
[""]
[""]
[""]
[""]
[""]
[""]
[""]
[""]
[""]
[""]
[""]
[""]
[""]
[""]
[""]
[""]
[""]
[""]
[""]
[""]
[""]
[""]
[""]
[""]
[""]
[""]
[""]
[""]
[""]
[""]
[""]
[""]
[""]
[""]
[""]
[""]
[""]
[""]
[""]
[""]
[""]
[""]
[""]
[""]
[""]
[""]
[""]
[""]
[""]
[""]
[""]
[""]
[""]
[""]
[{"$f":"IF(E1995=\"Sim\", ROW(), \"\")","v":""}]
[""]
[""]
[""]
[""]
[""]
[""]
[""]
[""]
[""]
[""]
[""]
[""]
[""]
[""]
[""]
[""]
[""]
[""]
[""]
[""]
[""]
[""]
[""]
[""]
[""]
[""]
[""]
[""]
[""]
[""]
[""]
[""]
[""]
[""]
[""]
[""]
[""]
[""]
[""]
[""]
[""]
[""]
[""]
[""]
[""]
[""]
[""]
[""]
[""]
[""]
[""]
[""]
[""]
[""]
[""]
[""]
[""]
[""]
[""]
[""]
[""]
[""]
[""]
[{"$f":"IF(E2059=\"Sim\", ROW(), \"\")","v":""}]
[""]
[""]
[""]
[""]
[""]
[""]
[""]
[""]
[""]
[""]
[""]
[""]
[""]
[""]
[""]
[""]
[""]
[""]
[""]
[""]
[""]
[""]
[""]
[""]
[""]
[""]
[""]
[""]
[""]
[""]
[""]
[""]
[""]
[""]
[""]
[""]
[""]
[""]
[""]
[""]
[""]
[""]
[""]
[""]
[""]
[""]
[""]
[""]
[""]
[""]
[""]
[""]
[""]
[""]
[""]
[""]
[""]
[""]
[""]
[""]
[""]
[""]
[""]
[{"$f":"IF(E2123=\"Sim\", ROW(), \"\")","v":""}]
[""]
[""]
[""]
[""]
[""]
[""]
[""]
[""]
[""]
[""]
[""]
[""]
[""]
[""]
[""]
[""]
[""]
[""]
[""]
[""]
[""]
[""]
[""]
[""]
[""]
[""]
[""]
[""]
[""]
[""]
[""]
[""]
[""]
[""]
[""]
[""]
[""]
[""]
[""]
[""]
[""]
[""]
[""]
[""]
[""]
[""]
[""]
[""]
[""]
[""]
[""]
[""]
[""]
[""]
[""]
[""]
[""]
[""]
[""]
[""]
[""]
[""]
[""]
[{"$f":"IF(E2187=\"Sim\", ROW(), \"\")","v":""}]
[""]
[""]
[""]
[""]
[""]
[""]
[""]
[""]
[""]
[""]
[""]
[""]
[""]
[""]
[""]
[""]
[""]
[""]
[""]
[""]
[""]
[""]
[""]
[""]
[""]
[""]
[""]
[""]
[""]
[""]
[""]
[""]
[""]
[""]
[""]
[""]
[""]
[""]
[""]
[""]
[""]
[""]
[""]
[""]
[""]
[""]
[""]
[""]
[""]
[""]
[""]
[""]
[""]
[""]
[""]
[""]
[""]
[""]
[""]
[""]
[""]
[""]
[""]
[{"$f":"IF(E2251=\"Sim\", ROW(), \"\")","v":""}]
[""]
[""]
[""]
[""]
[""]
[""]
[""]
[""]
[""]
[""]
[""]
[""]
[""]
[""]
[""]
[""]
[""]
[""]
[""]
[""]
[""]
[""]
[""]
[""]
[""]
[""]
[""]
[""]
[""]
[""]
[""]
[""]
[""]
[""]
[""]
[""]
[""]
[""]
[""]
[""]
[""]
[""]
[""]
[""]
[""]
[""]
[""]
[""]
[""]
[""]
[""]
[""]
[""]
[""]
[""]
[""]
[""]
[""]
[""]
[""]
[""]
[""]
[""]
[{"$f":"IF(E2315=\"Sim\", ROW(), \"\")","v":""}]
[""]
[""]
[""]
[""]
[""]
[""]
[""]
[""]
[""]
[""]
[""]
[""]
[""]
[""]
[""]
[""]
[""]
[""]
[""]
[""]
[""]
[""]
[""]
[""]
[""]
[""]
[""]
[""]
[""]
[""]
[""]
[""]
[""]
[""]
[""]
[""]
[""]
[""]
[""]
[""]
[""]
[""]
[""]
[""]
[""]
[""]
[""]
[""]
[""]
[""]
[""]
[""]
[""]
[""]
[""]
[""]
[""]
[""]
[""]
[""]
[""]
[""]
[""]
[{"$f":"IF(E2379=\"Sim\", ROW(), \"\")","v":""}]
[""]
[""]
[""]
[""]
[""]
[""]
[""]
[""]
[""]
[""]
[""]
[""]
[""]
[""]
[""]
[""]
[""]
[""]
[""]
[""]
[""]
[""]
[""]
[""]
[""]
[""]
[""]
[""]
[""]
[""]
[""]
[""]
[""]
[""]
[""]
[""]
[""]
[""]
[""]
[""]
[""]
[""]
[""]
[""]
[""]
[""]
[""]
[""]
[""]
[""]
[""]
[""]
[""]
[""]
[""]
[""]
[""]
[""]
[""]
[""]
[""]
[""]
[""]
[{"$f":"IF(E2443=\"Sim\", ROW(), \"\")","v":""}]
[""]
[""]
[""]
[""]
[""]
[""]
[""]
[""]
[""]
[""]
[""]
[""]
[""]
[""]
[""]
[""]
[""]
[""]
[""]
[""]
[""]
[""]
[""]
[""]
[""]
[""]
[""]
[""]
[""]
[""]
[""]
[""]
[""]
[""]
[""]
[""]
[""]
[""]
[""]
[""]
[""]
[""]
[""]
[""]
[""]
[""]
[""]
[""]
[""]
[""]
[""]
[""]
[""]
[""]
[""]
[""]
[""]
[""]
[""]
[""]
[""]
[""]
[""]
[{"$f":"IF(E2507=\"Sim\", ROW(), \"\")","v":""}]
[""]
[""]
[""]
[""]
[""]
[""]
[""]
[""]
[""]
[""]
[""]
[""]
[""]
[""]
[""]
[""]
[""]
[""]
[""]
[""]
[""]
[""]
[""]
[""]
[""]
[""]
[""]
[""]
[""]
[""]
[""]
[""]
[""]
[""]
[""]
[""]
[""]
[""]
[""]
[""]
[""]
[""]
[""]
[""]
[""]
[""]
[""]
[""]
[""]
[""]
[""]
[""]
[""]
[""]
[""]
[""]
[""]
[""]
[""]
[""]
[""]
[""]
[""]
[{"$f":"IF(E2571=\"Sim\", ROW(), \"\")","v":""}]
[""]
[""]
[""]
[""]
[""]
[""]
[""]
[""]
[""]
[""]
[""]
[""]
[""]
[""]
[""]
[""]
[""]
[""]
[""]
[""]
[""]
[""]
[""]
[""]
[""]
[""]
[""]
[""]
[""]
[""]
[""]
[""]
[""]
[""]
[""]
[""]
[""]
[""]
[""]
[""]
[""]
[""]
[""]
[""]
[""]
[""]
[""]
[""]
[""]
[""]
[""]
[""]
[""]
[""]
[""]
[""]
[""]
[""]
[""]
[""]
[""]
[""]
[""]
[{"$f":"IF(E2635=\"Sim\", ROW(), \"\")","v":""}]
[""]
[""]
[""]
[""]
[""]
[""]
[""]
[""]
[""]
[""]
[""]
[""]
[""]
[""]
[""]
[""]
[""]
[""]
[""]
[""]
[""]
[""]
[""]
[""]
[""]
[""]
[""]
[""]
[""]
[""]
[""]
[""]
[""]
[""]
[""]
[""]
[""]
[""]
[""]
[""]
[""]
[""]
[""]
[""]
[""]
[""]
[""]
[""]
[""]
[""]
[""]
[""]
[""]
[""]
[""]
[""]
[""]
[""]
[""]
[""]
[""]
[""]
[""]
[{"$f":"IF(E2699=\"Sim\", ROW(), \"\")","v":""}]
[""]
[""]
[""]
[""]
[""]
[""]
[""]
[""]
[""]
[""]
[""]
[""]
[""]
[""]
[""]
[""]
[""]
[""]
[""]
[""]
[""]
[""]
[""]
[""]
[""]
[""]
[""]
[""]
[""]
[""]
[""]
[""]
[""]
[""]
[""]
[""]
[""]
[""]
[""]
[""]
[""]
[""]
[""]
[""]
[""]
[""]
[""]
[""]
[""]
[""]
[""]
[""]
[""]
[""]
[""]
[""]
[""]
[""]
[""]
[""]
[""]
[""]
[""]
[{"$f":"IF(E2763=\"Sim\", ROW(), \"\")","v":""}]
[""]
[""]
[""]
[""]
[""]
[""]
[""]
[""]
[""]
[""]
[""]
[""]
[""]
[""]
[""]
[""]
[""]
[""]
[""]
[""]
[""]
[""]
[""]
[""]
[""]
[""]
[""]
[""]
[""]
[""]
[""]
[""]
[""]
[""]
[""]
[""]
[""]
[""]
[""]
[""]
[""]
[""]
[""]
[""]
[""]
[""]
[""]
[""]
[""]
[""]
[""]
[""]
[""]
[""]
[""]
[""]
[""]
[""]
[""]
[""]
[""]
[""]
[""]
[{"$f":"IF(E2827=\"Sim\", ROW(), \"\")","v":""}]
[""]
[""]
[""]
[""]
[""]
[""]
[""]
[""]
[""]
[""]
[""]
[""]
[""]
[""]
[""]
[""]
[""]
[""]
[""]
[""]
[""]
[""]
[""]
[""]
[""]
[""]
[""]
[""]
[""]
[""]
[""]
[""]
[""]
[""]
[""]
[""]
[""]
[""]
[""]
[""]
[""]
[""]
[""]
[""]
[""]
[""]
[""]
[""]
[""]
[""]
[""]
[""]
[""]
[""]
[""]
[""]
[""]
[""]
[""]
[""]
[""]
[""]
[""]
[{"$f":"IF(E2891=\"Sim\", ROW(), \"\")","v":""}]
[""]
[""]
[""]
[""]
[""]
[""]
[""]
[""]
[""]
[""]
[""]
[""]
[""]
[""]
[""]
[""]
[""]
[""]
[""]
[""]
[""]
[""]
[""]
[""]
[""]
[""]
[""]
[""]
[""]
[""]
[""]
[""]
[""]
[""]
[""]
[""]
[""]
[""]
[""]
[""]
[""]
[""]
[""]
[""]
[""]
[""]
[""]
[""]
[""]
[""]
[""]
[""]
[""]
[""]
[""]
[""]
[""]
[""]
[""]
[""]
[""]
[""]
[""]
[{"$f":"IF(E2955=\"Sim\", ROW(), \"\")","v":""}]
[""]
[""]
[""]
[""]
[""]
[""]
[""]
[""]
[""]
[""]
[""]
[""]
[""]
[""]
[""]
[""]
[""]
[""]
[""]
[""]
[""]
[""]
[""]
[""]
[""]
[""]
[""]
[""]
[""]
[""]
[""]
[""]
[""]
[""]
[""]
[""]
[""]
[""]
[""]
[""]
[""]
[""]
[""]
[""]
[""]
[""]
[""]
[""]
[""]
[""]
[""]
[""]
[""]
[""]
[""]
[""]
[""]
[""]
[""]
[""]
[""]
[""]
[""]
[{"$f":"IF(E3019=\"Sim\", ROW(), \"\")","v":""}]
[""]
[""]
[""]
[""]
[""]
[""]
[""]
[""]
[""]
[""]
[""]
[""]
[""]
[""]
[""]
[""]
[""]
[""]
[""]
[""]
[""]
[""]
[""]
[""]
[""]
[""]
[""]
[""]
[""]
[""]
[""]
[""]
[""]
[""]
[""]
[""]
[""]
[""]
[""]
[""]
[""]
[""]
[""]
[""]
[""]
[""]
[""]
[""]
[""]
[""]
[""]
[""]
[""]
[""]
[""]
[""]
[""]
[""]
[""]
[""]
[""]
[""]
[""]
[{"$f":"IF(E3083=\"Sim\", ROW(), \"\")","v":""}]
[""]
[""]
[""]
[""]
[""]
[""]
[""]
[""]
[""]
[""]
[""]
[""]
[""]
[""]
[""]
[""]
[""]
[""]
[""]
[""]
[""]
[""]
[""]
[""]
[""]
[""]
[""]
[""]
[""]
[""]
[""]
[""]
[""]
[""]
[""]
[""]
[""]
[""]
[""]
[""]
[""]
[""]
[""]
[""]
[""]
[""]
[""]
[""]
[""]
[""]
[""]
[""]
[""]
[""]
[""]
[""]
[""]
[""]
[""]
[""]
[""]
[""]
[""]
[{"$f":"IF(E3147=\"Sim\", ROW(), \"\")","v":""}]
[""]
[""]
[""]
[""]
[""]
[""]
[""]
[""]
[""]
[""]
[""]
[""]
[""]
[""]
[""]
[""]
[""]
[""]
[""]
[""]
[""]
[""]
[""]
[""]
[""]
[""]
[""]
[""]
[""]
[""]
[""]
[""]
[""]
[""]
[""]
[""]
[""]
[""]
[""]
[""]
[""]
[""]
[""]
[""]
[""]
[""]
[""]
[""]
[""]
[""]
[""]
[""]
[""]
[""]
[""]
[""]
[""]
[""]
[""]
[""]
[""]
[""]
[""]
[{"$f":"IF(E3211=\"Sim\", ROW(), \"\")","v":""}]
[""]
[""]
[""]
[""]
[""]
[""]
[""]
[""]
[""]
[""]
[""]
[""]
[""]
[""]
[""]
[""]
[""]
[""]
[""]
[""]
[""]
[""]
[""]
[""]
[""]
[""]
[""]
[""]
[""]
[""]
[""]
[""]
[""]
[""]

{"sheet":"PLANO DE ENSAIO (Utensílios)","index":3,"n_rows":38,"n_cols":26,"rows_kept":38,"cut":false,"hidden":true,"merged":[[21,24,21,26],[22,24,22,26],[23,24,23,26],[33,23,33,26],[34,23,34,26],[24,1,24,26],[25,1,26,3],[25,4,26,7],[25,8,26,9],[25,10,25,26],[26,23,26,26],[33,1,33,3],[33,4,33,7],[33,8,33,9],[34,1,34,3],[34,4,34,7],[35,23,35,26],[36,23,36,26],[37,23,37,26],[27,23,27,26],[28,23,28,26],[29,23,29,26],[30,23,30,26],[31,23,31,26],[32,23,32,26],[37,1,37,3],[37,4,37,7],[37,8,37,9],[35,1,35,3],[35,4,35,7],[35,8,35,9],[36,1,36,3],[36,4,36,7],[36,8,36,9],[34,8,34,9],[31,1,31,3],[31,4,31,7],[31,8,31,9],[32,1,32,3],[32,4,32,7],[32,8,32,9],[29,1,29,3],[29,4,29,7],[29,8,29,9],[30,1,30,3],[30,4,30,7],[30,8,30,9],[27,1,27,3],[27,4,27,7],[27,8,27,9],[28,1,28,3],[28,4,28,7],[28,8,28,9],[19,24,19,26],[20,24,20,26],[8,1,8,26],[9,1,9,26],[10,24,10,26],[11,24,11,26],[12,24,12,26],[13,24,13,26],[14,24,14,26],[15,24,15,26],[16,24,16,26],[17,24,17,26],[18,24,18,26],[6,1,6,3],[6,4,6,26],[7,1,7,3],[7,4,7,8],[7,19,7,20],[7,15,7,18],[7,10,7,13],[7,21,7,22],[7,23,7,24],[7,25,7,26],[1,1,2,23],[1,24,1,26],[2,25,2,26],[3,1,3,26],[4,1,4,3],[4,4,4,8],[4,10,4,11],[4,23,4,24],[4,25,4,26],[4,12,5,12],[4,13,5,22],[5,1,5,3],[5,4,5,8],[5,10,5,11],[5,23,5,24],[5,25,5,26]]}
[]
[null,"PLANO DE ENSAIOS PARA PANELAS METÁLICAS",null,null,null,null,null,null,null,null,null,null,null,null,null,null,null,null,null,null,null,null,null,null,"FOR.13.2-1"]
[null,null,null,null,null,null,null,null,null,null,null,null,null,null,null,null,null,null,null,null,null,null,null,null,"Rev.00","2025-07-14"]
[null,"IDENTIFICAÇÃO DO PROCESSO"]
[null,"Razão social: (Solicitante)",null,null,{"$f":"SOLICITAÇÃO!C9","v":"-"},null,null,null,null,"CNPJ:",{"$f":"SOLICITAÇÃO!C11","v":"-"},null,"Endereço:\n(Solicitante)",{"$f":"CONCATENATE(SOLICITAÇÃO!C12,\" - \",SOLICITAÇÃO!C13,\" - \",SOLICITAÇÃO!C15,\" - \",SOLICITAÇÃO!C16)","v":"- - - - - - -"},null,null,null,null,null,null,null,null,null,"Cep:",null,{"$f":"SOLICITAÇÃO!C14","v":"-"}]
[null,"Fabricante:",null,null,{"$f":"SOLICITAÇÃO!C25","v":"-"},null,null,null,null,"E-mail: (Solicitante)",{"$f":"SOLICITAÇÃO!C17","v":"-"},null,null,null,null,null,null,null,null,null,null,null,null,"Modelo de Certificação:",null,{"$f":"SOLICITAÇÃO!C5","v":"-"}]
[null,"Portaria:",null,null,"PORTARIA Nº 499, DE 20 DE DEZEMBRO DE 2021 - Regulamento Técnico da Qualidade e os Requisitos de Avaliação da Conformidade para Panelas Metálicas – Consolidado.\nPORTARIA Nº 167, DE 23 DE ABRIL DE 2025 - Altera a Portaria Inmetro nº 499, de 20 de dezembro de 2021, que aprova o Regulamento Técnico da Qualidade e os Requisitos de Avaliação da Conformidade para Panelas Metálicas – Consolidado."]
[null,"Tipo de amostragem:",null,null,"Escolher um item.",null,null,null,null,"Tipo de amostra:","Escolher um item.",null,null,null,"Processo: (evento)",null,null,null,null,"Técnico Responsável:      ",null,null,null,"Data:"]
[null,"Identificação dos modelos"]
[null,"Tabela 1 - Fragmentação das amostras para ensaios"]
[null,"Corpo de Prova","Quantidade de amostras:","Rastreabilidade","Família:","Tipo de utensílio","Modelo (Referência\nComercial)\ne\n Nome Comercial","Código de barras","Marca","Material","Dimensões: Diâmetro, comprimento, largura, espessura, diagonal, profundidade","Capacidade volumétrica (Litros)","Aplicação do produto","Tipo de revestimento interno","Possui alça e/ou cabo ?             ","Material da alça","Material do cabo","Dimensões da alça","Dimensões do cabo","Possui tampa: \nSim / Não?","Material da tampa","Possui pomel :\nSim / Não?","Material do pomel","Dimensões do pomel                                  (se aplicável)","Foto do produto"]
[{"$f":"COUNTIF($E$12:E12, E12)","v":0},1,null,null,null,{"$f":"IFERROR(INDEX('MEMORIAL DESCRITIVO'!G$10:G$4000,SMALL(IF(('MEMORIAL DESCRITIVO'!$D$10:$D$4000=E12)*('MEMORIAL DESCRITIVO'!$E$10:$E$4000=\"Sim\"),ROW('MEMORIAL DESCRITIVO'!G$10:G$4000)-9),A12)),\"\")","v":""},{"$f":"IFERROR(\n  INDEX('MEMORIAL DESCRITIVO'!I$10:I$4000,\n    SMALL(IF(('MEMORIAL DESCRITIVO'!$D$10:$D$4000=E12)*('MEMORIAL DESCRITIVO'!$E$10:$E$4000=\"Sim\"),ROW('MEMORIAL DESCRITIVO'!I$10:I$4000)-9),A12))\n  & \" \" &\n  INDEX('MEMORIAL DESCRITIVO'!J$10:J$4000,\n    SMALL(IF(('MEMORIAL DESCRITIVO'!$D$10:$D$4000=E12)*('MEMORIAL DESCRITIVO'!$E$10:$E$4000=\"Sim\"),ROW('MEMORIAL DESCRITIVO'!J$10:J$4000)-9),A12)),\n\"\")","v":""},{"$f":"IFERROR(\n  INDEX('MEMORIAL DESCRITIVO'!H$10:H$4000,\n    SMALL(\n      IF(\n        ('MEMORIAL DESCRITIVO'!$D$10:$D$4000=E12)*\n        ('MEMORIAL DESCRITIVO'!$E$10:$E$4000=\"Sim\"),\n        ROW('MEMORIAL DESCRITIVO'!H$10:H$4000)-9\n      ),\n      A12\n    )\n  ),\n\"\")","v":""},{"$f":"IFERROR(\n  INDEX('MEMORIAL DESCRITIVO'!K$10:K$4000,\n    SMALL(\n      IF(\n        ('MEMORIAL DESCRITIVO'!$D$10:$D$4000=E12)*\n        ('MEMORIAL DESCRITIVO'!$E$10:$E$4000=\"Sim\"),\n        ROW('MEMORIAL DESCRITIVO'!K$10:K$4000)-9\n      ),\n      A12\n    )\n  ),\n\"\")","v":""},{"$f":"IFERROR(\n  INDEX('MEMORIAL DESCRITIVO'!N$10:N$4000,\n    SMALL(\n      IF(\n        ('MEMORIAL DESCRITIVO'!$D$10:$D$4000=E12)*\n        ('MEMORIAL DESCRITIVO'!$E$10:$E$4000=\"Sim\"),\n        ROW('MEMORIAL DESCRITIVO'!N$10:N$4000)-9\n      ),\n      A12\n    )\n  ),\n\"\")","v":""},{"$f":"IFERROR(\n  INDEX('MEMORIAL DESCRITIVO'!Q$10:Q$4000,\n    SMALL(\n      IF(\n        ('MEMORIAL DESCRITIVO'!$D$10:$D$4000=E12)*\n        ('MEMORIAL DESCRITIVO'!$E$10:$E$4000=\"Sim\"),\n        ROW('MEMORIAL DESCRITIVO'!Q$10:Q$4000)-9\n      ),\n      A12\n    )\n  ),\n\"\")","v":""},{"$f":"IFERROR(\n  INDEX('MEMORIAL DESCRITIVO'!R$10:R$4000,\n    SMALL(\n      IF(\n        ('MEMORIAL DESCRITIVO'!$D$10:$D$4000=E12)*\n        ('MEMORIAL DESCRITIVO'!$E$10:$E$4000=\"Sim\"),\n        ROW('MEMORIAL DESCRITIVO'!R$10:R$4000)-9\n      ),\n      A12\n    )\n  ),\n\"\")","v":""},{"$f":"IFERROR(INDEX('MEMORIAL DESCRITIVO'!L$10:L$4000,SMALL(IF(('MEMORIAL DESCRITIVO'!$D$10:$D$4000=E12)*('MEMORIAL DESCRITIVO'!$E$10:$E$4000=\"Sim\"),ROW('MEMORIAL DESCRITIVO'!L$10:L$4000)-9),A12)),\"\")","v":""},{"$f":"IFERROR(\n  INDEX('MEMORIAL DESCRITIVO'!T$10:T$4000,\n    SMALL(\n      IF(\n        ('MEMORIAL DESCRITIVO'!$D$10:$D$4000=E12)*\n        ('MEMORIAL DESCRITIVO'!$E$10:$E$4000=\"Sim\"),\n        ROW('MEMORIAL DESCRITIVO'!T$10:T$4000)-9\n      ),\n      A12\n    )\n  ),\n\"\")","v":""},{"$f":"IFERROR(\n  INDEX('MEMORIAL DESCRITIVO'!AA$10:AA$4000,\n    SMALL(\n      IF(\n        ('MEMORIAL DESCRITIVO'!$D$10:$D$4000=E12)*\n        ('MEMORIAL DESCRITIVO'!$E$10:$E$4000=\"Sim\"),\n        ROW('MEMORIAL DESCRITIVO'!AA$10:AA$4000)-9\n      ),\n      A12\n    )\n  ),\n\"\")","v":""},{"$f":"IFERROR(\n  INDEX('MEMORIAL DESCRITIVO'!AB$10:AB$4000,\n    SMALL(\n      IF(\n        ('MEMORIAL DESCRITIVO'!$D$10:$D$4000=E12)*\n        ('MEMORIAL DESCRITIVO'!$E$10:$E$4000=\"Sim\"),\n        ROW('MEMORIAL DESCRITIVO'!AB$10:AB$4000)-9\n      ),\n      A12\n    )\n  ),\n\"\")","v":""},{"$f":"IFERROR(\n  INDEX('MEMORIAL DESCRITIVO'!AF$10:AF$4000,\n    SMALL(\n      IF(\n        ('MEMORIAL DESCRITIVO'!$D$10:$D$4000=E12)*\n        ('MEMORIAL DESCRITIVO'!$E$10:$E$4000=\"Sim\"),\n        ROW('MEMORIAL DESCRITIVO'!AF$10:AF$4000)-9\n      ),\n      A12\n    )\n  ),\n\"\")","v":""},{"$f":"IFERROR(\n  INDEX('MEMORIAL DESCRITIVO'!AE$10:AE$4000,\n    SMALL(\n      IF(\n        ('MEMORIAL DESCRITIVO'!$D$10:$D$4000=E12)*\n        ('MEMORIAL DESCRITIVO'!$E$10:$E$4000=\"Sim\"),\n        ROW('MEMORIAL DESCRITIVO'!AE$10:AE$4000)-9\n      ),\n      A12\n    )\n  ),\n\"\")","v":""},{"$f":"IFERROR(\n  INDEX('MEMORIAL DESCRITIVO'!AI$10:AI$4000,\n    SMALL(\n      IF(\n        ('MEMORIAL DESCRITIVO'!$D$10:$D$4000=E12)*\n        ('MEMORIAL DESCRITIVO'!$E$10:$E$4000=\"Sim\"),\n        ROW('MEMORIAL DESCRITIVO'!AI$10:AI$4000)-9\n      ),\n      A12\n    )\n  ),\n\"\")","v":""},{"$f":"IFERROR(INDEX('MEMORIAL DESCRITIVO'!AJ$10:AJ$4000,SMALL(IF(('MEMORIAL DESCRITIVO'!$D$10:$D$4000=E12)*('MEMORIAL DESCRITIVO'!$E$10:$E$4000=\"Sim\"),ROW('MEMORIAL DESCRITIVO'!AJ$10:AJ$4000)-9),A12)),\"\")","v":""},{"$f":"IFERROR(INDEX('MEMORIAL DESCRITIVO'!AL$10:AL$4000,SMALL(IF(('MEMORIAL DESCRITIVO'!$D$10:$D$4000=E12)*('MEMORIAL DESCRITIVO'!$E$10:$E$4000=\"Sim\"),ROW('MEMORIAL DESCRITIVO'!AL$10:AL$4000)-9),A12)),\"\")","v":""},{"$f":"IFERROR(INDEX('MEMORIAL DESCRITIVO'!AO$10:AO$4000,SMALL(IF(('MEMORIAL DESCRITIVO'!$D$10:$D$4000=E12)*('MEMORIAL DESCRITIVO'!$E$10:$E$4000=\"Sim\"),ROW('MEMORIAL DESCRITIVO'!AO$10:AO$4000)-9),A12)),\"\")","v":""},{"$f":"IFERROR(INDEX('MEMORIAL DESCRITIVO'!AP$10:AP$4000,SMALL(IF(('MEMORIAL DESCRITIVO'!$D$10:$D$4000=E12)*('MEMORIAL DESCRITIVO'!$E$10:$E$4000=\"Sim\"),ROW('MEMORIAL DESCRITIVO'!AP$10:AP$4000)-9),A12)),\"\")","v":""},{"$f":"IFERROR(INDEX('MEMORIAL DESCRITIVO'!AS$10:AS$4000,SMALL(IF(('MEMORIAL DESCRITIVO'!$D$10:$D$4000=E12)*('MEMORIAL DESCRITIVO'!$E$10:$E$4000=\"Sim\"),ROW('MEMORIAL DESCRITIVO'!AS$10:AS$4000)-9),A12)),\"\")","v":""}]
[{"$f":"COUNTIF($E$12:E13, E13)","v":0},2,null,"",null,{"$f":"IFERROR(INDEX('MEMORIAL DESCRITIVO'!G$10:G$4000,SMALL(IF(('MEMORIAL DESCRITIVO'!$D$10:$D$4000=E13)*('MEMORIAL DESCRITIVO'!$E$10:$E$4000=\"Sim\"),ROW('MEMORIAL DESCRITIVO'!G$10:G$4000)-9),A13)),\"\")","v":""},{"$f":"IFERROR(\n  INDEX('MEMORIAL DESCRITIVO'!I$10:I$4000,\n    SMALL(IF(('MEMORIAL DESCRITIVO'!$D$10:$D$4000=E13)*('MEMORIAL DESCRITIVO'!$E$10:$E$4000=\"Sim\"),ROW('MEMORIAL DESCRITIVO'!I$10:I$4000)-9),A13))\n  & \" \" &\n  INDEX('MEMORIAL DESCRITIVO'!J$10:J$4000,\n    SMALL(IF(('MEMORIAL DESCRITIVO'!$D$10:$D$4000=E13)*('MEMORIAL DESCRITIVO'!$E$10:$E$4000=\"Sim\"),ROW('MEMORIAL DESCRITIVO'!J$10:J$4000)-9),A13)),\n\"\")","v":""},{"$f":"IFERROR(\n  INDEX('MEMORIAL DESCRITIVO'!H$10:H$4000,\n    SMALL(\n      IF(\n        ('MEMORIAL DESCRITIVO'!$D$10:$D$4000=E13)*\n        ('MEMORIAL DESCRITIVO'!$E$10:$E$4000=\"Sim\"),\n        ROW('MEMORIAL DESCRITIVO'!H$10:H$4000)-9\n      ),\n      A13\n    )\n  ),\n\"\")","v":""},{"$f":"IFERROR(\n  INDEX('MEMORIAL DESCRITIVO'!K$10:K$4000,\n    SMALL(\n      IF(\n        ('MEMORIAL DESCRITIVO'!$D$10:$D$4000=E13)*\n        ('MEMORIAL DESCRITIVO'!$E$10:$E$4000=\"Sim\"),\n        ROW('MEMORIAL DESCRITIVO'!K$10:K$4000)-9\n      ),\n      A13\n    )\n  ),\n\"\")","v":""},{"$f":"IFERROR(\n  INDEX('MEMORIAL DESCRITIVO'!N$10:N$4000,\n    SMALL(\n      IF(\n        ('MEMORIAL DESCRITIVO'!$D$10:$D$4000=E13)*\n        ('MEMORIAL DESCRITIVO'!$E$10:$E$4000=\"Sim\"),\n        ROW('MEMORIAL DESCRITIVO'!N$10:N$4000)-9\n      ),\n      A13\n    )\n  ),\n\"\")","v":""},{"$f":"IFERROR(\n  INDEX('MEMORIAL DESCRITIVO'!Q$10:Q$4000,\n    SMALL(\n      IF(\n        ('MEMORIAL DESCRITIVO'!$D$10:$D$4000=E13)*\n        ('MEMORIAL DESCRITIVO'!$E$10:$E$4000=\"Sim\"),\n        ROW('MEMORIAL DESCRITIVO'!Q$10:Q$4000)-9\n      ),\n      A13\n    )\n  ),\n\"\")","v":""},{"$f":"IFERROR(\n  INDEX('MEMORIAL DESCRITIVO'!R$10:R$4000,\n    SMALL(\n      IF(\n        ('MEMORIAL DESCRITIVO'!$D$10:$D$4000=E13)*\n        ('MEMORIAL DESCRITIVO'!$E$10:$E$4000=\"Sim\"),\n        ROW('MEMORIAL DESCRITIVO'!R$10:R$4000)-9\n      ),\n      A13\n    )\n  ),\n\"\")","v":""},{"$f":"IFERROR(INDEX('MEMORIAL DESCRITIVO'!L$10:L$4000,SMALL(IF(('MEMORIAL DESCRITIVO'!$D$10:$D$4000=E13)*('MEMORIAL DESCRITIVO'!$E$10:$E$4000=\"Sim\"),ROW('MEMORIAL DESCRITIVO'!L$10:L$4000)-9),A13)),\"\")","v":""},{"$f":"IFERROR(\n  INDEX('MEMORIAL DESCRITIVO'!T$10:T$4000,\n    SMALL(\n      IF(\n        ('MEMORIAL DESCRITIVO'!$D$10:$D$4000=E13)*\n        ('MEMORIAL DESCRITIVO'!$E$10:$E$4000=\"Sim\"),\n        ROW('MEMORIAL DESCRITIVO'!T$10:T$4000)-9\n      ),\n      A13\n    )\n  ),\n\"\")","v":""},{"$f":"IFERROR(\n  INDEX('MEMORIAL DESCRITIVO'!AA$10:AA$4000,\n    SMALL(\n      IF(\n        ('MEMORIAL DESCRITIVO'!$D$10:$D$4000=E13)*\n        ('MEMORIAL DESCRITIVO'!$E$10:$E$4000=\"Sim\"),\n        ROW('MEMORIAL DESCRITIVO'!AA$10:AA$4000)-9\n      ),\n      A13\n    )\n  ),\n\"\")","v":""},{"$f":"IFERROR(\n  INDEX('MEMORIAL DESCRITIVO'!AB$10:AB$4000,\n    SMALL(\n      IF(\n        ('MEMORIAL DESCRITIVO'!$D$10:$D$4000=E13)*\n        ('MEMORIAL DESCRITIVO'!$E$10:$E$4000=\"Sim\"),\n        ROW('MEMORIAL DESCRITIVO'!AB$10:AB$4000)-9\n      ),\n      A13\n    )\n  ),\n\"\")","v":""},{"$f":"IFERROR(\n  INDEX('MEMORIAL DESCRITIVO'!AF$10:AF$4000,\n    SMALL(\n      IF(\n        ('MEMORIAL DESCRITIVO'!$D$10:$D$4000=E13)*\n        ('MEMORIAL DESCRITIVO'!$E$10:$E$4000=\"Sim\"),\n        ROW('MEMORIAL DESCRITIVO'!AF$10:AF$4000)-9\n      ),\n      A13\n    )\n  ),\n\"\")","v":""},{"$f":"IFERROR(\n  INDEX('MEMORIAL DESCRITIVO'!AE$10:AE$4000,\n    SMALL(\n      IF(\n        ('MEMORIAL DESCRITIVO'!$D$10:$D$4000=E13)*\n        ('MEMORIAL DESCRITIVO'!$E$10:$E$4000=\"Sim\"),\n        ROW('MEMORIAL DESCRITIVO'!AE$10:AE$4000)-9\n      ),\n      A13\n    )\n  ),\n\"\")","v":""},{"$f":"IFERROR(\n  INDEX('MEMORIAL DESCRITIVO'!AI$10:AI$4000,\n    SMALL(\n      IF(\n        ('MEMORIAL DESCRITIVO'!$D$10:$D$4000=E13)*\n        ('MEMORIAL DESCRITIVO'!$E$10:$E$4000=\"Sim\"),\n        ROW('MEMORIAL DESCRITIVO'!AI$10:AI$4000)-9\n      ),\n      A13\n    )\n  ),\n\"\")","v":""},{"$f":"IFERROR(INDEX('MEMORIAL DESCRITIVO'!AJ$10:AJ$4000,SMALL(IF(('MEMORIAL DESCRITIVO'!$D$10:$D$4000=E13)*('MEMORIAL DESCRITIVO'!$E$10:$E$4000=\"Sim\"),ROW('MEMORIAL DESCRITIVO'!AJ$10:AJ$4000)-9),A13)),\"\")","v":""},{"$f":"IFERROR(INDEX('MEMORIAL DESCRITIVO'!AL$10:AL$4000,SMALL(IF(('MEMORIAL DESCRITIVO'!$D$10:$D$4000=E13)*('MEMORIAL DESCRITIVO'!$E$10:$E$4000=\"Sim\"),ROW('MEMORIAL DESCRITIVO'!AL$10:AL$4000)-9),A13)),\"\")","v":""},{"$f":"IFERROR(INDEX('MEMORIAL DESCRITIVO'!AO$10:AO$4000,SMALL(IF(('MEMORIAL DESCRITIVO'!$D$10:$D$4000=E13)*('MEMORIAL DESCRITIVO'!$E$10:$E$4000=\"Sim\"),ROW('MEMORIAL DESCRITIVO'!AO$10:AO$4000)-9),A13)),\"\")","v":""},{"$f":"IFERROR(INDEX('MEMORIAL DESCRITIVO'!AP$10:AP$4000,SMALL(IF(('MEMORIAL DESCRITIVO'!$D$10:$D$4000=E13)*('MEMORIAL DESCRITIVO'!$E$10:$E$4000=\"Sim\"),ROW('MEMORIAL DESCRITIVO'!AP$10:AP$4000)-9),A13)),\"\")","v":""},{"$f":"IFERROR(INDEX('MEMORIAL DESCRITIVO'!AS$10:AS$4000,SMALL(IF(('MEMORIAL DESCRITIVO'!$D$10:$D$4000=E13)*('MEMORIAL DESCRITIVO'!$E$10:$E$4000=\"Sim\"),ROW('MEMORIAL DESCRITIVO'!AS$10:AS$4000)-9),A13)),\"\")","v":""}]
[{"$f":"COUNTIF($E$12:E14, E14)","v":0},3,null,"",null,{"$f":"IFERROR(INDEX('MEMORIAL DESCRITIVO'!G$10:G$4000,SMALL(IF(('MEMORIAL DESCRITIVO'!$D$10:$D$4000=E14)*('MEMORIAL DESCRITIVO'!$E$10:$E$4000=\"Sim\"),ROW('MEMORIAL DESCRITIVO'!G$10:G$4000)-9),A14)),\"\")","v":""},{"$f":"IFERROR(\n  INDEX('MEMORIAL DESCRITIVO'!I$10:I$4000,\n    SMALL(IF(('MEMORIAL DESCRITIVO'!$D$10:$D$4000=E14)*('MEMORIAL DESCRITIVO'!$E$10:$E$4000=\"Sim\"),ROW('MEMORIAL DESCRITIVO'!I$10:I$4000)-9),A14))\n  & \" \" &\n  INDEX('MEMORIAL DESCRITIVO'!J$10:J$4000,\n    SMALL(IF(('MEMORIAL DESCRITIVO'!$D$10:$D$4000=E14)*('MEMORIAL DESCRITIVO'!$E$10:$E$4000=\"Sim\"),ROW('MEMORIAL DESCRITIVO'!J$10:J$4000)-9),A14)),\n\"\")","v":""},{"$f":"IFERROR(\n  INDEX('MEMORIAL DESCRITIVO'!H$10:H$4000,\n    SMALL(\n      IF(\n        ('MEMORIAL DESCRITIVO'!$D$10:$D$4000=E14)*\n        ('MEMORIAL DESCRITIVO'!$E$10:$E$4000=\"Sim\"),\n        ROW('MEMORIAL DESCRITIVO'!H$10:H$4000)-9\n      ),\n      A14\n    )\n  ),\n\"\")","v":""},{"$f":"IFERROR(\n  INDEX('MEMORIAL DESCRITIVO'!K$10:K$4000,\n    SMALL(\n      IF(\n        ('MEMORIAL DESCRITIVO'!$D$10:$D$4000=E14)*\n        ('MEMORIAL DESCRITIVO'!$E$10:$E$4000=\"Sim\"),\n        ROW('MEMORIAL DESCRITIVO'!K$10:K$4000)-9\n      ),\n      A14\n    )\n  ),\n\"\")","v":""},{"$f":"IFERROR(\n  INDEX('MEMORIAL DESCRITIVO'!N$10:N$4000,\n    SMALL(\n      IF(\n        ('MEMORIAL DESCRITIVO'!$D$10:$D$4000=E14)*\n        ('MEMORIAL DESCRITIVO'!$E$10:$E$4000=\"Sim\"),\n        ROW('MEMORIAL DESCRITIVO'!N$10:N$4000)-9\n      ),\n      A14\n    )\n  ),\n\"\")","v":""},{"$f":"IFERROR(\n  INDEX('MEMORIAL DESCRITIVO'!Q$10:Q$4000,\n    SMALL(\n      IF(\n        ('MEMORIAL DESCRITIVO'!$D$10:$D$4000=E14)*\n        ('MEMORIAL DESCRITIVO'!$E$10:$E$4000=\"Sim\"),\n        ROW('MEMORIAL DESCRITIVO'!Q$10:Q$4000)-9\n      ),\n      A14\n    )\n  ),\n\"\")","v":""},{"$f":"IFERROR(\n  INDEX('MEMORIAL DESCRITIVO'!R$10:R$4000,\n    SMALL(\n      IF(\n        ('MEMORIAL DESCRITIVO'!$D$10:$D$4000=E14)*\n        ('MEMORIAL DESCRITIVO'!$E$10:$E$4000=\"Sim\"),\n        ROW('MEMORIAL DESCRITIVO'!R$10:R$4000)-9\n      ),\n      A14\n    )\n  ),\n\"\")","v":""},{"$f":"IFERROR(INDEX('MEMORIAL DESCRITIVO'!L$10:L$4000,SMALL(IF(('MEMORIAL DESCRITIVO'!$D$10:$D$4000=E14)*('MEMORIAL DESCRITIVO'!$E$10:$E$4000=\"Sim\"),ROW('MEMORIAL DESCRITIVO'!L$10:L$4000)-9),A14)),\"\")","v":""},{"$f":"IFERROR(\n  INDEX('MEMORIAL DESCRITIVO'!T$10:T$4000,\n    SMALL(\n      IF(\n        ('MEMORIAL DESCRITIVO'!$D$10:$D$4000=E14)*\n        ('MEMORIAL DESCRITIVO'!$E$10:$E$4000=\"Sim\"),\n        ROW('MEMORIAL DESCRITIVO'!T$10:T$4000)-9\n      ),\n      A14\n    )\n  ),\n\"\")","v":""},{"$f":"IFERROR(\n  INDEX('MEMORIAL DESCRITIVO'!AA$10:AA$4000,\n    SMALL(\n      IF(\n        ('MEMORIAL DESCRITIVO'!$D$10:$D$4000=E14)*\n        ('MEMORIAL DESCRITIVO'!$E$10:$E$4000=\"Sim\"),\n        ROW('MEMORIAL DESCRITIVO'!AA$10:AA$4000)-9\n      ),\n      A14\n    )\n  ),\n\"\")","v":""},{"$f":"IFERROR(\n  INDEX('MEMORIAL DESCRITIVO'!AB$10:AB$4000,\n    SMALL(\n      IF(\n        ('MEMORIAL DESCRITIVO'!$D$10:$D$4000=E14)*\n        ('MEMORIAL DESCRITIVO'!$E$10:$E$4000=\"Sim\"),\n        ROW('MEMORIAL DESCRITIVO'!AB$10:AB$4000)-9\n      ),\n      A14\n    )\n  ),\n\"\")","v":""},{"$f":"IFERROR(\n  INDEX('MEMORIAL DESCRITIVO'!AF$10:AF$4000,\n    SMALL(\n      IF(\n        ('MEMORIAL DESCRITIVO'!$D$10:$D$4000=E14)*\n        ('MEMORIAL DESCRITIVO'!$E$10:$E$4000=\"Sim\"),\n        ROW('MEMORIAL DESCRITIVO'!AF$10:AF$4000)-9\n      ),\n      A14\n    )\n  ),\n\"\")","v":""},{"$f":"IFERROR(\n  INDEX('MEMORIAL DESCRITIVO'!AE$10:AE$4000,\n    SMALL(\n      IF(\n        ('MEMORIAL DESCRITIVO'!$D$10:$D$4000=E14)*\n        ('MEMORIAL DESCRITIVO'!$E$10:$E$4000=\"Sim\"),\n        ROW('MEMORIAL DESCRITIVO'!AE$10:AE$4000)-9\n      ),\n      A14\n    )\n  ),\n\"\")","v":""},{"$f":"IFERROR(\n  INDEX('MEMORIAL DESCRITIVO'!AI$10:AI$4000,\n    SMALL(\n      IF(\n        ('MEMORIAL DESCRITIVO'!$D$10:$D$4000=E14)*\n        ('MEMORIAL DESCRITIVO'!$E$10:$E$4000=\"Sim\"),\n        ROW('MEMORIAL DESCRITIVO'!AI$10:AI$4000)-9\n      ),\n      A14\n    )\n  ),\n\"\")","v":""},{"$f":"IFERROR(INDEX('MEMORIAL DESCRITIVO'!AJ$10:AJ$4000,SMALL(IF(('MEMORIAL DESCRITIVO'!$D$10:$D$4000=E14)*('MEMORIAL DESCRITIVO'!$E$10:$E$4000=\"Sim\"),ROW('MEMORIAL DESCRITIVO'!AJ$10:AJ$4000)-9),A14)),\"\")","v":""},{"$f":"IFERROR(INDEX('MEMORIAL DESCRITIVO'!AL$10:AL$4000,SMALL(IF(('MEMORIAL DESCRITIVO'!$D$10:$D$4000=E14)*('MEMORIAL DESCRITIVO'!$E$10:$E$4000=\"Sim\"),ROW('MEMORIAL DESCRITIVO'!AL$10:AL$4000)-9),A14)),\"\")","v":""},{"$f":"IFERROR(INDEX('MEMORIAL DESCRITIVO'!AO$10:AO$4000,SMALL(IF(('MEMORIAL DESCRITIVO'!$D$10:$D$4000=E14)*('MEMORIAL DESCRITIVO'!$E$10:$E$4000=\"Sim\"),ROW('MEMORIAL DESCRITIVO'!AO$10:AO$4000)-9),A14)),\"\")","v":""},{"$f":"IFERROR(INDEX('MEMORIAL DESCRITIVO'!AP$10:AP$4000,SMALL(IF(('MEMORIAL DESCRITIVO'!$D$10:$D$4000=E14)*('MEMORIAL DESCRITIVO'!$E$10:$E$4000=\"Sim\"),ROW('MEMORIAL DESCRITIVO'!AP$10:AP$4000)-9),A14)),\"\")","v":""},{"$f":"IFERROR(INDEX('MEMORIAL DESCRITIVO'!AS$10:AS$4000,SMALL(IF(('MEMORIAL DESCRITIVO'!$D$10:$D$4000=E14)*('MEMORIAL DESCRITIVO'!$E$10:$E$4000=\"Sim\"),ROW('MEMORIAL DESCRITIVO'!AS$10:AS$4000)-9),A14)),\"\")","v":""}]
[{"$f":"COUNTIF($E$12:E15, E15)","v":0},4,null,"",null,{"$f":"IFERROR(INDEX('MEMORIAL DESCRITIVO'!G$10:G$4000,SMALL(IF(('MEMORIAL DESCRITIVO'!$D$10:$D$4000=E15)*('MEMORIAL DESCRITIVO'!$E$10:$E$4000=\"Sim\"),ROW('MEMORIAL DESCRITIVO'!G$10:G$4000)-9),A15)),\"\")","v":""},{"$f":"IFERROR(\n  INDEX('MEMORIAL DESCRITIVO'!I$10:I$4000,\n    SMALL(IF(('MEMORIAL DESCRITIVO'!$D$10:$D$4000=E15)*('MEMORIAL DESCRITIVO'!$E$10:$E$4000=\"Sim\"),ROW('MEMORIAL DESCRITIVO'!I$10:I$4000)-9),A15))\n  & \" \" &\n  INDEX('MEMORIAL DESCRITIVO'!J$10:J$4000,\n    SMALL(IF(('MEMORIAL DESCRITIVO'!$D$10:$D$4000=E15)*('MEMORIAL DESCRITIVO'!$E$10:$E$4000=\"Sim\"),ROW('MEMORIAL DESCRITIVO'!J$10:J$4000)-9),A15)),\n\"\")","v":""},{"$f":"IFERROR(\n  INDEX('MEMORIAL DESCRITIVO'!H$10:H$4000,\n    SMALL(\n      IF(\n        ('MEMORIAL DESCRITIVO'!$D$10:$D$4000=E15)*\n        ('MEMORIAL DESCRITIVO'!$E$10:$E$4000=\"Sim\"),\n        ROW('MEMORIAL DESCRITIVO'!H$10:H$4000)-9\n      ),\n      A15\n    )\n  ),\n\"\")","v":""},{"$f":"IFERROR(\n  INDEX('MEMORIAL DESCRITIVO'!K$10:K$4000,\n    SMALL(\n      IF(\n        ('MEMORIAL DESCRITIVO'!$D$10:$D$4000=E15)*\n        ('MEMORIAL DESCRITIVO'!$E$10:$E$4000=\"Sim\"),\n        ROW('MEMORIAL DESCRITIVO'!K$10:K$4000)-9\n      ),\n      A15\n    )\n  ),\n\"\")","v":""},{"$f":"IFERROR(\n  INDEX('MEMORIAL DESCRITIVO'!N$10:N$4000,\n    SMALL(\n      IF(\n        ('MEMORIAL DESCRITIVO'!$D$10:$D$4000=E15)*\n        ('MEMORIAL DESCRITIVO'!$E$10:$E$4000=\"Sim\"),\n        ROW('MEMORIAL DESCRITIVO'!N$10:N$4000)-9\n      ),\n      A15\n    )\n  ),\n\"\")","v":""},{"$f":"IFERROR(\n  INDEX('MEMORIAL DESCRITIVO'!Q$10:Q$4000,\n    SMALL(\n      IF(\n        ('MEMORIAL DESCRITIVO'!$D$10:$D$4000=E15)*\n        ('MEMORIAL DESCRITIVO'!$E$10:$E$4000=\"Sim\"),\n        ROW('MEMORIAL DESCRITIVO'!Q$10:Q$4000)-9\n      ),\n      A15\n    )\n  ),\n\"\")","v":""},{"$f":"IFERROR(\n  INDEX('MEMORIAL DESCRITIVO'!R$10:R$4000,\n    SMALL(\n      IF(\n        ('MEMORIAL DESCRITIVO'!$D$10:$D$4000=E15)*\n        ('MEMORIAL DESCRITIVO'!$E$10:$E$4000=\"Sim\"),\n        ROW('MEMORIAL DESCRITIVO'!R$10:R$4000)-9\n      ),\n      A15\n    )\n  ),\n\"\")","v":""},{"$f":"IFERROR(INDEX('MEMORIAL DESCRITIVO'!L$10:L$4000,SMALL(IF(('MEMORIAL DESCRITIVO'!$D$10:$D$4000=E15)*('MEMORIAL DESCRITIVO'!$E$10:$E$4000=\"Sim\"),ROW('MEMORIAL DESCRITIVO'!L$10:L$4000)-9),A15)),\"\")","v":""},{"$f":"IFERROR(\n  INDEX('MEMORIAL DESCRITIVO'!T$10:T$4000,\n    SMALL(\n      IF(\n        ('MEMORIAL DESCRITIVO'!$D$10:$D$4000=E15)*\n        ('MEMORIAL DESCRITIVO'!$E$10:$E$4000=\"Sim\"),\n        ROW('MEMORIAL DESCRITIVO'!T$10:T$4000)-9\n      ),\n      A15\n    )\n  ),\n\"\")","v":""},{"$f":"IFERROR(\n  INDEX('MEMORIAL DESCRITIVO'!AA$10:AA$4000,\n    SMALL(\n      IF(\n        ('MEMORIAL DESCRITIVO'!$D$10:$D$4000=E15)*\n        ('MEMORIAL DESCRITIVO'!$E$10:$E$4000=\"Sim\"),\n        ROW('MEMORIAL DESCRITIVO'!AA$10:AA$4000)-9\n      ),\n      A15\n    )\n  ),\n\"\")","v":""},{"$f":"IFERROR(\n  INDEX('MEMORIAL DESCRITIVO'!AB$10:AB$4000,\n    SMALL(\n      IF(\n        ('MEMORIAL DESCRITIVO'!$D$10:$D$4000=E15)*\n        ('MEMORIAL DESCRITIVO'!$E$10:$E$4000=\"Sim\"),\n        ROW('MEMORIAL DESCRITIVO'!AB$10:AB$4000)-9\n      ),\n      A15\n    )\n  ),\n\"\")","v":""},{"$f":"IFERROR(\n  INDEX('MEMORIAL DESCRITIVO'!AF$10:AF$4000,\n    SMALL(\n      IF(\n        ('MEMORIAL DESCRITIVO'!$D$10:$D$4000=E15)*\n        ('MEMORIAL DESCRITIVO'!$E$10:$E$4000=\"Sim\"),\n        ROW('MEMORIAL DESCRITIVO'!AF$10:AF$4000)-9\n      ),\n      A15\n    )\n  ),\n\"\")","v":""},{"$f":"IFERROR(\n  INDEX('MEMORIAL DESCRITIVO'!AE$10:AE$4000,\n    SMALL(\n      IF(\n        ('MEMORIAL DESCRITIVO'!$D$10:$D$4000=E15)*\n        ('MEMORIAL DESCRITIVO'!$E$10:$E$4000=\"Sim\"),\n        ROW('MEMORIAL DESCRITIVO'!AE$10:AE$4000)-9\n      ),\n      A15\n    )\n  ),\n\"\")","v":""},{"$f":"IFERROR(\n  INDEX('MEMORIAL DESCRITIVO'!AI$10:AI$4000,\n    SMALL(\n      IF(\n        ('MEMORIAL DESCRITIVO'!$D$10:$D$4000=E15)*\n        ('MEMORIAL DESCRITIVO'!$E$10:$E$4000=\"Sim\"),\n        ROW('MEMORIAL DESCRITIVO'!AI$10:AI$4000)-9\n      ),\n      A15\n    )\n  ),\n\"\")","v":""},{"$f":"IFERROR(INDEX('MEMORIAL DESCRITIVO'!AJ$10:AJ$4000,SMALL(IF(('MEMORIAL DESCRITIVO'!$D$10:$D$4000=E15)*('MEMORIAL DESCRITIVO'!$E$10:$E$4000=\"Sim\"),ROW('MEMORIAL DESCRITIVO'!AJ$10:AJ$4000)-9),A15)),\"\")","v":""},{"$f":"IFERROR(INDEX('MEMORIAL DESCRITIVO'!AL$10:AL$4000,SMALL(IF(('MEMORIAL DESCRITIVO'!$D$10:$D$4000=E15)*('MEMORIAL DESCRITIVO'!$E$10:$E$4000=\"Sim\"),ROW('MEMORIAL DESCRITIVO'!AL$10:AL$4000)-9),A15)),\"\")","v":""},{"$f":"IFERROR(INDEX('MEMORIAL DESCRITIVO'!AO$10:AO$4000,SMALL(IF(('MEMORIAL DESCRITIVO'!$D$10:$D$4000=E15)*('MEMORIAL DESCRITIVO'!$E$10:$E$4000=\"Sim\"),ROW('MEMORIAL DESCRITIVO'!AO$10:AO$4000)-9),A15)),\"\")","v":""},{"$f":"IFERROR(INDEX('MEMORIAL DESCRITIVO'!AP$10:AP$4000,SMALL(IF(('MEMORIAL DESCRITIVO'!$D$10:$D$4000=E15)*('MEMORIAL DESCRITIVO'!$E$10:$E$4000=\"Sim\"),ROW('MEMORIAL DESCRITIVO'!AP$10:AP$4000)-9),A15)),\"\")","v":""},{"$f":"IFERROR(INDEX('MEMORIAL DESCRITIVO'!AS$10:AS$4000,SMALL(IF(('MEMORIAL DESCRITIVO'!$D$10:$D$4000=E15)*('MEMORIAL DESCRITIVO'!$E$10:$E$4000=\"Sim\"),ROW('MEMORIAL DESCRITIVO'!AS$10:AS$4000)-9),A15)),\"\")","v":""}]
[{"$f":"COUNTIF($E$12:E16, E16)","v":5},5,null,"",{"$f":"IFERROR(INDEX('MEMORIAL DESCRITIVO'!D$10:D$4000,SMALL(IF('MEMORIAL DESCRITIVO'!$E$10:$E$4000=\"Sim\",ROW('MEMORIAL DESCRITIVO'!D$10:D$4000)-9),ROW(B5))), \"\")","v":""},{"$f":"IFERROR(INDEX('MEMORIAL DESCRITIVO'!G$10:G$4000,SMALL(IF(('MEMORIAL DESCRITIVO'!$D$10:$D$4000=E16)*('MEMORIAL DESCRITIVO'!$E$10:$E$4000=\"Sim\"),ROW('MEMORIAL DESCRITIVO'!G$10:G$4000)-9),A16)),\"\")","v":""},{"$f":"IFERROR(\n  INDEX('MEMORIAL DESCRITIVO'!I$10:I$4000,\n    SMALL(IF(('MEMORIAL DESCRITIVO'!$D$10:$D$4000=E16)*('MEMORIAL DESCRITIVO'!$E$10:$E$4000=\"Sim\"),ROW('MEMORIAL DESCRITIVO'!I$10:I$4000)-9),A16))\n  & \" \" &\n  INDEX('MEMORIAL DESCRITIVO'!J$10:J$4000,\n    SMALL(IF(('MEMORIAL DESCRITIVO'!$D$10:$D$4000=E16)*('MEMORIAL DESCRITIVO'!$E$10:$E$4000=\"Sim\"),ROW('MEMORIAL DESCRITIVO'!J$10:J$4000)-9),A16)),\n\"\")","v":""},{"$f":"IFERROR(\n  INDEX('MEMORIAL DESCRITIVO'!H$10:H$4000,\n    SMALL(\n      IF(\n        ('MEMORIAL DESCRITIVO'!$D$10:$D$4000=E16)*\n        ('MEMORIAL DESCRITIVO'!$E$10:$E$4000=\"Sim\"),\n        ROW('MEMORIAL DESCRITIVO'!H$10:H$4000)-9\n      ),\n      A16\n    )\n  ),\n\"\")","v":""},{"$f":"IFERROR(\n  INDEX('MEMORIAL DESCRITIVO'!K$10:K$4000,\n    SMALL(\n      IF(\n        ('MEMORIAL DESCRITIVO'!$D$10:$D$4000=E16)*\n        ('MEMORIAL DESCRITIVO'!$E$10:$E$4000=\"Sim\"),\n        ROW('MEMORIAL DESCRITIVO'!K$10:K$4000)-9\n      ),\n      A16\n    )\n  ),\n\"\")","v":""},{"$f":"IFERROR(\n  INDEX('MEMORIAL DESCRITIVO'!N$10:N$4000,\n    SMALL(\n      IF(\n        ('MEMORIAL DESCRITIVO'!$D$10:$D$4000=E16)*\n        ('MEMORIAL DESCRITIVO'!$E$10:$E$4000=\"Sim\"),\n        ROW('MEMORIAL DESCRITIVO'!N$10:N$4000)-9\n      ),\n      A16\n    )\n  ),\n\"\")","v":""},{"$f":"IFERROR(\n  INDEX('MEMORIAL DESCRITIVO'!Q$10:Q$4000,\n    SMALL(\n      IF(\n        ('MEMORIAL DESCRITIVO'!$D$10:$D$4000=E16)*\n        ('MEMORIAL DESCRITIVO'!$E$10:$E$4000=\"Sim\"),\n        ROW('MEMORIAL DESCRITIVO'!Q$10:Q$4000)-9\n      ),\n      A16\n    )\n  ),\n\"\")","v":""},{"$f":"IFERROR(\n  INDEX('MEMORIAL DESCRITIVO'!R$10:R$4000,\n    SMALL(\n      IF(\n        ('MEMORIAL DESCRITIVO'!$D$10:$D$4000=E16)*\n        ('MEMORIAL DESCRITIVO'!$E$10:$E$4000=\"Sim\"),\n        ROW('MEMORIAL DESCRITIVO'!R$10:R$4000)-9\n      ),\n      A16\n    )\n  ),\n\"\")","v":""},{"$f":"IFERROR(INDEX('MEMORIAL DESCRITIVO'!L$10:L$4000,SMALL(IF(('MEMORIAL DESCRITIVO'!$D$10:$D$4000=E16)*('MEMORIAL DESCRITIVO'!$E$10:$E$4000=\"Sim\"),ROW('MEMORIAL DESCRITIVO'!L$10:L$4000)-9),A16)),\"\")","v":""},{"$f":"IFERROR(\n  INDEX('MEMORIAL DESCRITIVO'!T$10:T$4000,\n    SMALL(\n      IF(\n        ('MEMORIAL DESCRITIVO'!$D$10:$D$4000=E16)*\n        ('MEMORIAL DESCRITIVO'!$E$10:$E$4000=\"Sim\"),\n        ROW('MEMORIAL DESCRITIVO'!T$10:T$4000)-9\n      ),\n      A16\n    )\n  ),\n\"\")","v":""},{"$f":"IFERROR(\n  INDEX('MEMORIAL DESCRITIVO'!AA$10:AA$4000,\n    SMALL(\n      IF(\n        ('MEMORIAL DESCRITIVO'!$D$10:$D$4000=E16)*\n        ('MEMORIAL DESCRITIVO'!$E$10:$E$4000=\"Sim\"),\n        ROW('MEMORIAL DESCRITIVO'!AA$10:AA$4000)-9\n      ),\n      A16\n    )\n  ),\n\"\")","v":""},{"$f":"IFERROR(\n  INDEX('MEMORIAL DESCRITIVO'!AB$10:AB$4000,\n    SMALL(\n      IF(\n        ('MEMORIAL DESCRITIVO'!$D$10:$D$4000=E16)*\n        ('MEMORIAL DESCRITIVO'!$E$10:$E$4000=\"Sim\"),\n        ROW('MEMORIAL DESCRITIVO'!AB$10:AB$4000)-9\n      ),\n      A16\n    )\n  ),\n\"\")","v":""},{"$f":"IFERROR(\n  INDEX('MEMORIAL DESCRITIVO'!AF$10:AF$4000,\n    SMALL(\n      IF(\n        ('MEMORIAL DESCRITIVO'!$D$10:$D$4000=E16)*\n        ('MEMORIAL DESCRITIVO'!$E$10:$E$4000=\"Sim\"),\n        ROW('MEMORIAL DESCRITIVO'!AF$10:AF$4000)-9\n      ),\n      A16\n    )\n  ),\n\"\")","v":""},{"$f":"IFERROR(\n  INDEX('MEMORIAL DESCRITIVO'!AE$10:AE$4000,\n    SMALL(\n      IF(\n        ('MEMORIAL DESCRITIVO'!$D$10:$D$4000=E16)*\n        ('MEMORIAL DESCRITIVO'!$E$10:$E$4000=\"Sim\"),\n        ROW('MEMORIAL DESCRITIVO'!AE$10:AE$4000)-9\n      ),\n      A16\n    )\n  ),\n\"\")","v":""},{"$f":"IFERROR(\n  INDEX('MEMORIAL DESCRITIVO'!AI$10:AI$4000,\n    SMALL(\n      IF(\n        ('MEMORIAL DESCRITIVO'!$D$10:$D$4000=E16)*\n        ('MEMORIAL DESCRITIVO'!$E$10:$E$4000=\"Sim\"),\n        ROW('MEMORIAL DESCRITIVO'!AI$10:AI$4000)-9\n      ),\n      A16\n    )\n  ),\n\"\")","v":""},{"$f":"IFERROR(INDEX('MEMORIAL DESCRITIVO'!AJ$10:AJ$4000,SMALL(IF(('MEMORIAL DESCRITIVO'!$D$10:$D$4000=E16)*('MEMORIAL DESCRITIVO'!$E$10:$E$4000=\"Sim\"),ROW('MEMORIAL DESCRITIVO'!AJ$10:AJ$4000)-9),A16)),\"\")","v":""},{"$f":"IFERROR(INDEX('MEMORIAL DESCRITIVO'!AL$10:AL$4000,SMALL(IF(('MEMORIAL DESCRITIVO'!$D$10:$D$4000=E16)*('MEMORIAL DESCRITIVO'!$E$10:$E$4000=\"Sim\"),ROW('MEMORIAL DESCRITIVO'!AL$10:AL$4000)-9),A16)),\"\")","v":""},{"$f":"IFERROR(INDEX('MEMORIAL DESCRITIVO'!AO$10:AO$4000,SMALL(IF(('MEMORIAL DESCRITIVO'!$D$10:$D$4000=E16)*('MEMORIAL DESCRITIVO'!$E$10:$E$4000=\"Sim\"),ROW('MEMORIAL DESCRITIVO'!AO$10:AO$4000)-9),A16)),\"\")","v":""},{"$f":"IFERROR(INDEX('MEMORIAL DESCRITIVO'!AP$10:AP$4000,SMALL(IF(('MEMORIAL DESCRITIVO'!$D$10:$D$4000=E16)*('MEMORIAL DESCRITIVO'!$E$10:$E$4000=\"Sim\"),ROW('MEMORIAL DESCRITIVO'!AP$10:AP$4000)-9),A16)),\"\")","v":""},{"$f":"IFERROR(INDEX('MEMORIAL DESCRITIVO'!AS$10:AS$4000,SMALL(IF(('MEMORIAL DESCRITIVO'!$D$10:$D$4000=E16)*('MEMORIAL DESCRITIVO'!$E$10:$E$4000=\"Sim\"),ROW('MEMORIAL DESCRITIVO'!AS$10:AS$4000)-9),A16)),\"\")","v":""}]
[{"$f":"COUNTIF($E$12:E17, E17)","v":6},6,null,"",{"$f":"IFERROR(INDEX('MEMORIAL DESCRITIVO'!D$10:D$4000,SMALL(IF('MEMORIAL DESCRITIVO'!$E$10:$E$4000=\"Sim\",ROW('MEMORIAL DESCRITIVO'!D$10:D$4000)-9),ROW(B6))), \"\")","v":""},{"$f":"IFERROR(INDEX('MEMORIAL DESCRITIVO'!G$10:G$4000,SMALL(IF(('MEMORIAL DESCRITIVO'!$D$10:$D$4000=E17)*('MEMORIAL DESCRITIVO'!$E$10:$E$4000=\"Sim\"),ROW('MEMORIAL DESCRITIVO'!G$10:G$4000)-9),A17)),\"\")","v":""},{"$f":"IFERROR(\n  INDEX('MEMORIAL DESCRITIVO'!I$10:I$4000,\n    SMALL(IF(('MEMORIAL DESCRITIVO'!$D$10:$D$4000=E17)*('MEMORIAL DESCRITIVO'!$E$10:$E$4000=\"Sim\"),ROW('MEMORIAL DESCRITIVO'!I$10:I$4000)-9),A17))\n  & \" \" &\n  INDEX('MEMORIAL DESCRITIVO'!J$10:J$4000,\n    SMALL(IF(('MEMORIAL DESCRITIVO'!$D$10:$D$4000=E17)*('MEMORIAL DESCRITIVO'!$E$10:$E$4000=\"Sim\"),ROW('MEMORIAL DESCRITIVO'!J$10:J$4000)-9),A17)),\n\"\")","v":""},{"$f":"IFERROR(\n  INDEX('MEMORIAL DESCRITIVO'!H$10:H$4000,\n    SMALL(\n      IF(\n        ('MEMORIAL DESCRITIVO'!$D$10:$D$4000=E17)*\n        ('MEMORIAL DESCRITIVO'!$E$10:$E$4000=\"Sim\"),\n        ROW('MEMORIAL DESCRITIVO'!H$10:H$4000)-9\n      ),\n      A17\n    )\n  ),\n\"\")","v":""},{"$f":"IFERROR(\n  INDEX('MEMORIAL DESCRITIVO'!K$10:K$4000,\n    SMALL(\n      IF(\n        ('MEMORIAL DESCRITIVO'!$D$10:$D$4000=E17)*\n        ('MEMORIAL DESCRITIVO'!$E$10:$E$4000=\"Sim\"),\n        ROW('MEMORIAL DESCRITIVO'!K$10:K$4000)-9\n      ),\n      A17\n    )\n  ),\n\"\")","v":""},{"$f":"IFERROR(\n  INDEX('MEMORIAL DESCRITIVO'!N$10:N$4000,\n    SMALL(\n      IF(\n        ('MEMORIAL DESCRITIVO'!$D$10:$D$4000=E17)*\n        ('MEMORIAL DESCRITIVO'!$E$10:$E$4000=\"Sim\"),\n        ROW('MEMORIAL DESCRITIVO'!N$10:N$4000)-9\n      ),\n      A17\n    )\n  ),\n\"\")","v":""},{"$f":"IFERROR(\n  INDEX('MEMORIAL DESCRITIVO'!Q$10:Q$4000,\n    SMALL(\n      IF(\n        ('MEMORIAL DESCRITIVO'!$D$10:$D$4000=E17)*\n        ('MEMORIAL DESCRITIVO'!$E$10:$E$4000=\"Sim\"),\n        ROW('MEMORIAL DESCRITIVO'!Q$10:Q$4000)-9\n      ),\n      A17\n    )\n  ),\n\"\")","v":""},{"$f":"IFERROR(\n  INDEX('MEMORIAL DESCRITIVO'!R$10:R$4000,\n    SMALL(\n      IF(\n        ('MEMORIAL DESCRITIVO'!$D$10:$D$4000=E17)*\n        ('MEMORIAL DESCRITIVO'!$E$10:$E$4000=\"Sim\"),\n        ROW('MEMORIAL DESCRITIVO'!R$10:R$4000)-9\n      ),\n      A17\n    )\n  ),\n\"\")","v":""},{"$f":"IFERROR(INDEX('MEMORIAL DESCRITIVO'!L$10:L$4000,SMALL(IF(('MEMORIAL DESCRITIVO'!$D$10:$D$4000=E17)*('MEMORIAL DESCRITIVO'!$E$10:$E$4000=\"Sim\"),ROW('MEMORIAL DESCRITIVO'!L$10:L$4000)-9),A17)),\"\")","v":""},{"$f":"IFERROR(\n  INDEX('MEMORIAL DESCRITIVO'!T$10:T$4000,\n    SMALL(\n      IF(\n        ('MEMORIAL DESCRITIVO'!$D$10:$D$4000=E17)*\n        ('MEMORIAL DESCRITIVO'!$E$10:$E$4000=\"Sim\"),\n        ROW('MEMORIAL DESCRITIVO'!T$10:T$4000)-9\n      ),\n      A17\n    )\n  ),\n\"\")","v":""},{"$f":"IFERROR(\n  INDEX('MEMORIAL DESCRITIVO'!AA$10:AA$4000,\n    SMALL(\n      IF(\n        ('MEMORIAL DESCRITIVO'!$D$10:$D$4000=E17)*\n        ('MEMORIAL DESCRITIVO'!$E$10:$E$4000=\"Sim\"),\n        ROW('MEMORIAL DESCRITIVO'!AA$10:AA$4000)-9\n      ),\n      A17\n    )\n  ),\n\"\")","v":""},{"$f":"IFERROR(\n  INDEX('MEMORIAL DESCRITIVO'!AB$10:AB$4000,\n    SMALL(\n      IF(\n        ('MEMORIAL DESCRITIVO'!$D$10:$D$4000=E17)*\n        ('MEMORIAL DESCRITIVO'!$E$10:$E$4000=\"Sim\"),\n        ROW('MEMORIAL DESCRITIVO'!AB$10:AB$4000)-9\n      ),\n      A17\n    )\n  ),\n\"\")","v":""},{"$f":"IFERROR(\n  INDEX('MEMORIAL DESCRITIVO'!AF$10:AF$4000,\n    SMALL(\n      IF(\n        ('MEMORIAL DESCRITIVO'!$D$10:$D$4000=E17)*\n        ('MEMORIAL DESCRITIVO'!$E$10:$E$4000=\"Sim\"),\n        ROW('MEMORIAL DESCRITIVO'!AF$10:AF$4000)-9\n      ),\n      A17\n    )\n  ),\n\"\")","v":""},{"$f":"IFERROR(\n  INDEX('MEMORIAL DESCRITIVO'!AE$10:AE$4000,\n    SMALL(\n      IF(\n        ('MEMORIAL DESCRITIVO'!$D$10:$D$4000=E17)*\n        ('MEMORIAL DESCRITIVO'!$E$10:$E$4000=\"Sim\"),\n        ROW('MEMORIAL DESCRITIVO'!AE$10:AE$4000)-9\n      ),\n      A17\n    )\n  ),\n\"\")","v":""},{"$f":"IFERROR(\n  INDEX('MEMORIAL DESCRITIVO'!AI$10:AI$4000,\n    SMALL(\n      IF(\n        ('MEMORIAL DESCRITIVO'!$D$10:$D$4000=E17)*\n        ('MEMORIAL DESCRITIVO'!$E$10:$E$4000=\"Sim\"),\n        ROW('MEMORIAL DESCRITIVO'!AI$10:AI$4000)-9\n      ),\n      A17\n    )\n  ),\n\"\")","v":""},{"$f":"IFERROR(INDEX('MEMORIAL DESCRITIVO'!AJ$10:AJ$4000,SMALL(IF(('MEMORIAL DESCRITIVO'!$D$10:$D$4000=E17)*('MEMORIAL DESCRITIVO'!$E$10:$E$4000=\"Sim\"),ROW('MEMORIAL DESCRITIVO'!AJ$10:AJ$4000)-9),A17)),\"\")","v":""},{"$f":"IFERROR(INDEX('MEMORIAL DESCRITIVO'!AL$10:AL$4000,SMALL(IF(('MEMORIAL DESCRITIVO'!$D$10:$D$4000=E17)*('MEMORIAL DESCRITIVO'!$E$10:$E$4000=\"Sim\"),ROW('MEMORIAL DESCRITIVO'!AL$10:AL$4000)-9),A17)),\"\")","v":""},{"$f":"IFERROR(INDEX('MEMORIAL DESCRITIVO'!AO$10:AO$4000,SMALL(IF(('MEMORIAL DESCRITIVO'!$D$10:$D$4000=E17)*('MEMORIAL DESCRITIVO'!$E$10:$E$4000=\"Sim\"),ROW('MEMORIAL DESCRITIVO'!AO$10:AO$4000)-9),A17)),\"\")","v":""},{"$f":"IFERROR(INDEX('MEMORIAL DESCRITIVO'!AP$10:AP$4000,SMALL(IF(('MEMORIAL DESCRITIVO'!$D$10:$D$4000=E17)*('MEMORIAL DESCRITIVO'!$E$10:$E$4000=\"Sim\"),ROW('MEMORIAL DESCRITIVO'!AP$10:AP$4000)-9),A17)),\"\")","v":""},{"$f":"IFERROR(INDEX('MEMORIAL DESCRITIVO'!AS$10:AS$4000,SMALL(IF(('MEMORIAL DESCRITIVO'!$D$10:$D$4000=E17)*('MEMORIAL DESCRITIVO'!$E$10:$E$4000=\"Sim\"),ROW('MEMORIAL DESCRITIVO'!AS$10:AS$4000)-9),A17)),\"\")","v":""}]
[{"$f":"COUNTIF($E$12:E18, E18)","v":7},7,null,"",{"$f":"IFERROR(INDEX('MEMORIAL DESCRITIVO'!D$10:D$4000,SMALL(IF('MEMORIAL DESCRITIVO'!$E$10:$E$4000=\"Sim\",ROW('MEMORIAL DESCRITIVO'!D$10:D$4000)-9),ROW(B7))), \"\")","v":""},{"$f":"IFERROR(INDEX('MEMORIAL DESCRITIVO'!G$10:G$4000,SMALL(IF(('MEMORIAL DESCRITIVO'!$D$10:$D$4000=E18)*('MEMORIAL DESCRITIVO'!$E$10:$E$4000=\"Sim\"),ROW('MEMORIAL DESCRITIVO'!G$10:G$4000)-9),A18)),\"\")","v":""},{"$f":"IFERROR(\n  INDEX('MEMORIAL DESCRITIVO'!I$10:I$4000,\n    SMALL(IF(('MEMORIAL DESCRITIVO'!$D$10:$D$4000=E18)*('MEMORIAL DESCRITIVO'!$E$10:$E$4000=\"Sim\"),ROW('MEMORIAL DESCRITIVO'!I$10:I$4000)-9),A18))\n  & \" \" &\n  INDEX('MEMORIAL DESCRITIVO'!J$10:J$4000,\n    SMALL(IF(('MEMORIAL DESCRITIVO'!$D$10:$D$4000=E18)*('MEMORIAL DESCRITIVO'!$E$10:$E$4000=\"Sim\"),ROW('MEMORIAL DESCRITIVO'!J$10:J$4000)-9),A18)),\n\"\")","v":""},{"$f":"IFERROR(\n  INDEX('MEMORIAL DESCRITIVO'!H$10:H$4000,\n    SMALL(\n      IF(\n        ('MEMORIAL DESCRITIVO'!$D$10:$D$4000=E18)*\n        ('MEMORIAL DESCRITIVO'!$E$10:$E$4000=\"Sim\"),\n        ROW('MEMORIAL DESCRITIVO'!H$10:H$4000)-9\n      ),\n      A18\n    )\n  ),\n\"\")","v":""},{"$f":"IFERROR(\n  INDEX('MEMORIAL DESCRITIVO'!K$10:K$4000,\n    SMALL(\n      IF(\n        ('MEMORIAL DESCRITIVO'!$D$10:$D$4000=E18)*\n        ('MEMORIAL DESCRITIVO'!$E$10:$E$4000=\"Sim\"),\n        ROW('MEMORIAL DESCRITIVO'!K$10:K$4000)-9\n      ),\n      A18\n    )\n  ),\n\"\")","v":""},{"$f":"IFERROR(\n  INDEX('MEMORIAL DESCRITIVO'!N$10:N$4000,\n    SMALL(\n      IF(\n        ('MEMORIAL DESCRITIVO'!$D$10:$D$4000=E18)*\n        ('MEMORIAL DESCRITIVO'!$E$10:$E$4000=\"Sim\"),\n        ROW('MEMORIAL DESCRITIVO'!N$10:N$4000)-9\n      ),\n      A18\n    )\n  ),\n\"\")","v":""},{"$f":"IFERROR(\n  INDEX('MEMORIAL DESCRITIVO'!Q$10:Q$4000,\n    SMALL(\n      IF(\n        ('MEMORIAL DESCRITIVO'!$D$10:$D$4000=E18)*\n        ('MEMORIAL DESCRITIVO'!$E$10:$E$4000=\"Sim\"),\n        ROW('MEMORIAL DESCRITIVO'!Q$10:Q$4000)-9\n      ),\n      A18\n    )\n  ),\n\"\")","v":""},{"$f":"IFERROR(\n  INDEX('MEMORIAL DESCRITIVO'!R$10:R$4000,\n    SMALL(\n      IF(\n        ('MEMORIAL DESCRITIVO'!$D$10:$D$4000=E18)*\n        ('MEMORIAL DESCRITIVO'!$E$10:$E$4000=\"Sim\"),\n        ROW('MEMORIAL DESCRITIVO'!R$10:R$4000)-9\n      ),\n      A18\n    )\n  ),\n\"\")","v":""},{"$f":"IFERROR(INDEX('MEMORIAL DESCRITIVO'!L$10:L$4000,SMALL(IF(('MEMORIAL DESCRITIVO'!$D$10:$D$4000=E18)*('MEMORIAL DESCRITIVO'!$E$10:$E$4000=\"Sim\"),ROW('MEMORIAL DESCRITIVO'!L$10:L$4000)-9),A18)),\"\")","v":""},{"$f":"IFERROR(\n  INDEX('MEMORIAL DESCRITIVO'!T$10:T$4000,\n    SMALL(\n      IF(\n        ('MEMORIAL DESCRITIVO'!$D$10:$D$4000=E18)*\n        ('MEMORIAL DESCRITIVO'!$E$10:$E$4000=\"Sim\"),\n        ROW('MEMORIAL DESCRITIVO'!T$10:T$4000)-9\n      ),\n      A18\n    )\n  ),\n\"\")","v":""},{"$f":"IFERROR(\n  INDEX('MEMORIAL DESCRITIVO'!AA$10:AA$4000,\n    SMALL(\n      IF(\n        ('MEMORIAL DESCRITIVO'!$D$10:$D$4000=E18)*\n        ('MEMORIAL DESCRITIVO'!$E$10:$E$4000=\"Sim\"),\n        ROW('MEMORIAL DESCRITIVO'!AA$10:AA$4000)-9\n      ),\n      A18\n    )\n  ),\n\"\")","v":""},{"$f":"IFERROR(\n  INDEX('MEMORIAL DESCRITIVO'!AB$10:AB$4000,\n    SMALL(\n      IF(\n        ('MEMORIAL DESCRITIVO'!$D$10:$D$4000=E18)*\n        ('MEMORIAL DESCRITIVO'!$E$10:$E$4000=\"Sim\"),\n        ROW('MEMORIAL DESCRITIVO'!AB$10:AB$4000)-9\n      ),\n      A18\n    )\n  ),\n\"\")","v":""},{"$f":"IFERROR(\n  INDEX('MEMORIAL DESCRITIVO'!AF$10:AF$4000,\n    SMALL(\n      IF(\n        ('MEMORIAL DESCRITIVO'!$D$10:$D$4000=E18)*\n        ('MEMORIAL DESCRITIVO'!$E$10:$E$4000=\"Sim\"),\n        ROW('MEMORIAL DESCRITIVO'!AF$10:AF$4000)-9\n      ),\n      A18\n    )\n  ),\n\"\")","v":""},{"$f":"IFERROR(\n  INDEX('MEMORIAL DESCRITIVO'!AE$10:AE$4000,\n    SMALL(\n      IF(\n        ('MEMORIAL DESCRITIVO'!$D$10:$D$4000=E18)*\n        ('MEMORIAL DESCRITIVO'!$E$10:$E$4000=\"Sim\"),\n        ROW('MEMORIAL DESCRITIVO'!AE$10:AE$4000)-9\n      ),\n      A18\n    )\n  ),\n\"\")","v":""},{"$f":"IFERROR(\n  INDEX('MEMORIAL DESCRITIVO'!AI$10:AI$4000,\n    SMALL(\n      IF(\n        ('MEMORIAL DESCRITIVO'!$D$10:$D$4000=E18)*\n        ('MEMORIAL DESCRITIVO'!$E$10:$E$4000=\"Sim\"),\n        ROW('MEMORIAL DESCRITIVO'!AI$10:AI$4000)-9\n      ),\n      A18\n    )\n  ),\n\"\")","v":""},{"$f":"IFERROR(INDEX('MEMORIAL DESCRITIVO'!AJ$10:AJ$4000,SMALL(IF(('MEMORIAL DESCRITIVO'!$D$10:$D$4000=E18)*('MEMORIAL DESCRITIVO'!$E$10:$E$4000=\"Sim\"),ROW('MEMORIAL DESCRITIVO'!AJ$10:AJ$4000)-9),A18)),\"\")","v":""},{"$f":"IFERROR(INDEX('MEMORIAL DESCRITIVO'!AL$10:AL$4000,SMALL(IF(('MEMORIAL DESCRITIVO'!$D$10:$D$4000=E18)*('MEMORIAL DESCRITIVO'!$E$10:$E$4000=\"Sim\"),ROW('MEMORIAL DESCRITIVO'!AL$10:AL$4000)-9),A18)),\"\")","v":""},{"$f":"IFERROR(INDEX('MEMORIAL DESCRITIVO'!AO$10:AO$4000,SMALL(IF(('MEMORIAL DESCRITIVO'!$D$10:$D$4000=E18)*('MEMORIAL DESCRITIVO'!$E$10:$E$4000=\"Sim\"),ROW('MEMORIAL DESCRITIVO'!AO$10:AO$4000)-9),A18)),\"\")","v":""},{"$f":"IFERROR(INDEX('MEMORIAL DESCRITIVO'!AP$10:AP$4000,SMALL(IF(('MEMORIAL DESCRITIVO'!$D$10:$D$4000=E18)*('MEMORIAL DESCRITIVO'!$E$10:$E$4000=\"Sim\"),ROW('MEMORIAL DESCRITIVO'!AP$10:AP$4000)-9),A18)),\"\")","v":""},{"$f":"IFERROR(INDEX('MEMORIAL DESCRITIVO'!AS$10:AS$4000,SMALL(IF(('MEMORIAL DESCRITIVO'!$D$10:$D$4000=E18)*('MEMORIAL DESCRITIVO'!$E$10:$E$4000=\"Sim\"),ROW('MEMORIAL DESCRITIVO'!AS$10:AS$4000)-9),A18)),\"\")","v":""}]
[{"$f":"COUNTIF($E$12:E19, E19)","v":8},8,null,"",{"$f":"IFERROR(INDEX('MEMORIAL DESCRITIVO'!D$10:D$4000,SMALL(IF('MEMORIAL DESCRITIVO'!$E$10:$E$4000=\"Sim\",ROW('MEMORIAL DESCRITIVO'!D$10:D$4000)-9),ROW(B8))), \"\")","v":""},{"$f":"IFERROR(INDEX('MEMORIAL DESCRITIVO'!G$10:G$4000,SMALL(IF(('MEMORIAL DESCRITIVO'!$D$10:$D$4000=E19)*('MEMORIAL DESCRITIVO'!$E$10:$E$4000=\"Sim\"),ROW('MEMORIAL DESCRITIVO'!G$10:G$4000)-9),A19)),\"\")","v":""},{"$f":"IFERROR(\n  INDEX('MEMORIAL DESCRITIVO'!I$10:I$4000,\n    SMALL(IF(('MEMORIAL DESCRITIVO'!$D$10:$D$4000=E19)*('MEMORIAL DESCRITIVO'!$E$10:$E$4000=\"Sim\"),ROW('MEMORIAL DESCRITIVO'!I$10:I$4000)-9),A19))\n  & \" \" &\n  INDEX('MEMORIAL DESCRITIVO'!J$10:J$4000,\n    SMALL(IF(('MEMORIAL DESCRITIVO'!$D$10:$D$4000=E19)*('MEMORIAL DESCRITIVO'!$E$10:$E$4000=\"Sim\"),ROW('MEMORIAL DESCRITIVO'!J$10:J$4000)-9),A19)),\n\"\")","v":""},{"$f":"IFERROR(\n  INDEX('MEMORIAL DESCRITIVO'!H$10:H$4000,\n    SMALL(\n      IF(\n        ('MEMORIAL DESCRITIVO'!$D$10:$D$4000=E19)*\n        ('MEMORIAL DESCRITIVO'!$E$10:$E$4000=\"Sim\"),\n        ROW('MEMORIAL DESCRITIVO'!H$10:H$4000)-9\n      ),\n      A19\n    )\n  ),\n\"\")","v":""},{"$f":"IFERROR(\n  INDEX('MEMORIAL DESCRITIVO'!K$10:K$4000,\n    SMALL(\n      IF(\n        ('MEMORIAL DESCRITIVO'!$D$10:$D$4000=E19)*\n        ('MEMORIAL DESCRITIVO'!$E$10:$E$4000=\"Sim\"),\n        ROW('MEMORIAL DESCRITIVO'!K$10:K$4000)-9\n      ),\n      A19\n    )\n  ),\n\"\")","v":""},{"$f":"IFERROR(\n  INDEX('MEMORIAL DESCRITIVO'!N$10:N$4000,\n    SMALL(\n      IF(\n        ('MEMORIAL DESCRITIVO'!$D$10:$D$4000=E19)*\n        ('MEMORIAL DESCRITIVO'!$E$10:$E$4000=\"Sim\"),\n        ROW('MEMORIAL DESCRITIVO'!N$10:N$4000)-9\n      ),\n      A19\n    )\n  ),\n\"\")","v":""},{"$f":"IFERROR(\n  INDEX('MEMORIAL DESCRITIVO'!Q$10:Q$4000,\n    SMALL(\n      IF(\n        ('MEMORIAL DESCRITIVO'!$D$10:$D$4000=E19)*\n        ('MEMORIAL DESCRITIVO'!$E$10:$E$4000=\"Sim\"),\n        ROW('MEMORIAL DESCRITIVO'!Q$10:Q$4000)-9\n      ),\n      A19\n    )\n  ),\n\"\")","v":""},{"$f":"IFERROR(\n  INDEX('MEMORIAL DESCRITIVO'!R$10:R$4000,\n    SMALL(\n      IF(\n        ('MEMORIAL DESCRITIVO'!$D$10:$D$4000=E19)*\n        ('MEMORIAL DESCRITIVO'!$E$10:$E$4000=\"Sim\"),\n        ROW('MEMORIAL DESCRITIVO'!R$10:R$4000)-9\n      ),\n      A19\n    )\n  ),\n\"\")","v":""},{"$f":"IFERROR(INDEX('MEMORIAL DESCRITIVO'!L$10:L$4000,SMALL(IF(('MEMORIAL DESCRITIVO'!$D$10:$D$4000=E19)*('MEMORIAL DESCRITIVO'!$E$10:$E$4000=\"Sim\"),ROW('MEMORIAL DESCRITIVO'!L$10:L$4000)-9),A19)),\"\")","v":""},{"$f":"IFERROR(\n  INDEX('MEMORIAL DESCRITIVO'!T$10:T$4000,\n    SMALL(\n      IF(\n        ('MEMORIAL DESCRITIVO'!$D$10:$D$4000=E19)*\n        ('MEMORIAL DESCRITIVO'!$E$10:$E$4000=\"Sim\"),\n        ROW('MEMORIAL DESCRITIVO'!T$10:T$4000)-9\n      ),\n      A19\n    )\n  ),\n\"\")","v":""},{"$f":"IFERROR(\n  INDEX('MEMORIAL DESCRITIVO'!AA$10:AA$4000,\n    SMALL(\n      IF(\n        ('MEMORIAL DESCRITIVO'!$D$10:$D$4000=E19)*\n        ('MEMORIAL DESCRITIVO'!$E$10:$E$4000=\"Sim\"),\n        ROW('MEMORIAL DESCRITIVO'!AA$10:AA$4000)-9\n      ),\n      A19\n    )\n  ),\n\"\")","v":""},{"$f":"IFERROR(\n  INDEX('MEMORIAL DESCRITIVO'!AB$10:AB$4000,\n    SMALL(\n      IF(\n        ('MEMORIAL DESCRITIVO'!$D$10:$D$4000=E19)*\n        ('MEMORIAL DESCRITIVO'!$E$10:$E$4000=\"Sim\"),\n        ROW('MEMORIAL DESCRITIVO'!AB$10:AB$4000)-9\n      ),\n      A19\n    )\n  ),\n\"\")","v":""},{"$f":"IFERROR(\n  INDEX('MEMORIAL DESCRITIVO'!AF$10:AF$4000,\n    SMALL(\n      IF(\n        ('MEMORIAL DESCRITIVO'!$D$10:$D$4000=E19)*\n        ('MEMORIAL DESCRITIVO'!$E$10:$E$4000=\"Sim\"),\n        ROW('MEMORIAL DESCRITIVO'!AF$10:AF$4000)-9\n      ),\n      A19\n    )\n  ),\n\"\")","v":""},{"$f":"IFERROR(\n  INDEX('MEMORIAL DESCRITIVO'!AE$10:AE$4000,\n    SMALL(\n      IF(\n        ('MEMORIAL DESCRITIVO'!$D$10:$D$4000=E19)*\n        ('MEMORIAL DESCRITIVO'!$E$10:$E$4000=\"Sim\"),\n        ROW('MEMORIAL DESCRITIVO'!AE$10:AE$4000)-9\n      ),\n      A19\n    )\n  ),\n\"\")","v":""},{"$f":"IFERROR(\n  INDEX('MEMORIAL DESCRITIVO'!AI$10:AI$4000,\n    SMALL(\n      IF(\n        ('MEMORIAL DESCRITIVO'!$D$10:$D$4000=E19)*\n        ('MEMORIAL DESCRITIVO'!$E$10:$E$4000=\"Sim\"),\n        ROW('MEMORIAL DESCRITIVO'!AI$10:AI$4000)-9\n      ),\n      A19\n    )\n  ),\n\"\")","v":""},{"$f":"IFERROR(INDEX('MEMORIAL DESCRITIVO'!AJ$10:AJ$4000,SMALL(IF(('MEMORIAL DESCRITIVO'!$D$10:$D$4000=E19)*('MEMORIAL DESCRITIVO'!$E$10:$E$4000=\"Sim\"),ROW('MEMORIAL DESCRITIVO'!AJ$10:AJ$4000)-9),A19)),\"\")","v":""},{"$f":"IFERROR(INDEX('MEMORIAL DESCRITIVO'!AL$10:AL$4000,SMALL(IF(('MEMORIAL DESCRITIVO'!$D$10:$D$4000=E19)*('MEMORIAL DESCRITIVO'!$E$10:$E$4000=\"Sim\"),ROW('MEMORIAL DESCRITIVO'!AL$10:AL$4000)-9),A19)),\"\")","v":""},{"$f":"IFERROR(INDEX('MEMORIAL DESCRITIVO'!AO$10:AO$4000,SMALL(IF(('MEMORIAL DESCRITIVO'!$D$10:$D$4000=E19)*('MEMORIAL DESCRITIVO'!$E$10:$E$4000=\"Sim\"),ROW('MEMORIAL DESCRITIVO'!AO$10:AO$4000)-9),A19)),\"\")","v":""},{"$f":"IFERROR(INDEX('MEMORIAL DESCRITIVO'!AP$10:AP$4000,SMALL(IF(('MEMORIAL DESCRITIVO'!$D$10:$D$4000=E19)*('MEMORIAL DESCRITIVO'!$E$10:$E$4000=\"Sim\"),ROW('MEMORIAL DESCRITIVO'!AP$10:AP$4000)-9),A19)),\"\")","v":""},{"$f":"IFERROR(INDEX('MEMORIAL DESCRITIVO'!AS$10:AS$4000,SMALL(IF(('MEMORIAL DESCRITIVO'!$D$10:$D$4000=E19)*('MEMORIAL DESCRITIVO'!$E$10:$E$4000=\"Sim\"),ROW('MEMORIAL DESCRITIVO'!AS$10:AS$4000)-9),A19)),\"\")","v":""}]
[{"$f":"COUNTIF($E$12:E20, E20)","v":9},9,null,null,{"$f":"IFERROR(INDEX('MEMORIAL DESCRITIVO'!D$10:D$4000,SMALL(IF('MEMORIAL DESCRITIVO'!$E$10:$E$4000=\"Sim\",ROW('MEMORIAL DESCRITIVO'!D$10:D$4000)-9),ROW(B9))), \"\")","v":""},{"$f":"IFERROR(INDEX('MEMORIAL DESCRITIVO'!G$10:G$4000,SMALL(IF(('MEMORIAL DESCRITIVO'!$D$10:$D$4000=E20)*('MEMORIAL DESCRITIVO'!$E$10:$E$4000=\"Sim\"),ROW('MEMORIAL DESCRITIVO'!G$10:G$4000)-9),A20)),\"\")","v":""},{"$f":"IFERROR(\n  INDEX('MEMORIAL DESCRITIVO'!I$10:I$4000,\n    SMALL(IF(('MEMORIAL DESCRITIVO'!$D$10:$D$4000=E20)*('MEMORIAL DESCRITIVO'!$E$10:$E$4000=\"Sim\"),ROW('MEMORIAL DESCRITIVO'!I$10:I$4000)-9),A20))\n  & \" \" &\n  INDEX('MEMORIAL DESCRITIVO'!J$10:J$4000,\n    SMALL(IF(('MEMORIAL DESCRITIVO'!$D$10:$D$4000=E20)*('MEMORIAL DESCRITIVO'!$E$10:$E$4000=\"Sim\"),ROW('MEMORIAL DESCRITIVO'!J$10:J$4000)-9),A20)),\n\"\")","v":""},{"$f":"IFERROR(\n  INDEX('MEMORIAL DESCRITIVO'!H$10:H$4000,\n    SMALL(\n      IF(\n        ('MEMORIAL DESCRITIVO'!$D$10:$D$4000=E20)*\n        ('MEMORIAL DESCRITIVO'!$E$10:$E$4000=\"Sim\"),\n        ROW('MEMORIAL DESCRITIVO'!H$10:H$4000)-9\n      ),\n      A20\n    )\n  ),\n\"\")","v":""},{"$f":"IFERROR(\n  INDEX('MEMORIAL DESCRITIVO'!K$10:K$4000,\n    SMALL(\n      IF(\n        ('MEMORIAL DESCRITIVO'!$D$10:$D$4000=E20)*\n        ('MEMORIAL DESCRITIVO'!$E$10:$E$4000=\"Sim\"),\n        ROW('MEMORIAL DESCRITIVO'!K$10:K$4000)-9\n      ),\n      A20\n    )\n  ),\n\"\")","v":""},{"$f":"IFERROR(\n  INDEX('MEMORIAL DESCRITIVO'!N$10:N$4000,\n    SMALL(\n      IF(\n        ('MEMORIAL DESCRITIVO'!$D$10:$D$4000=E20)*\n        ('MEMORIAL DESCRITIVO'!$E$10:$E$4000=\"Sim\"),\n        ROW('MEMORIAL DESCRITIVO'!N$10:N$4000)-9\n      ),\n      A20\n    )\n  ),\n\"\")","v":""},{"$f":"IFERROR(\n  INDEX('MEMORIAL DESCRITIVO'!Q$10:Q$4000,\n    SMALL(\n      IF(\n        ('MEMORIAL DESCRITIVO'!$D$10:$D$4000=E20)*\n        ('MEMORIAL DESCRITIVO'!$E$10:$E$4000=\"Sim\"),\n        ROW('MEMORIAL DESCRITIVO'!Q$10:Q$4000)-9\n      ),\n      A20\n    )\n  ),\n\"\")","v":""},{"$f":"IFERROR(\n  INDEX('MEMORIAL DESCRITIVO'!R$10:R$4000,\n    SMALL(\n      IF(\n        ('MEMORIAL DESCRITIVO'!$D$10:$D$4000=E20)*\n        ('MEMORIAL DESCRITIVO'!$E$10:$E$4000=\"Sim\"),\n        ROW('MEMORIAL DESCRITIVO'!R$10:R$4000)-9\n      ),\n      A20\n    )\n  ),\n\"\")","v":""},{"$f":"IFERROR(INDEX('MEMORIAL DESCRITIVO'!L$10:L$4000,SMALL(IF(('MEMORIAL DESCRITIVO'!$D$10:$D$4000=E20)*('MEMORIAL DESCRITIVO'!$E$10:$E$4000=\"Sim\"),ROW('MEMORIAL DESCRITIVO'!L$10:L$4000)-9),A20)),\"\")","v":""},{"$f":"IFERROR(\n  INDEX('MEMORIAL DESCRITIVO'!T$10:T$4000,\n    SMALL(\n      IF(\n        ('MEMORIAL DESCRITIVO'!$D$10:$D$4000=E20)*\n        ('MEMORIAL DESCRITIVO'!$E$10:$E$4000=\"Sim\"),\n        ROW('MEMORIAL DESCRITIVO'!T$10:T$4000)-9\n      ),\n      A20\n    )\n  ),\n\"\")","v":""},{"$f":"IFERROR(\n  INDEX('MEMORIAL DESCRITIVO'!AA$10:AA$4000,\n    SMALL(\n      IF(\n        ('MEMORIAL DESCRITIVO'!$D$10:$D$4000=E20)*\n        ('MEMORIAL DESCRITIVO'!$E$10:$E$4000=\"Sim\"),\n        ROW('MEMORIAL DESCRITIVO'!AA$10:AA$4000)-9\n      ),\n      A20\n    )\n  ),\n\"\")","v":""},{"$f":"IFERROR(\n  INDEX('MEMORIAL DESCRITIVO'!AB$10:AB$4000,\n    SMALL(\n      IF(\n        ('MEMORIAL DESCRITIVO'!$D$10:$D$4000=E20)*\n        ('MEMORIAL DESCRITIVO'!$E$10:$E$4000=\"Sim\"),\n        ROW('MEMORIAL DESCRITIVO'!AB$10:AB$4000)-9\n      ),\n      A20\n    )\n  ),\n\"\")","v":""},{"$f":"IFERROR(\n  INDEX('MEMORIAL DESCRITIVO'!AF$10:AF$4000,\n    SMALL(\n      IF(\n        ('MEMORIAL DESCRITIVO'!$D$10:$D$4000=E20)*\n        ('MEMORIAL DESCRITIVO'!$E$10:$E$4000=\"Sim\"),\n        ROW('MEMORIAL DESCRITIVO'!AF$10:AF$4000)-9\n      ),\n      A20\n    )\n  ),\n\"\")","v":""},{"$f":"IFERROR(\n  INDEX('MEMORIAL DESCRITIVO'!AE$10:AE$4000,\n    SMALL(\n      IF(\n        ('MEMORIAL DESCRITIVO'!$D$10:$D$4000=E20)*\n        ('MEMORIAL DESCRITIVO'!$E$10:$E$4000=\"Sim\"),\n        ROW('MEMORIAL DESCRITIVO'!AE$10:AE$4000)-9\n      ),\n      A20\n    )\n  ),\n\"\")","v":""},{"$f":"IFERROR(\n  INDEX('MEMORIAL DESCRITIVO'!AI$10:AI$4000,\n    SMALL(\n      IF(\n        ('MEMORIAL DESCRITIVO'!$D$10:$D$4000=E20)*\n        ('MEMORIAL DESCRITIVO'!$E$10:$E$4000=\"Sim\"),\n        ROW('MEMORIAL DESCRITIVO'!AI$10:AI$4000)-9\n      ),\n      A20\n    )\n  ),\n\"\")","v":""},{"$f":"IFERROR(INDEX('MEMORIAL DESCRITIVO'!AJ$10:AJ$4000,SMALL(IF(('MEMORIAL DESCRITIVO'!$D$10:$D$4000=E20)*('MEMORIAL DESCRITIVO'!$E$10:$E$4000=\"Sim\"),ROW('MEMORIAL DESCRITIVO'!AJ$10:AJ$4000)-9),A20)),\"\")","v":""},{"$f":"IFERROR(INDEX('MEMORIAL DESCRITIVO'!AL$10:AL$4000,SMALL(IF(('MEMORIAL DESCRITIVO'!$D$10:$D$4000=E20)*('MEMORIAL DESCRITIVO'!$E$10:$E$4000=\"Sim\"),ROW('MEMORIAL DESCRITIVO'!AL$10:AL$4000)-9),A20)),\"\")","v":""},{"$f":"IFERROR(INDEX('MEMORIAL DESCRITIVO'!AO$10:AO$4000,SMALL(IF(('MEMORIAL DESCRITIVO'!$D$10:$D$4000=E20)*('MEMORIAL DESCRITIVO'!$E$10:$E$4000=\"Sim\"),ROW('MEMORIAL DESCRITIVO'!AO$10:AO$4000)-9),A20)),\"\")","v":""},{"$f":"IFERROR(INDEX('MEMORIAL DESCRITIVO'!AP$10:AP$4000,SMALL(IF(('MEMORIAL DESCRITIVO'!$D$10:$D$4000=E20)*('MEMORIAL DESCRITIVO'!$E$10:$E$4000=\"Sim\"),ROW('MEMORIAL DESCRITIVO'!AP$10:AP$4000)-9),A20)),\"\")","v":""},{"$f":"IFERROR(INDEX('MEMORIAL DESCRITIVO'!AS$10:AS$4000,SMALL(IF(('MEMORIAL DESCRITIVO'!$D$10:$D$4000=E20)*('MEMORIAL DESCRITIVO'!$E$10:$E$4000=\"Sim\"),ROW('MEMORIAL DESCRITIVO'!AS$10:AS$4000)-9),A20)),\"\")","v":""}]
[{"$f":"COUNTIF($E$12:E21, E21)","v":10},10,null,null,{"$f":"IFERROR(INDEX('MEMORIAL DESCRITIVO'!D$10:D$4000,SMALL(IF('MEMORIAL DESCRITIVO'!$E$10:$E$4000=\"Sim\",ROW('MEMORIAL DESCRITIVO'!D$10:D$4000)-9),ROW(B10))), \"\")","v":""},{"$f":"IFERROR(INDEX('MEMORIAL DESCRITIVO'!G$10:G$4000,SMALL(IF(('MEMORIAL DESCRITIVO'!$D$10:$D$4000=E21)*('MEMORIAL DESCRITIVO'!$E$10:$E$4000=\"Sim\"),ROW('MEMORIAL DESCRITIVO'!G$10:G$4000)-9),A21)),\"\")","v":""},{"$f":"IFERROR(\n  INDEX('MEMORIAL DESCRITIVO'!I$10:I$4000,\n    SMALL(IF(('MEMORIAL DESCRITIVO'!$D$10:$D$4000=E21)*('MEMORIAL DESCRITIVO'!$E$10:$E$4000=\"Sim\"),ROW('MEMORIAL DESCRITIVO'!I$10:I$4000)-9),A21))\n  & \" \" &\n  INDEX('MEMORIAL DESCRITIVO'!J$10:J$4000,\n    SMALL(IF(('MEMORIAL DESCRITIVO'!$D$10:$D$4000=E21)*('MEMORIAL DESCRITIVO'!$E$10:$E$4000=\"Sim\"),ROW('MEMORIAL DESCRITIVO'!J$10:J$4000)-9),A21)),\n\"\")","v":""},{"$f":"IFERROR(\n  INDEX('MEMORIAL DESCRITIVO'!H$10:H$4000,\n    SMALL(\n      IF(\n        ('MEMORIAL DESCRITIVO'!$D$10:$D$4000=E21)*\n        ('MEMORIAL DESCRITIVO'!$E$10:$E$4000=\"Sim\"),\n        ROW('MEMORIAL DESCRITIVO'!H$10:H$4000)-9\n      ),\n      A21\n    )\n  ),\n\"\")","v":""},{"$f":"IFERROR(\n  INDEX('MEMORIAL DESCRITIVO'!K$10:K$4000,\n    SMALL(\n      IF(\n        ('MEMORIAL DESCRITIVO'!$D$10:$D$4000=E21)*\n        ('MEMORIAL DESCRITIVO'!$E$10:$E$4000=\"Sim\"),\n        ROW('MEMORIAL DESCRITIVO'!K$10:K$4000)-9\n      ),\n      A21\n    )\n  ),\n\"\")","v":""},{"$f":"IFERROR(\n  INDEX('MEMORIAL DESCRITIVO'!N$10:N$4000,\n    SMALL(\n      IF(\n        ('MEMORIAL DESCRITIVO'!$D$10:$D$4000=E21)*\n        ('MEMORIAL DESCRITIVO'!$E$10:$E$4000=\"Sim\"),\n        ROW('MEMORIAL DESCRITIVO'!N$10:N$4000)-9\n      ),\n      A21\n    )\n  ),\n\"\")","v":""},{"$f":"IFERROR(\n  INDEX('MEMORIAL DESCRITIVO'!Q$10:Q$4000,\n    SMALL(\n      IF(\n        ('MEMORIAL DESCRITIVO'!$D$10:$D$4000=E21)*\n        ('MEMORIAL DESCRITIVO'!$E$10:$E$4000=\"Sim\"),\n        ROW('MEMORIAL DESCRITIVO'!Q$10:Q$4000)-9\n      ),\n      A21\n    )\n  ),\n\"\")","v":""},{"$f":"IFERROR(\n  INDEX('MEMORIAL DESCRITIVO'!R$10:R$4000,\n    SMALL(\n      IF(\n        ('MEMORIAL DESCRITIVO'!$D$10:$D$4000=E21)*\n        ('MEMORIAL DESCRITIVO'!$E$10:$E$4000=\"Sim\"),\n        ROW('MEMORIAL DESCRITIVO'!R$10:R$4000)-9\n      ),\n      A21\n    )\n  ),\n\"\")","v":""},{"$f":"IFERROR(INDEX('MEMORIAL DESCRITIVO'!L$10:L$4000,SMALL(IF(('MEMORIAL DESCRITIVO'!$D$10:$D$4000=E21)*('MEMORIAL DESCRITIVO'!$E$10:$E$4000=\"Sim\"),ROW('MEMORIAL DESCRITIVO'!L$10:L$4000)-9),A21)),\"\")","v":""},{"$f":"IFERROR(\n  INDEX('MEMORIAL DESCRITIVO'!T$10:T$4000,\n    SMALL(\n      IF(\n        ('MEMORIAL DESCRITIVO'!$D$10:$D$4000=E21)*\n        ('MEMORIAL DESCRITIVO'!$E$10:$E$4000=\"Sim\"),\n        ROW('MEMORIAL DESCRITIVO'!T$10:T$4000)-9\n      ),\n      A21\n    )\n  ),\n\"\")","v":""},{"$f":"IFERROR(\n  INDEX('MEMORIAL DESCRITIVO'!AA$10:AA$4000,\n    SMALL(\n      IF(\n        ('MEMORIAL DESCRITIVO'!$D$10:$D$4000=E21)*\n        ('MEMORIAL DESCRITIVO'!$E$10:$E$4000=\"Sim\"),\n        ROW('MEMORIAL DESCRITIVO'!AA$10:AA$4000)-9\n      ),\n      A21\n    )\n  ),\n\"\")","v":""},{"$f":"IFERROR(\n  INDEX('MEMORIAL DESCRITIVO'!AB$10:AB$4000,\n    SMALL(\n      IF(\n        ('MEMORIAL DESCRITIVO'!$D$10:$D$4000=E21)*\n        ('MEMORIAL DESCRITIVO'!$E$10:$E$4000=\"Sim\"),\n        ROW('MEMORIAL DESCRITIVO'!AB$10:AB$4000)-9\n      ),\n      A21\n    )\n  ),\n\"\")","v":""},{"$f":"IFERROR(\n  INDEX('MEMORIAL DESCRITIVO'!AF$10:AF$4000,\n    SMALL(\n      IF(\n        ('MEMORIAL DESCRITIVO'!$D$10:$D$4000=E21)*\n        ('MEMORIAL DESCRITIVO'!$E$10:$E$4000=\"Sim\"),\n        ROW('MEMORIAL DESCRITIVO'!AF$10:AF$4000)-9\n      ),\n      A21\n    )\n  ),\n\"\")","v":""},{"$f":"IFERROR(\n  INDEX('MEMORIAL DESCRITIVO'!AE$10:AE$4000,\n    SMALL(\n      IF(\n        ('MEMORIAL DESCRITIVO'!$D$10:$D$4000=E21)*\n        ('MEMORIAL DESCRITIVO'!$E$10:$E$4000=\"Sim\"),\n        ROW('MEMORIAL DESCRITIVO'!AE$10:AE$4000)-9\n      ),\n      A21\n    )\n  ),\n\"\")","v":""},{"$f":"IFERROR(\n  INDEX('MEMORIAL DESCRITIVO'!AI$10:AI$4000,\n    SMALL(\n      IF(\n        ('MEMORIAL DESCRITIVO'!$D$10:$D$4000=E21)*\n        ('MEMORIAL DESCRITIVO'!$E$10:$E$4000=\"Sim\"),\n        ROW('MEMORIAL DESCRITIVO'!AI$10:AI$4000)-9\n      ),\n      A21\n    )\n  ),\n\"\")","v":""},{"$f":"IFERROR(INDEX('MEMORIAL DESCRITIVO'!AJ$10:AJ$4000,SMALL(IF(('MEMORIAL DESCRITIVO'!$D$10:$D$4000=E21)*('MEMORIAL DESCRITIVO'!$E$10:$E$4000=\"Sim\"),ROW('MEMORIAL DESCRITIVO'!AJ$10:AJ$4000)-9),A21)),\"\")","v":""},{"$f":"IFERROR(INDEX('MEMORIAL DESCRITIVO'!AL$10:AL$4000,SMALL(IF(('MEMORIAL DESCRITIVO'!$D$10:$D$4000=E21)*('MEMORIAL DESCRITIVO'!$E$10:$E$4000=\"Sim\"),ROW('MEMORIAL DESCRITIVO'!AL$10:AL$4000)-9),A21)),\"\")","v":""},{"$f":"IFERROR(INDEX('MEMORIAL DESCRITIVO'!AO$10:AO$4000,SMALL(IF(('MEMORIAL DESCRITIVO'!$D$10:$D$4000=E21)*('MEMORIAL DESCRITIVO'!$E$10:$E$4000=\"Sim\"),ROW('MEMORIAL DESCRITIVO'!AO$10:AO$4000)-9),A21)),\"\")","v":""},{"$f":"IFERROR(INDEX('MEMORIAL DESCRITIVO'!AP$10:AP$4000,SMALL(IF(('MEMORIAL DESCRITIVO'!$D$10:$D$4000=E21)*('MEMORIAL DESCRITIVO'!$E$10:$E$4000=\"Sim\"),ROW('MEMORIAL DESCRITIVO'!AP$10:AP$4000)-9),A21)),\"\")","v":""},{"$f":"IFERROR(INDEX('MEMORIAL DESCRITIVO'!AS$10:AS$4000,SMALL(IF(('MEMORIAL DESCRITIVO'!$D$10:$D$4000=E21)*('MEMORIAL DESCRITIVO'!$E$10:$E$4000=\"Sim\"),ROW('MEMORIAL DESCRITIVO'!AS$10:AS$4000)-9),A21)),\"\")","v":""}]
[{"$f":"COUNTIF($E$12:E22, E22)","v":0},11,null,null,null,{"$f":"IFERROR(INDEX('MEMORIAL DESCRITIVO'!G$10:G$4000,SMALL(IF(('MEMORIAL DESCRITIVO'!$D$10:$D$4000=E22)*('MEMORIAL DESCRITIVO'!$E$10:$E$4000=\"Sim\"),ROW('MEMORIAL DESCRITIVO'!G$10:G$4000)-9),A22)),\"\")","v":""},{"$f":"IFERROR(\n  INDEX('MEMORIAL DESCRITIVO'!I$10:I$4000,\n    SMALL(IF(('MEMORIAL DESCRITIVO'!$D$10:$D$4000=E22)*('MEMORIAL DESCRITIVO'!$E$10:$E$4000=\"Sim\"),ROW('MEMORIAL DESCRITIVO'!I$10:I$4000)-9),A22))\n  & \" \" &\n  INDEX('MEMORIAL DESCRITIVO'!J$10:J$4000,\n    SMALL(IF(('MEMORIAL DESCRITIVO'!$D$10:$D$4000=E22)*('MEMORIAL DESCRITIVO'!$E$10:$E$4000=\"Sim\"),ROW('MEMORIAL DESCRITIVO'!J$10:J$4000)-9),A22)),\n\"\")","v":""},{"$f":"IFERROR(\n  INDEX('MEMORIAL DESCRITIVO'!H$10:H$4000,\n    SMALL(\n      IF(\n        ('MEMORIAL DESCRITIVO'!$D$10:$D$4000=E22)*\n        ('MEMORIAL DESCRITIVO'!$E$10:$E$4000=\"Sim\"),\n        ROW('MEMORIAL DESCRITIVO'!H$10:H$4000)-9\n      ),\n      A22\n    )\n  ),\n\"\")","v":""},{"$f":"IFERROR(\n  INDEX('MEMORIAL DESCRITIVO'!K$10:K$4000,\n    SMALL(\n      IF(\n        ('MEMORIAL DESCRITIVO'!$D$10:$D$4000=E22)*\n        ('MEMORIAL DESCRITIVO'!$E$10:$E$4000=\"Sim\"),\n        ROW('MEMORIAL DESCRITIVO'!K$10:K$4000)-9\n      ),\n      A22\n    )\n  ),\n\"\")","v":""},{"$f":"IFERROR(\n  INDEX('MEMORIAL DESCRITIVO'!N$10:N$4000,\n    SMALL(\n      IF(\n        ('MEMORIAL DESCRITIVO'!$D$10:$D$4000=E22)*\n        ('MEMORIAL DESCRITIVO'!$E$10:$E$4000=\"Sim\"),\n        ROW('MEMORIAL DESCRITIVO'!N$10:N$4000)-9\n      ),\n      A22\n    )\n  ),\n\"\")","v":""},{"$f":"IFERROR(\n  INDEX('MEMORIAL DESCRITIVO'!Q$10:Q$4000,\n    SMALL(\n      IF(\n        ('MEMORIAL DESCRITIVO'!$D$10:$D$4000=E22)*\n        ('MEMORIAL DESCRITIVO'!$E$10:$E$4000=\"Sim\"),\n        ROW('MEMORIAL DESCRITIVO'!Q$10:Q$4000)-9\n      ),\n      A22\n    )\n  ),\n\"\")","v":""},{"$f":"IFERROR(\n  INDEX('MEMORIAL DESCRITIVO'!R$10:R$4000,\n    SMALL(\n      IF(\n        ('MEMORIAL DESCRITIVO'!$D$10:$D$4000=E22)*\n        ('MEMORIAL DESCRITIVO'!$E$10:$E$4000=\"Sim\"),\n        ROW('MEMORIAL DESCRITIVO'!R$10:R$4000)-9\n      ),\n      A22\n    )\n  ),\n\"\")","v":""},{"$f":"IFERROR(INDEX('MEMORIAL DESCRITIVO'!L$10:L$4000,SMALL(IF(('MEMORIAL DESCRITIVO'!$D$10:$D$4000=E22)*('MEMORIAL DESCRITIVO'!$E$10:$E$4000=\"Sim\"),ROW('MEMORIAL DESCRITIVO'!L$10:L$4000)-9),A22)),\"\")","v":""},{"$f":"IFERROR(\n  INDEX('MEMORIAL DESCRITIVO'!T$10:T$4000,\n    SMALL(\n      IF(\n        ('MEMORIAL DESCRITIVO'!$D$10:$D$4000=E22)*\n        ('MEMORIAL DESCRITIVO'!$E$10:$E$4000=\"Sim\"),\n        ROW('MEMORIAL DESCRITIVO'!T$10:T$4000)-9\n      ),\n      A22\n    )\n  ),\n\"\")","v":""},{"$f":"IFERROR(\n  INDEX('MEMORIAL DESCRITIVO'!AA$10:AA$4000,\n    SMALL(\n      IF(\n        ('MEMORIAL DESCRITIVO'!$D$10:$D$4000=E22)*\n        ('MEMORIAL DESCRITIVO'!$E$10:$E$4000=\"Sim\"),\n        ROW('MEMORIAL DESCRITIVO'!AA$10:AA$4000)-9\n      ),\n      A22\n    )\n  ),\n\"\")","v":""},{"$f":"IFERROR(\n  INDEX('MEMORIAL DESCRITIVO'!AB$10:AB$4000,\n    SMALL(\n      IF(\n        ('MEMORIAL DESCRITIVO'!$D$10:$D$4000=E22)*\n        ('MEMORIAL DESCRITIVO'!$E$10:$E$4000=\"Sim\"),\n        ROW('MEMORIAL DESCRITIVO'!AB$10:AB$4000)-9\n      ),\n      A22\n    )\n  ),\n\"\")","v":""},{"$f":"IFERROR(\n  INDEX('MEMORIAL DESCRITIVO'!AF$10:AF$4000,\n    SMALL(\n      IF(\n        ('MEMORIAL DESCRITIVO'!$D$10:$D$4000=E22)*\n        ('MEMORIAL DESCRITIVO'!$E$10:$E$4000=\"Sim\"),\n        ROW('MEMORIAL DESCRITIVO'!AF$10:AF$4000)-9\n      ),\n      A22\n    )\n  ),\n\"\")","v":""},{"$f":"IFERROR(\n  INDEX('MEMORIAL DESCRITIVO'!AE$10:AE$4000,\n    SMALL(\n      IF(\n        ('MEMORIAL DESCRITIVO'!$D$10:$D$4000=E22)*\n        ('MEMORIAL DESCRITIVO'!$E$10:$E$4000=\"Sim\"),\n        ROW('MEMORIAL DESCRITIVO'!AE$10:AE$4000)-9\n      ),\n      A22\n    )\n  ),\n\"\")","v":""},{"$f":"IFERROR(\n  INDEX('MEMORIAL DESCRITIVO'!AI$10:AI$4000,\n    SMALL(\n      IF(\n        ('MEMORIAL DESCRITIVO'!$D$10:$D$4000=E22)*\n        ('MEMORIAL DESCRITIVO'!$E$10:$E$4000=\"Sim\"),\n        ROW('MEMORIAL DESCRITIVO'!AI$10:AI$4000)-9\n      ),\n      A22\n    )\n  ),\n\"\")","v":""},{"$f":"IFERROR(INDEX('MEMORIAL DESCRITIVO'!AJ$10:AJ$4000,SMALL(IF(('MEMORIAL DESCRITIVO'!$D$10:$D$4000=E22)*('MEMORIAL DESCRITIVO'!$E$10:$E$4000=\"Sim\"),ROW('MEMORIAL DESCRITIVO'!AJ$10:AJ$4000)-9),A22)),\"\")","v":""},{"$f":"IFERROR(INDEX('MEMORIAL DESCRITIVO'!AL$10:AL$4000,SMALL(IF(('MEMORIAL DESCRITIVO'!$D$10:$D$4000=E22)*('MEMORIAL DESCRITIVO'!$E$10:$E$4000=\"Sim\"),ROW('MEMORIAL DESCRITIVO'!AL$10:AL$4000)-9),A22)),\"\")","v":""},{"$f":"IFERROR(INDEX('MEMORIAL DESCRITIVO'!AO$10:AO$4000,SMALL(IF(('MEMORIAL DESCRITIVO'!$D$10:$D$4000=E22)*('MEMORIAL DESCRITIVO'!$E$10:$E$4000=\"Sim\"),ROW('MEMORIAL DESCRITIVO'!AO$10:AO$4000)-9),A22)),\"\")","v":""},{"$f":"IFERROR(INDEX('MEMORIAL DESCRITIVO'!AP$10:AP$4000,SMALL(IF(('MEMORIAL DESCRITIVO'!$D$10:$D$4000=E22)*('MEMORIAL DESCRITIVO'!$E$10:$E$4000=\"Sim\"),ROW('MEMORIAL DESCRITIVO'!AP$10:AP$4000)-9),A22)),\"\")","v":""},{"$f":"IFERROR(INDEX('MEMORIAL DESCRITIVO'!AS$10:AS$4000,SMALL(IF(('MEMORIAL DESCRITIVO'!$D$10:$D$4000=E22)*('MEMORIAL DESCRITIVO'!$E$10:$E$4000=\"Sim\"),ROW('MEMORIAL DESCRITIVO'!AS$10:AS$4000)-9),A22)),\"\")","v":""}]
[{"$f":"COUNTIF($E$12:E23, E23)","v":0},12,null,null,null,{"$f":"IFERROR(INDEX('MEMORIAL DESCRITIVO'!G$10:G$4000,SMALL(IF(('MEMORIAL DESCRITIVO'!$D$10:$D$4000=E23)*('MEMORIAL DESCRITIVO'!$E$10:$E$4000=\"Sim\"),ROW('MEMORIAL DESCRITIVO'!G$10:G$4000)-9),A23)),\"\")","v":""},{"$f":"IFERROR(\n  INDEX('MEMORIAL DESCRITIVO'!I$10:I$4000,\n    SMALL(IF(('MEMORIAL DESCRITIVO'!$D$10:$D$4000=E23)*('MEMORIAL DESCRITIVO'!$E$10:$E$4000=\"Sim\"),ROW('MEMORIAL DESCRITIVO'!I$10:I$4000)-9),A23))\n  & \" \" &\n  INDEX('MEMORIAL DESCRITIVO'!J$10:J$4000,\n    SMALL(IF(('MEMORIAL DESCRITIVO'!$D$10:$D$4000=E23)*('MEMORIAL DESCRITIVO'!$E$10:$E$4000=\"Sim\"),ROW('MEMORIAL DESCRITIVO'!J$10:J$4000)-9),A23)),\n\"\")","v":""},{"$f":"IFERROR(\n  INDEX('MEMORIAL DESCRITIVO'!H$10:H$4000,\n    SMALL(\n      IF(\n        ('MEMORIAL DESCRITIVO'!$D$10:$D$4000=E23)*\n        ('MEMORIAL DESCRITIVO'!$E$10:$E$4000=\"Sim\"),\n        ROW('MEMORIAL DESCRITIVO'!H$10:H$4000)-9\n      ),\n      A23\n    )\n  ),\n\"\")","v":""},{"$f":"IFERROR(\n  INDEX('MEMORIAL DESCRITIVO'!K$10:K$4000,\n    SMALL(\n      IF(\n        ('MEMORIAL DESCRITIVO'!$D$10:$D$4000=E23)*\n        ('MEMORIAL DESCRITIVO'!$E$10:$E$4000=\"Sim\"),\n        ROW('MEMORIAL DESCRITIVO'!K$10:K$4000)-9\n      ),\n      A23\n    )\n  ),\n\"\")","v":""},{"$f":"IFERROR(\n  INDEX('MEMORIAL DESCRITIVO'!N$10:N$4000,\n    SMALL(\n      IF(\n        ('MEMORIAL DESCRITIVO'!$D$10:$D$4000=E23)*\n        ('MEMORIAL DESCRITIVO'!$E$10:$E$4000=\"Sim\"),\n        ROW('MEMORIAL DESCRITIVO'!N$10:N$4000)-9\n      ),\n      A23\n    )\n  ),\n\"\")","v":""},{"$f":"IFERROR(\n  INDEX('MEMORIAL DESCRITIVO'!Q$10:Q$4000,\n    SMALL(\n      IF(\n        ('MEMORIAL DESCRITIVO'!$D$10:$D$4000=E23)*\n        ('MEMORIAL DESCRITIVO'!$E$10:$E$4000=\"Sim\"),\n        ROW('MEMORIAL DESCRITIVO'!Q$10:Q$4000)-9\n      ),\n      A23\n    )\n  ),\n\"\")","v":""},{"$f":"IFERROR(\n  INDEX('MEMORIAL DESCRITIVO'!R$10:R$4000,\n    SMALL(\n      IF(\n        ('MEMORIAL DESCRITIVO'!$D$10:$D$4000=E23)*\n        ('MEMORIAL DESCRITIVO'!$E$10:$E$4000=\"Sim\"),\n        ROW('MEMORIAL DESCRITIVO'!R$10:R$4000)-9\n      ),\n      A23\n    )\n  ),\n\"\")","v":""},{"$f":"IFERROR(INDEX('MEMORIAL DESCRITIVO'!L$10:L$4000,SMALL(IF(('MEMORIAL DESCRITIVO'!$D$10:$D$4000=E23)*('MEMORIAL DESCRITIVO'!$E$10:$E$4000=\"Sim\"),ROW('MEMORIAL DESCRITIVO'!L$10:L$4000)-9),A23)),\"\")","v":""},{"$f":"IFERROR(\n  INDEX('MEMORIAL DESCRITIVO'!T$10:T$4000,\n    SMALL(\n      IF(\n        ('MEMORIAL DESCRITIVO'!$D$10:$D$4000=E23)*\n        ('MEMORIAL DESCRITIVO'!$E$10:$E$4000=\"Sim\"),\n        ROW('MEMORIAL DESCRITIVO'!T$10:T$4000)-9\n      ),\n      A23\n    )\n  ),\n\"\")","v":""},{"$f":"IFERROR(\n  INDEX('MEMORIAL DESCRITIVO'!AA$10:AA$4000,\n    SMALL(\n      IF(\n        ('MEMORIAL DESCRITIVO'!$D$10:$D$4000=E23)*\n        ('MEMORIAL DESCRITIVO'!$E$10:$E$4000=\"Sim\"),\n        ROW('MEMORIAL DESCRITIVO'!AA$10:AA$4000)-9\n      ),\n      A23\n    )\n  ),\n\"\")","v":""},{"$f":"IFERROR(\n  INDEX('MEMORIAL DESCRITIVO'!AB$10:AB$4000,\n    SMALL(\n      IF(\n        ('MEMORIAL DESCRITIVO'!$D$10:$D$4000=E23)*\n        ('MEMORIAL DESCRITIVO'!$E$10:$E$4000=\"Sim\"),\n        ROW('MEMORIAL DESCRITIVO'!AB$10:AB$4000)-9\n      ),\n      A23\n    )\n  ),\n\"\")","v":""},{"$f":"IFERROR(\n  INDEX('MEMORIAL DESCRITIVO'!AF$10:AF$4000,\n    SMALL(\n      IF(\n        ('MEMORIAL DESCRITIVO'!$D$10:$D$4000=E23)*\n        ('MEMORIAL DESCRITIVO'!$E$10:$E$4000=\"Sim\"),\n        ROW('MEMORIAL DESCRITIVO'!AF$10:AF$4000)-9\n      ),\n      A23\n    )\n  ),\n\"\")","v":""},{"$f":"IFERROR(\n  INDEX('MEMORIAL DESCRITIVO'!AE$10:AE$4000,\n    SMALL(\n      IF(\n        ('MEMORIAL DESCRITIVO'!$D$10:$D$4000=E23)*\n        ('MEMORIAL DESCRITIVO'!$E$10:$E$4000=\"Sim\"),\n        ROW('MEMORIAL DESCRITIVO'!AE$10:AE$4000)-9\n      ),\n      A23\n    )\n  ),\n\"\")","v":""},{"$f":"IFERROR(\n  INDEX('MEMORIAL DESCRITIVO'!AI$10:AI$4000,\n    SMALL(\n      IF(\n        ('MEMORIAL DESCRITIVO'!$D$10:$D$4000=E23)*\n        ('MEMORIAL DESCRITIVO'!$E$10:$E$4000=\"Sim\"),\n        ROW('MEMORIAL DESCRITIVO'!AI$10:AI$4000)-9\n      ),\n      A23\n    )\n  ),\n\"\")","v":""},{"$f":"IFERROR(INDEX('MEMORIAL DESCRITIVO'!AJ$10:AJ$4000,SMALL(IF(('MEMORIAL DESCRITIVO'!$D$10:$D$4000=E23)*('MEMORIAL DESCRITIVO'!$E$10:$E$4000=\"Sim\"),ROW('MEMORIAL DESCRITIVO'!AJ$10:AJ$4000)-9),A23)),\"\")","v":""},{"$f":"IFERROR(INDEX('MEMORIAL DESCRITIVO'!AL$10:AL$4000,SMALL(IF(('MEMORIAL DESCRITIVO'!$D$10:$D$4000=E23)*('MEMORIAL DESCRITIVO'!$E$10:$E$4000=\"Sim\"),ROW('MEMORIAL DESCRITIVO'!AL$10:AL$4000)-9),A23)),\"\")","v":""},{"$f":"IFERROR(INDEX('MEMORIAL DESCRITIVO'!AO$10:AO$4000,SMALL(IF(('MEMORIAL DESCRITIVO'!$D$10:$D$4000=E23)*('MEMORIAL DESCRITIVO'!$E$10:$E$4000=\"Sim\"),ROW('MEMORIAL DESCRITIVO'!AO$10:AO$4000)-9),A23)),\"\")","v":""},{"$f":"IFERROR(INDEX('MEMORIAL DESCRITIVO'!AP$10:AP$4000,SMALL(IF(('MEMORIAL DESCRITIVO'!$D$10:$D$4000=E23)*('MEMORIAL DESCRITIVO'!$E$10:$E$4000=\"Sim\"),ROW('MEMORIAL DESCRITIVO'!AP$10:AP$4000)-9),A23)),\"\")","v":""},{"$f":"IFERROR(INDEX('MEMORIAL DESCRITIVO'!AS$10:AS$4000,SMALL(IF(('MEMORIAL DESCRITIVO'!$D$10:$D$4000=E23)*('MEMORIAL DESCRITIVO'!$E$10:$E$4000=\"Sim\"),ROW('MEMORIAL DESCRITIVO'!AS$10:AS$4000)-9),A23)),\"\")","v":""}]
[{"$f":"COUNTIF($E$12:E24, E24)","v":0},13,null,null,null,{"$f":"IFERROR(INDEX('MEMORIAL DESCRITIVO'!G$10:G$4000,SMALL(IF(('MEMORIAL DESCRITIVO'!$D$10:$D$4000=E24)*('MEMORIAL DESCRITIVO'!$E$10:$E$4000=\"Sim\"),ROW('MEMORIAL DESCRITIVO'!G$10:G$4000)-9),A24)),\"\")","v":""},{"$f":"IFERROR(\n  INDEX('MEMORIAL DESCRITIVO'!I$10:I$4000,\n    SMALL(IF(('MEMORIAL DESCRITIVO'!$D$10:$D$4000=E24)*('MEMORIAL DESCRITIVO'!$E$10:$E$4000=\"Sim\"),ROW('MEMORIAL DESCRITIVO'!I$10:I$4000)-9),A24))\n  & \" \" &\n  INDEX('MEMORIAL DESCRITIVO'!J$10:J$4000,\n    SMALL(IF(('MEMORIAL DESCRITIVO'!$D$10:$D$4000=E24)*('MEMORIAL DESCRITIVO'!$E$10:$E$4000=\"Sim\"),ROW('MEMORIAL DESCRITIVO'!J$10:J$4000)-9),A24)),\n\"\")","v":""},{"$f":"IFERROR(\n  INDEX('MEMORIAL DESCRITIVO'!H$10:H$4000,\n    SMALL(\n      IF(\n        ('MEMORIAL DESCRITIVO'!$D$10:$D$4000=E24)*\n        ('MEMORIAL DESCRITIVO'!$E$10:$E$4000=\"Sim\"),\n        ROW('MEMORIAL DESCRITIVO'!H$10:H$4000)-9\n      ),\n      A24\n    )\n  ),\n\"\")","v":""},{"$f":"IFERROR(\n  INDEX('MEMORIAL DESCRITIVO'!K$10:K$4000,\n    SMALL(\n      IF(\n        ('MEMORIAL DESCRITIVO'!$D$10:$D$4000=E24)*\n        ('MEMORIAL DESCRITIVO'!$E$10:$E$4000=\"Sim\"),\n        ROW('MEMORIAL DESCRITIVO'!K$10:K$4000)-9\n      ),\n      A24\n    )\n  ),\n\"\")","v":""},{"$f":"IFERROR(\n  INDEX('MEMORIAL DESCRITIVO'!N$10:N$4000,\n    SMALL(\n      IF(\n        ('MEMORIAL DESCRITIVO'!$D$10:$D$4000=E24)*\n        ('MEMORIAL DESCRITIVO'!$E$10:$E$4000=\"Sim\"),\n        ROW('MEMORIAL DESCRITIVO'!N$10:N$4000)-9\n      ),\n      A24\n    )\n  ),\n\"\")","v":""},{"$f":"IFERROR(\n  INDEX('MEMORIAL DESCRITIVO'!Q$10:Q$4000,\n    SMALL(\n      IF(\n        ('MEMORIAL DESCRITIVO'!$D$10:$D$4000=E24)*\n        ('MEMORIAL DESCRITIVO'!$E$10:$E$4000=\"Sim\"),\n        ROW('MEMORIAL DESCRITIVO'!Q$10:Q$4000)-9\n      ),\n      A24\n    )\n  ),\n\"\")","v":""},{"$f":"IFERROR(\n  INDEX('MEMORIAL DESCRITIVO'!R$10:R$4000,\n    SMALL(\n      IF(\n        ('MEMORIAL DESCRITIVO'!$D$10:$D$4000=E24)*\n        ('MEMORIAL DESCRITIVO'!$E$10:$E$4000=\"Sim\"),\n        ROW('MEMORIAL DESCRITIVO'!R$10:R$4000)-9\n      ),\n      A24\n    )\n  ),\n\"\")","v":""},{"$f":"IFERROR(INDEX('MEMORIAL DESCRITIVO'!L$10:L$4000,SMALL(IF(('MEMORIAL DESCRITIVO'!$D$10:$D$4000=E24)*('MEMORIAL DESCRITIVO'!$E$10:$E$4000=\"Sim\"),ROW('MEMORIAL DESCRITIVO'!L$10:L$4000)-9),A24)),\"\")","v":""},{"$f":"IFERROR(\n  INDEX('MEMORIAL DESCRITIVO'!T$10:T$4000,\n    SMALL(\n      IF(\n        ('MEMORIAL DESCRITIVO'!$D$10:$D$4000=E24)*\n        ('MEMORIAL DESCRITIVO'!$E$10:$E$4000=\"Sim\"),\n        ROW('MEMORIAL DESCRITIVO'!T$10:T$4000)-9\n      ),\n      A24\n    )\n  ),\n\"\")","v":""},{"$f":"IFERROR(\n  INDEX('MEMORIAL DESCRITIVO'!AA$10:AA$4000,\n    SMALL(\n      IF(\n        ('MEMORIAL DESCRITIVO'!$D$10:$D$4000=E24)*\n        ('MEMORIAL DESCRITIVO'!$E$10:$E$4000=\"Sim\"),\n        ROW('MEMORIAL DESCRITIVO'!AA$10:AA$4000)-9\n      ),\n      A24\n    )\n  ),\n\"\")","v":""},{"$f":"IFERROR(\n  INDEX('MEMORIAL DESCRITIVO'!AB$10:AB$4000,\n    SMALL(\n      IF(\n        ('MEMORIAL DESCRITIVO'!$D$10:$D$4000=E24)*\n        ('MEMORIAL DESCRITIVO'!$E$10:$E$4000=\"Sim\"),\n        ROW('MEMORIAL DESCRITIVO'!AB$10:AB$4000)-9\n      ),\n      A24\n    )\n  ),\n\"\")","v":""},{"$f":"IFERROR(\n  INDEX('MEMORIAL DESCRITIVO'!AF$10:AF$4000,\n    SMALL(\n      IF(\n        ('MEMORIAL DESCRITIVO'!$D$10:$D$4000=E24)*\n        ('MEMORIAL DESCRITIVO'!$E$10:$E$4000=\"Sim\"),\n        ROW('MEMORIAL DESCRITIVO'!AF$10:AF$4000)-9\n      ),\n      A24\n    )\n  ),\n\"\")","v":""},{"$f":"IFERROR(\n  INDEX('MEMORIAL DESCRITIVO'!AE$10:AE$4000,\n    SMALL(\n      IF(\n        ('MEMORIAL DESCRITIVO'!$D$10:$D$4000=E24)*\n        ('MEMORIAL DESCRITIVO'!$E$10:$E$4000=\"Sim\"),\n        ROW('MEMORIAL DESCRITIVO'!AE$10:AE$4000)-9\n      ),\n      A24\n    )\n  ),\n\"\")","v":""},{"$f":"IFERROR(\n  INDEX('MEMORIAL DESCRITIVO'!AI$10:AI$4000,\n    SMALL(\n      IF(\n        ('MEMORIAL DESCRITIVO'!$D$10:$D$4000=E24)*\n        ('MEMORIAL DESCRITIVO'!$E$10:$E$4000=\"Sim\"),\n        ROW('MEMORIAL DESCRITIVO'!AI$10:AI$4000)-9\n      ),\n      A24\n    )\n  ),\n\"\")","v":""},{"$f":"IFERROR(INDEX('MEMORIAL DESCRITIVO'!AJ$10:AJ$4000,SMALL(IF(('MEMORIAL DESCRITIVO'!$D$10:$D$4000=E24)*('MEMORIAL DESCRITIVO'!$E$10:$E$4000=\"Sim\"),ROW('MEMORIAL DESCRITIVO'!AJ$10:AJ$4000)-9),A24)),\"\")","v":""},{"$f":"IFERROR(INDEX('MEMORIAL DESCRITIVO'!AL$10:AL$4000,SMALL(IF(('MEMORIAL DESCRITIVO'!$D$10:$D$4000=E24)*('MEMORIAL DESCRITIVO'!$E$10:$E$4000=\"Sim\"),ROW('MEMORIAL DESCRITIVO'!AL$10:AL$4000)-9),A24)),\"\")","v":""},{"$f":"IFERROR(INDEX('MEMORIAL DESCRITIVO'!AO$10:AO$4000,SMALL(IF(('MEMORIAL DESCRITIVO'!$D$10:$D$4000=E24)*('MEMORIAL DESCRITIVO'!$E$10:$E$4000=\"Sim\"),ROW('MEMORIAL DESCRITIVO'!AO$10:AO$4000)-9),A24)),\"\")","v":""},{"$f":"IFERROR(INDEX('MEMORIAL DESCRITIVO'!AP$10:AP$4000,SMALL(IF(('MEMORIAL DESCRITIVO'!$D$10:$D$4000=E24)*('MEMORIAL DESCRITIVO'!$E$10:$E$4000=\"Sim\"),ROW('MEMORIAL DESCRITIVO'!AP$10:AP$4000)-9),A24)),\"\")","v":""},{"$f":"IFERROR(INDEX('MEMORIAL DESCRITIVO'!AS$10:AS$4000,SMALL(IF(('MEMORIAL DESCRITIVO'!$D$10:$D$4000=E24)*('MEMORIAL DESCRITIVO'!$E$10:$E$4000=\"Sim\"),ROW('MEMORIAL DESCRITIVO'!AS$10:AS$4000)-9),A24)),\"\")","v":""}]
[null,"Tabela 2: Ensaios para utensílios"]
[null,"Item do RTQ",null,null,"Ensaios",null,null,null,"Procedimentos / critérios de aceitação",null,"Corpo de Prova\n(se aplicável)"]
[null,null,null,null,null,null,null,null,null,null,1,2,3,4,5,6,7,8,9,10,11,12,13,"OBSERVAÇÕES"]
[null,"4.2.2 DO RTQ",null,null,"DIMENSÕES",null,null,null,"3.1 DO ANEXO C"]
[null,"4.2.9 DO RTQ",null,null,"CAPACIDADE VOLUMÉTRICA",null,null,null,"4.2.9 DO RTQ"]
[null," 4.2.8 DO RTQ",null,null,"MARCAÇÕES E INSTRUÇÕES",null,null,null,"4.2.8 DO RTQ"]
[null,"4.2.5 E 4.2.7 DO RTQ ",null,null,"PROPRIEDADES MECÂNICAS E NÉVOA SALINA",null,null,null,"3.4 E 3.6.1 DO ANEXO C"]
[null,"4.2.6 DO RTQ ",null,null,"PROPRIEDADES FÍSICAS",null,null,null,"3.5 DO ANEXO C"]
[null,"4.2.4 DO RTQ",null,null,"FIXAÇÃO DO TERMODIFUSOR",null,null,null,"3.3 DO ANEXO C"]
[null,"4.2.3 DO RTQ",null,null,"UTENSÍLIOS COM REVESTIMENTO ANTIADERENTE",null,null,null,"3.2 DO ANEXO C"]
[null,"4.2.3 DO RTQ",null,null,"UTENSÍLIOS DE ALUMÍNIO COM REVESTIMENTO CERÂMICO E ESMALTE VÍTREO",null,null,null,"3.2 DO ANEXO C"]
[null,"4.2.3 DO RTQ",null,null,"UTENSÍLIOS DE AÇO OU FERRO FUNDIDO COM REVESTIMENTO CERÂMICO E ESMALTE VÍTREO",null,null,null,"3.2 DO ANEXO C"]
[null,"4.2.3 DO RTQ",null,null,"UTENSÍLIOS COM ANODIZAÇÃO DURA",null,null,null,"3.2 DO ANEXO C"]
[null,"4.2.3 DO RTQ",null,null,"UTENSÍLIO APENAS COM PINTURA EXTERNA",null,null,null,"3.2 DO ANEXO C"]

{"sheet":"PLANO DE ENSAIO (Pressão)","index":4,"n_rows":39,"n_cols":21,"rows_kept":39,"cut":false,"hidden":true,"merged":[[1,19,1,21],[2,20,2,21],[1,1,2,18],[5,20,5,21],[4,20,4,21],[19,19,19,21],[3,1,3,21],[4,1,4,3],[4,4,4,8],[4,10,4,11],[4,13,4,17],[4,18,4,19],[5,1,5,3],[5,4,5,8],[5,10,5,11],[6,1,6,3],[6,4,6,21],[5,18,5,19],[5,13,5,17],[17,19,17,21],[10,19,10,21],[11,19,11,21],[12,19,12,21],[13,19,13,21],[30,1,30,3],[26,19,26,21],[27,19,27,21],[28,19,28,21],[29,19,29,21],[30,19,30,21],[38,8,38,9],[37,8,37,9],[36,8,36,9],[35,8,35,9],[34,8,34,9],[33,8,33,9],[32,8,32,9],[31,8,31,9],[30,4,30,7],[29,4,29,7],[28,4,28,7],[28,8,28,9],[27,8,27,9],[26,8,26,9],[30,8,30,9],[38,1,38,3],[36,1,36,3],[37,1,37,3],[34,1,34,3],[35,1,35,3],[33,1,33,3],[32,1,32,3],[32,4,32,7],[31,1,31,3],[31,4,31,7],[38,4,38,7],[37,4,37,7],[36,4,36,7],[35,4,35,7],[34,4,34,7],[33,4,33,7],[29,8,29,9],[27,4,27,7],[26,4,26,7],[20,1,20,21],[21,8,22,9],[21,4,22,7],[21,1,22,3],[21,10,21,21],[24,1,24,3],[23,1,23,3],[24,8,24,9],[23,8,23,9],[25,8,25,9],[29,1,29,3],[28,1,28,3],[25,4,25,7],[24,4,24,7],[23,4,23,7],[25,1,25,3],[27,1,27,3],[26,1,26,3],[7,10,7,11],[7,20,7,21],[7,14,7,17],[14,19,14,21],[15,19,15,21],[16,19,16,21],[18,19,18,21],[22,19,22,21],[23,19,23,21],[7,12,7,13],[8,1,8,21],[9,1,9,21],[7,1,7,3],[7,4,7,8],[31,19,31,21],[32,19,32,21],[33,19,33,21],[34,19,34,21],[35,19,35,21],[36,19,36,21],[37,19,37,21],[38,19,38,21],[7,18,7,19],[24,19,24,21],[25,19,25,21]]}
[]
[null,"PLANO DE ENSAIOS PARA PANELAS METÁLICAS",null,null,null,null,null,null,null,null,null,null,null,null,null,null,null,null,null,"FOR.13.2-2"]
[null,null,null,null,null,null,null,null,null,null,null,null,null,null,null,null,null,null,null,"Rev.00","2025-07-14"]
[null,"IDENTIFICAÇÃO DO PROCESSO"]
[null,"Razão social: (Solicitante)",null,null,{"$f":"SOLICITAÇÃO!C9","v":"-"},null,null,null,null,"CNPJ:",{"$f":"SOLICITAÇÃO!C11","v":"-"},null,"Endereço:",{"$f":"CONCATENATE(SOLICITAÇÃO!C12,\" - \",SOLICITAÇÃO!C13,\" - \",SOLICITAÇÃO!C15,\" - \",SOLICITAÇÃO!C16)","v":"- - - - - - -"},null,null,null,null,"Cep:",null,{"$f":"SOLICITAÇÃO!C14","v":"-"}]
[null,"Fabricante:",null,null,{"$f":"SOLICITAÇÃO!C25","v":"-"},null,null,null,null,"E-mail: (Solicitante)",{"$f":"SOLICITAÇÃO!C17","v":"-"},null,"Processo: (evento)",null,null,null,null,null,"Modelo de Certificação:",null,{"$f":"SOLICITAÇÃO!C5","v":"-"}]
[null,"Portaria:",null,null,"PORTARIA Nº 499, DE 20 DE DEZEMBRO DE 2021 - Regulamento Técnico da Qualidade e os Requisitos de Avaliação da Conformidade para Panelas Metálicas – Consolidado.\nPORTARIA Nº 167, DE 23 DE ABRIL DE 2025 - Altera a Portaria Inmetro nº 499, de 20 de dezembro de 2021, que aprova o Regulamento Técnico da Qualidade e os Requisitos de Avaliação da Conformidade para Panelas Metálicas – Consolidado."]
[null,"Tipo de amostragem:",null,null,"Escolher um item.",null,null,null,null,"Tipo de amostra:","Escolher um item.",null,"Técnico Responsável:      ",null,null,null,null,null,"Data:"]
[null,"Identificação dos modelos"]
[null,"Tabela 1 - Fragmentação das amostras para ensaios"]
[null,"Corpo de Prova","Quantidade de amostras:","Rastreabilidade","Família:","Modelo (Referência\nComercial)\ne\n Nome Comercial","Código de barras","Marca","Material","Dimensões: Diâmetro, comprimento, largura, espessura, diagonal, profundidade","Capacidade volumétrica (Litros)","Pressão de trabalho\n (para panelas de pressão)","Tipo de revestimento interno","Possui alça e/ou cabo ?             ","Material da alça","Material do cabo","Dimensões da alça","Dimensões do cabo","Sistema de fechamento","Foto do produto"]
[{"$f":"COUNTIF($E$12:E12, E12)","v":0},1,null,null,null,{"$f":"IFERROR(\n  INDEX('MEMORIAL DESCRITIVO'!I$10:I$4000,\n    SMALL(\n      IF(\n        ('MEMORIAL DESCRITIVO'!$D$10:$D$4000=E12)*\n        ('MEMORIAL DESCRITIVO'!$E$10:$E$4000=\"Sim\"),\n        ROW('MEMORIAL DESCRITIVO'!I$10:I$4000)-9\n      ),\n      A12\n    )\n  )\n  & \" \" &\n  INDEX('MEMORIAL DESCRITIVO'!J$10:J$4000,\n    SMALL(\n      IF(\n        ('MEMORIAL DESCRITIVO'!$D$10:$D$4000=E12)*\n        ('MEMORIAL DESCRITIVO'!$E$10:$E$4000=\"Sim\"),\n        ROW('MEMORIAL DESCRITIVO'!J$10:J$4000)-9\n      ),\n      A12\n    )\n  ),\n\"\")","v":""},{"$f":"IFERROR(\n  INDEX('MEMORIAL DESCRITIVO'!H$10:H$4000,\n    SMALL(\n      IF(\n        ('MEMORIAL DESCRITIVO'!$D$10:$D$4000=E12)*\n        ('MEMORIAL DESCRITIVO'!$E$10:$E$4000=\"Sim\"),\n        ROW('MEMORIAL DESCRITIVO'!H$10:H$4000)-9\n      ),\n      A12\n    )\n  ),\n\"\")","v":""},{"$f":"IFERROR(\n  INDEX('MEMORIAL DESCRITIVO'!K$10:K$4000,\n    SMALL(\n      IF(\n        ('MEMORIAL DESCRITIVO'!$D$10:$D$4000=E12)*\n        ('MEMORIAL DESCRITIVO'!$E$10:$E$4000=\"Sim\"),\n        ROW('MEMORIAL DESCRITIVO'!K$10:K$4000)-9\n      ),\n      A12\n    )\n  ),\n\"\")","v":""},{"$f":"IFERROR(\n  INDEX('MEMORIAL DESCRITIVO'!N$10:N$4000,\n    SMALL(\n      IF(\n        ('MEMORIAL DESCRITIVO'!$D$10:$D$4000=E12)*\n        ('MEMORIAL DESCRITIVO'!$E$10:$E$4000=\"Sim\"),\n        ROW('MEMORIAL DESCRITIVO'!N$10:N$4000)-9\n      ),\n      A12\n    )\n  ),\n\"\")","v":""},{"$f":"IFERROR(\n  INDEX('MEMORIAL DESCRITIVO'!Q$10:Q$4000,\n    SMALL(\n      IF(\n        ('MEMORIAL DESCRITIVO'!$D$10:$D$4000=E12)*\n        ('MEMORIAL DESCRITIVO'!$E$10:$E$4000=\"Sim\"),\n        ROW('MEMORIAL DESCRITIVO'!Q$10:Q$4000)-9\n      ),\n      A12\n    )\n  ),\n\"\")","v":""},{"$f":"IFERROR(\n  INDEX('MEMORIAL DESCRITIVO'!R$10:R$4000,\n    SMALL(\n      IF(\n        ('MEMORIAL DESCRITIVO'!$D$10:$D$4000=E12)*\n        ('MEMORIAL DESCRITIVO'!$E$10:$E$4000=\"Sim\"),\n        ROW('MEMORIAL DESCRITIVO'!R$10:R$4000)-9\n      ),\n      A12\n    )\n  ),\n\"\")","v":""},{"$f":"IFERROR(\n  INDEX('MEMORIAL DESCRITIVO'!S$10:S$4000,\n    SMALL(\n      IF(\n        ('MEMORIAL DESCRITIVO'!$D$10:$D$4000=E12)*\n        ('MEMORIAL DESCRITIVO'!$E$10:$E$4000=\"Sim\"),\n        ROW('MEMORIAL DESCRITIVO'!S$10:S$4000)-9\n      ),\n      A12\n    )\n  ),\n\"\")","v":""},{"$f":"IFERROR(\n  INDEX('MEMORIAL DESCRITIVO'!T$10:T$4000,\n    SMALL(\n      IF(\n        ('MEMORIAL DESCRITIVO'!$D$10:$D$4000=E12)*\n        ('MEMORIAL DESCRITIVO'!$E$10:$E$4000=\"Sim\"),\n        ROW('MEMORIAL DESCRITIVO'!T$10:T$4000)-9\n      ),\n      A12\n    )\n  ),\n\"\")","v":""},{"$f":"IFERROR(\n  INDEX('MEMORIAL DESCRITIVO'!AA$10:AA$4000,\n    SMALL(\n      IF(\n        ('MEMORIAL DESCRITIVO'!$D$10:$D$4000=E12)*\n        ('MEMORIAL DESCRITIVO'!$E$10:$E$4000=\"Sim\"),\n        ROW('MEMORIAL DESCRITIVO'!AA$10:AA$4000)-9\n      ),\n      A12\n    )\n  ),\n\"\")","v":""},{"$f":"IFERROR(\n  INDEX('MEMORIAL DESCRITIVO'!AB$10:AB$4000,\n    SMALL(\n      IF(\n        ('MEMORIAL DESCRITIVO'!$D$10:$D$4000=E12)*\n        ('MEMORIAL DESCRITIVO'!$E$10:$E$4000=\"Sim\"),\n        ROW('MEMORIAL DESCRITIVO'!AB$10:AB$4000)-9\n      ),\n      A12\n    )\n  ),\n\"\")","v":""},{"$f":"IFERROR(\n  INDEX('MEMORIAL DESCRITIVO'!AF$10:AF$4000,\n    SMALL(\n      IF(\n        ('MEMORIAL DESCRITIVO'!$D$10:$D$4000=E12)*\n        ('MEMORIAL DESCRITIVO'!$E$10:$E$4000=\"Sim\"),\n        ROW('MEMORIAL DESCRITIVO'!AF$10:AF$4000)-9\n      ),\n      A12\n    )\n  ),\n\"\")","v":""},{"$f":"IFERROR(\n  INDEX('MEMORIAL DESCRITIVO'!AE$10:AE$4000,\n    SMALL(\n      IF(\n        ('MEMORIAL DESCRITIVO'!$D$10:$D$4000=E12)*\n        ('MEMORIAL DESCRITIVO'!$E$10:$E$4000=\"Sim\"),\n        ROW('MEMORIAL DESCRITIVO'!AE$10:AE$4000)-9\n      ),\n      A12\n    )\n  ),\n\"\")","v":""},{"$f":"IFERROR(\n  INDEX('MEMORIAL DESCRITIVO'!AI$10:AI$4000,\n    SMALL(\n      IF(\n        ('MEMORIAL DESCRITIVO'!$D$10:$D$4000=E12)*\n        ('MEMORIAL DESCRITIVO'!$E$10:$E$4000=\"Sim\"),\n        ROW('MEMORIAL DESCRITIVO'!AI$10:AI$4000)-9\n      ),\n      A12\n    )\n  ),\n\"\")","v":""},{"$f":"IFERROR(\n  INDEX('MEMORIAL DESCRITIVO'!AK$10:AK$4000,\n    SMALL(\n      IF(\n        ('MEMORIAL DESCRITIVO'!$D$10:$D$4000=E12)*\n        ('MEMORIAL DESCRITIVO'!$E$10:$E$4000=\"Sim\"),\n        ROW('MEMORIAL DESCRITIVO'!AK$10:AK$4000)-9\n      ),\n      A12\n    )\n  ),\n\"\")","v":""}]
[{"$f":"COUNTIF($E$12:E13, E13)","v":0},2,null,"",null,{"$f":"IFERROR(\n  INDEX('MEMORIAL DESCRITIVO'!I$10:I$4000,\n    SMALL(\n      IF(\n        ('MEMORIAL DESCRITIVO'!$D$10:$D$4000=E13)*\n        ('MEMORIAL DESCRITIVO'!$E$10:$E$4000=\"Sim\"),\n        ROW('MEMORIAL DESCRITIVO'!I$10:I$4000)-9\n      ),\n      A13\n    )\n  )\n  & \" \" &\n  INDEX('MEMORIAL DESCRITIVO'!J$10:J$4000,\n    SMALL(\n      IF(\n        ('MEMORIAL DESCRITIVO'!$D$10:$D$4000=E13)*\n        ('MEMORIAL DESCRITIVO'!$E$10:$E$4000=\"Sim\"),\n        ROW('MEMORIAL DESCRITIVO'!J$10:J$4000)-9\n      ),\n      A13\n    )\n  ),\n\"\")","v":""},{"$f":"IFERROR(\n  INDEX('MEMORIAL DESCRITIVO'!H$10:H$4000,\n    SMALL(\n      IF(\n        ('MEMORIAL DESCRITIVO'!$D$10:$D$4000=E13)*\n        ('MEMORIAL DESCRITIVO'!$E$10:$E$4000=\"Sim\"),\n        ROW('MEMORIAL DESCRITIVO'!H$10:H$4000)-9\n      ),\n      A13\n    )\n  ),\n\"\")","v":""},{"$f":"IFERROR(\n  INDEX('MEMORIAL DESCRITIVO'!K$10:K$4000,\n    SMALL(\n      IF(\n        ('MEMORIAL DESCRITIVO'!$D$10:$D$4000=E13)*\n        ('MEMORIAL DESCRITIVO'!$E$10:$E$4000=\"Sim\"),\n        ROW('MEMORIAL DESCRITIVO'!K$10:K$4000)-9\n      ),\n      A13\n    )\n  ),\n\"\")","v":""},{"$f":"IFERROR(\n  INDEX('MEMORIAL DESCRITIVO'!N$10:N$4000,\n    SMALL(\n      IF(\n        ('MEMORIAL DESCRITIVO'!$D$10:$D$4000=E13)*\n        ('MEMORIAL DESCRITIVO'!$E$10:$E$4000=\"Sim\"),\n        ROW('MEMORIAL DESCRITIVO'!N$10:N$4000)-9\n      ),\n      A13\n    )\n  ),\n\"\")","v":""},{"$f":"IFERROR(\n  INDEX('MEMORIAL DESCRITIVO'!Q$10:Q$4000,\n    SMALL(\n      IF(\n        ('MEMORIAL DESCRITIVO'!$D$10:$D$4000=E13)*\n        ('MEMORIAL DESCRITIVO'!$E$10:$E$4000=\"Sim\"),\n        ROW('MEMORIAL DESCRITIVO'!Q$10:Q$4000)-9\n      ),\n      A13\n    )\n  ),\n\"\")","v":""},{"$f":"IFERROR(\n  INDEX('MEMORIAL DESCRITIVO'!R$10:R$4000,\n    SMALL(\n      IF(\n        ('MEMORIAL DESCRITIVO'!$D$10:$D$4000=E13)*\n        ('MEMORIAL DESCRITIVO'!$E$10:$E$4000=\"Sim\"),\n        ROW('MEMORIAL DESCRITIVO'!R$10:R$4000)-9\n      ),\n      A13\n    )\n  ),\n\"\")","v":""},{"$f":"IFERROR(\n  INDEX('MEMORIAL DESCRITIVO'!S$10:S$4000,\n    SMALL(\n      IF(\n        ('MEMORIAL DESCRITIVO'!$D$10:$D$4000=E13)*\n        ('MEMORIAL DESCRITIVO'!$E$10:$E$4000=\"Sim\"),\n        ROW('MEMORIAL DESCRITIVO'!S$10:S$4000)-9\n      ),\n      A13\n    )\n  ),\n\"\")","v":""},{"$f":"IFERROR(\n  INDEX('MEMORIAL DESCRITIVO'!T$10:T$4000,\n    SMALL(\n      IF(\n        ('MEMORIAL DESCRITIVO'!$D$10:$D$4000=E13)*\n        ('MEMORIAL DESCRITIVO'!$E$10:$E$4000=\"Sim\"),\n        ROW('MEMORIAL DESCRITIVO'!T$10:T$4000)-9\n      ),\n      A13\n    )\n  ),\n\"\")","v":""},{"$f":"IFERROR(\n  INDEX('MEMORIAL DESCRITIVO'!AA$10:AA$4000,\n    SMALL(\n      IF(\n        ('MEMORIAL DESCRITIVO'!$D$10:$D$4000=E13)*\n        ('MEMORIAL DESCRITIVO'!$E$10:$E$4000=\"Sim\"),\n        ROW('MEMORIAL DESCRITIVO'!AA$10:AA$4000)-9\n      ),\n      A13\n    )\n  ),\n\"\")","v":""},{"$f":"IFERROR(\n  INDEX('MEMORIAL DESCRITIVO'!AB$10:AB$4000,\n    SMALL(\n      IF(\n        ('MEMORIAL DESCRITIVO'!$D$10:$D$4000=E13)*\n        ('MEMORIAL DESCRITIVO'!$E$10:$E$4000=\"Sim\"),\n        ROW('MEMORIAL DESCRITIVO'!AB$10:AB$4000)-9\n      ),\n      A13\n    )\n  ),\n\"\")","v":""},{"$f":"IFERROR(\n  INDEX('MEMORIAL DESCRITIVO'!AF$10:AF$4000,\n    SMALL(\n      IF(\n        ('MEMORIAL DESCRITIVO'!$D$10:$D$4000=E13)*\n        ('MEMORIAL DESCRITIVO'!$E$10:$E$4000=\"Sim\"),\n        ROW('MEMORIAL DESCRITIVO'!AF$10:AF$4000)-9\n      ),\n      A13\n    )\n  ),\n\"\")","v":""},{"$f":"IFERROR(\n  INDEX('MEMORIAL DESCRITIVO'!AE$10:AE$4000,\n    SMALL(\n      IF(\n        ('MEMORIAL DESCRITIVO'!$D$10:$D$4000=E13)*\n        ('MEMORIAL DESCRITIVO'!$E$10:$E$4000=\"Sim\"),\n        ROW('MEMORIAL DESCRITIVO'!AE$10:AE$4000)-9\n      ),\n      A13\n    )\n  ),\n\"\")","v":""},{"$f":"IFERROR(\n  INDEX('MEMORIAL DESCRITIVO'!AI$10:AI$4000,\n    SMALL(\n      IF(\n        ('MEMORIAL DESCRITIVO'!$D$10:$D$4000=E13)*\n        ('MEMORIAL DESCRITIVO'!$E$10:$E$4000=\"Sim\"),\n        ROW('MEMORIAL DESCRITIVO'!AI$10:AI$4000)-9\n      ),\n      A13\n    )\n  ),\n\"\")","v":""},{"$f":"IFERROR(\n  INDEX('MEMORIAL DESCRITIVO'!AK$10:AK$4000,\n    SMALL(\n      IF(\n        ('MEMORIAL DESCRITIVO'!$D$10:$D$4000=E13)*\n        ('MEMORIAL DESCRITIVO'!$E$10:$E$4000=\"Sim\"),\n        ROW('MEMORIAL DESCRITIVO'!AK$10:AK$4000)-9\n      ),\n      A13\n    )\n  ),\n\"\")","v":""}]
[{"$f":"COUNTIF($E$12:E14, E14)","v":0},3,null,"",null,{"$f":"IFERROR(\n  INDEX('MEMORIAL DESCRITIVO'!I$10:I$4000,\n    SMALL(\n      IF(\n        ('MEMORIAL DESCRITIVO'!$D$10:$D$4000=E14)*\n        ('MEMORIAL DESCRITIVO'!$E$10:$E$4000=\"Sim\"),\n        ROW('MEMORIAL DESCRITIVO'!I$10:I$4000)-9\n      ),\n      A14\n    )\n  )\n  & \" \" &\n  INDEX('MEMORIAL DESCRITIVO'!J$10:J$4000,\n    SMALL(\n      IF(\n        ('MEMORIAL DESCRITIVO'!$D$10:$D$4000=E14)*\n        ('MEMORIAL DESCRITIVO'!$E$10:$E$4000=\"Sim\"),\n        ROW('MEMORIAL DESCRITIVO'!J$10:J$4000)-9\n      ),\n      A14\n    )\n  ),\n\"\")","v":""},{"$f":"IFERROR(\n  INDEX('MEMORIAL DESCRITIVO'!H$10:H$4000,\n    SMALL(\n      IF(\n        ('MEMORIAL DESCRITIVO'!$D$10:$D$4000=E14)*\n        ('MEMORIAL DESCRITIVO'!$E$10:$E$4000=\"Sim\"),\n        ROW('MEMORIAL DESCRITIVO'!H$10:H$4000)-9\n      ),\n      A14\n    )\n  ),\n\"\")","v":""},{"$f":"IFERROR(\n  INDEX('MEMORIAL DESCRITIVO'!K$10:K$4000,\n    SMALL(\n      IF(\n        ('MEMORIAL DESCRITIVO'!$D$10:$D$4000=E14)*\n        ('MEMORIAL DESCRITIVO'!$E$10:$E$4000=\"Sim\"),\n        ROW('MEMORIAL DESCRITIVO'!K$10:K$4000)-9\n      ),\n      A14\n    )\n  ),\n\"\")","v":""},{"$f":"IFERROR(\n  INDEX('MEMORIAL DESCRITIVO'!N$10:N$4000,\n    SMALL(\n      IF(\n        ('MEMORIAL DESCRITIVO'!$D$10:$D$4000=E14)*\n        ('MEMORIAL DESCRITIVO'!$E$10:$E$4000=\"Sim\"),\n        ROW('MEMORIAL DESCRITIVO'!N$10:N$4000)-9\n      ),\n      A14\n    )\n  ),\n\"\")","v":""},{"$f":"IFERROR(\n  INDEX('MEMORIAL DESCRITIVO'!Q$10:Q$4000,\n    SMALL(\n      IF(\n        ('MEMORIAL DESCRITIVO'!$D$10:$D$4000=E14)*\n        ('MEMORIAL DESCRITIVO'!$E$10:$E$4000=\"Sim\"),\n        ROW('MEMORIAL DESCRITIVO'!Q$10:Q$4000)-9\n      ),\n      A14\n    )\n  ),\n\"\")","v":""},{"$f":"IFERROR(\n  INDEX('MEMORIAL DESCRITIVO'!R$10:R$4000,\n    SMALL(\n      IF(\n        ('MEMORIAL DESCRITIVO'!$D$10:$D$4000=E14)*\n        ('MEMORIAL DESCRITIVO'!$E$10:$E$4000=\"Sim\"),\n        ROW('MEMORIAL DESCRITIVO'!R$10:R$4000)-9\n      ),\n      A14\n    )\n  ),\n\"\")","v":""},{"$f":"IFERROR(\n  INDEX('MEMORIAL DESCRITIVO'!S$10:S$4000,\n    SMALL(\n      IF(\n        ('MEMORIAL DESCRITIVO'!$D$10:$D$4000=E14)*\n        ('MEMORIAL DESCRITIVO'!$E$10:$E$4000=\"Sim\"),\n        ROW('MEMORIAL DESCRITIVO'!S$10:S$4000)-9\n      ),\n      A14\n    )\n  ),\n\"\")","v":""},{"$f":"IFERROR(\n  INDEX('MEMORIAL DESCRITIVO'!T$10:T$4000,\n    SMALL(\n      IF(\n        ('MEMORIAL DESCRITIVO'!$D$10:$D$4000=E14)*\n        ('MEMORIAL DESCRITIVO'!$E$10:$E$4000=\"Sim\"),\n        ROW('MEMORIAL DESCRITIVO'!T$10:T$4000)-9\n      ),\n      A14\n    )\n  ),\n\"\")","v":""},{"$f":"IFERROR(\n  INDEX('MEMORIAL DESCRITIVO'!AA$10:AA$4000,\n    SMALL(\n      IF(\n        ('MEMORIAL DESCRITIVO'!$D$10:$D$4000=E14)*\n        ('MEMORIAL DESCRITIVO'!$E$10:$E$4000=\"Sim\"),\n        ROW('MEMORIAL DESCRITIVO'!AA$10:AA$4000)-9\n      ),\n      A14\n    )\n  ),\n\"\")","v":""},{"$f":"IFERROR(\n  INDEX('MEMORIAL DESCRITIVO'!AB$10:AB$4000,\n    SMALL(\n      IF(\n        ('MEMORIAL DESCRITIVO'!$D$10:$D$4000=E14)*\n        ('MEMORIAL DESCRITIVO'!$E$10:$E$4000=\"Sim\"),\n        ROW('MEMORIAL DESCRITIVO'!AB$10:AB$4000)-9\n      ),\n      A14\n    )\n  ),\n\"\")","v":""},{"$f":"IFERROR(\n  INDEX('MEMORIAL DESCRITIVO'!AF$10:AF$4000,\n    SMALL(\n      IF(\n        ('MEMORIAL DESCRITIVO'!$D$10:$D$4000=E14)*\n        ('MEMORIAL DESCRITIVO'!$E$10:$E$4000=\"Sim\"),\n        ROW('MEMORIAL DESCRITIVO'!AF$10:AF$4000)-9\n      ),\n      A14\n    )\n  ),\n\"\")","v":""},{"$f":"IFERROR(\n  INDEX('MEMORIAL DESCRITIVO'!AE$10:AE$4000,\n    SMALL(\n      IF(\n        ('MEMORIAL DESCRITIVO'!$D$10:$D$4000=E14)*\n        ('MEMORIAL DESCRITIVO'!$E$10:$E$4000=\"Sim\"),\n        ROW('MEMORIAL DESCRITIVO'!AE$10:AE$4000)-9\n      ),\n      A14\n    )\n  ),\n\"\")","v":""},{"$f":"IFERROR(\n  INDEX('MEMORIAL DESCRITIVO'!AI$10:AI$4000,\n    SMALL(\n      IF(\n        ('MEMORIAL DESCRITIVO'!$D$10:$D$4000=E14)*\n        ('MEMORIAL DESCRITIVO'!$E$10:$E$4000=\"Sim\"),\n        ROW('MEMORIAL DESCRITIVO'!AI$10:AI$4000)-9\n      ),\n      A14\n    )\n  ),\n\"\")","v":""},{"$f":"IFERROR(\n  INDEX('MEMORIAL DESCRITIVO'!AK$10:AK$4000,\n    SMALL(\n      IF(\n        ('MEMORIAL DESCRITIVO'!$D$10:$D$4000=E14)*\n        ('MEMORIAL DESCRITIVO'!$E$10:$E$4000=\"Sim\"),\n        ROW('MEMORIAL DESCRITIVO'!AK$10:AK$4000)-9\n      ),\n      A14\n    )\n  ),\n\"\")","v":""}]
[{"$f":"COUNTIF($E$12:E15, E15)","v":0},4,null,"",null,{"$f":"IFERROR(\n  INDEX('MEMORIAL DESCRITIVO'!I$10:I$4000,\n    SMALL(\n      IF(\n        ('MEMORIAL DESCRITIVO'!$D$10:$D$4000=E15)*\n        ('MEMORIAL DESCRITIVO'!$E$10:$E$4000=\"Sim\"),\n        ROW('MEMORIAL DESCRITIVO'!I$10:I$4000)-9\n      ),\n      A15\n    )\n  )\n  & \" \" &\n  INDEX('MEMORIAL DESCRITIVO'!J$10:J$4000,\n    SMALL(\n      IF(\n        ('MEMORIAL DESCRITIVO'!$D$10:$D$4000=E15)*\n        ('MEMORIAL DESCRITIVO'!$E$10:$E$4000=\"Sim\"),\n        ROW('MEMORIAL DESCRITIVO'!J$10:J$4000)-9\n      ),\n      A15\n    )\n  ),\n\"\")","v":""},{"$f":"IFERROR(\n  INDEX('MEMORIAL DESCRITIVO'!H$10:H$4000,\n    SMALL(\n      IF(\n        ('MEMORIAL DESCRITIVO'!$D$10:$D$4000=E15)*\n        ('MEMORIAL DESCRITIVO'!$E$10:$E$4000=\"Sim\"),\n        ROW('MEMORIAL DESCRITIVO'!H$10:H$4000)-9\n      ),\n      A15\n    )\n  ),\n\"\")","v":""},{"$f":"IFERROR(\n  INDEX('MEMORIAL DESCRITIVO'!K$10:K$4000,\n    SMALL(\n      IF(\n        ('MEMORIAL DESCRITIVO'!$D$10:$D$4000=E15)*\n        ('MEMORIAL DESCRITIVO'!$E$10:$E$4000=\"Sim\"),\n        ROW('MEMORIAL DESCRITIVO'!K$10:K$4000)-9\n      ),\n      A15\n    )\n  ),\n\"\")","v":""},{"$f":"IFERROR(\n  INDEX('MEMORIAL DESCRITIVO'!N$10:N$4000,\n    SMALL(\n      IF(\n        ('MEMORIAL DESCRITIVO'!$D$10:$D$4000=E15)*\n        ('MEMORIAL DESCRITIVO'!$E$10:$E$4000=\"Sim\"),\n        ROW('MEMORIAL DESCRITIVO'!N$10:N$4000)-9\n      ),\n      A15\n    )\n  ),\n\"\")","v":""},{"$f":"IFERROR(\n  INDEX('MEMORIAL DESCRITIVO'!Q$10:Q$4000,\n    SMALL(\n      IF(\n        ('MEMORIAL DESCRITIVO'!$D$10:$D$4000=E15)*\n        ('MEMORIAL DESCRITIVO'!$E$10:$E$4000=\"Sim\"),\n        ROW('MEMORIAL DESCRITIVO'!Q$10:Q$4000)-9\n      ),\n      A15\n    )\n  ),\n\"\")","v":""},{"$f":"IFERROR(\n  INDEX('MEMORIAL DESCRITIVO'!R$10:R$4000,\n    SMALL(\n      IF(\n        ('MEMORIAL DESCRITIVO'!$D$10:$D$4000=E15)*\n        ('MEMORIAL DESCRITIVO'!$E$10:$E$4000=\"Sim\"),\n        ROW('MEMORIAL DESCRITIVO'!R$10:R$4000)-9\n      ),\n      A15\n    )\n  ),\n\"\")","v":""},{"$f":"IFERROR(\n  INDEX('MEMORIAL DESCRITIVO'!S$10:S$4000,\n    SMALL(\n      IF(\n        ('MEMORIAL DESCRITIVO'!$D$10:$D$4000=E15)*\n        ('MEMORIAL DESCRITIVO'!$E$10:$E$4000=\"Sim\"),\n        ROW('MEMORIAL DESCRITIVO'!S$10:S$4000)-9\n      ),\n      A15\n    )\n  ),\n\"\")","v":""},{"$f":"IFERROR(\n  INDEX('MEMORIAL DESCRITIVO'!T$10:T$4000,\n    SMALL(\n      IF(\n        ('MEMORIAL DESCRITIVO'!$D$10:$D$4000=E15)*\n        ('MEMORIAL DESCRITIVO'!$E$10:$E$4000=\"Sim\"),\n        ROW('MEMORIAL DESCRITIVO'!T$10:T$4000)-9\n      ),\n      A15\n    )\n  ),\n\"\")","v":""},{"$f":"IFERROR(\n  INDEX('MEMORIAL DESCRITIVO'!AA$10:AA$4000,\n    SMALL(\n      IF(\n        ('MEMORIAL DESCRITIVO'!$D$10:$D$4000=E15)*\n        ('MEMORIAL DESCRITIVO'!$E$10:$E$4000=\"Sim\"),\n        ROW('MEMORIAL DESCRITIVO'!AA$10:AA$4000)-9\n      ),\n      A15\n    )\n  ),\n\"\")","v":""},{"$f":"IFERROR(\n  INDEX('MEMORIAL DESCRITIVO'!AB$10:AB$4000,\n    SMALL(\n      IF(\n        ('MEMORIAL DESCRITIVO'!$D$10:$D$4000=E15)*\n        ('MEMORIAL DESCRITIVO'!$E$10:$E$4000=\"Sim\"),\n        ROW('MEMORIAL DESCRITIVO'!AB$10:AB$4000)-9\n      ),\n      A15\n    )\n  ),\n\"\")","v":""},{"$f":"IFERROR(\n  INDEX('MEMORIAL DESCRITIVO'!AF$10:AF$4000,\n    SMALL(\n      IF(\n        ('MEMORIAL DESCRITIVO'!$D$10:$D$4000=E15)*\n        ('MEMORIAL DESCRITIVO'!$E$10:$E$4000=\"Sim\"),\n        ROW('MEMORIAL DESCRITIVO'!AF$10:AF$4000)-9\n      ),\n      A15\n    )\n  ),\n\"\")","v":""},{"$f":"IFERROR(\n  INDEX('MEMORIAL DESCRITIVO'!AE$10:AE$4000,\n    SMALL(\n      IF(\n        ('MEMORIAL DESCRITIVO'!$D$10:$D$4000=E15)*\n        ('MEMORIAL DESCRITIVO'!$E$10:$E$4000=\"Sim\"),\n        ROW('MEMORIAL DESCRITIVO'!AE$10:AE$4000)-9\n      ),\n      A15\n    )\n  ),\n\"\")","v":""},{"$f":"IFERROR(\n  INDEX('MEMORIAL DESCRITIVO'!AI$10:AI$4000,\n    SMALL(\n      IF(\n        ('MEMORIAL DESCRITIVO'!$D$10:$D$4000=E15)*\n        ('MEMORIAL DESCRITIVO'!$E$10:$E$4000=\"Sim\"),\n        ROW('MEMORIAL DESCRITIVO'!AI$10:AI$4000)-9\n      ),\n      A15\n    )\n  ),\n\"\")","v":""},{"$f":"IFERROR(\n  INDEX('MEMORIAL DESCRITIVO'!AK$10:AK$4000,\n    SMALL(\n      IF(\n        ('MEMORIAL DESCRITIVO'!$D$10:$D$4000=E15)*\n        ('MEMORIAL DESCRITIVO'!$E$10:$E$4000=\"Sim\"),\n        ROW('MEMORIAL DESCRITIVO'!AK$10:AK$4000)-9\n      ),\n      A15\n    )\n  ),\n\"\")","v":""}]
[{"$f":"COUNTIF($E$12:E16, E16)","v":5},5,null,"",{"$f":"IFERROR(INDEX('MEMORIAL DESCRITIVO'!D$10:D$4000,SMALL(IF('MEMORIAL DESCRITIVO'!$E$10:$E$4000=\"Sim\",ROW('MEMORIAL DESCRITIVO'!D$10:D$4000)-9),ROW(B5))), \"\")","v":""},{"$f":"IFERROR(\n  INDEX('MEMORIAL DESCRITIVO'!I$10:I$4000,\n    SMALL(\n      IF(\n        ('MEMORIAL DESCRITIVO'!$D$10:$D$4000=E16)*\n        ('MEMORIAL DESCRITIVO'!$E$10:$E$4000=\"Sim\"),\n        ROW('MEMORIAL DESCRITIVO'!I$10:I$4000)-9\n      ),\n      A16\n    )\n  )\n  & \" \" &\n  INDEX('MEMORIAL DESCRITIVO'!J$10:J$4000,\n    SMALL(\n      IF(\n        ('MEMORIAL DESCRITIVO'!$D$10:$D$4000=E16)*\n        ('MEMORIAL DESCRITIVO'!$E$10:$E$4000=\"Sim\"),\n        ROW('MEMORIAL DESCRITIVO'!J$10:J$4000)-9\n      ),\n      A16\n    )\n  ),\n\"\")","v":""},{"$f":"IFERROR(\n  INDEX('MEMORIAL DESCRITIVO'!H$10:H$4000,\n    SMALL(\n      IF(\n        ('MEMORIAL DESCRITIVO'!$D$10:$D$4000=E16)*\n        ('MEMORIAL DESCRITIVO'!$E$10:$E$4000=\"Sim\"),\n        ROW('MEMORIAL DESCRITIVO'!H$10:H$4000)-9\n      ),\n      A16\n    )\n  ),\n\"\")","v":""},{"$f":"IFERROR(\n  INDEX('MEMORIAL DESCRITIVO'!K$10:K$4000,\n    SMALL(\n      IF(\n        ('MEMORIAL DESCRITIVO'!$D$10:$D$4000=E16)*\n        ('MEMORIAL DESCRITIVO'!$E$10:$E$4000=\"Sim\"),\n        ROW('MEMORIAL DESCRITIVO'!K$10:K$4000)-9\n      ),\n      A16\n    )\n  ),\n\"\")","v":""},{"$f":"IFERROR(\n  INDEX('MEMORIAL DESCRITIVO'!N$10:N$4000,\n    SMALL(\n      IF(\n        ('MEMORIAL DESCRITIVO'!$D$10:$D$4000=E16)*\n        ('MEMORIAL DESCRITIVO'!$E$10:$E$4000=\"Sim\"),\n        ROW('MEMORIAL DESCRITIVO'!N$10:N$4000)-9\n      ),\n      A16\n    )\n  ),\n\"\")","v":""},{"$f":"IFERROR(\n  INDEX('MEMORIAL DESCRITIVO'!Q$10:Q$4000,\n    SMALL(\n      IF(\n        ('MEMORIAL DESCRITIVO'!$D$10:$D$4000=E16)*\n        ('MEMORIAL DESCRITIVO'!$E$10:$E$4000=\"Sim\"),\n        ROW('MEMORIAL DESCRITIVO'!Q$10:Q$4000)-9\n      ),\n      A16\n    )\n  ),\n\"\")","v":""},{"$f":"IFERROR(\n  INDEX('MEMORIAL DESCRITIVO'!R$10:R$4000,\n    SMALL(\n      IF(\n        ('MEMORIAL DESCRITIVO'!$D$10:$D$4000=E16)*\n        ('MEMORIAL DESCRITIVO'!$E$10:$E$4000=\"Sim\"),\n        ROW('MEMORIAL DESCRITIVO'!R$10:R$4000)-9\n      ),\n      A16\n    )\n  ),\n\"\")","v":""},{"$f":"IFERROR(\n  INDEX('MEMORIAL DESCRITIVO'!S$10:S$4000,\n    SMALL(\n      IF(\n        ('MEMORIAL DESCRITIVO'!$D$10:$D$4000=E16)*\n        ('MEMORIAL DESCRITIVO'!$E$10:$E$4000=\"Sim\"),\n        ROW('MEMORIAL DESCRITIVO'!S$10:S$4000)-9\n      ),\n      A16\n    )\n  ),\n\"\")","v":""},{"$f":"IFERROR(\n  INDEX('MEMORIAL DESCRITIVO'!T$10:T$4000,\n    SMALL(\n      IF(\n        ('MEMORIAL DESCRITIVO'!$D$10:$D$4000=E16)*\n        ('MEMORIAL DESCRITIVO'!$E$10:$E$4000=\"Sim\"),\n        ROW('MEMORIAL DESCRITIVO'!T$10:T$4000)-9\n      ),\n      A16\n    )\n  ),\n\"\")","v":""},{"$f":"IFERROR(\n  INDEX('MEMORIAL DESCRITIVO'!AA$10:AA$4000,\n    SMALL(\n      IF(\n        ('MEMORIAL DESCRITIVO'!$D$10:$D$4000=E16)*\n        ('MEMORIAL DESCRITIVO'!$E$10:$E$4000=\"Sim\"),\n        ROW('MEMORIAL DESCRITIVO'!AA$10:AA$4000)-9\n      ),\n      A16\n    )\n  ),\n\"\")","v":""},{"$f":"IFERROR(\n  INDEX('MEMORIAL DESCRITIVO'!AB$10:AB$4000,\n    SMALL(\n      IF(\n        ('MEMORIAL DESCRITIVO'!$D$10:$D$4000=E16)*\n        ('MEMORIAL DESCRITIVO'!$E$10:$E$4000=\"Sim\"),\n        ROW('MEMORIAL DESCRITIVO'!AB$10:AB$4000)-9\n      ),\n      A16\n    )\n  ),\n\"\")","v":""},{"$f":"IFERROR(\n  INDEX('MEMORIAL DESCRITIVO'!AF$10:AF$4000,\n    SMALL(\n      IF(\n        ('MEMORIAL DESCRITIVO'!$D$10:$D$4000=E16)*\n        ('MEMORIAL DESCRITIVO'!$E$10:$E$4000=\"Sim\"),\n        ROW('MEMORIAL DESCRITIVO'!AF$10:AF$4000)-9\n      ),\n      A16\n    )\n  ),\n\"\")","v":""},{"$f":"IFERROR(\n  INDEX('MEMORIAL DESCRITIVO'!AE$10:AE$4000,\n    SMALL(\n      IF(\n        ('MEMORIAL DESCRITIVO'!$D$10:$D$4000=E16)*\n        ('MEMORIAL DESCRITIVO'!$E$10:$E$4000=\"Sim\"),\n        ROW('MEMORIAL DESCRITIVO'!AE$10:AE$4000)-9\n      ),\n      A16\n    )\n  ),\n\"\")","v":""},{"$f":"IFERROR(\n  INDEX('MEMORIAL DESCRITIVO'!AI$10:AI$4000,\n    SMALL(\n      IF(\n        ('MEMORIAL DESCRITIVO'!$D$10:$D$4000=E16)*\n        ('MEMORIAL DESCRITIVO'!$E$10:$E$4000=\"Sim\"),\n        ROW('MEMORIAL DESCRITIVO'!AI$10:AI$4000)-9\n      ),\n      A16\n    )\n  ),\n\"\")","v":""},{"$f":"IFERROR(\n  INDEX('MEMORIAL DESCRITIVO'!AK$10:AK$4000,\n    SMALL(\n      IF(\n        ('MEMORIAL DESCRITIVO'!$D$10:$D$4000=E16)*\n        ('MEMORIAL DESCRITIVO'!$E$10:$E$4000=\"Sim\"),\n        ROW('MEMORIAL DESCRITIVO'!AK$10:AK$4000)-9\n      ),\n      A16\n    )\n  ),\n\"\")","v":""}]
[{"$f":"COUNTIF($E$12:E17, E17)","v":6},6,null,"",{"$f":"IFERROR(INDEX('MEMORIAL DESCRITIVO'!D$10:D$4000,SMALL(IF('MEMORIAL DESCRITIVO'!$E$10:$E$4000=\"Sim\",ROW('MEMORIAL DESCRITIVO'!D$10:D$4000)-9),ROW(B6))), \"\")","v":""},{"$f":"IFERROR(\n  INDEX('MEMORIAL DESCRITIVO'!I$10:I$4000,\n    SMALL(\n      IF(\n        ('MEMORIAL DESCRITIVO'!$D$10:$D$4000=E17)*\n        ('MEMORIAL DESCRITIVO'!$E$10:$E$4000=\"Sim\"),\n        ROW('MEMORIAL DESCRITIVO'!I$10:I$4000)-9\n      ),\n      A17\n    )\n  )\n  & \" \" &\n  INDEX('MEMORIAL DESCRITIVO'!J$10:J$4000,\n    SMALL(\n      IF(\n        ('MEMORIAL DESCRITIVO'!$D$10:$D$4000=E17)*\n        ('MEMORIAL DESCRITIVO'!$E$10:$E$4000=\"Sim\"),\n        ROW('MEMORIAL DESCRITIVO'!J$10:J$4000)-9\n      ),\n      A17\n    )\n  ),\n\"\")","v":""},{"$f":"IFERROR(\n  INDEX('MEMORIAL DESCRITIVO'!H$10:H$4000,\n    SMALL(\n      IF(\n        ('MEMORIAL DESCRITIVO'!$D$10:$D$4000=E17)*\n        ('MEMORIAL DESCRITIVO'!$E$10:$E$4000=\"Sim\"),\n        ROW('MEMORIAL DESCRITIVO'!H$10:H$4000)-9\n      ),\n      A17\n    )\n  ),\n\"\")","v":""},{"$f":"IFERROR(\n  INDEX('MEMORIAL DESCRITIVO'!K$10:K$4000,\n    SMALL(\n      IF(\n        ('MEMORIAL DESCRITIVO'!$D$10:$D$4000=E17)*\n        ('MEMORIAL DESCRITIVO'!$E$10:$E$4000=\"Sim\"),\n        ROW('MEMORIAL DESCRITIVO'!K$10:K$4000)-9\n      ),\n      A17\n    )\n  ),\n\"\")","v":""},{"$f":"IFERROR(\n  INDEX('MEMORIAL DESCRITIVO'!N$10:N$4000,\n    SMALL(\n      IF(\n        ('MEMORIAL DESCRITIVO'!$D$10:$D$4000=E17)*\n        ('MEMORIAL DESCRITIVO'!$E$10:$E$4000=\"Sim\"),\n        ROW('MEMORIAL DESCRITIVO'!N$10:N$4000)-9\n      ),\n      A17\n    )\n  ),\n\"\")","v":""},{"$f":"IFERROR(\n  INDEX('MEMORIAL DESCRITIVO'!Q$10:Q$4000,\n    SMALL(\n      IF(\n        ('MEMORIAL DESCRITIVO'!$D$10:$D$4000=E17)*\n        ('MEMORIAL DESCRITIVO'!$E$10:$E$4000=\"Sim\"),\n        ROW('MEMORIAL DESCRITIVO'!Q$10:Q$4000)-9\n      ),\n      A17\n    )\n  ),\n\"\")","v":""},{"$f":"IFERROR(\n  INDEX('MEMORIAL DESCRITIVO'!R$10:R$4000,\n    SMALL(\n      IF(\n        ('MEMORIAL DESCRITIVO'!$D$10:$D$4000=E17)*\n        ('MEMORIAL DESCRITIVO'!$E$10:$E$4000=\"Sim\"),\n        ROW('MEMORIAL DESCRITIVO'!R$10:R$4000)-9\n      ),\n      A17\n    )\n  ),\n\"\")","v":""},{"$f":"IFERROR(\n  INDEX('MEMORIAL DESCRITIVO'!S$10:S$4000,\n    SMALL(\n      IF(\n        ('MEMORIAL DESCRITIVO'!$D$10:$D$4000=E17)*\n        ('MEMORIAL DESCRITIVO'!$E$10:$E$4000=\"Sim\"),\n        ROW('MEMORIAL DESCRITIVO'!S$10:S$4000)-9\n      ),\n      A17\n    )\n  ),\n\"\")","v":""},{"$f":"IFERROR(\n  INDEX('MEMORIAL DESCRITIVO'!T$10:T$4000,\n    SMALL(\n      IF(\n        ('MEMORIAL DESCRITIVO'!$D$10:$D$4000=E17)*\n        ('MEMORIAL DESCRITIVO'!$E$10:$E$4000=\"Sim\"),\n        ROW('MEMORIAL DESCRITIVO'!T$10:T$4000)-9\n      ),\n      A17\n    )\n  ),\n\"\")","v":""},{"$f":"IFERROR(\n  INDEX('MEMORIAL DESCRITIVO'!AA$10:AA$4000,\n    SMALL(\n      IF(\n        ('MEMORIAL DESCRITIVO'!$D$10:$D$4000=E17)*\n        ('MEMORIAL DESCRITIVO'!$E$10:$E$4000=\"Sim\"),\n        ROW('MEMORIAL DESCRITIVO'!AA$10:AA$4000)-9\n      ),\n      A17\n    )\n  ),\n\"\")","v":""},{"$f":"IFERROR(\n  INDEX('MEMORIAL DESCRITIVO'!AB$10:AB$4000,\n    SMALL(\n      IF(\n        ('MEMORIAL DESCRITIVO'!$D$10:$D$4000=E17)*\n        ('MEMORIAL DESCRITIVO'!$E$10:$E$4000=\"Sim\"),\n        ROW('MEMORIAL DESCRITIVO'!AB$10:AB$4000)-9\n      ),\n      A17\n    )\n  ),\n\"\")","v":""},{"$f":"IFERROR(\n  INDEX('MEMORIAL DESCRITIVO'!AF$10:AF$4000,\n    SMALL(\n      IF(\n        ('MEMORIAL DESCRITIVO'!$D$10:$D$4000=E17)*\n        ('MEMORIAL DESCRITIVO'!$E$10:$E$4000=\"Sim\"),\n        ROW('MEMORIAL DESCRITIVO'!AF$10:AF$4000)-9\n      ),\n      A17\n    )\n  ),\n\"\")","v":""},{"$f":"IFERROR(\n  INDEX('MEMORIAL DESCRITIVO'!AE$10:AE$4000,\n    SMALL(\n      IF(\n        ('MEMORIAL DESCRITIVO'!$D$10:$D$4000=E17)*\n        ('MEMORIAL DESCRITIVO'!$E$10:$E$4000=\"Sim\"),\n        ROW('MEMORIAL DESCRITIVO'!AE$10:AE$4000)-9\n      ),\n      A17\n    )\n  ),\n\"\")","v":""},{"$f":"IFERROR(\n  INDEX('MEMORIAL DESCRITIVO'!AI$10:AI$4000,\n    SMALL(\n      IF(\n        ('MEMORIAL DESCRITIVO'!$D$10:$D$4000=E17)*\n        ('MEMORIAL DESCRITIVO'!$E$10:$E$4000=\"Sim\"),\n        ROW('MEMORIAL DESCRITIVO'!AI$10:AI$4000)-9\n      ),\n      A17\n    )\n  ),\n\"\")","v":""},{"$f":"IFERROR(\n  INDEX('MEMORIAL DESCRITIVO'!AK$10:AK$4000,\n    SMALL(\n      IF(\n        ('MEMORIAL DESCRITIVO'!$D$10:$D$4000=E17)*\n        ('MEMORIAL DESCRITIVO'!$E$10:$E$4000=\"Sim\"),\n        ROW('MEMORIAL DESCRITIVO'!AK$10:AK$4000)-9\n      ),\n      A17\n    )\n  ),\n\"\")","v":""}]
[{"$f":"COUNTIF($E$12:E18, E18)","v":7},7,null,"",{"$f":"IFERROR(INDEX('MEMORIAL DESCRITIVO'!D$10:D$4000,SMALL(IF('MEMORIAL DESCRITIVO'!$E$10:$E$4000=\"Sim\",ROW('MEMORIAL DESCRITIVO'!D$10:D$4000)-9),ROW(B7))), \"\")","v":""},{"$f":"IFERROR(\n  INDEX('MEMORIAL DESCRITIVO'!I$10:I$4000,\n    SMALL(\n      IF(\n        ('MEMORIAL DESCRITIVO'!$D$10:$D$4000=E18)*\n        ('MEMORIAL DESCRITIVO'!$E$10:$E$4000=\"Sim\"),\n        ROW('MEMORIAL DESCRITIVO'!I$10:I$4000)-9\n      ),\n      A18\n    )\n  )\n  & \" \" &\n  INDEX('MEMORIAL DESCRITIVO'!J$10:J$4000,\n    SMALL(\n      IF(\n        ('MEMORIAL DESCRITIVO'!$D$10:$D$4000=E18)*\n        ('MEMORIAL DESCRITIVO'!$E$10:$E$4000=\"Sim\"),\n        ROW('MEMORIAL DESCRITIVO'!J$10:J$4000)-9\n      ),\n      A18\n    )\n  ),\n\"\")","v":""},{"$f":"IFERROR(\n  INDEX('MEMORIAL DESCRITIVO'!H$10:H$4000,\n    SMALL(\n      IF(\n        ('MEMORIAL DESCRITIVO'!$D$10:$D$4000=E18)*\n        ('MEMORIAL DESCRITIVO'!$E$10:$E$4000=\"Sim\"),\n        ROW('MEMORIAL DESCRITIVO'!H$10:H$4000)-9\n      ),\n      A18\n    )\n  ),\n\"\")","v":""},{"$f":"IFERROR(\n  INDEX('MEMORIAL DESCRITIVO'!K$10:K$4000,\n    SMALL(\n      IF(\n        ('MEMORIAL DESCRITIVO'!$D$10:$D$4000=E18)*\n        ('MEMORIAL DESCRITIVO'!$E$10:$E$4000=\"Sim\"),\n        ROW('MEMORIAL DESCRITIVO'!K$10:K$4000)-9\n      ),\n      A18\n    )\n  ),\n\"\")","v":""},{"$f":"IFERROR(\n  INDEX('MEMORIAL DESCRITIVO'!N$10:N$4000,\n    SMALL(\n      IF(\n        ('MEMORIAL DESCRITIVO'!$D$10:$D$4000=E18)*\n        ('MEMORIAL DESCRITIVO'!$E$10:$E$4000=\"Sim\"),\n        ROW('MEMORIAL DESCRITIVO'!N$10:N$4000)-9\n      ),\n      A18\n    )\n  ),\n\"\")","v":""},{"$f":"IFERROR(\n  INDEX('MEMORIAL DESCRITIVO'!Q$10:Q$4000,\n    SMALL(\n      IF(\n        ('MEMORIAL DESCRITIVO'!$D$10:$D$4000=E18)*\n        ('MEMORIAL DESCRITIVO'!$E$10:$E$4000=\"Sim\"),\n        ROW('MEMORIAL DESCRITIVO'!Q$10:Q$4000)-9\n      ),\n      A18\n    )\n  ),\n\"\")","v":""},{"$f":"IFERROR(\n  INDEX('MEMORIAL DESCRITIVO'!R$10:R$4000,\n    SMALL(\n      IF(\n        ('MEMORIAL DESCRITIVO'!$D$10:$D$4000=E18)*\n        ('MEMORIAL DESCRITIVO'!$E$10:$E$4000=\"Sim\"),\n        ROW('MEMORIAL DESCRITIVO'!R$10:R$4000)-9\n      ),\n      A18\n    )\n  ),\n\"\")","v":""},{"$f":"IFERROR(\n  INDEX('MEMORIAL DESCRITIVO'!S$10:S$4000,\n    SMALL(\n      IF(\n        ('MEMORIAL DESCRITIVO'!$D$10:$D$4000=E18)*\n        ('MEMORIAL DESCRITIVO'!$E$10:$E$4000=\"Sim\"),\n        ROW('MEMORIAL DESCRITIVO'!S$10:S$4000)-9\n      ),\n      A18\n    )\n  ),\n\"\")","v":""},{"$f":"IFERROR(\n  INDEX('MEMORIAL DESCRITIVO'!T$10:T$4000,\n    SMALL(\n      IF(\n        ('MEMORIAL DESCRITIVO'!$D$10:$D$4000=E18)*\n        ('MEMORIAL DESCRITIVO'!$E$10:$E$4000=\"Sim\"),\n        ROW('MEMORIAL DESCRITIVO'!T$10:T$4000)-9\n      ),\n      A18\n    )\n  ),\n\"\")","v":""},{"$f":"IFERROR(\n  INDEX('MEMORIAL DESCRITIVO'!AA$10:AA$4000,\n    SMALL(\n      IF(\n        ('MEMORIAL DESCRITIVO'!$D$10:$D$4000=E18)*\n        ('MEMORIAL DESCRITIVO'!$E$10:$E$4000=\"Sim\"),\n        ROW('MEMORIAL DESCRITIVO'!AA$10:AA$4000)-9\n      ),\n      A18\n    )\n  ),\n\"\")","v":""},{"$f":"IFERROR(\n  INDEX('MEMORIAL DESCRITIVO'!AB$10:AB$4000,\n    SMALL(\n      IF(\n        ('MEMORIAL DESCRITIVO'!$D$10:$D$4000=E18)*\n        ('MEMORIAL DESCRITIVO'!$E$10:$E$4000=\"Sim\"),\n        ROW('MEMORIAL DESCRITIVO'!AB$10:AB$4000)-9\n      ),\n      A18\n    )\n  ),\n\"\")","v":""},{"$f":"IFERROR(\n  INDEX('MEMORIAL DESCRITIVO'!AF$10:AF$4000,\n    SMALL(\n      IF(\n        ('MEMORIAL DESCRITIVO'!$D$10:$D$4000=E18)*\n        ('MEMORIAL DESCRITIVO'!$E$10:$E$4000=\"Sim\"),\n        ROW('MEMORIAL DESCRITIVO'!AF$10:AF$4000)-9\n      ),\n      A18\n    )\n  ),\n\"\")","v":""},{"$f":"IFERROR(\n  INDEX('MEMORIAL DESCRITIVO'!AE$10:AE$4000,\n    SMALL(\n      IF(\n        ('MEMORIAL DESCRITIVO'!$D$10:$D$4000=E18)*\n        ('MEMORIAL DESCRITIVO'!$E$10:$E$4000=\"Sim\"),\n        ROW('MEMORIAL DESCRITIVO'!AE$10:AE$4000)-9\n      ),\n      A18\n    )\n  ),\n\"\")","v":""},{"$f":"IFERROR(\n  INDEX('MEMORIAL DESCRITIVO'!AI$10:AI$4000,\n    SMALL(\n      IF(\n        ('MEMORIAL DESCRITIVO'!$D$10:$D$4000=E18)*\n        ('MEMORIAL DESCRITIVO'!$E$10:$E$4000=\"Sim\"),\n        ROW('MEMORIAL DESCRITIVO'!AI$10:AI$4000)-9\n      ),\n      A18\n    )\n  ),\n\"\")","v":""},{"$f":"IFERROR(\n  INDEX('MEMORIAL DESCRITIVO'!AK$10:AK$4000,\n    SMALL(\n      IF(\n        ('MEMORIAL DESCRITIVO'!$D$10:$D$4000=E18)*\n        ('MEMORIAL DESCRITIVO'!$E$10:$E$4000=\"Sim\"),\n        ROW('MEMORIAL DESCRITIVO'!AK$10:AK$4000)-9\n      ),\n      A18\n    )\n  ),\n\"\")","v":""}]
[{"$f":"COUNTIF($E$12:E19, E19)","v":8},8,null,"",{"$f":"IFERROR(INDEX('MEMORIAL DESCRITIVO'!D$10:D$4000,SMALL(IF('MEMORIAL DESCRITIVO'!$E$10:$E$4000=\"Sim\",ROW('MEMORIAL DESCRITIVO'!D$10:D$4000)-9),ROW(B8))), \"\")","v":""},{"$f":"IFERROR(\n  INDEX('MEMORIAL DESCRITIVO'!I$10:I$4000,\n    SMALL(\n      IF(\n        ('MEMORIAL DESCRITIVO'!$D$10:$D$4000=E19)*\n        ('MEMORIAL DESCRITIVO'!$E$10:$E$4000=\"Sim\"),\n        ROW('MEMORIAL DESCRITIVO'!I$10:I$4000)-9\n      ),\n      A19\n    )\n  )\n  & \" \" &\n  INDEX('MEMORIAL DESCRITIVO'!J$10:J$4000,\n    SMALL(\n      IF(\n        ('MEMORIAL DESCRITIVO'!$D$10:$D$4000=E19)*\n        ('MEMORIAL DESCRITIVO'!$E$10:$E$4000=\"Sim\"),\n        ROW('MEMORIAL DESCRITIVO'!J$10:J$4000)-9\n      ),\n      A19\n    )\n  ),\n\"\")","v":""},{"$f":"IFERROR(\n  INDEX('MEMORIAL DESCRITIVO'!H$10:H$4000,\n    SMALL(\n      IF(\n        ('MEMORIAL DESCRITIVO'!$D$10:$D$4000=E19)*\n        ('MEMORIAL DESCRITIVO'!$E$10:$E$4000=\"Sim\"),\n        ROW('MEMORIAL DESCRITIVO'!H$10:H$4000)-9\n      ),\n      A19\n    )\n  ),\n\"\")","v":""},{"$f":"IFERROR(\n  INDEX('MEMORIAL DESCRITIVO'!K$10:K$4000,\n    SMALL(\n      IF(\n        ('MEMORIAL DESCRITIVO'!$D$10:$D$4000=E19)*\n        ('MEMORIAL DESCRITIVO'!$E$10:$E$4000=\"Sim\"),\n        ROW('MEMORIAL DESCRITIVO'!K$10:K$4000)-9\n      ),\n      A19\n    )\n  ),\n\"\")","v":""},{"$f":"IFERROR(\n  INDEX('MEMORIAL DESCRITIVO'!N$10:N$4000,\n    SMALL(\n      IF(\n        ('MEMORIAL DESCRITIVO'!$D$10:$D$4000=E19)*\n        ('MEMORIAL DESCRITIVO'!$E$10:$E$4000=\"Sim\"),\n        ROW('MEMORIAL DESCRITIVO'!N$10:N$4000)-9\n      ),\n      A19\n    )\n  ),\n\"\")","v":""},{"$f":"IFERROR(\n  INDEX('MEMORIAL DESCRITIVO'!Q$10:Q$4000,\n    SMALL(\n      IF(\n        ('MEMORIAL DESCRITIVO'!$D$10:$D$4000=E19)*\n        ('MEMORIAL DESCRITIVO'!$E$10:$E$4000=\"Sim\"),\n        ROW('MEMORIAL DESCRITIVO'!Q$10:Q$4000)-9\n      ),\n      A19\n    )\n  ),\n\"\")","v":""},{"$f":"IFERROR(\n  INDEX('MEMORIAL DESCRITIVO'!R$10:R$4000,\n    SMALL(\n      IF(\n        ('MEMORIAL DESCRITIVO'!$D$10:$D$4000=E19)*\n        ('MEMORIAL DESCRITIVO'!$E$10:$E$4000=\"Sim\"),\n        ROW('MEMORIAL DESCRITIVO'!R$10:R$4000)-9\n      ),\n      A19\n    )\n  ),\n\"\")","v":""},{"$f":"IFERROR(\n  INDEX('MEMORIAL DESCRITIVO'!S$10:S$4000,\n    SMALL(\n      IF(\n        ('MEMORIAL DESCRITIVO'!$D$10:$D$4000=E19)*\n        ('MEMORIAL DESCRITIVO'!$E$10:$E$4000=\"Sim\"),\n        ROW('MEMORIAL DESCRITIVO'!S$10:S$4000)-9\n      ),\n      A19\n    )\n  ),\n\"\")","v":""},{"$f":"IFERROR(\n  INDEX('MEMORIAL DESCRITIVO'!T$10:T$4000,\n    SMALL(\n      IF(\n        ('MEMORIAL DESCRITIVO'!$D$10:$D$4000=E19)*\n        ('MEMORIAL DESCRITIVO'!$E$10:$E$4000=\"Sim\"),\n        ROW('MEMORIAL DESCRITIVO'!T$10:T$4000)-9\n      ),\n      A19\n    )\n  ),\n\"\")","v":""},{"$f":"IFERROR(\n  INDEX('MEMORIAL DESCRITIVO'!AA$10:AA$4000,\n    SMALL(\n      IF(\n        ('MEMORIAL DESCRITIVO'!$D$10:$D$4000=E19)*\n        ('MEMORIAL DESCRITIVO'!$E$10:$E$4000=\"Sim\"),\n        ROW('MEMORIAL DESCRITIVO'!AA$10:AA$4000)-9\n      ),\n      A19\n    )\n  ),\n\"\")","v":""},{"$f":"IFERROR(\n  INDEX('MEMORIAL DESCRITIVO'!AB$10:AB$4000,\n    SMALL(\n      IF(\n        ('MEMORIAL DESCRITIVO'!$D$10:$D$4000=E19)*\n        ('MEMORIAL DESCRITIVO'!$E$10:$E$4000=\"Sim\"),\n        ROW('MEMORIAL DESCRITIVO'!AB$10:AB$4000)-9\n      ),\n      A19\n    )\n  ),\n\"\")","v":""},{"$f":"IFERROR(\n  INDEX('MEMORIAL DESCRITIVO'!AF$10:AF$4000,\n    SMALL(\n      IF(\n        ('MEMORIAL DESCRITIVO'!$D$10:$D$4000=E19)*\n        ('MEMORIAL DESCRITIVO'!$E$10:$E$4000=\"Sim\"),\n        ROW('MEMORIAL DESCRITIVO'!AF$10:AF$4000)-9\n      ),\n      A19\n    )\n  ),\n\"\")","v":""},{"$f":"IFERROR(\n  INDEX('MEMORIAL DESCRITIVO'!AE$10:AE$4000,\n    SMALL(\n      IF(\n        ('MEMORIAL DESCRITIVO'!$D$10:$D$4000=E19)*\n        ('MEMORIAL DESCRITIVO'!$E$10:$E$4000=\"Sim\"),\n        ROW('MEMORIAL DESCRITIVO'!AE$10:AE$4000)-9\n      ),\n      A19\n    )\n  ),\n\"\")","v":""},{"$f":"IFERROR(\n  INDEX('MEMORIAL DESCRITIVO'!AI$10:AI$4000,\n    SMALL(\n      IF(\n        ('MEMORIAL DESCRITIVO'!$D$10:$D$4000=E19)*\n        ('MEMORIAL DESCRITIVO'!$E$10:$E$4000=\"Sim\"),\n        ROW('MEMORIAL DESCRITIVO'!AI$10:AI$4000)-9\n      ),\n      A19\n    )\n  ),\n\"\")","v":""},{"$f":"IFERROR(\n  INDEX('MEMORIAL DESCRITIVO'!AK$10:AK$4000,\n    SMALL(\n      IF(\n        ('MEMORIAL DESCRITIVO'!$D$10:$D$4000=E19)*\n        ('MEMORIAL DESCRITIVO'!$E$10:$E$4000=\"Sim\"),\n        ROW('MEMORIAL DESCRITIVO'!AK$10:AK$4000)-9\n      ),\n      A19\n    )\n  ),\n\"\")","v":""}]
[{"$f":"COUNTIF($E$12:E20, E20)","v":9},9,null,null,{"$f":"IFERROR(INDEX('MEMORIAL DESCRITIVO'!D$10:D$4000,SMALL(IF('MEMORIAL DESCRITIVO'!$E$10:$E$4000=\"Sim\",ROW('MEMORIAL DESCRITIVO'!D$10:D$4000)-9),ROW(B9))), \"\")","v":""},{"$f":"IFERROR(\n  INDEX('MEMORIAL DESCRITIVO'!I$10:I$4000,\n    SMALL(\n      IF(\n        ('MEMORIAL DESCRITIVO'!$D$10:$D$4000=E20)*\n        ('MEMORIAL DESCRITIVO'!$E$10:$E$4000=\"Sim\"),\n        ROW('MEMORIAL DESCRITIVO'!I$10:I$4000)-9\n      ),\n      A20\n    )\n  )\n  & \" \" &\n  INDEX('MEMORIAL DESCRITIVO'!J$10:J$4000,\n    SMALL(\n      IF(\n        ('MEMORIAL DESCRITIVO'!$D$10:$D$4000=E20)*\n        ('MEMORIAL DESCRITIVO'!$E$10:$E$4000=\"Sim\"),\n        ROW('MEMORIAL DESCRITIVO'!J$10:J$4000)-9\n      ),\n      A20\n    )\n  ),\n\"\")","v":""},{"$f":"IFERROR(\n  INDEX('MEMORIAL DESCRITIVO'!H$10:H$4000,\n    SMALL(\n      IF(\n        ('MEMORIAL DESCRITIVO'!$D$10:$D$4000=E20)*\n        ('MEMORIAL DESCRITIVO'!$E$10:$E$4000=\"Sim\"),\n        ROW('MEMORIAL DESCRITIVO'!H$10:H$4000)-9\n      ),\n      A20\n    )\n  ),\n\"\")","v":""},{"$f":"IFERROR(\n  INDEX('MEMORIAL DESCRITIVO'!K$10:K$4000,\n    SMALL(\n      IF(\n        ('MEMORIAL DESCRITIVO'!$D$10:$D$4000=E20)*\n        ('MEMORIAL DESCRITIVO'!$E$10:$E$4000=\"Sim\"),\n        ROW('MEMORIAL DESCRITIVO'!K$10:K$4000)-9\n      ),\n      A20\n    )\n  ),\n\"\")","v":""},{"$f":"IFERROR(\n  INDEX('MEMORIAL DESCRITIVO'!N$10:N$4000,\n    SMALL(\n      IF(\n        ('MEMORIAL DESCRITIVO'!$D$10:$D$4000=E20)*\n        ('MEMORIAL DESCRITIVO'!$E$10:$E$4000=\"Sim\"),\n        ROW('MEMORIAL DESCRITIVO'!N$10:N$4000)-9\n      ),\n      A20\n    )\n  ),\n\"\")","v":""},{"$f":"IFERROR(\n  INDEX('MEMORIAL DESCRITIVO'!Q$10:Q$4000,\n    SMALL(\n      IF(\n        ('MEMORIAL DESCRITIVO'!$D$10:$D$4000=E20)*\n        ('MEMORIAL DESCRITIVO'!$E$10:$E$4000=\"Sim\"),\n        ROW('MEMORIAL DESCRITIVO'!Q$10:Q$4000)-9\n      ),\n      A20\n    )\n  ),\n\"\")","v":""},{"$f":"IFERROR(\n  INDEX('MEMORIAL DESCRITIVO'!R$10:R$4000,\n    SMALL(\n      IF(\n        ('MEMORIAL DESCRITIVO'!$D$10:$D$4000=E20)*\n        ('MEMORIAL DESCRITIVO'!$E$10:$E$4000=\"Sim\"),\n        ROW('MEMORIAL DESCRITIVO'!R$10:R$4000)-9\n      ),\n      A20\n    )\n  ),\n\"\")","v":""},{"$f":"IFERROR(\n  INDEX('MEMORIAL DESCRITIVO'!S$10:S$4000,\n    SMALL(\n      IF(\n        ('MEMORIAL DESCRITIVO'!$D$10:$D$4000=E20)*\n        ('MEMORIAL DESCRITIVO'!$E$10:$E$4000=\"Sim\"),\n        ROW('MEMORIAL DESCRITIVO'!S$10:S$4000)-9\n      ),\n      A20\n    )\n  ),\n\"\")","v":""},{"$f":"IFERROR(\n  INDEX('MEMORIAL DESCRITIVO'!T$10:T$4000,\n    SMALL(\n      IF(\n        ('MEMORIAL DESCRITIVO'!$D$10:$D$4000=E20)*\n        ('MEMORIAL DESCRITIVO'!$E$10:$E$4000=\"Sim\"),\n        ROW('MEMORIAL DESCRITIVO'!T$10:T$4000)-9\n      ),\n      A20\n    )\n  ),\n\"\")","v":""},{"$f":"IFERROR(\n  INDEX('MEMORIAL DESCRITIVO'!AA$10:AA$4000,\n    SMALL(\n      IF(\n        ('MEMORIAL DESCRITIVO'!$D$10:$D$4000=E20)*\n        ('MEMORIAL DESCRITIVO'!$E$10:$E$4000=\"Sim\"),\n        ROW('MEMORIAL DESCRITIVO'!AA$10:AA$4000)-9\n      ),\n      A20\n    )\n  ),\n\"\")","v":""},{"$f":"IFERROR(\n  INDEX('MEMORIAL DESCRITIVO'!AB$10:AB$4000,\n    SMALL(\n      IF(\n        ('MEMORIAL DESCRITIVO'!$D$10:$D$4000=E20)*\n        ('MEMORIAL DESCRITIVO'!$E$10:$E$4000=\"Sim\"),\n        ROW('MEMORIAL DESCRITIVO'!AB$10:AB$4000)-9\n      ),\n      A20\n    )\n  ),\n\"\")","v":""},{"$f":"IFERROR(\n  INDEX('MEMORIAL DESCRITIVO'!AF$10:AF$4000,\n    SMALL(\n      IF(\n        ('MEMORIAL DESCRITIVO'!$D$10:$D$4000=E20)*\n        ('MEMORIAL DESCRITIVO'!$E$10:$E$4000=\"Sim\"),\n        ROW('MEMORIAL DESCRITIVO'!AF$10:AF$4000)-9\n      ),\n      A20\n    )\n  ),\n\"\")","v":""},{"$f":"IFERROR(\n  INDEX('MEMORIAL DESCRITIVO'!AE$10:AE$4000,\n    SMALL(\n      IF(\n        ('MEMORIAL DESCRITIVO'!$D$10:$D$4000=E20)*\n        ('MEMORIAL DESCRITIVO'!$E$10:$E$4000=\"Sim\"),\n        ROW('MEMORIAL DESCRITIVO'!AE$10:AE$4000)-9\n      ),\n      A20\n    )\n  ),\n\"\")","v":""},{"$f":"IFERROR(\n  INDEX('MEMORIAL DESCRITIVO'!AI$10:AI$4000,\n    SMALL(\n      IF(\n        ('MEMORIAL DESCRITIVO'!$D$10:$D$4000=E20)*\n        ('MEMORIAL DESCRITIVO'!$E$10:$E$4000=\"Sim\"),\n        ROW('MEMORIAL DESCRITIVO'!AI$10:AI$4000)-9\n      ),\n      A20\n    )\n  ),\n\"\")","v":""},{"$f":"IFERROR(\n  INDEX('MEMORIAL DESCRITIVO'!AK$10:AK$4000,\n    SMALL(\n      IF(\n        ('MEMORIAL DESCRITIVO'!$D$10:$D$4000=E20)*\n        ('MEMORIAL DESCRITIVO'!$E$10:$E$4000=\"Sim\"),\n        ROW('MEMORIAL DESCRITIVO'!AK$10:AK$4000)-9\n      ),\n      A20\n    )\n  ),\n\"\")","v":""}]
[null,"Tabela 2: Ensaios para panelas de pressão"]
[null,"Item do RTQ",null,null,"Ensaios",null,null,null,"Procedimentos / critérios de aceitação",null,"Corpo de Prova\n(se aplicável)"]
[null,null,null,null,null,null,null,null,null,null,1,2,3,4,5,6,7,8,9,"Observações:"]
[null,"4.2.2 DO RTQ",null,null,"DIMENSÕES",null,null,null,"3.1 DO ANEXO C"]
[null,"4.1.9 DO RTQ",null,null,"MARCAÇÕES E INSTRUÇÕES",null,null,null,"4.1.9 DO RTQ"]
[null,"4.1.7 DO RTQ",null,null,"CAPACIDADE VOLUMÉTRICA",null,null,null,"4.1.7 DO RTQ"]
[null,"4.1.4 DO RTQ",null,null,"VÁLVULA REGULADORA DE PRESSÃO E VÁLVULA DE SEGURANÇA",null,null,null,"4.1.4 DO RTQ"]
[null,"4.2.5.3 DO RTQ",null,null,"CANTOS VIVOS E REBARBAS",null,null,null,"3.4.3 DO ANEXO C"]
[null,"4.1.2 DO RTQ",null,null,"PARTES ELASTOMÉRICAS",null,null,null,"2.1 DO ANEXO C"]
[null,"4.1.3 E 4.1.5 DO RTQ",null,null,"PARTES POLIMÉRICAS E NÉVOA SALINA",null,null,null,"2.2 DO ANEXO C E 4.1.5 DO RTQ"]
[null,"4.1.6 DO RTQ",null,null,"PRESSÕES DE TRABALHO",null,null,null,"2.3.1 DO ANEXO C"]
[null,"4.1.6 DO RTQ",null,null,"PRESSÃO DE RESISTÊNCIA HIDROSTÁTICA",null,null,null,"2.3.2 DO ANEXO C"]
[null,"4.1.6 DO RTQ",null,null,"PRESSÃO DE FUNCIONAMENTO DA VÁLVULA DE SEGURANÇA",null,null,null,"2.3.3 DO ANEXO C"]
[null,"4.2.4 DO RTQ",null,null,"FIXAÇÃO DO TERMODIFUSOR",null,null,null,"3.3 DO ANEXO C"]
[null,"4.1.8 DO RTQ",null,null,"UTENSÍLIOS COM REVESTIMENTO ANTIADERENTE",null,null,null,"3.2 DO ANEXO C"]
[null,"4.1.8 DO RTQ",null,null,"UTENSÍLIOS DE ALUMÍNIO COM REVESTIMENTO CERÂMICO E ESMALTE VÍTREO",null,null,null,"3.2 DO ANEXO C"]
[null,"4.1.8 DO RTQ",null,null,"UTENSÍLIOS DE AÇO OU FERRO FUNDIDO COM REVESTIMENTO CERÂMICO E ESMALTE VÍTREO",null,null,null,"3.2 DO ANEXO C"]
[null,"4.1.8 DO RTQ",null,null,"UTENSÍLIOS COM ANODIZAÇÃO DURA",null,null,null,"3.2 DO ANEXO C"]
[null,"4.1.8 DO RTQ",null,null,"UTENSÍLIO APENAS COM PINTURA EXTERNA",null,null,null,"3.2 DO ANEXO C"]

{"sheet":"DADOS","index":5,"n_rows":42,"n_cols":44,"rows_kept":42,"cut":false,"hidden":true,"merged":[]}
[null,"-","-","-","-"]
["-","NACIONAL","INICIAL","MODELO 2","BERÇO"]
["SIM","IMPORTADO","MANUTENÇÃO","MODELO 5","ANDADOR"]
["NÃO",null,"INCLUSÃO / REVISÃO","MODELO 1b - LOTE","MÓBILE"]
["N° DA LICENÇA P/ USO DE MARCAS:",null,"RECERTIFICAÇÃO",null,"JUMPER"]
[null,null,"TRANSFERÊNCIA",null,"BOUNCER"]
[null,null,null,null,"OUTROS"]
[]
[null,null,null,null,null,null,2,3,4,5,6,7,8,9,10,11,12,13,14,15,16,17,18,19,20,21,22,23,24,25,26,27,28,29,30,31,32,33,34,35,36,37,38,39]
[null,null,null,null,null,"MODELO 1b - LOTE","* Família","* Pai","Critério\n* Escolha do pai","Itens","Modelo/Referência","Marca","Nome Comercial do Produto","Código de barras","É produto com sortimento na mesma referência/cod. Barras?","Quantidade (importação)","N° do Lote de Fabricação","NCM (Importado)","Nº Licença de Importação (L.I) / Declaração de importação (DI ou DUIMP)","Data da Fabricação","Faixa Etária Restritiva","Faixa Etária Indicada","Mercado alvo a que se destina","Matéria prima  (todos os componentes do produto)","O produto possui PVC ou Vinil?","Modo de produção","Se pelucia, defiinir  por:\na) Material exterior \nb) Tipos de enchimento \nc) Modo de costura \nd) Fixação dos componentes           ","Se pelucia, definir tamanho conforme sua altura:\na.1) de 0 a 15 cm \na.2) maior que 15 cm e menor que 50 cm  \na.3) maior que 50 cm ","Mecânismo de Funcionamento: (Manual ou Elétrico)","Se eletrico, definir por:                      \na) Brinquedo a pilha ou acumulador (bateria)\nb) Brinquedo com transformador \nc) Brinquedo com dupla alimentação","Possui pó, pasta, líquido ou gel?  Se sim, indique qual  ","Possui corda /cordão?","Emite som?","Possui imã?","Possui rádio-frequencia?","Detalhe funcionamento caso o brinquedo seja de controle remoto sem fio (por exemplo: rádio frequência ou infra-vermelho)","Velocidade","Potência máxima","Acessórios","Apresenta Laser, Infra-vermelho ou Led? \nSe sim, detalhe qual e para qual finalidade.","Objetivo do brinquedo (ABNT ISO/TR 8124-8)","Dimensões","Cor","Foto\n(800x600 dpi - mínimo)"]
[null,null,null,null,null,"MODELO 2","* Família","* Pai","Critério\n* Escolha do pai","Itens","Modelo/Referência","Marca","Nome Comercial do Produto","Código de barras","É produto com sortimento na mesma referência/cod. Barras?","N/A","N/A","N/A","N/A","N/A","Faixa Etária Restritiva","Faixa Etária Indicada","Mercado alvo a que se destina","Matéria prima  (todos os componentes do produto)","O produto possui PVC ou Vinil?","Modo de produção","Se pelucia, defiinir  por:\na) Material exterior \nb) Tipos de enchimento \nc) Modo de costura \nd) Fixação dos componentes           ","Se pelucia, definir tamanho conforme sua altura:\na.1) de 0 a 15 cm \na.2) maior que 15 cm e menor que 50 cm  \na.3) maior que 50 cm ","Mecânismo de Funcionamento: (Manual ou Elétrico)","Se eletrico, definir por:                      \na) Brinquedo a pilha ou acumulador (bateria)\nb) Brinquedo com transformador \nc) Brinquedo com dupla alimentação \n","Possui pó, pasta, líquido ou gel?  Se sim, indique qual  ","Possui corda /cordão?","Emite som?","Possui imã?","Possui rádio-frequencia?","Detalhe funcionamento caso o brinquedo seja de controle remoto sem fio (por exemplo: rádio frequência ou infra-vermelho)","Velocidade","Potência máxima","Acessórios","Apresenta Laser, Infra-vermelho ou Led? \nSe sim, detalhe qual e para qual finalidade.","Objetivo do brinquedo (ABNT ISO/TR 8124-8)","Dimensões","Cor","Foto\n(800x600 dpi min)"]
[null,null,null,null,null,"MODELO 5","* Família","* Pai","Critério\n* Escolha do pai","Itens","Modelo/Referência","Marca","Nome Comercial do Produto","Código de barras","É produto com sortimento na mesma referência/cod. Barras?","N/A","N/A","N/A","N/A","N/A","Faixa Etária Restritiva","Faixa Etária Indicada","Mercado alvo a que se destina","Matéria prima  (todos os componentes do produto)","O produto possui PVC ou Vinil?","Modo de produção","Se pelucia, defiinir  por:\na) Material exterior \nb) Tipos de enchimento \nc) Modo de costura \nd) Fixação dos componentes           ","Se pelucia, definir tamanho conforme sua altura:\na.1) de 0 a 15 cm \na.2) maior que 15 cm e menor que 50 cm  \na.3) maior que 50 cm ","Mecânismo de Funcionamento: (Manual ou Elétrico)","Se eletrico, definir por:                      \na) Brinquedo a pilha ou acumulador (bateria)\nb) Brinquedo com transformador \nc) Brinquedo com dupla alimentação \n","Possui pó, pasta, líquido ou gel?  Se sim, indique qual  ","Possui corda /cordão?","Emite som?","Possui imã?","Possui rádio-frequencia?","Detalhe funcionamento caso o brinquedo seja de controle remoto sem fio (por exemplo: rádio frequência ou infra-vermelho)","Velocidade","Potência máxima","Acessórios","Apresenta Laser, Infra-vermelho ou Led? \nSe sim, detalhe qual e para qual finalidade.","Objetivo do brinquedo (ABNT ISO/TR 8124-8)","Dimensões","Cor","Foto\n(800x600 dpi min)"]
[null,"-"]
["LABORATÓRIOS DE ENSAIOS"]
["Selecionar laboratório de ensaios"]
["BAZHOU HUIHANG PLASTIC MANUFACTURE CO,LTD"]
["COMPANHIA DOREL BRASIL PRODUTOS INFANTIS"]
["CSI SPA"]
["DOREL JUVENILE (ZHONGSHAN) PRODUCT CO. LTD"]
["EXCELÊNCIA LABORATORIAL GLOBAL LTDA – CRL0756"]
["GUANGDONG INSPECTION AND QUARANTINE TECHNOLOGY CENTER - IQTC"]
["INSTITUTO LAB SYSTEM DE PESQUISA E ENSAIOS LTDA"]
["INTERTEK DO BRASIL LABORATÓRIOS LTDA"]
["INTERTEK TESTING SERVICES HONG KONG LTD."]
["INTERTEK TESTING SERVICES SHENZHEN LTD."]
["ITEN - INSTITUTO TECNOLOGICO DE ENSAIOS LTDA"]
["JIANGSU EQO TESTING SERVICES CO., LTD."]
["JIANGSU LUCKY BABY SAFETY SYSTEM MFG.CO., LTD. (LAC LAB SUBCONTRATA)"]
["L. A. FALCÃO BAUER - CENTRO TECNOLÓGICO DE CONTROLE QUALIDADE LTDA."]
["LAC-LAB - LABORATÓRIO DE AVALIAÇÃO DA CONFORMIDADE PARA PRODUTOS LTDA"]
["MARINHO INDÚSTRIA E COMÉRCIO DE PLÁSTICOS LTDA"]
["NTD / NÚCLEO DE TÉCNOLOGIA E DESENVOLVIMENTO EIRELI - EPP"]
["SGS DO BRASIL LTDA - UNIDADE BARUERI"]
["SGS DO BRASIL LTDA - UNIDADE PIRACICABA"]
["SGS-CSTC STANDARDS TECHNICAL SERVICES (SHANGHAI) CO., LTD., (ENVIRONMENTAL SERVICES)"]
["TÜV NORD MOBILITÄT GMBH & CO. KG"]
["TUV RHEINLAND INTERCERT KFT."]
["TÜV SÜD AUTO SERVICE GMBH"]
["TUV SUD CZECH S.R.O"]
["UNITEC UNIDADE DE TECNOLOGIA E ENSAIO LTDA ME"]
["UTAC - UNION TECHNIQUE DE I’AUTOMOBILE, DU MOTOCYCLE ET DU CYCLE"]
["WONDERLAND TESTING LABORATORY CENTER"]